Workbook

Sheet Filtros
A1: CONSEJO ESTATAL CONTRA LAS ADICCIONES EN JALISCO
A2: SISTEMA DE VIGILANCIA EPIDEMIOLÓGICA DE LAS ADICCIONES
A3: Resultados Estatal y por Región Sanitaria 2021
B5: Estatal | C5: Colotlán | D5: Lagos de M | E5: Tepatitlán | F5: La Barca | G5: Tamazula | H5: Zapotlán | I5: Autlán | J5: Vallarta | K5: Ameca | L5: Zapopan | M5: Tonalá | N5: Tlaquepaque | O5: Guadalajara
A6: Selección n | B6: =SUM(C6:O6) -> 6430 | C6: =VLOOKUP($A6,TablasDinamicas!$A$2:$O$3,TablasDinamicas!B4,0) -> 98 | D6: =VLOOKUP($A6,TablasDinamicas!$A$2:$O$3,TablasDinamicas!C4,0) -> 68 | E6: =VLOOKUP($A6,TablasDinamicas!$A$2:$O$3,TablasDinamicas!D4,0) -> 587 | F6: =VLOOKUP($A6,TablasDinamicas!$A$2:$O$3,TablasDinamicas!E4,0) -> 1112 | G6: =VLOOKUP($A6,TablasDinamicas!$A$2:$O$3,TablasDinamicas!F4,0) -> 32 | H6: =VLOOKUP($A6,TablasDinamicas!$A$2:$O$3,TablasDinamicas!G4,0) -> 121 | I6: =VLOOKUP($A6,TablasDinamicas!$A$2:$O$3,TablasDinamicas!H4,0) -> 108 | J6: =VLOOKUP($A6,TablasDinamicas!$A$2:$O$3,TablasDinamicas!I4,0) -> 184 | K6: =VLOOKUP($A6,TablasDinamicas!$A$2:$O$3,TablasDinamicas!J4,0) -> 228 | L6: =VLOOKUP($A6,TablasDinamicas!$A$2:$O$3,TablasDinamicas!K4,0) -> 761 | M6: =VLOOKUP($A6,TablasDinamicas!$A$2:$O$3,TablasDinamicas!L4,0) -> 287 | N6: =VLOOKUP($A6,TablasDinamicas!$A$2:$O$3,TablasDinamicas!M4,0) -> 1246 | O6: =VLOOKUP($A6,TablasDinamicas!$A$2:$O$3,TablasDinamicas!N4,0) -> 1598
C7: =C6/$B6 -> 0.01524105754 | D7: =D6/$B6 -> 0.01057542768 | E7: 0.09129082426 | F7: 0.1729393468 | G7: 0.004976671851 | H7: 0.01881804044 | I7: 0.0167962675 | J7: 0.02861586314 | K7: 0.03545878694 | L7: 0.1183514774 | M7: 0.04463452566 | N7: 0.1937791602 | O7: 0.2485225505
A31: Fuente: DGE/SISVEA/cecaj/sisvea 2021

Sheet Gráficos
A1: =Filtros!A1 -> CONSEJO ESTATAL CONTRA LAS ADICCIONES EN JALISCO
A2: =Filtros!A2 -> SISTEMA DE VIGILANCIA EPIDEMIOLÓGICA DE LAS ADICCIONES
A3: =Filtros!A3 -> Resultados Estatal y por Región Sanitaria 2021
B4: Estatal | C4: Colotlán | D4: Lagos de M | E4: Tepatitlán | F4: La Barca | G4: Tamazula | H4: Zapotlán | I4: Autlán | J4: Vallarta | K4: Ameca | L4: Zapopan | M4: Tonalá | N4: Tlaquepaque | O4: Guadalajara
A5: =Filtros!A6 -> Selección n | B5: =Filtros!B6 -> 6430 | C5: =Filtros!C6 -> 98 | D5: =Filtros!D6 -> 68 | E5: =Filtros!E6 -> 587 | F5: =Filtros!F6 -> 1112 | G5: =Filtros!G6 -> 32 | H5: =Filtros!H6 -> 121 | I5: =Filtros!I6 -> 108 | J5: =Filtros!J6 -> 184 | K5: =Filtros!K6 -> 228 | L5: =Filtros!L6 -> 761 | M5: =Filtros!M6 -> 287 | N5: =Filtros!N6 -> 1246 | O5: =Filtros!O6 -> 1598
C6: =Filtros!C7 -> 0.01524105754 | D6: =Filtros!D7 -> 0.01057542768 | E6: =Filtros!E7 -> 0.09129082426 | F6: =Filtros!F7 -> 0.1729393468 | G6: =Filtros!G7 -> 0.004976671851 | H6: =Filtros!H7 -> 0.01881804044 | I6: =Filtros!I7 -> 0.0167962675 | J6: =Filtros!J7 -> 0.02861586314 | K6: =Filtros!K7 -> 0.03545878694 | L6: =Filtros!L7 -> 0.1183514774 | M6: =Filtros!M7 -> 0.04463452566 | N6: =Filtros!N7 -> 0.1937791602 | O6: =Filtros!O7 -> 0.2485225505
C376: =Filtros!C7 -> 0.01524105754 | D376: =Filtros!D7 -> 0.01057542768 | E376: =Filtros!E7 -> 0.09129082426 | F376: =Filtros!F7 -> 0.1729393468 | G376: =Filtros!G7 -> 0.004976671851 | H376: =Filtros!H7 -> 0.01881804044 | I376: =Filtros!I7 -> 0.0167962675 | J376: =Filtros!J7 -> 0.02861586314 | K376: =Filtros!K7 -> 0.03545878694 | L376: =Filtros!L7 -> 0.1183514774 | M376: =Filtros!M7 -> 0.04463452566 | N376: =Filtros!N7 -> 0.1937791602 | O376: =Filtros!O7 -> 0.2485225505
A637: Fuente: SISVEA, CECAJ
A1116: =Filtros!A31 -> Fuente: DGE/SISVEA/cecaj/sisvea 2021

Sheet Porcentaje
B1: Característica General | C1: Estatal | D1: Colotlán | E1: Lagos de M | F1: Tepatitlán | G1: La Barca | H1: Tamazula | I1: Zapotlán | J1: Autlán | K1: Vallarta | L1: Ameca | M1: Zapopan | N1: Tonalá | O1: Tlaquepaque | P1: Guadalajara
B2: =Filtros!A6 -> Selección n | C2: =SUM(D2:P2) -> 6430 | D2: =Filtros!C6 -> 98 | E2: =Filtros!D6 -> 68 | F2: =Filtros!E6 -> 587 | G2: =Filtros!F6 -> 1112 | H2: =Filtros!G6 -> 32 | I2: =Filtros!H6 -> 121 | J2: =Filtros!I6 -> 108 | K2: =Filtros!J6 -> 184 | L2: =Filtros!K6 -> 228 | M2: =Filtros!L6 -> 761 | N2: =Filtros!M6 -> 287 | O2: =Filtros!N6 -> 1246 | P2: =Filtros!O6 -> 1598
D3: =Filtros!C7 -> 0.01524105754 | E3: =Filtros!D7 -> 0.01057542768 | F3: =Filtros!E7 -> 0.09129082426 | G3: =Filtros!F7 -> 0.1729393468 | H3: =Filtros!G7 -> 0.004976671851 | I3: =Filtros!H7 -> 0.01881804044 | J3: =Filtros!I7 -> 0.0167962675 | K3: =Filtros!J7 -> 0.02861586314 | L3: =Filtros!K7 -> 0.03545878694 | M3: =Filtros!L7 -> 0.1183514774 | N3: =Filtros!M7 -> 0.04463452566 | O3: =Filtros!N7 -> 0.1937791602 | P3: =Filtros!O7 -> 0.2485225505
B5: Anónimo | C5: Estatal | D5: Colotlán | E5: Lagos de M | F5: Tepatitlán | G5: La Barca | H5: Tamazula | I5: Zapotlán | J5: Autlán | K5: Vallarta | L5: Ameca | M5: Zapopan | N5: Tonalá | O5: Tlaquepaque | P5: Guadalajara
A6: 1 | B6: Si | C6: =Numérico!C5/C$2 -> 0.2018662519 | D6: =Numérico!D5/D$2 -> 0 | E6: =Numérico!E5/E$2 -> 0.01470588235 | F6: =Numérico!F5/F$2 -> 0 | G6: =Numérico!G5/G$2 -> 0.0476618705 | H6: =Numérico!H5/H$2 -> 0 | I6: =Numérico!I5/I$2 -> 0.02479338843 | J6: =Numérico!J5/J$2 -> 0 | K6: =Numérico!K5/K$2 -> 0.8967391304 | L6: =Numérico!L5/L$2 -> 0 | M6: =Numérico!M5/M$2 -> 0.1169513798 | N6: =Numérico!N5/N$2 -> 0 | O6: =Numérico!O5/O$2 -> 0.6147672552 | P6: =Numérico!P5/P$2 -> 0.1382978723
A7: 2 | B7: No | C7: =Numérico!C6/C$2 -> 0.7981337481 | D7: =Numérico!D6/D$2 -> 1 | E7: =Numérico!E6/E$2 -> 0.9852941176 | F7: =Numérico!F6/F$2 -> 1 | G7: =Numérico!G6/G$2 -> 0.9523381295 | H7: =Numérico!H6/H$2 -> 1 | I7: =Numérico!I6/I$2 -> 0.9752066116 | J7: =Numérico!J6/J$2 -> 1 | K7: =Numérico!K6/K$2 -> 0.1032608696 | L7: =Numérico!L6/L$2 -> 1 | M7: =Numérico!M6/M$2 -> 0.8830486202 | N7: =Numérico!N6/N$2 -> 1 | O7: =Numérico!O6/O$2 -> 0.3852327448 | P7: =Numérico!P6/P$2 -> 0.8617021277
B9: Sexo | C9: Estatal | D9: Colotlán | E9: Lagos de M | F9: Tepatitlán | G9: La Barca | H9: Tamazula | I9: Zapotlán | J9: Autlán | K9: Vallarta | L9: Ameca | M9: Zapopan | N9: Tonalá | O9: Tlaquepaque | P9: Guadalajara
A10: 1 | B10: Masculino | C10: =Numérico!C9/C$2 -> 0.8385692068 | D10: =Numérico!D9/D$2 -> 0.7653061224 | E10: =Numérico!E9/E$2 -> 0.6617647059 | F10: =Numérico!F9/F$2 -> 0.8194207836 | G10: =Numérico!G9/G$2 -> 0.8147482014 | H10: =Numérico!H9/H$2 -> 0.96875 | I10: =Numérico!I9/I$2 -> 1 | J10: =Numérico!J9/J$2 -> 0.8425925926 | K10: =Numérico!K9/K$2 -> 0.7554347826 | L10: =Numérico!L9/L$2 -> 0.8771929825 | M10: =Numérico!M9/M$2 -> 0.8607095926 | N10: =Numérico!N9/N$2 -> 0.9477351916 | O10: =Numérico!O9/O$2 -> 0.8828250401 | P10: =Numérico!P9/P$2 -> 0.7984981227
A11: 2 | B11: Femenino | C11: =Numérico!C10/C$2 -> 0.1614307932 | D11: =Numérico!D10/D$2 -> 0.2346938776 | E11: =Numérico!E10/E$2 -> 0.3382352941 | F11: =Numérico!F10/F$2 -> 0.1805792164 | G11: =Numérico!G10/G$2 -> 0.1852517986 | H11: =Numérico!H10/H$2 -> 0.03125 | I11: =Numérico!I10/I$2 -> 0 | J11: =Numérico!J10/J$2 -> 0.1574074074 | K11: =Numérico!K10/K$2 -> 0.2445652174 | L11: =Numérico!L10/L$2 -> 0.1228070175 | M11: =Numérico!M10/M$2 -> 0.1392904074 | N11: =Numérico!N10/N$2 -> 0.05226480836 | O11: =Numérico!O10/O$2 -> 0.1171749599 | P11: =Numérico!P10/P$2 -> 0.2015018773
B13: Embarazo | C13: Estatal | D13: Colotlán | E13: Lagos de M | F13: Tepatitlán | G13: La Barca | H13: Tamazula | I13: Zapotlán | J13: Autlán | K13: Vallarta | L13: Ameca | M13: Zapopan | N13: Tonalá | O13: Tlaquepaque | P13: Guadalajara
A14: 1 | B14: Si | C14: =Numérico!C13/Numérico!C$10 -> 0.01541425819 | D14: =IFERROR(Numérico!D13/Numérico!D$10,0) -> 0 | E14: =IFERROR(Numérico!E13/Numérico!E$10,0) -> 0 | F14: =IFERROR(Numérico!F13/Numérico!F$10,0) -> 0.03773584906 | G14: =IFERROR(Numérico!G13/Numérico!G$10,0) -> 0.0145631068 | H14: =IFERROR(Numérico!H13/Numérico!H$10,0) -> 0 | I14: =IFERROR(Numérico!I13/Numérico!I$10,0) -> 0 | J14: =IFERROR(Numérico!J13/Numérico!J$10,0) -> 0.05882352941 | K14: =IFERROR(Numérico!K13/Numérico!K$10,0) -> 0.06666666667 | L14: =IFERROR(Numérico!L13/Numérico!L$10,0) -> 0 | M14: =IFERROR(Numérico!M13/Numérico!M$10,0) -> 0.009433962264 | N14: =IFERROR(Numérico!N13/Numérico!N$10,0) -> 0 | O14: =IFERROR(Numérico!O13/Numérico!O$10,0) -> 0.02739726027 | P14: =IFERROR(Numérico!P13/Numérico!P$10,0) -> 0
A15: 2 | B15: No | C15: =Numérico!C14/Numérico!C$10 -> 0.9845857418 | D15: =IFERROR(Numérico!D14/Numérico!D$10,0) -> 1 | E15: =IFERROR(Numérico!E14/Numérico!E$10,0) -> 1 | F15: =IFERROR(Numérico!F14/Numérico!F$10,0) -> 0.9622641509 | G15: =IFERROR(Numérico!G14/Numérico!G$10,0) -> 0.9854368932 | H15: =IFERROR(Numérico!H14/Numérico!H$10,0) -> 1 | I15: =IFERROR(Numérico!I14/Numérico!I$10,0) -> 0 | J15: =IFERROR(Numérico!J14/Numérico!J$10,0) -> 0.9411764706 | K15: =IFERROR(Numérico!K14/Numérico!K$10,0) -> 0.9333333333 | L15: =IFERROR(Numérico!L14/Numérico!L$10,0) -> 1 | M15: =IFERROR(Numérico!M14/Numérico!M$10,0) -> 0.9905660377 | N15: =IFERROR(Numérico!N14/Numérico!N$10,0) -> 1 | O15: =IFERROR(Numérico!O14/Numérico!O$10,0) -> 0.9726027397 | P15: =IFERROR(Numérico!P14/Numérico!P$10,0) -> 1
B17: Edad Actual | C17: Estatal | D17: Colotlán | E17: Lagos de M | F17: Tepatitlán | G17: La Barca | H17: Tamazula | I17: Zapotlán | J17: Autlán | K17: Vallarta | L17: Ameca | M17: Zapopan | N17: Tonalá | O17: Tlaquepaque | P17: Guadalajara
B18: 5 a 9 | C18: =Numérico!C17/C$2 -> 0 | D18: =Numérico!D17/D$2 -> 0 | E18: =Numérico!E17/E$2 -> 0 | F18: =Numérico!F17/F$2 -> 0 | G18: =Numérico!G17/G$2 -> 0 | H18: =Numérico!H17/H$2 -> 0 | I18: =Numérico!I17/I$2 -> 0 | J18: =Numérico!J17/J$2 -> 0 | K18: =Numérico!K17/K$2 -> 0 | L18: =Numérico!L17/L$2 -> 0 | M18: =Numérico!M17/M$2 -> 0 | N18: =Numérico!N17/N$2 -> 0 | O18: =Numérico!O17/O$2 -> 0 | P18: =Numérico!P17/P$2 -> 0
B19: 10 a 14 | C19: =Numérico!C18/C$2 -> 0.01617418351 | D19: =Numérico!D18/D$2 -> 0.0306122449 | E19: =Numérico!E18/E$2 -> 0.05882352941 | F19: =Numérico!F18/F$2 -> 0.02555366269 | G19: =Numérico!G18/G$2 -> 0.003597122302 | H19: =Numérico!H18/H$2 -> 0 | I19: =Numérico!I18/I$2 -> 0 | J19: =Numérico!J18/J$2 -> 0.009259259259 | K19: =Numérico!K18/K$2 -> 0.0652173913 | L19: =Numérico!L18/L$2 -> 0.06140350877 | M19: =Numérico!M18/M$2 -> 0.01708278581 | N19: =Numérico!N18/N$2 -> 0.01742160279 | O19: =Numérico!O18/O$2 -> 0.00963081862 | P19: =Numérico!P18/P$2 -> 0.01314142678
B20: 15 a 19 | C20: =Numérico!C19/C$2 -> 0.1295489891 | D20: =Numérico!D19/D$2 -> 0.2448979592 | E20: =Numérico!E19/E$2 -> 0.2352941176 | F20: =Numérico!F19/F$2 -> 0.1005110733 | G20: =Numérico!G19/G$2 -> 0.08543165468 | H20: =Numérico!H19/H$2 -> 0.28125 | I20: =Numérico!I19/I$2 -> 0.05785123967 | J20: =Numérico!J19/J$2 -> 0.1203703704 | K20: =Numérico!K19/K$2 -> 0.1739130435 | L20: =Numérico!L19/L$2 -> 0.149122807 | M20: =Numérico!M19/M$2 -> 0.1511169514 | N20: =Numérico!N19/N$2 -> 0.1358885017 | O20: =Numérico!O19/O$2 -> 0.1460674157 | P20: =Numérico!P19/P$2 -> 0.1301627034
B21: 20 a 24 | C21: =Numérico!C20/C$2 -> 0.2041990669 | D21: =Numérico!D20/D$2 -> 0.193877551 | E21: =Numérico!E20/E$2 -> 0.1176470588 | F21: =Numérico!F20/F$2 -> 0.1635434412 | G21: =Numérico!G20/G$2 -> 0.2338129496 | H21: =Numérico!H20/H$2 -> 0.1875 | I21: =Numérico!I20/I$2 -> 0.132231405 | J21: =Numérico!J20/J$2 -> 0.1759259259 | K21: =Numérico!K20/K$2 -> 0.1141304348 | L21: =Numérico!L20/L$2 -> 0.1929824561 | M21: =Numérico!M20/M$2 -> 0.2141918528 | N21: =Numérico!N20/N$2 -> 0.1846689895 | O21: =Numérico!O20/O$2 -> 0.2174959872 | P21: =Numérico!P20/P$2 -> 0.2108886108
B22: 25 a 29 | C22: =Numérico!C21/C$2 -> 0.1835147745 | D22: =Numérico!D21/D$2 -> 0.2040816327 | E22: =Numérico!E21/E$2 -> 0.1911764706 | F22: =Numérico!F21/F$2 -> 0.129471891 | G22: =Numérico!G21/G$2 -> 0.2122302158 | H22: =Numérico!H21/H$2 -> 0.1875 | I22: =Numérico!I21/I$2 -> 0.2066115702 | J22: =Numérico!J21/J$2 -> 0.1759259259 | K22: =Numérico!K21/K$2 -> 0.1684782609 | L22: =Numérico!L21/L$2 -> 0.1447368421 | M22: =Numérico!M21/M$2 -> 0.1826544021 | N22: =Numérico!N21/N$2 -> 0.181184669 | O22: =Numérico!O21/O$2 -> 0.1974317817 | P22: =Numérico!P21/P$2 -> 0.1777221527
B23: 30 a 34 | C23: =Numérico!C22/C$2 -> 0.1351477449 | D23: =Numérico!D22/D$2 -> 0.09183673469 | E23: =Numérico!E22/E$2 -> 0.1323529412 | F23: =Numérico!F22/F$2 -> 0.1482112436 | G23: =Numérico!G22/G$2 -> 0.1456834532 | H23: =Numérico!H22/H$2 -> 0.0625 | I23: =Numérico!I22/I$2 -> 0.2231404959 | J23: =Numérico!J22/J$2 -> 0.1296296296 | K23: =Numérico!K22/K$2 -> 0.1684782609 | L23: =Numérico!L22/L$2 -> 0.1271929825 | M23: =Numérico!M22/M$2 -> 0.1156373193 | N23: =Numérico!N22/N$2 -> 0.1254355401 | O23: =Numérico!O22/O$2 -> 0.1268057785 | P23: =Numérico!P22/P$2 -> 0.1357947434
B24: 35 a 39 | C24: =Numérico!C23/C$2 -> 0.1035769829 | D24: =Numérico!D23/D$2 -> 0.09183673469 | E24: =Numérico!E23/E$2 -> 0.1470588235 | F24: =Numérico!F23/F$2 -> 0.1175468484 | G24: =Numérico!G23/G$2 -> 0.1097122302 | H24: =Numérico!H23/H$2 -> 0.0625 | I24: =Numérico!I23/I$2 -> 0.1239669421 | J24: =Numérico!J23/J$2 -> 0.1388888889 | K24: =Numérico!K23/K$2 -> 0.09782608696 | L24: =Numérico!L23/L$2 -> 0.08333333333 | M24: =Numérico!M23/M$2 -> 0.09986859396 | N24: =Numérico!N23/N$2 -> 0.09756097561 | O24: =Numérico!O23/O$2 -> 0.1115569823 | P24: =Numérico!P23/P$2 -> 0.0901126408
B25: 40 a 44 | C25: =Numérico!C24/C$2 -> 0.08024883359 | D25: =Numérico!D24/D$2 -> 0.01020408163 | E25: =Numérico!E24/E$2 -> 0.05882352941 | F25: =Numérico!F24/F$2 -> 0.1056218058 | G25: =Numérico!G24/G$2 -> 0.09172661871 | H25: =Numérico!H24/H$2 -> 0.09375 | I25: =Numérico!I24/I$2 -> 0.0826446281 | J25: =Numérico!J24/J$2 -> 0.0462962963 | K25: =Numérico!K24/K$2 -> 0.09782608696 | L25: =Numérico!L24/L$2 -> 0.08771929825 | M25: =Numérico!M24/M$2 -> 0.06307490145 | N25: =Numérico!N24/N$2 -> 0.09407665505 | O25: =Numérico!O24/O$2 -> 0.06661316212 | P25: =Numérico!P24/P$2 -> 0.0832290363
B26: 45 a 49 | C26: =Numérico!C25/C$2 -> 0.06951788491 | D26: =Numérico!D25/D$2 -> 0.07142857143 | E26: =Numérico!E25/E$2 -> 0.04411764706 | F26: =Numérico!F25/F$2 -> 0.1056218058 | G26: =Numérico!G25/G$2 -> 0.06025179856 | H26: =Numérico!H25/H$2 -> 0.09375 | I26: =Numérico!I25/I$2 -> 0.09917355372 | J26: =Numérico!J25/J$2 -> 0.1111111111 | K26: =Numérico!K25/K$2 -> 0.0597826087 | L26: =Numérico!L25/L$2 -> 0.0701754386 | M26: =Numérico!M25/M$2 -> 0.05913272011 | N26: =Numérico!N25/N$2 -> 0.06271777003 | O26: =Numérico!O25/O$2 -> 0.05939004815 | P26: =Numérico!P25/P$2 -> 0.07321652065
B27: 50 a 54 | C27: =Numérico!C26/C$2 -> 0.03872472784 | D27: =Numérico!D26/D$2 -> 0.0306122449 | E27: =Numérico!E26/E$2 -> 0.01470588235 | F27: =Numérico!F26/F$2 -> 0.03918228279 | G27: =Numérico!G26/G$2 -> 0.02428057554 | H27: =Numérico!H26/H$2 -> 0 | I27: =Numérico!I26/I$2 -> 0.04132231405 | J27: =Numérico!J26/J$2 -> 0.0462962963 | K27: =Numérico!K26/K$2 -> 0.02717391304 | L27: =Numérico!L26/L$2 -> 0.0350877193 | M27: =Numérico!M26/M$2 -> 0.05124835742 | N27: =Numérico!N26/N$2 -> 0.04181184669 | O27: =Numérico!O26/O$2 -> 0.03772070626 | P27: =Numérico!P26/P$2 -> 0.04630788486
B28: 55 a 59 | C28: =Numérico!C27/C$2 -> 0.02192846034 | D28: =Numérico!D27/D$2 -> 0.01020408163 | E28: =Numérico!E27/E$2 -> 0 | F28: =Numérico!F27/F$2 -> 0.04088586031 | G28: =Numérico!G27/G$2 -> 0.01528776978 | H28: =Numérico!H27/H$2 -> 0 | I28: =Numérico!I27/I$2 -> 0.01652892562 | J28: =Numérico!J27/J$2 -> 0.009259259259 | K28: =Numérico!K27/K$2 -> 0.005434782609 | L28: =Numérico!L27/L$2 -> 0.0350877193 | M28: =Numérico!M27/M$2 -> 0.0197109067 | N28: =Numérico!N27/N$2 -> 0.02787456446 | O28: =Numérico!O27/O$2 -> 0.01685393258 | P28: =Numérico!P27/P$2 -> 0.02690863579
B29: 60 a 64 | C29: =Numérico!C28/C$2 -> 0.01057542768 | D29: =Numérico!D28/D$2 -> 0.01020408163 | E29: =Numérico!E28/E$2 -> 0 | F29: =Numérico!F28/F$2 -> 0.01873935264 | G29: =Numérico!G28/G$2 -> 0.008992805755 | H29: =Numérico!H28/H$2 -> 0.03125 | I29: =Numérico!I28/I$2 -> 0.01652892562 | J29: =Numérico!J28/J$2 -> 0.02777777778 | K29: =Numérico!K28/K$2 -> 0.005434782609 | L29: =Numérico!L28/L$2 -> 0.004385964912 | M29: =Numérico!M28/M$2 -> 0.01051248357 | N29: =Numérico!N28/N$2 -> 0.02787456446 | O29: =Numérico!O28/O$2 -> 0.007223113965 | P29: =Numérico!P28/P$2 -> 0.008135168961
B30: 65 y + | C30: =Numérico!C29/C$2 -> 0.006842923795 | D30: =Numérico!D29/D$2 -> 0.01020408163 | E30: =Numérico!E29/E$2 -> 0 | F30: =Numérico!F29/F$2 -> 0.005110732538 | G30: =Numérico!G29/G$2 -> 0.008992805755 | H30: =Numérico!H29/H$2 -> 0 | I30: =Numérico!I29/I$2 -> 0 | J30: =Numérico!J29/J$2 -> 0.009259259259 | K30: =Numérico!K29/K$2 -> 0.01630434783 | L30: =Numérico!L29/L$2 -> 0.008771929825 | M30: =Numérico!M29/M$2 -> 0.01576872536 | N30: =Numérico!N29/N$2 -> 0.003484320557 | O30: =Numérico!O29/O$2 -> 0.003210272873 | P30: =Numérico!P29/P$2 -> 0.004380475594
A31: 99 | B31: S/D | C31: =Numérico!C30/C$2 -> 0 | D31: =Numérico!D30/D$2 -> 0 | E31: =Numérico!E30/E$2 -> 0 | F31: =Numérico!F30/F$2 -> 0 | G31: =Numérico!G30/G$2 -> 0 | H31: =Numérico!H30/H$2 -> 0 | I31: =Numérico!I30/I$2 -> 0 | J31: =Numérico!J30/J$2 -> 0 | K31: =Numérico!K30/K$2 -> 0 | L31: =Numérico!L30/L$2 -> 0 | M31: =Numérico!M30/M$2 -> 0 | N31: =Numérico!N30/N$2 -> 0 | O31: =Numérico!O30/O$2 -> 0 | P31: =Numérico!P30/P$2 -> 0
B33: Residencia Estado. | C33: Estatal | D33: Colotlán | E33: Lagos de M | F33: Tepatitlán | G33: La Barca | H33: Tamazula | I33: Zapotlán | J33: Autlán | K33: Vallarta | L33: Ameca | M33: Zapopan | N33: Tonalá | O33: Tlaquepaque | P33: Guadalajara
A34: 1 | B34: =Numérico!B33 -> Aguascalientes | C34: =Numérico!C33/C$2 -> 0.001399688958 | D34: =Numérico!D33/D$2 -> 0 | E34: =Numérico!E33/E$2 -> 0 | F34: =Numérico!F33/F$2 -> 0.003407155026 | G34: =Numérico!G33/G$2 -> 0.001798561151 | H34: =Numérico!H33/H$2 -> 0 | I34: =Numérico!I33/I$2 -> 0 | J34: =Numérico!J33/J$2 -> 0 | K34: =Numérico!K33/K$2 -> 0 | L34: =Numérico!L33/L$2 -> 0.008771929825 | M34: =Numérico!M33/M$2 -> 0 | N34: =Numérico!N33/N$2 -> 0.006968641115 | O34: =Numérico!O33/O$2 -> 0 | P34: =Numérico!P33/P$2 -> 0.0006257822278
A35: 2 | B35: =Numérico!B34 -> Baja California Norte | C35: =Numérico!C34/C$2 -> 0.001244167963 | D35: =Numérico!D34/D$2 -> 0 | E35: =Numérico!E34/E$2 -> 0 | F35: =Numérico!F34/F$2 -> 0 | G35: =Numérico!G34/G$2 -> 0.004496402878 | H35: =Numérico!H34/H$2 -> 0 | I35: =Numérico!I34/I$2 -> 0 | J35: =Numérico!J34/J$2 -> 0 | K35: =Numérico!K34/K$2 -> 0 | L35: =Numérico!L34/L$2 -> 0 | M35: =Numérico!M34/M$2 -> 0 | N35: =Numérico!N34/N$2 -> 0.003484320557 | O35: =Numérico!O34/O$2 -> 0.0008025682183 | P35: =Numérico!P34/P$2 -> 0.0006257822278
A36: 3 | B36: =Numérico!B35 -> Baja California Sur | C36: =Numérico!C35/C$2 -> 0.0006220839813 | D36: =Numérico!D35/D$2 -> 0 | E36: =Numérico!E35/E$2 -> 0 | F36: =Numérico!F35/F$2 -> 0 | G36: =Numérico!G35/G$2 -> 0.0008992805755 | H36: =Numérico!H35/H$2 -> 0 | I36: =Numérico!I35/I$2 -> 0 | J36: =Numérico!J35/J$2 -> 0 | K36: =Numérico!K35/K$2 -> 0 | L36: =Numérico!L35/L$2 -> 0 | M36: =Numérico!M35/M$2 -> 0.001314060447 | N36: =Numérico!N35/N$2 -> 0.003484320557 | O36: =Numérico!O35/O$2 -> 0 | P36: =Numérico!P35/P$2 -> 0.0006257822278
A37: 4 | B37: =Numérico!B36 -> Campeche | C37: =Numérico!C36/C$2 -> 0 | D37: =Numérico!D36/D$2 -> 0 | E37: =Numérico!E36/E$2 -> 0 | F37: =Numérico!F36/F$2 -> 0 | G37: =Numérico!G36/G$2 -> 0 | H37: =Numérico!H36/H$2 -> 0 | I37: =Numérico!I36/I$2 -> 0 | J37: =Numérico!J36/J$2 -> 0 | K37: =Numérico!K36/K$2 -> 0 | L37: =Numérico!L36/L$2 -> 0 | M37: =Numérico!M36/M$2 -> 0 | N37: =Numérico!N36/N$2 -> 0 | O37: =Numérico!O36/O$2 -> 0 | P37: =Numérico!P36/P$2 -> 0
A38: 5 | B38: =Numérico!B37 -> Coahuila | C38: =Numérico!C37/C$2 -> 0.0003110419907 | D38: =Numérico!D37/D$2 -> 0 | E38: =Numérico!E37/E$2 -> 0 | F38: =Numérico!F37/F$2 -> 0 | G38: =Numérico!G37/G$2 -> 0 | H38: =Numérico!H37/H$2 -> 0 | I38: =Numérico!I37/I$2 -> 0 | J38: =Numérico!J37/J$2 -> 0 | K38: =Numérico!K37/K$2 -> 0 | L38: =Numérico!L37/L$2 -> 0 | M38: =Numérico!M37/M$2 -> 0.001314060447 | N38: =Numérico!N37/N$2 -> 0.003484320557 | O38: =Numérico!O37/O$2 -> 0 | P38: =Numérico!P37/P$2 -> 0
A39: 6 | B39: =Numérico!B38 -> Colima | C39: =Numérico!C38/C$2 -> 0.004510108865 | D39: =Numérico!D38/D$2 -> 0 | E39: =Numérico!E38/E$2 -> 0 | F39: =Numérico!F38/F$2 -> 0 | G39: =Numérico!G38/G$2 -> 0.0008992805755 | H39: =Numérico!H38/H$2 -> 0 | I39: =Numérico!I38/I$2 -> 0.04132231405 | J39: =Numérico!J38/J$2 -> 0.009259259259 | K39: =Numérico!K38/K$2 -> 0 | L39: =Numérico!L38/L$2 -> 0.004385964912 | M39: =Numérico!M38/M$2 -> 0.007884362681 | N39: =Numérico!N38/N$2 -> 0 | O39: =Numérico!O38/O$2 -> 0.006420545746 | P39: =Numérico!P38/P$2 -> 0.004380475594
A40: 7 | B40: =Numérico!B39 -> Chiapas | C40: =Numérico!C39/C$2 -> 0.0001555209953 | D40: =Numérico!D39/D$2 -> 0 | E40: =Numérico!E39/E$2 -> 0 | F40: =Numérico!F39/F$2 -> 0 | G40: =Numérico!G39/G$2 -> 0 | H40: =Numérico!H39/H$2 -> 0 | I40: =Numérico!I39/I$2 -> 0 | J40: =Numérico!J39/J$2 -> 0 | K40: =Numérico!K39/K$2 -> 0 | L40: =Numérico!L39/L$2 -> 0 | M40: =Numérico!M39/M$2 -> 0 | N40: =Numérico!N39/N$2 -> 0 | O40: =Numérico!O39/O$2 -> 0.0008025682183 | P40: =Numérico!P39/P$2 -> 0
A41: 8 | B41: =Numérico!B40 -> Chihuahua | C41: =Numérico!C40/C$2 -> 0.0007776049767 | D41: =Numérico!D40/D$2 -> 0 | E41: =Numérico!E40/E$2 -> 0 | F41: =Numérico!F40/F$2 -> 0 | G41: =Numérico!G40/G$2 -> 0.001798561151 | H41: =Numérico!H40/H$2 -> 0 | I41: =Numérico!I40/I$2 -> 0 | J41: =Numérico!J40/J$2 -> 0 | K41: =Numérico!K40/K$2 -> 0 | L41: =Numérico!L40/L$2 -> 0 | M41: =Numérico!M40/M$2 -> 0 | N41: =Numérico!N40/N$2 -> 0.003484320557 | O41: =Numérico!O40/O$2 -> 0 | P41: =Numérico!P40/P$2 -> 0.001251564456
A42: 9 | B42: =Numérico!B41 -> Distrito Federal | C42: =Numérico!C41/C$2 -> 0.0007776049767 | D42: =Numérico!D41/D$2 -> 0 | E42: =Numérico!E41/E$2 -> 0 | F42: =Numérico!F41/F$2 -> 0 | G42: =Numérico!G41/G$2 -> 0.0008992805755 | H42: =Numérico!H41/H$2 -> 0 | I42: =Numérico!I41/I$2 -> 0 | J42: =Numérico!J41/J$2 -> 0 | K42: =Numérico!K41/K$2 -> 0 | L42: =Numérico!L41/L$2 -> 0 | M42: =Numérico!M41/M$2 -> 0.002628120894 | N42: =Numérico!N41/N$2 -> 0.003484320557 | O42: =Numérico!O41/O$2 -> 0 | P42: =Numérico!P41/P$2 -> 0.0006257822278
A43: 10 | B43: =Numérico!B42 -> Durango | C43: =Numérico!C42/C$2 -> 0.0001555209953 | D43: =Numérico!D42/D$2 -> 0 | E43: =Numérico!E42/E$2 -> 0 | F43: =Numérico!F42/F$2 -> 0 | G43: =Numérico!G42/G$2 -> 0 | H43: =Numérico!H42/H$2 -> 0 | I43: =Numérico!I42/I$2 -> 0 | J43: =Numérico!J42/J$2 -> 0 | K43: =Numérico!K42/K$2 -> 0 | L43: =Numérico!L42/L$2 -> 0 | M43: =Numérico!M42/M$2 -> 0 | N43: =Numérico!N42/N$2 -> 0.003484320557 | O43: =Numérico!O42/O$2 -> 0 | P43: =Numérico!P42/P$2 -> 0
A44: 11 | B44: =Numérico!B43 -> Guanajuato | C44: =Numérico!C43/C$2 -> 0.006220839813 | D44: =Numérico!D43/D$2 -> 0 | E44: =Numérico!E43/E$2 -> 0 | F44: =Numérico!F43/F$2 -> 0.005110732538 | G44: =Numérico!G43/G$2 -> 0.01348920863 | H44: =Numérico!H43/H$2 -> 0 | I44: =Numérico!I43/I$2 -> 0.00826446281 | J44: =Numérico!J43/J$2 -> 0 | K44: =Numérico!K43/K$2 -> 0 | L44: =Numérico!L43/L$2 -> 0 | M44: =Numérico!M43/M$2 -> 0.002628120894 | N44: =Numérico!N43/N$2 -> 0.01742160279 | O44: =Numérico!O43/O$2 -> 0.004012841091 | P44: =Numérico!P43/P$2 -> 0.00563204005
A45: 12 | B45: =Numérico!B44 -> Guerrero | C45: =Numérico!C44/C$2 -> 0.0006220839813 | D45: =Numérico!D44/D$2 -> 0 | E45: =Numérico!E44/E$2 -> 0 | F45: =Numérico!F44/F$2 -> 0 | G45: =Numérico!G44/G$2 -> 0 | H45: =Numérico!H44/H$2 -> 0 | I45: =Numérico!I44/I$2 -> 0 | J45: =Numérico!J44/J$2 -> 0 | K45: =Numérico!K44/K$2 -> 0 | L45: =Numérico!L44/L$2 -> 0 | M45: =Numérico!M44/M$2 -> 0 | N45: =Numérico!N44/N$2 -> 0.003484320557 | O45: =Numérico!O44/O$2 -> 0.0008025682183 | P45: =Numérico!P44/P$2 -> 0.001251564456
A46: 13 | B46: =Numérico!B45 -> Hidalgo | C46: =Numérico!C45/C$2 -> 0.000466562986 | D46: =Numérico!D45/D$2 -> 0 | E46: =Numérico!E45/E$2 -> 0 | F46: =Numérico!F45/F$2 -> 0 | G46: =Numérico!G45/G$2 -> 0.002697841727 | H46: =Numérico!H45/H$2 -> 0 | I46: =Numérico!I45/I$2 -> 0 | J46: =Numérico!J45/J$2 -> 0 | K46: =Numérico!K45/K$2 -> 0 | L46: =Numérico!L45/L$2 -> 0 | M46: =Numérico!M45/M$2 -> 0 | N46: =Numérico!N45/N$2 -> 0 | O46: =Numérico!O45/O$2 -> 0 | P46: =Numérico!P45/P$2 -> 0
A47: 14 | B47: =Numérico!B46 -> Jalisco | C47: =Numérico!C46/C$2 -> 0.93437014 | D47: =Numérico!D46/D$2 -> 0.9693877551 | E47: =Numérico!E46/E$2 -> 1 | F47: =Numérico!F46/F$2 -> 0.9591141397 | G47: =Numérico!G46/G$2 -> 0.868705036 | H47: =Numérico!H46/H$2 -> 1 | I47: =Numérico!I46/I$2 -> 0.9090909091 | J47: =Numérico!J46/J$2 -> 0.9907407407 | K47: =Numérico!K46/K$2 -> 1 | L47: =Numérico!L46/L$2 -> 0.9035087719 | M47: =Numérico!M46/M$2 -> 0.9356110381 | N47: =Numérico!N46/N$2 -> 0.9198606272 | O47: =Numérico!O46/O$2 -> 0.9478330658 | P47: =Numérico!P46/P$2 -> 0.9511889862
A48: 15 | B48: =Numérico!B47 -> México | C48: =Numérico!C47/C$2 -> 0.001399688958 | D48: =Numérico!D47/D$2 -> 0 | E48: =Numérico!E47/E$2 -> 0 | F48: =Numérico!F47/F$2 -> 0 | G48: =Numérico!G47/G$2 -> 0.001798561151 | H48: =Numérico!H47/H$2 -> 0 | I48: =Numérico!I47/I$2 -> 0 | J48: =Numérico!J47/J$2 -> 0 | K48: =Numérico!K47/K$2 -> 0 | L48: =Numérico!L47/L$2 -> 0 | M48: =Numérico!M47/M$2 -> 0.001314060447 | N48: =Numérico!N47/N$2 -> 0.003484320557 | O48: =Numérico!O47/O$2 -> 0.001605136437 | P48: =Numérico!P47/P$2 -> 0.001877346683
A49: 16 | B49: =Numérico!B48 -> Michoacán | C49: =Numérico!C48/C$2 -> 0.02115085537 | D49: =Numérico!D48/D$2 -> 0 | E49: =Numérico!E48/E$2 -> 0 | F49: =Numérico!F48/F$2 -> 0.01192504259 | G49: =Numérico!G48/G$2 -> 0.07194244604 | H49: =Numérico!H48/H$2 -> 0 | I49: =Numérico!I48/I$2 -> 0.01652892562 | J49: =Numérico!J48/J$2 -> 0 | K49: =Numérico!K48/K$2 -> 0 | L49: =Numérico!L48/L$2 -> 0.02192982456 | M49: =Numérico!M48/M$2 -> 0.01445466491 | N49: =Numérico!N48/N$2 -> 0.01393728223 | O49: =Numérico!O48/O$2 -> 0.01203852327 | P49: =Numérico!P48/P$2 -> 0.007509386733
A50: 17 | B50: =Numérico!B49 -> Morelos | C50: =Numérico!C49/C$2 -> 0.0006220839813 | D50: =Numérico!D49/D$2 -> 0 | E50: =Numérico!E49/E$2 -> 0 | F50: =Numérico!F49/F$2 -> 0 | G50: =Numérico!G49/G$2 -> 0.001798561151 | H50: =Numérico!H49/H$2 -> 0 | I50: =Numérico!I49/I$2 -> 0 | J50: =Numérico!J49/J$2 -> 0 | K50: =Numérico!K49/K$2 -> 0 | L50: =Numérico!L49/L$2 -> 0 | M50: =Numérico!M49/M$2 -> 0 | N50: =Numérico!N49/N$2 -> 0 | O50: =Numérico!O49/O$2 -> 0.001605136437 | P50: =Numérico!P49/P$2 -> 0
A51: 18 | B51: =Numérico!B50 -> Nayarit | C51: =Numérico!C50/C$2 -> 0.005287713841 | D51: =Numérico!D50/D$2 -> 0 | E51: =Numérico!E50/E$2 -> 0 | F51: =Numérico!F50/F$2 -> 0.003407155026 | G51: =Numérico!G50/G$2 -> 0.006294964029 | H51: =Numérico!H50/H$2 -> 0 | I51: =Numérico!I50/I$2 -> 0 | J51: =Numérico!J50/J$2 -> 0 | K51: =Numérico!K50/K$2 -> 0 | L51: =Numérico!L50/L$2 -> 0.01754385965 | M51: =Numérico!M50/M$2 -> 0.007884362681 | N51: =Numérico!N50/N$2 -> 0.006968641115 | O51: =Numérico!O50/O$2 -> 0.00481540931 | P51: =Numérico!P50/P$2 -> 0.004380475594
A52: 19 | B52: =Numérico!B51 -> Nuevo León | C52: =Numérico!C51/C$2 -> 0.0001555209953 | D52: =Numérico!D51/D$2 -> 0 | E52: =Numérico!E51/E$2 -> 0 | F52: =Numérico!F51/F$2 -> 0 | G52: =Numérico!G51/G$2 -> 0 | H52: =Numérico!H51/H$2 -> 0 | I52: =Numérico!I51/I$2 -> 0 | J52: =Numérico!J51/J$2 -> 0 | K52: =Numérico!K51/K$2 -> 0 | L52: =Numérico!L51/L$2 -> 0 | M52: =Numérico!M51/M$2 -> 0 | N52: =Numérico!N51/N$2 -> 0 | O52: =Numérico!O51/O$2 -> 0.0008025682183 | P52: =Numérico!P51/P$2 -> 0
A53: 20 | B53: =Numérico!B52 -> Oaxaca | C53: =Numérico!C52/C$2 -> 0.000466562986 | D53: =Numérico!D52/D$2 -> 0 | E53: =Numérico!E52/E$2 -> 0 | F53: =Numérico!F52/F$2 -> 0 | G53: =Numérico!G52/G$2 -> 0.0008992805755 | H53: =Numérico!H52/H$2 -> 0 | I53: =Numérico!I52/I$2 -> 0 | J53: =Numérico!J52/J$2 -> 0 | K53: =Numérico!K52/K$2 -> 0 | L53: =Numérico!L52/L$2 -> 0 | M53: =Numérico!M52/M$2 -> 0 | N53: =Numérico!N52/N$2 -> 0 | O53: =Numérico!O52/O$2 -> 0.0008025682183 | P53: =Numérico!P52/P$2 -> 0.0006257822278
A54: 21 | B54: =Numérico!B53 -> Puebla | C54: =Numérico!C53/C$2 -> 0.0003110419907 | D54: =Numérico!D53/D$2 -> 0 | E54: =Numérico!E53/E$2 -> 0 | F54: =Numérico!F53/F$2 -> 0 | G54: =Numérico!G53/G$2 -> 0.0008992805755 | H54: =Numérico!H53/H$2 -> 0 | I54: =Numérico!I53/I$2 -> 0 | J54: =Numérico!J53/J$2 -> 0 | K54: =Numérico!K53/K$2 -> 0 | L54: =Numérico!L53/L$2 -> 0 | M54: =Numérico!M53/M$2 -> 0 | N54: =Numérico!N53/N$2 -> 0.003484320557 | O54: =Numérico!O53/O$2 -> 0 | P54: =Numérico!P53/P$2 -> 0
A55: 22 | B55: =Numérico!B54 -> Querétaro | C55: =Numérico!C54/C$2 -> 0.0003110419907 | D55: =Numérico!D54/D$2 -> 0 | E55: =Numérico!E54/E$2 -> 0 | F55: =Numérico!F54/F$2 -> 0 | G55: =Numérico!G54/G$2 -> 0 | H55: =Numérico!H54/H$2 -> 0 | I55: =Numérico!I54/I$2 -> 0 | J55: =Numérico!J54/J$2 -> 0 | K55: =Numérico!K54/K$2 -> 0 | L55: =Numérico!L54/L$2 -> 0 | M55: =Numérico!M54/M$2 -> 0.001314060447 | N55: =Numérico!N54/N$2 -> 0 | O55: =Numérico!O54/O$2 -> 0.0008025682183 | P55: =Numérico!P54/P$2 -> 0
A56: 23 | B56: =Numérico!B55 -> Quintana Roo | C56: =Numérico!C55/C$2 -> 0.0003110419907 | D56: =Numérico!D55/D$2 -> 0 | E56: =Numérico!E55/E$2 -> 0 | F56: =Numérico!F55/F$2 -> 0 | G56: =Numérico!G55/G$2 -> 0.0008992805755 | H56: =Numérico!H55/H$2 -> 0 | I56: =Numérico!I55/I$2 -> 0 | J56: =Numérico!J55/J$2 -> 0 | K56: =Numérico!K55/K$2 -> 0 | L56: =Numérico!L55/L$2 -> 0 | M56: =Numérico!M55/M$2 -> 0.001314060447 | N56: =Numérico!N55/N$2 -> 0 | O56: =Numérico!O55/O$2 -> 0 | P56: =Numérico!P55/P$2 -> 0
A57: 24 | B57: =Numérico!B56 -> San Luis Potosí | C57: =Numérico!C56/C$2 -> 0.0006220839813 | D57: =Numérico!D56/D$2 -> 0 | E57: =Numérico!E56/E$2 -> 0 | F57: =Numérico!F56/F$2 -> 0 | G57: =Numérico!G56/G$2 -> 0 | H57: =Numérico!H56/H$2 -> 0 | I57: =Numérico!I56/I$2 -> 0 | J57: =Numérico!J56/J$2 -> 0 | K57: =Numérico!K56/K$2 -> 0 | L57: =Numérico!L56/L$2 -> 0.004385964912 | M57: =Numérico!M56/M$2 -> 0.001314060447 | N57: =Numérico!N56/N$2 -> 0 | O57: =Numérico!O56/O$2 -> 0.001605136437 | P57: =Numérico!P56/P$2 -> 0
A58: 25 | B58: =Numérico!B57 -> Sinaloa | C58: =Numérico!C57/C$2 -> 0.001866251944 | D58: =Numérico!D57/D$2 -> 0 | E58: =Numérico!E57/E$2 -> 0 | F58: =Numérico!F57/F$2 -> 0 | G58: =Numérico!G57/G$2 -> 0.001798561151 | H58: =Numérico!H57/H$2 -> 0 | I58: =Numérico!I57/I$2 -> 0 | J58: =Numérico!J57/J$2 -> 0 | K58: =Numérico!K57/K$2 -> 0 | L58: =Numérico!L57/L$2 -> 0.004385964912 | M58: =Numérico!M57/M$2 -> 0.001314060447 | N58: =Numérico!N57/N$2 -> 0 | O58: =Numérico!O57/O$2 -> 0.002407704655 | P58: =Numérico!P57/P$2 -> 0.003128911139
A59: 26 | B59: =Numérico!B58 -> Sonora | C59: =Numérico!C58/C$2 -> 0.001866251944 | D59: =Numérico!D58/D$2 -> 0 | E59: =Numérico!E58/E$2 -> 0 | F59: =Numérico!F58/F$2 -> 0 | G59: =Numérico!G58/G$2 -> 0.0008992805755 | H59: =Numérico!H58/H$2 -> 0 | I59: =Numérico!I58/I$2 -> 0 | J59: =Numérico!J58/J$2 -> 0 | K59: =Numérico!K58/K$2 -> 0 | L59: =Numérico!L58/L$2 -> 0.004385964912 | M59: =Numérico!M58/M$2 -> 0.002628120894 | N59: =Numérico!N58/N$2 -> 0 | O59: =Numérico!O58/O$2 -> 0.0008025682183 | P59: =Numérico!P58/P$2 -> 0.004380475594
A60: 27 | B60: =Numérico!B59 -> Tabasco | C60: =Numérico!C59/C$2 -> 0 | D60: =Numérico!D59/D$2 -> 0 | E60: =Numérico!E59/E$2 -> 0 | F60: =Numérico!F59/F$2 -> 0 | G60: =Numérico!G59/G$2 -> 0 | H60: =Numérico!H59/H$2 -> 0 | I60: =Numérico!I59/I$2 -> 0 | J60: =Numérico!J59/J$2 -> 0 | K60: =Numérico!K59/K$2 -> 0 | L60: =Numérico!L59/L$2 -> 0 | M60: =Numérico!M59/M$2 -> 0 | N60: =Numérico!N59/N$2 -> 0 | O60: =Numérico!O59/O$2 -> 0 | P60: =Numérico!P59/P$2 -> 0
A61: 28 | B61: =Numérico!B60 -> Tamaulipas | C61: =Numérico!C60/C$2 -> 0.000933125972 | D61: =Numérico!D60/D$2 -> 0 | E61: =Numérico!E60/E$2 -> 0 | F61: =Numérico!F60/F$2 -> 0 | G61: =Numérico!G60/G$2 -> 0.001798561151 | H61: =Numérico!H60/H$2 -> 0 | I61: =Numérico!I60/I$2 -> 0 | J61: =Numérico!J60/J$2 -> 0 | K61: =Numérico!K60/K$2 -> 0 | L61: =Numérico!L60/L$2 -> 0.008771929825 | M61: =Numérico!M60/M$2 -> 0 | N61: =Numérico!N60/N$2 -> 0 | O61: =Numérico!O60/O$2 -> 0.0008025682183 | P61: =Numérico!P60/P$2 -> 0.0006257822278
A62: 29 | B62: =Numérico!B61 -> Tlaxcala | C62: =Numérico!C61/C$2 -> 0.0001555209953 | D62: =Numérico!D61/D$2 -> 0 | E62: =Numérico!E61/E$2 -> 0 | F62: =Numérico!F61/F$2 -> 0 | G62: =Numérico!G61/G$2 -> 0.0008992805755 | H62: =Numérico!H61/H$2 -> 0 | I62: =Numérico!I61/I$2 -> 0 | J62: =Numérico!J61/J$2 -> 0 | K62: =Numérico!K61/K$2 -> 0 | L62: =Numérico!L61/L$2 -> 0 | M62: =Numérico!M61/M$2 -> 0 | N62: =Numérico!N61/N$2 -> 0 | O62: =Numérico!O61/O$2 -> 0 | P62: =Numérico!P61/P$2 -> 0
A63: 30 | B63: =Numérico!B62 -> Veracruz | C63: =Numérico!C62/C$2 -> 0.0001555209953 | D63: =Numérico!D62/D$2 -> 0 | E63: =Numérico!E62/E$2 -> 0 | F63: =Numérico!F62/F$2 -> 0 | G63: =Numérico!G62/G$2 -> 0 | H63: =Numérico!H62/H$2 -> 0 | I63: =Numérico!I62/I$2 -> 0 | J63: =Numérico!J62/J$2 -> 0 | K63: =Numérico!K62/K$2 -> 0 | L63: =Numérico!L62/L$2 -> 0 | M63: =Numérico!M62/M$2 -> 0 | N63: =Numérico!N62/N$2 -> 0 | O63: =Numérico!O62/O$2 -> 0.0008025682183 | P63: =Numérico!P62/P$2 -> 0
A64: 31 | B64: =Numérico!B63 -> Yucatán | C64: =Numérico!C63/C$2 -> 0.0001555209953 | D64: =Numérico!D63/D$2 -> 0 | E64: =Numérico!E63/E$2 -> 0 | F64: =Numérico!F63/F$2 -> 0 | G64: =Numérico!G63/G$2 -> 0 | H64: =Numérico!H63/H$2 -> 0 | I64: =Numérico!I63/I$2 -> 0 | J64: =Numérico!J63/J$2 -> 0 | K64: =Numérico!K63/K$2 -> 0 | L64: =Numérico!L63/L$2 -> 0 | M64: =Numérico!M63/M$2 -> 0.001314060447 | N64: =Numérico!N63/N$2 -> 0 | O64: =Numérico!O63/O$2 -> 0 | P64: =Numérico!P63/P$2 -> 0
A65: 32 | B65: =Numérico!B64 -> Zacatecas | C65: =Numérico!C64/C$2 -> 0.006220839813 | D65: =Numérico!D64/D$2 -> 0.0306122449 | E65: =Numérico!E64/E$2 -> 0 | F65: =Numérico!F64/F$2 -> 0.005110732538 | G65: =Numérico!G64/G$2 -> 0.005395683453 | H65: =Numérico!H64/H$2 -> 0 | I65: =Numérico!I64/I$2 -> 0.00826446281 | J65: =Numérico!J64/J$2 -> 0 | K65: =Numérico!K64/K$2 -> 0 | L65: =Numérico!L64/L$2 -> 0.02192982456 | M65: =Numérico!M64/M$2 -> 0.006570302234 | N65: =Numérico!N64/N$2 -> 0.003484320557 | O65: =Numérico!O64/O$2 -> 0.005617977528 | P65: =Numérico!P64/P$2 -> 0.00563204005
A66: 33 | B66: =Numérico!B65 -> Otro Estado | C66: =Numérico!C65/C$2 -> 0.005909797823 | D66: =Numérico!D65/D$2 -> 0 | E66: =Numérico!E65/E$2 -> 0 | F66: =Numérico!F65/F$2 -> 0.01192504259 | G66: =Numérico!G65/G$2 -> 0.007194244604 | H66: =Numérico!H65/H$2 -> 0 | I66: =Numérico!I65/I$2 -> 0.01652892562 | J66: =Numérico!J65/J$2 -> 0 | K66: =Numérico!K65/K$2 -> 0 | L66: =Numérico!L65/L$2 -> 0 | M66: =Numérico!M65/M$2 -> 0.009198423127 | N66: =Numérico!N65/N$2 -> 0 | O66: =Numérico!O65/O$2 -> 0.004012841091 | P66: =Numérico!P65/P$2 -> 0.00563204005
A67: 34 | B67: =Numérico!B66 -> Otro País | C67: =Numérico!C66/C$2 -> 0.000466562986 | D67: =Numérico!D66/D$2 -> 0 | E67: =Numérico!E66/E$2 -> 0 | F67: =Numérico!F66/F$2 -> 0 | G67: =Numérico!G66/G$2 -> 0.001798561151 | H67: =Numérico!H66/H$2 -> 0 | I67: =Numérico!I66/I$2 -> 0 | J67: =Numérico!J66/J$2 -> 0 | K67: =Numérico!K66/K$2 -> 0 | L67: =Numérico!L66/L$2 -> 0 | M67: =Numérico!M66/M$2 -> 0 | N67: =Numérico!N66/N$2 -> 0 | O67: =Numérico!O66/O$2 -> 0.0008025682183 | P67: =Numérico!P66/P$2 -> 0
B69: Municipio de Residencia | C69: Estatal | D69: Colotlán | E69: Lagos de M | F69: Tepatitlán | G69: La Barca | H69: Tamazula | I69: Zapotlán | J69: Autlán | K69: Vallarta | L69: Ameca | M69: Zapopan | N69: Tonalá | O69: Tlaquepaque | P69: Guadalajara
A70: 1 | B70: =Numérico!B69 -> Acatic | C70: =Numérico!C69/C$2 -> 0.007309486781 | D70: =Numérico!D69/D$2 -> 0 | E70: =Numérico!E69/E$2 -> 0 | F70: =Numérico!F69/F$2 -> 0.02044293015 | G70: =Numérico!G69/G$2 -> 0.01528776978 | H70: =Numérico!H69/H$2 -> 0 | I70: =Numérico!I69/I$2 -> 0 | J70: =Numérico!J69/J$2 -> 0 | K70: =Numérico!K69/K$2 -> 0 | L70: =Numérico!L69/L$2 -> 0 | M70: =Numérico!M69/M$2 -> 0.00394218134 | N70: =Numérico!N69/N$2 -> 0.01045296167 | O70: =Numérico!O69/O$2 -> 0.005617977528 | P70: =Numérico!P69/P$2 -> 0.003128911139
A71: 2 | B71: =Numérico!B70 -> Acatlán de Juárez | C71: =Numérico!C70/C$2 -> 0.004976671851 | D71: =Numérico!D70/D$2 -> 0 | E71: =Numérico!E70/E$2 -> 0 | F71: =Numérico!F70/F$2 -> 0 | G71: =Numérico!G70/G$2 -> 0.006294964029 | H71: =Numérico!H70/H$2 -> 0 | I71: =Numérico!I70/I$2 -> 0.02479338843 | J71: =Numérico!J70/J$2 -> 0 | K71: =Numérico!K70/K$2 -> 0 | L71: =Numérico!L70/L$2 -> 0.02192982456 | M71: =Numérico!M70/M$2 -> 0.002628120894 | N71: =Numérico!N70/N$2 -> 0.003484320557 | O71: =Numérico!O70/O$2 -> 0.007223113965 | P71: =Numérico!P70/P$2 -> 0.003128911139
A72: 3 | B72: =Numérico!B71 -> Ahualulco de Mercado | C72: =Numérico!C71/C$2 -> 0.001710730949 | D72: =Numérico!D71/D$2 -> 0 | E72: =Numérico!E71/E$2 -> 0 | F72: =Numérico!F71/F$2 -> 0 | G72: =Numérico!G71/G$2 -> 0.0008992805755 | H72: =Numérico!H71/H$2 -> 0 | I72: =Numérico!I71/I$2 -> 0 | J72: =Numérico!J71/J$2 -> 0 | K72: =Numérico!K71/K$2 -> 0 | L72: =Numérico!L71/L$2 -> 0.02192982456 | M72: =Numérico!M71/M$2 -> 0 | N72: =Numérico!N71/N$2 -> 0.01045296167 | O72: =Numérico!O71/O$2 -> 0.0008025682183 | P72: =Numérico!P71/P$2 -> 0.0006257822278
A73: 4 | B73: =Numérico!B72 -> Amacueca | C73: =Numérico!C72/C$2 -> 0.002021772939 | D73: =Numérico!D72/D$2 -> 0 | E73: =Numérico!E72/E$2 -> 0 | F73: =Numérico!F72/F$2 -> 0 | G73: =Numérico!G72/G$2 -> 0.0008992805755 | H73: =Numérico!H72/H$2 -> 0 | I73: =Numérico!I72/I$2 -> 0.01652892562 | J73: =Numérico!J72/J$2 -> 0.009259259259 | K73: =Numérico!K72/K$2 -> 0.005434782609 | L73: =Numérico!L72/L$2 -> 0.008771929825 | M73: =Numérico!M72/M$2 -> 0.001314060447 | N73: =Numérico!N72/N$2 -> 0.003484320557 | O73: =Numérico!O72/O$2 -> 0 | P73: =Numérico!P72/P$2 -> 0.002503128911
A74: 5 | B74: =Numérico!B73 -> Amatitán | C74: =Numérico!C73/C$2 -> 0.002177293935 | D74: =Numérico!D73/D$2 -> 0 | E74: =Numérico!E73/E$2 -> 0 | F74: =Numérico!F73/F$2 -> 0 | G74: =Numérico!G73/G$2 -> 0.001798561151 | H74: =Numérico!H73/H$2 -> 0 | I74: =Numérico!I73/I$2 -> 0.01652892562 | J74: =Numérico!J73/J$2 -> 0 | K74: =Numérico!K73/K$2 -> 0 | L74: =Numérico!L73/L$2 -> 0.01315789474 | M74: =Numérico!M73/M$2 -> 0.005256241787 | N74: =Numérico!N73/N$2 -> 0 | O74: =Numérico!O73/O$2 -> 0.0008025682183 | P74: =Numérico!P73/P$2 -> 0.001251564456
A75: 6 | B75: =Numérico!B74 -> Ameca | C75: =Numérico!C74/C$2 -> 0.01026438569 | D75: =Numérico!D74/D$2 -> 0 | E75: =Numérico!E74/E$2 -> 0 | F75: =Numérico!F74/F$2 -> 0.001703577513 | G75: =Numérico!G74/G$2 -> 0 | H75: =Numérico!H74/H$2 -> 0 | I75: =Numérico!I74/I$2 -> 0 | J75: =Numérico!J74/J$2 -> 0 | K75: =Numérico!K74/K$2 -> 0 | L75: =Numérico!L74/L$2 -> 0.2149122807 | M75: =Numérico!M74/M$2 -> 0.002628120894 | N75: =Numérico!N74/N$2 -> 0 | O75: =Numérico!O74/O$2 -> 0.003210272873 | P75: =Numérico!P74/P$2 -> 0.006257822278
A76: 7 | B76: =Numérico!B75 -> Arandas | C76: =Numérico!C75/C$2 -> 0.02255054432 | D76: =Numérico!D75/D$2 -> 0 | E76: =Numérico!E75/E$2 -> 0 | F76: =Numérico!F75/F$2 -> 0.1601362862 | G76: =Numérico!G75/G$2 -> 0.03237410072 | H76: =Numérico!H75/H$2 -> 0 | I76: =Numérico!I75/I$2 -> 0 | J76: =Numérico!J75/J$2 -> 0 | K76: =Numérico!K75/K$2 -> 0 | L76: =Numérico!L75/L$2 -> 0 | M76: =Numérico!M75/M$2 -> 0.005256241787 | N76: =Numérico!N75/N$2 -> 0.02787456446 | O76: =Numérico!O75/O$2 -> 0 | P76: =Numérico!P75/P$2 -> 0.001877346683
A77: 8 | B77: =Numérico!B76 -> Atemajac de Brizuela | C77: =Numérico!C76/C$2 -> 0.001088646967 | D77: =Numérico!D76/D$2 -> 0 | E77: =Numérico!E76/E$2 -> 0 | F77: =Numérico!F76/F$2 -> 0 | G77: =Numérico!G76/G$2 -> 0 | H77: =Numérico!H76/H$2 -> 0 | I77: =Numérico!I76/I$2 -> 0.00826446281 | J77: =Numérico!J76/J$2 -> 0 | K77: =Numérico!K76/K$2 -> 0 | L77: =Numérico!L76/L$2 -> 0 | M77: =Numérico!M76/M$2 -> 0.002628120894 | N77: =Numérico!N76/N$2 -> 0 | O77: =Numérico!O76/O$2 -> 0.0008025682183 | P77: =Numérico!P76/P$2 -> 0.001877346683
A78: 9 | B78: =Numérico!B77 -> Atengo | C78: =Numérico!C77/C$2 -> 0.002021772939 | D78: =Numérico!D77/D$2 -> 0 | E78: =Numérico!E77/E$2 -> 0 | F78: =Numérico!F77/F$2 -> 0 | G78: =Numérico!G77/G$2 -> 0.00809352518 | H78: =Numérico!H77/H$2 -> 0 | I78: =Numérico!I77/I$2 -> 0 | J78: =Numérico!J77/J$2 -> 0.009259259259 | K78: =Numérico!K77/K$2 -> 0 | L78: =Numérico!L77/L$2 -> 0.004385964912 | M78: =Numérico!M77/M$2 -> 0 | N78: =Numérico!N77/N$2 -> 0 | O78: =Numérico!O77/O$2 -> 0.001605136437 | P78: =Numérico!P77/P$2 -> 0
A79: 10 | B79: =Numérico!B78 -> Atenguillo | C79: =Numérico!C78/C$2 -> 0.001866251944 | D79: =Numérico!D78/D$2 -> 0 | E79: =Numérico!E78/E$2 -> 0 | F79: =Numérico!F78/F$2 -> 0 | G79: =Numérico!G78/G$2 -> 0.001798561151 | H79: =Numérico!H78/H$2 -> 0 | I79: =Numérico!I78/I$2 -> 0 | J79: =Numérico!J78/J$2 -> 0 | K79: =Numérico!K78/K$2 -> 0.01630434783 | L79: =Numérico!L78/L$2 -> 0.004385964912 | M79: =Numérico!M78/M$2 -> 0.002628120894 | N79: =Numérico!N78/N$2 -> 0 | O79: =Numérico!O78/O$2 -> 0.001605136437 | P79: =Numérico!P78/P$2 -> 0.001251564456
A80: 11 | B80: =Numérico!B79 -> Atotonilco el Alto | C80: =Numérico!C79/C$2 -> 0.01306376361 | D80: =Numérico!D79/D$2 -> 0 | E80: =Numérico!E79/E$2 -> 0 | F80: =Numérico!F79/F$2 -> 0.01703577513 | G80: =Numérico!G79/G$2 -> 0.05125899281 | H80: =Numérico!H79/H$2 -> 0 | I80: =Numérico!I79/I$2 -> 0 | J80: =Numérico!J79/J$2 -> 0 | K80: =Numérico!K79/K$2 -> 0 | L80: =Numérico!L79/L$2 -> 0 | M80: =Numérico!M79/M$2 -> 0.001314060447 | N80: =Numérico!N79/N$2 -> 0.006968641115 | O80: =Numérico!O79/O$2 -> 0.002407704655 | P80: =Numérico!P79/P$2 -> 0.006883604506
A81: 12 | B81: =Numérico!B80 -> Atoyac | C81: =Numérico!C80/C$2 -> 0.001399688958 | D81: =Numérico!D80/D$2 -> 0 | E81: =Numérico!E80/E$2 -> 0 | F81: =Numérico!F80/F$2 -> 0 | G81: =Numérico!G80/G$2 -> 0.0008992805755 | H81: =Numérico!H80/H$2 -> 0 | I81: =Numérico!I80/I$2 -> 0.01652892562 | J81: =Numérico!J80/J$2 -> 0 | K81: =Numérico!K80/K$2 -> 0 | L81: =Numérico!L80/L$2 -> 0 | M81: =Numérico!M80/M$2 -> 0.001314060447 | N81: =Numérico!N80/N$2 -> 0 | O81: =Numérico!O80/O$2 -> 0.003210272873 | P81: =Numérico!P80/P$2 -> 0.0006257822278
A82: 13 | B82: =Numérico!B81 -> Autlán de Navarro | C82: =Numérico!C81/C$2 -> 0.01415241058 | D82: =Numérico!D81/D$2 -> 0 | E82: =Numérico!E81/E$2 -> 0 | F82: =Numérico!F81/F$2 -> 0 | G82: =Numérico!G81/G$2 -> 0.001798561151 | H82: =Numérico!H81/H$2 -> 0 | I82: =Numérico!I81/I$2 -> 0.01652892562 | J82: =Numérico!J81/J$2 -> 0.6944444444 | K82: =Numérico!K81/K$2 -> 0 | L82: =Numérico!L81/L$2 -> 0.01315789474 | M82: =Numérico!M81/M$2 -> 0.005256241787 | N82: =Numérico!N81/N$2 -> 0 | O82: =Numérico!O81/O$2 -> 0.001605136437 | P82: =Numérico!P81/P$2 -> 0.001877346683
A83: 14 | B83: =Numérico!B82 -> Ayotlán | C83: =Numérico!C82/C$2 -> 0.005287713841 | D83: =Numérico!D82/D$2 -> 0 | E83: =Numérico!E82/E$2 -> 0 | F83: =Numérico!F82/F$2 -> 0.01022146508 | G83: =Numérico!G82/G$2 -> 0.02158273381 | H83: =Numérico!H82/H$2 -> 0 | I83: =Numérico!I82/I$2 -> 0 | J83: =Numérico!J82/J$2 -> 0 | K83: =Numérico!K82/K$2 -> 0 | L83: =Numérico!L82/L$2 -> 0 | M83: =Numérico!M82/M$2 -> 0 | N83: =Numérico!N82/N$2 -> 0 | O83: =Numérico!O82/O$2 -> 0.0008025682183 | P83: =Numérico!P82/P$2 -> 0.001877346683
A84: 15 | B84: =Numérico!B83 -> Ayutla | C84: =Numérico!C83/C$2 -> 0.004199066874 | D84: =Numérico!D83/D$2 -> 0 | E84: =Numérico!E83/E$2 -> 0 | F84: =Numérico!F83/F$2 -> 0.003407155026 | G84: =Numérico!G83/G$2 -> 0.006294964029 | H84: =Numérico!H83/H$2 -> 0 | I84: =Numérico!I83/I$2 -> 0 | J84: =Numérico!J83/J$2 -> 0 | K84: =Numérico!K83/K$2 -> 0 | L84: =Numérico!L83/L$2 -> 0.01315789474 | M84: =Numérico!M83/M$2 -> 0.00394218134 | N84: =Numérico!N83/N$2 -> 0.006968641115 | O84: =Numérico!O83/O$2 -> 0.006420545746 | P84: =Numérico!P83/P$2 -> 0.001251564456
A85: 16 | B85: =Numérico!B84 -> Bolaños | C85: =Numérico!C84/C$2 -> 0.0006220839813 | D85: =Numérico!D84/D$2 -> 0.01020408163 | E85: =Numérico!E84/E$2 -> 0 | F85: =Numérico!F84/F$2 -> 0 | G85: =Numérico!G84/G$2 -> 0.0008992805755 | H85: =Numérico!H84/H$2 -> 0 | I85: =Numérico!I84/I$2 -> 0 | J85: =Numérico!J84/J$2 -> 0 | K85: =Numérico!K84/K$2 -> 0 | L85: =Numérico!L84/L$2 -> 0 | M85: =Numérico!M84/M$2 -> 0 | N85: =Numérico!N84/N$2 -> 0 | O85: =Numérico!O84/O$2 -> 0 | P85: =Numérico!P84/P$2 -> 0.001251564456
A86: 17 | B86: =Numérico!B85 -> Cabo Corrientes | C86: =Numérico!C85/C$2 -> 0.004354587869 | D86: =Numérico!D85/D$2 -> 0 | E86: =Numérico!E85/E$2 -> 0 | F86: =Numérico!F85/F$2 -> 0.001703577513 | G86: =Numérico!G85/G$2 -> 0.002697841727 | H86: =Numérico!H85/H$2 -> 0 | I86: =Numérico!I85/I$2 -> 0.00826446281 | J86: =Numérico!J85/J$2 -> 0 | K86: =Numérico!K85/K$2 -> 0.01630434783 | L86: =Numérico!L85/L$2 -> 0 | M86: =Numérico!M85/M$2 -> 0.002628120894 | N86: =Numérico!N85/N$2 -> 0.003484320557 | O86: =Numérico!O85/O$2 -> 0.00481540931 | P86: =Numérico!P85/P$2 -> 0.006883604506
A87: 18 | B87: =Numérico!B86 -> Cañadas de Obregón | C87: =Numérico!C86/C$2 -> 0.0001555209953 | D87: =Numérico!D86/D$2 -> 0 | E87: =Numérico!E86/E$2 -> 0 | F87: =Numérico!F86/F$2 -> 0 | G87: =Numérico!G86/G$2 -> 0.0008992805755 | H87: =Numérico!H86/H$2 -> 0 | I87: =Numérico!I86/I$2 -> 0 | J87: =Numérico!J86/J$2 -> 0 | K87: =Numérico!K86/K$2 -> 0 | L87: =Numérico!L86/L$2 -> 0 | M87: =Numérico!M86/M$2 -> 0 | N87: =Numérico!N86/N$2 -> 0 | O87: =Numérico!O86/O$2 -> 0 | P87: =Numérico!P86/P$2 -> 0
A88: 19 | B88: =Numérico!B87 -> Casimiro Castillo | C88: =Numérico!C87/C$2 -> 0.001088646967 | D88: =Numérico!D87/D$2 -> 0 | E88: =Numérico!E87/E$2 -> 0 | F88: =Numérico!F87/F$2 -> 0 | G88: =Numérico!G87/G$2 -> 0 | H88: =Numérico!H87/H$2 -> 0 | I88: =Numérico!I87/I$2 -> 0 | J88: =Numérico!J87/J$2 -> 0.05555555556 | K88: =Numérico!K87/K$2 -> 0 | L88: =Numérico!L87/L$2 -> 0 | M88: =Numérico!M87/M$2 -> 0 | N88: =Numérico!N87/N$2 -> 0 | O88: =Numérico!O87/O$2 -> 0 | P88: =Numérico!P87/P$2 -> 0.0006257822278
A89: 20 | B89: =Numérico!B88 -> Chapala | C89: =Numérico!C88/C$2 -> 0.0167962675 | D89: =Numérico!D88/D$2 -> 0.02040816327 | E89: =Numérico!E88/E$2 -> 0 | F89: =Numérico!F88/F$2 -> 0 | G89: =Numérico!G88/G$2 -> 0.06654676259 | H89: =Numérico!H88/H$2 -> 0 | I89: =Numérico!I88/I$2 -> 0 | J89: =Numérico!J88/J$2 -> 0 | K89: =Numérico!K88/K$2 -> 0 | L89: =Numérico!L88/L$2 -> 0.004385964912 | M89: =Numérico!M88/M$2 -> 0.005256241787 | N89: =Numérico!N88/N$2 -> 0.003484320557 | O89: =Numérico!O88/O$2 -> 0.01444622793 | P89: =Numérico!P88/P$2 -> 0.005006257822
A90: 21 | B90: =Numérico!B89 -> Chimaltitán | C90: =Numérico!C89/C$2 -> 0.000466562986 | D90: =Numérico!D89/D$2 -> 0.01020408163 | E90: =Numérico!E89/E$2 -> 0 | F90: =Numérico!F89/F$2 -> 0 | G90: =Numérico!G89/G$2 -> 0.0008992805755 | H90: =Numérico!H89/H$2 -> 0 | I90: =Numérico!I89/I$2 -> 0 | J90: =Numérico!J89/J$2 -> 0 | K90: =Numérico!K89/K$2 -> 0 | L90: =Numérico!L89/L$2 -> 0 | M90: =Numérico!M89/M$2 -> 0 | N90: =Numérico!N89/N$2 -> 0 | O90: =Numérico!O89/O$2 -> 0 | P90: =Numérico!P89/P$2 -> 0.0006257822278
A91: 22 | B91: =Numérico!B90 -> Chiquilistlán | C91: =Numérico!C90/C$2 -> 0.0007776049767 | D91: =Numérico!D90/D$2 -> 0 | E91: =Numérico!E90/E$2 -> 0 | F91: =Numérico!F90/F$2 -> 0 | G91: =Numérico!G90/G$2 -> 0.001798561151 | H91: =Numérico!H90/H$2 -> 0 | I91: =Numérico!I90/I$2 -> 0 | J91: =Numérico!J90/J$2 -> 0 | K91: =Numérico!K90/K$2 -> 0 | L91: =Numérico!L90/L$2 -> 0.008771929825 | M91: =Numérico!M90/M$2 -> 0 | N91: =Numérico!N90/N$2 -> 0 | O91: =Numérico!O90/O$2 -> 0 | P91: =Numérico!P90/P$2 -> 0.0006257822278
A92: 23 | B92: =Numérico!B91 -> Cihuatlán | C92: =Numérico!C91/C$2 -> 0.000933125972 | D92: =Numérico!D91/D$2 -> 0 | E92: =Numérico!E91/E$2 -> 0 | F92: =Numérico!F91/F$2 -> 0 | G92: =Numérico!G91/G$2 -> 0 | H92: =Numérico!H91/H$2 -> 0 | I92: =Numérico!I91/I$2 -> 0 | J92: =Numérico!J91/J$2 -> 0.009259259259 | K92: =Numérico!K91/K$2 -> 0 | L92: =Numérico!L91/L$2 -> 0 | M92: =Numérico!M91/M$2 -> 0 | N92: =Numérico!N91/N$2 -> 0 | O92: =Numérico!O91/O$2 -> 0.001605136437 | P92: =Numérico!P91/P$2 -> 0.001877346683
A93: 24 | B93: =Numérico!B92 -> Cocula | C93: =Numérico!C92/C$2 -> 0.003265940902 | D93: =Numérico!D92/D$2 -> 0 | E93: =Numérico!E92/E$2 -> 0 | F93: =Numérico!F92/F$2 -> 0 | G93: =Numérico!G92/G$2 -> 0.01169064748 | H93: =Numérico!H92/H$2 -> 0 | I93: =Numérico!I92/I$2 -> 0 | J93: =Numérico!J92/J$2 -> 0 | K93: =Numérico!K92/K$2 -> 0 | L93: =Numérico!L92/L$2 -> 0.01315789474 | M93: =Numérico!M92/M$2 -> 0 | N93: =Numérico!N92/N$2 -> 0 | O93: =Numérico!O92/O$2 -> 0.002407704655 | P93: =Numérico!P92/P$2 -> 0.001251564456
A94: 25 | B94: =Numérico!B93 -> Colotlán | C94: =Numérico!C93/C$2 -> 0.01213063764 | D94: =Numérico!D93/D$2 -> 0.6836734694 | E94: =Numérico!E93/E$2 -> 0 | F94: =Numérico!F93/F$2 -> 0.001703577513 | G94: =Numérico!G93/G$2 -> 0.0008992805755 | H94: =Numérico!H93/H$2 -> 0 | I94: =Numérico!I93/I$2 -> 0.00826446281 | J94: =Numérico!J93/J$2 -> 0 | K94: =Numérico!K93/K$2 -> 0 | L94: =Numérico!L93/L$2 -> 0 | M94: =Numérico!M93/M$2 -> 0.007884362681 | N94: =Numérico!N93/N$2 -> 0 | O94: =Numérico!O93/O$2 -> 0.001605136437 | P94: =Numérico!P93/P$2 -> 0
A95: 26 | B95: =Numérico!B94 -> Concepción de Buenos Aires | C95: =Numérico!C94/C$2 -> 0.0006220839813 | D95: =Numérico!D94/D$2 -> 0 | E95: =Numérico!E94/E$2 -> 0 | F95: =Numérico!F94/F$2 -> 0 | G95: =Numérico!G94/G$2 -> 0 | H95: =Numérico!H94/H$2 -> 0 | I95: =Numérico!I94/I$2 -> 0.00826446281 | J95: =Numérico!J94/J$2 -> 0 | K95: =Numérico!K94/K$2 -> 0 | L95: =Numérico!L94/L$2 -> 0 | M95: =Numérico!M94/M$2 -> 0.001314060447 | N95: =Numérico!N94/N$2 -> 0 | O95: =Numérico!O94/O$2 -> 0.001605136437 | P95: =Numérico!P94/P$2 -> 0
A96: 27 | B96: =Numérico!B95 -> Cuautitlán de García Barragán | C96: =Numérico!C95/C$2 -> 0.0003110419907 | D96: =Numérico!D95/D$2 -> 0 | E96: =Numérico!E95/E$2 -> 0 | F96: =Numérico!F95/F$2 -> 0 | G96: =Numérico!G95/G$2 -> 0 | H96: =Numérico!H95/H$2 -> 0 | I96: =Numérico!I95/I$2 -> 0 | J96: =Numérico!J95/J$2 -> 0.01851851852 | K96: =Numérico!K95/K$2 -> 0 | L96: =Numérico!L95/L$2 -> 0 | M96: =Numérico!M95/M$2 -> 0 | N96: =Numérico!N95/N$2 -> 0 | O96: =Numérico!O95/O$2 -> 0 | P96: =Numérico!P95/P$2 -> 0
A97: 28 | B97: =Numérico!B96 -> Cuautla | C97: =Numérico!C96/C$2 -> 0.000466562986 | D97: =Numérico!D96/D$2 -> 0 | E97: =Numérico!E96/E$2 -> 0 | F97: =Numérico!F96/F$2 -> 0 | G97: =Numérico!G96/G$2 -> 0 | H97: =Numérico!H96/H$2 -> 0 | I97: =Numérico!I96/I$2 -> 0 | J97: =Numérico!J96/J$2 -> 0 | K97: =Numérico!K96/K$2 -> 0 | L97: =Numérico!L96/L$2 -> 0 | M97: =Numérico!M96/M$2 -> 0.001314060447 | N97: =Numérico!N96/N$2 -> 0.003484320557 | O97: =Numérico!O96/O$2 -> 0.0008025682183 | P97: =Numérico!P96/P$2 -> 0
A98: 29 | B98: =Numérico!B97 -> Cuquío | C98: =Numérico!C97/C$2 -> 0.0006220839813 | D98: =Numérico!D97/D$2 -> 0 | E98: =Numérico!E97/E$2 -> 0 | F98: =Numérico!F97/F$2 -> 0.001703577513 | G98: =Numérico!G97/G$2 -> 0.0008992805755 | H98: =Numérico!H97/H$2 -> 0 | I98: =Numérico!I97/I$2 -> 0 | J98: =Numérico!J97/J$2 -> 0 | K98: =Numérico!K97/K$2 -> 0 | L98: =Numérico!L97/L$2 -> 0 | M98: =Numérico!M97/M$2 -> 0 | N98: =Numérico!N97/N$2 -> 0.003484320557 | O98: =Numérico!O97/O$2 -> 0.0008025682183 | P98: =Numérico!P97/P$2 -> 0
A99: 30 | B99: =Numérico!B98 -> Degollado | C99: =Numérico!C98/C$2 -> 0.000933125972 | D99: =Numérico!D98/D$2 -> 0 | E99: =Numérico!E98/E$2 -> 0 | F99: =Numérico!F98/F$2 -> 0.005110732538 | G99: =Numérico!G98/G$2 -> 0.0008992805755 | H99: =Numérico!H98/H$2 -> 0 | I99: =Numérico!I98/I$2 -> 0 | J99: =Numérico!J98/J$2 -> 0 | K99: =Numérico!K98/K$2 -> 0 | L99: =Numérico!L98/L$2 -> 0 | M99: =Numérico!M98/M$2 -> 0 | N99: =Numérico!N98/N$2 -> 0.003484320557 | O99: =Numérico!O98/O$2 -> 0.0008025682183 | P99: =Numérico!P98/P$2 -> 0
A100: 31 | B100: =Numérico!B99 -> Ejutla | C100: =Numérico!C99/C$2 -> 0.000933125972 | D100: =Numérico!D99/D$2 -> 0 | E100: =Numérico!E99/E$2 -> 0 | F100: =Numérico!F99/F$2 -> 0.003407155026 | G100: =Numérico!G99/G$2 -> 0.002697841727 | H100: =Numérico!H99/H$2 -> 0 | I100: =Numérico!I99/I$2 -> 0 | J100: =Numérico!J99/J$2 -> 0 | K100: =Numérico!K99/K$2 -> 0 | L100: =Numérico!L99/L$2 -> 0 | M100: =Numérico!M99/M$2 -> 0 | N100: =Numérico!N99/N$2 -> 0 | O100: =Numérico!O99/O$2 -> 0 | P100: =Numérico!P99/P$2 -> 0.0006257822278
A101: 32 | B101: =Numérico!B100 -> El Arenal | C101: =Numérico!C100/C$2 -> 0.002954898911 | D101: =Numérico!D100/D$2 -> 0 | E101: =Numérico!E100/E$2 -> 0 | F101: =Numérico!F100/F$2 -> 0 | G101: =Numérico!G100/G$2 -> 0 | H101: =Numérico!H100/H$2 -> 0 | I101: =Numérico!I100/I$2 -> 0 | J101: =Numérico!J100/J$2 -> 0 | K101: =Numérico!K100/K$2 -> 0 | L101: =Numérico!L100/L$2 -> 0.03070175439 | M101: =Numérico!M100/M$2 -> 0.001314060447 | N101: =Numérico!N100/N$2 -> 0 | O101: =Numérico!O100/O$2 -> 0.00481540931 | P101: =Numérico!P100/P$2 -> 0.003128911139
A102: 33 | B102: =Numérico!B101 -> El Grullo | C102: =Numérico!C101/C$2 -> 0.002954898911 | D102: =Numérico!D101/D$2 -> 0 | E102: =Numérico!E101/E$2 -> 0 | F102: =Numérico!F101/F$2 -> 0 | G102: =Numérico!G101/G$2 -> 0.004496402878 | H102: =Numérico!H101/H$2 -> 0 | I102: =Numérico!I101/I$2 -> 0.01652892562 | J102: =Numérico!J101/J$2 -> 0.06481481481 | K102: =Numérico!K101/K$2 -> 0 | L102: =Numérico!L101/L$2 -> 0 | M102: =Numérico!M101/M$2 -> 0.001314060447 | N102: =Numérico!N101/N$2 -> 0.003484320557 | O102: =Numérico!O101/O$2 -> 0.0008025682183 | P102: =Numérico!P101/P$2 -> 0.001251564456
A103: 34 | B103: =Numérico!B102 -> El Limón | C103: =Numérico!C102/C$2 -> 0.000466562986 | D103: =Numérico!D102/D$2 -> 0 | E103: =Numérico!E102/E$2 -> 0 | F103: =Numérico!F102/F$2 -> 0 | G103: =Numérico!G102/G$2 -> 0 | H103: =Numérico!H102/H$2 -> 0 | I103: =Numérico!I102/I$2 -> 0.00826446281 | J103: =Numérico!J102/J$2 -> 0.01851851852 | K103: =Numérico!K102/K$2 -> 0 | L103: =Numérico!L102/L$2 -> 0 | M103: =Numérico!M102/M$2 -> 0 | N103: =Numérico!N102/N$2 -> 0 | O103: =Numérico!O102/O$2 -> 0 | P103: =Numérico!P102/P$2 -> 0
A104: 35 | B104: =Numérico!B103 -> El Salto | C104: =Numérico!C103/C$2 -> 0.01446345257 | D104: =Numérico!D103/D$2 -> 0 | E104: =Numérico!E103/E$2 -> 0 | F104: =Numérico!F103/F$2 -> 0.001703577513 | G104: =Numérico!G103/G$2 -> 0.005395683453 | H104: =Numérico!H103/H$2 -> 0 | I104: =Numérico!I103/I$2 -> 0 | J104: =Numérico!J103/J$2 -> 0 | K104: =Numérico!K103/K$2 -> 0 | L104: =Numérico!L103/L$2 -> 0 | M104: =Numérico!M103/M$2 -> 0.005256241787 | N104: =Numérico!N103/N$2 -> 0.01393728223 | O104: =Numérico!O103/O$2 -> 0.03772070626 | P104: =Numérico!P103/P$2 -> 0.01939924906
A105: 36 | B105: =Numérico!B104 -> Encarnación de Díaz | C105: =Numérico!C104/C$2 -> 0.000466562986 | D105: =Numérico!D104/D$2 -> 0 | E105: =Numérico!E104/E$2 -> 0 | F105: =Numérico!F104/F$2 -> 0 | G105: =Numérico!G104/G$2 -> 0.0008992805755 | H105: =Numérico!H104/H$2 -> 0 | I105: =Numérico!I104/I$2 -> 0 | J105: =Numérico!J104/J$2 -> 0 | K105: =Numérico!K104/K$2 -> 0 | L105: =Numérico!L104/L$2 -> 0 | M105: =Numérico!M104/M$2 -> 0.001314060447 | N105: =Numérico!N104/N$2 -> 0.003484320557 | O105: =Numérico!O104/O$2 -> 0 | P105: =Numérico!P104/P$2 -> 0
A106: 37 | B106: =Numérico!B105 -> Etzatlán | C106: =Numérico!C105/C$2 -> 0.001399688958 | D106: =Numérico!D105/D$2 -> 0 | E106: =Numérico!E105/E$2 -> 0 | F106: =Numérico!F105/F$2 -> 0 | G106: =Numérico!G105/G$2 -> 0 | H106: =Numérico!H105/H$2 -> 0 | I106: =Numérico!I105/I$2 -> 0 | J106: =Numérico!J105/J$2 -> 0 | K106: =Numérico!K105/K$2 -> 0 | L106: =Numérico!L105/L$2 -> 0.004385964912 | M106: =Numérico!M105/M$2 -> 0.001314060447 | N106: =Numérico!N105/N$2 -> 0 | O106: =Numérico!O105/O$2 -> 0 | P106: =Numérico!P105/P$2 -> 0.004380475594
A107: 38 | B107: =Numérico!B106 -> Gómez Farías | C107: =Numérico!C106/C$2 -> 0.0007776049767 | D107: =Numérico!D106/D$2 -> 0 | E107: =Numérico!E106/E$2 -> 0 | F107: =Numérico!F106/F$2 -> 0 | G107: =Numérico!G106/G$2 -> 0 | H107: =Numérico!H106/H$2 -> 0 | I107: =Numérico!I106/I$2 -> 0.02479338843 | J107: =Numérico!J106/J$2 -> 0 | K107: =Numérico!K106/K$2 -> 0 | L107: =Numérico!L106/L$2 -> 0 | M107: =Numérico!M106/M$2 -> 0 | N107: =Numérico!N106/N$2 -> 0 | O107: =Numérico!O106/O$2 -> 0.0008025682183 | P107: =Numérico!P106/P$2 -> 0.0006257822278
A108: 39 | B108: =Numérico!B107 -> Guachinango | C108: =Numérico!C107/C$2 -> 0.000466562986 | D108: =Numérico!D107/D$2 -> 0 | E108: =Numérico!E107/E$2 -> 0 | F108: =Numérico!F107/F$2 -> 0 | G108: =Numérico!G107/G$2 -> 0 | H108: =Numérico!H107/H$2 -> 0 | I108: =Numérico!I107/I$2 -> 0 | J108: =Numérico!J107/J$2 -> 0 | K108: =Numérico!K107/K$2 -> 0 | L108: =Numérico!L107/L$2 -> 0.01315789474 | M108: =Numérico!M107/M$2 -> 0 | N108: =Numérico!N107/N$2 -> 0 | O108: =Numérico!O107/O$2 -> 0 | P108: =Numérico!P107/P$2 -> 0
A109: 40 | B109: =Numérico!B108 -> Guadalajara | C109: =Numérico!C108/C$2 -> 0.2444790047 | D109: =Numérico!D108/D$2 -> 0 | E109: =Numérico!E108/E$2 -> 0 | F109: =Numérico!F108/F$2 -> 0.01192504259 | G109: =Numérico!G108/G$2 -> 0.04136690647 | H109: =Numérico!H108/H$2 -> 0 | I109: =Numérico!I108/I$2 -> 0.02479338843 | J109: =Numérico!J108/J$2 -> 0.009259259259 | K109: =Numérico!K108/K$2 -> 0 | L109: =Numérico!L108/L$2 -> 0.1271929825 | M109: =Numérico!M108/M$2 -> 0.2155059133 | N109: =Numérico!N108/N$2 -> 0.2369337979 | O109: =Numérico!O108/O$2 -> 0.3009630819 | P109: =Numérico!P108/P$2 -> 0.5500625782
A110: 41 | B110: =Numérico!B109 -> Hostotipaquillo | C110: =Numérico!C109/C$2 -> 0.0001555209953 | D110: =Numérico!D109/D$2 -> 0 | E110: =Numérico!E109/E$2 -> 0 | F110: =Numérico!F109/F$2 -> 0 | G110: =Numérico!G109/G$2 -> 0 | H110: =Numérico!H109/H$2 -> 0 | I110: =Numérico!I109/I$2 -> 0 | J110: =Numérico!J109/J$2 -> 0 | K110: =Numérico!K109/K$2 -> 0 | L110: =Numérico!L109/L$2 -> 0.004385964912 | M110: =Numérico!M109/M$2 -> 0 | N110: =Numérico!N109/N$2 -> 0 | O110: =Numérico!O109/O$2 -> 0 | P110: =Numérico!P109/P$2 -> 0
A111: 42 | B111: =Numérico!B110 -> Huejúcar | C111: =Numérico!C110/C$2 -> 0.0006220839813 | D111: =Numérico!D110/D$2 -> 0.04081632653 | E111: =Numérico!E110/E$2 -> 0 | F111: =Numérico!F110/F$2 -> 0 | G111: =Numérico!G110/G$2 -> 0 | H111: =Numérico!H110/H$2 -> 0 | I111: =Numérico!I110/I$2 -> 0 | J111: =Numérico!J110/J$2 -> 0 | K111: =Numérico!K110/K$2 -> 0 | L111: =Numérico!L110/L$2 -> 0 | M111: =Numérico!M110/M$2 -> 0 | N111: =Numérico!N110/N$2 -> 0 | O111: =Numérico!O110/O$2 -> 0 | P111: =Numérico!P110/P$2 -> 0
A112: 43 | B112: =Numérico!B111 -> Huejuquilla el Alto | C112: =Numérico!C111/C$2 -> 0.0007776049767 | D112: =Numérico!D111/D$2 -> 0.02040816327 | E112: =Numérico!E111/E$2 -> 0 | F112: =Numérico!F111/F$2 -> 0 | G112: =Numérico!G111/G$2 -> 0.001798561151 | H112: =Numérico!H111/H$2 -> 0 | I112: =Numérico!I111/I$2 -> 0 | J112: =Numérico!J111/J$2 -> 0 | K112: =Numérico!K111/K$2 -> 0 | L112: =Numérico!L111/L$2 -> 0 | M112: =Numérico!M111/M$2 -> 0 | N112: =Numérico!N111/N$2 -> 0 | O112: =Numérico!O111/O$2 -> 0 | P112: =Numérico!P111/P$2 -> 0.0006257822278
A113: 44 | B113: =Numérico!B112 -> Ixtlahuacán de los Membrillos | C113: =Numérico!C112/C$2 -> 0.005287713841 | D113: =Numérico!D112/D$2 -> 0 | E113: =Numérico!E112/E$2 -> 0 | F113: =Numérico!F112/F$2 -> 0 | G113: =Numérico!G112/G$2 -> 0.00809352518 | H113: =Numérico!H112/H$2 -> 0 | I113: =Numérico!I112/I$2 -> 0 | J113: =Numérico!J112/J$2 -> 0 | K113: =Numérico!K112/K$2 -> 0 | L113: =Numérico!L112/L$2 -> 0.004385964912 | M113: =Numérico!M112/M$2 -> 0.001314060447 | N113: =Numérico!N112/N$2 -> 0 | O113: =Numérico!O112/O$2 -> 0.007223113965 | P113: =Numérico!P112/P$2 -> 0.008760951189
A114: 45 | B114: =Numérico!B113 -> Ixtlahuacán del Río | C114: =Numérico!C113/C$2 -> 0.000466562986 | D114: =Numérico!D113/D$2 -> 0 | E114: =Numérico!E113/E$2 -> 0 | F114: =Numérico!F113/F$2 -> 0 | G114: =Numérico!G113/G$2 -> 0 | H114: =Numérico!H113/H$2 -> 0 | I114: =Numérico!I113/I$2 -> 0 | J114: =Numérico!J113/J$2 -> 0 | K114: =Numérico!K113/K$2 -> 0 | L114: =Numérico!L113/L$2 -> 0.004385964912 | M114: =Numérico!M113/M$2 -> 0.001314060447 | N114: =Numérico!N113/N$2 -> 0 | O114: =Numérico!O113/O$2 -> 0 | P114: =Numérico!P113/P$2 -> 0.0006257822278
A115: 46 | B115: =Numérico!B114 -> Jalostotitlán | C115: =Numérico!C114/C$2 -> 0.002488335925 | D115: =Numérico!D114/D$2 -> 0 | E115: =Numérico!E114/E$2 -> 0 | F115: =Numérico!F114/F$2 -> 0.02214650767 | G115: =Numérico!G114/G$2 -> 0.0008992805755 | H115: =Numérico!H114/H$2 -> 0 | I115: =Numérico!I114/I$2 -> 0 | J115: =Numérico!J114/J$2 -> 0 | K115: =Numérico!K114/K$2 -> 0 | L115: =Numérico!L114/L$2 -> 0.004385964912 | M115: =Numérico!M114/M$2 -> 0.001314060447 | N115: =Numérico!N114/N$2 -> 0 | O115: =Numérico!O114/O$2 -> 0 | P115: =Numérico!P114/P$2 -> 0
A116: 47 | B116: =Numérico!B115 -> Jamay | C116: =Numérico!C115/C$2 -> 0.005598755832 | D116: =Numérico!D115/D$2 -> 0 | E116: =Numérico!E115/E$2 -> 0 | F116: =Numérico!F115/F$2 -> 0.005110732538 | G116: =Numérico!G115/G$2 -> 0.02338129496 | H116: =Numérico!H115/H$2 -> 0 | I116: =Numérico!I115/I$2 -> 0 | J116: =Numérico!J115/J$2 -> 0 | K116: =Numérico!K115/K$2 -> 0 | L116: =Numérico!L115/L$2 -> 0 | M116: =Numérico!M115/M$2 -> 0.001314060447 | N116: =Numérico!N115/N$2 -> 0 | O116: =Numérico!O115/O$2 -> 0.001605136437 | P116: =Numérico!P115/P$2 -> 0.002503128911
A117: 48 | B117: =Numérico!B116 -> Jesús María | C117: =Numérico!C116/C$2 -> 0.002177293935 | D117: =Numérico!D116/D$2 -> 0.01020408163 | E117: =Numérico!E116/E$2 -> 0 | F117: =Numérico!F116/F$2 -> 0.01022146508 | G117: =Numérico!G116/G$2 -> 0.004496402878 | H117: =Numérico!H116/H$2 -> 0 | I117: =Numérico!I116/I$2 -> 0.00826446281 | J117: =Numérico!J116/J$2 -> 0 | K117: =Numérico!K116/K$2 -> 0 | L117: =Numérico!L116/L$2 -> 0 | M117: =Numérico!M116/M$2 -> 0 | N117: =Numérico!N116/N$2 -> 0 | O117: =Numérico!O116/O$2 -> 0 | P117: =Numérico!P116/P$2 -> 0.0006257822278
A118: 49 | B118: =Numérico!B117 -> Jilotlán de los Dolores | C118: =Numérico!C117/C$2 -> 0.0003110419907 | D118: =Numérico!D117/D$2 -> 0 | E118: =Numérico!E117/E$2 -> 0 | F118: =Numérico!F117/F$2 -> 0 | G118: =Numérico!G117/G$2 -> 0 | H118: =Numérico!H117/H$2 -> 0 | I118: =Numérico!I117/I$2 -> 0.00826446281 | J118: =Numérico!J117/J$2 -> 0 | K118: =Numérico!K117/K$2 -> 0 | L118: =Numérico!L117/L$2 -> 0.004385964912 | M118: =Numérico!M117/M$2 -> 0 | N118: =Numérico!N117/N$2 -> 0 | O118: =Numérico!O117/O$2 -> 0 | P118: =Numérico!P117/P$2 -> 0
A119: 50 | B119: =Numérico!B118 -> Jocotepec | C119: =Numérico!C118/C$2 -> 0.004976671851 | D119: =Numérico!D118/D$2 -> 0 | E119: =Numérico!E118/E$2 -> 0 | F119: =Numérico!F118/F$2 -> 0 | G119: =Numérico!G118/G$2 -> 0.02068345324 | H119: =Numérico!H118/H$2 -> 0 | I119: =Numérico!I118/I$2 -> 0 | J119: =Numérico!J118/J$2 -> 0 | K119: =Numérico!K118/K$2 -> 0 | L119: =Numérico!L118/L$2 -> 0 | M119: =Numérico!M118/M$2 -> 0.001314060447 | N119: =Numérico!N118/N$2 -> 0 | O119: =Numérico!O118/O$2 -> 0.006420545746 | P119: =Numérico!P118/P$2 -> 0
A120: 51 | B120: =Numérico!B119 -> Juanacatlán | C120: =Numérico!C119/C$2 -> 0.000466562986 | D120: =Numérico!D119/D$2 -> 0 | E120: =Numérico!E119/E$2 -> 0 | F120: =Numérico!F119/F$2 -> 0.001703577513 | G120: =Numérico!G119/G$2 -> 0.0008992805755 | H120: =Numérico!H119/H$2 -> 0 | I120: =Numérico!I119/I$2 -> 0 | J120: =Numérico!J119/J$2 -> 0 | K120: =Numérico!K119/K$2 -> 0 | L120: =Numérico!L119/L$2 -> 0 | M120: =Numérico!M119/M$2 -> 0.001314060447 | N120: =Numérico!N119/N$2 -> 0 | O120: =Numérico!O119/O$2 -> 0 | P120: =Numérico!P119/P$2 -> 0
A121: 52 | B121: =Numérico!B120 -> Juchitlán | C121: =Numérico!C120/C$2 -> 0.000466562986 | D121: =Numérico!D120/D$2 -> 0 | E121: =Numérico!E120/E$2 -> 0 | F121: =Numérico!F120/F$2 -> 0 | G121: =Numérico!G120/G$2 -> 0 | H121: =Numérico!H120/H$2 -> 0 | I121: =Numérico!I120/I$2 -> 0 | J121: =Numérico!J120/J$2 -> 0.01851851852 | K121: =Numérico!K120/K$2 -> 0 | L121: =Numérico!L120/L$2 -> 0 | M121: =Numérico!M120/M$2 -> 0 | N121: =Numérico!N120/N$2 -> 0.003484320557 | O121: =Numérico!O120/O$2 -> 0 | P121: =Numérico!P120/P$2 -> 0
A122: 53 | B122: =Numérico!B121 -> La Barca | C122: =Numérico!C121/C$2 -> 0.01570762053 | D122: =Numérico!D121/D$2 -> 0 | E122: =Numérico!E121/E$2 -> 0 | F122: =Numérico!F121/F$2 -> 0.005110732538 | G122: =Numérico!G121/G$2 -> 0.0773381295 | H122: =Numérico!H121/H$2 -> 0 | I122: =Numérico!I121/I$2 -> 0 | J122: =Numérico!J121/J$2 -> 0 | K122: =Numérico!K121/K$2 -> 0 | L122: =Numérico!L121/L$2 -> 0 | M122: =Numérico!M121/M$2 -> 0.00394218134 | N122: =Numérico!N121/N$2 -> 0.006968641115 | O122: =Numérico!O121/O$2 -> 0.003210272873 | P122: =Numérico!P121/P$2 -> 0.001877346683
A123: 54 | B123: =Numérico!B122 -> La Huerta | C123: =Numérico!C122/C$2 -> 0.001866251944 | D123: =Numérico!D122/D$2 -> 0 | E123: =Numérico!E122/E$2 -> 0 | F123: =Numérico!F122/F$2 -> 0 | G123: =Numérico!G122/G$2 -> 0.004496402878 | H123: =Numérico!H122/H$2 -> 0 | I123: =Numérico!I122/I$2 -> 0 | J123: =Numérico!J122/J$2 -> 0.03703703704 | K123: =Numérico!K122/K$2 -> 0 | L123: =Numérico!L122/L$2 -> 0 | M123: =Numérico!M122/M$2 -> 0 | N123: =Numérico!N122/N$2 -> 0 | O123: =Numérico!O122/O$2 -> 0.002407704655 | P123: =Numérico!P122/P$2 -> 0
A124: 55 | B124: =Numérico!B123 -> Lagos de Moreno | C124: =Numérico!C123/C$2 -> 0.00466562986 | D124: =Numérico!D123/D$2 -> 0 | E124: =Numérico!E123/E$2 -> 0.2058823529 | F124: =Numérico!F123/F$2 -> 0.01022146508 | G124: =Numérico!G123/G$2 -> 0.003597122302 | H124: =Numérico!H123/H$2 -> 0 | I124: =Numérico!I123/I$2 -> 0 | J124: =Numérico!J123/J$2 -> 0 | K124: =Numérico!K123/K$2 -> 0 | L124: =Numérico!L123/L$2 -> 0 | M124: =Numérico!M123/M$2 -> 0.002628120894 | N124: =Numérico!N123/N$2 -> 0.003484320557 | O124: =Numérico!O123/O$2 -> 0.002407704655 | P124: =Numérico!P123/P$2 -> 0
A125: 56 | B125: =Numérico!B124 -> Magdalena | C125: =Numérico!C124/C$2 -> 0.001866251944 | D125: =Numérico!D124/D$2 -> 0 | E125: =Numérico!E124/E$2 -> 0 | F125: =Numérico!F124/F$2 -> 0 | G125: =Numérico!G124/G$2 -> 0 | H125: =Numérico!H124/H$2 -> 0 | I125: =Numérico!I124/I$2 -> 0 | J125: =Numérico!J124/J$2 -> 0 | K125: =Numérico!K124/K$2 -> 0 | L125: =Numérico!L124/L$2 -> 0.0350877193 | M125: =Numérico!M124/M$2 -> 0.001314060447 | N125: =Numérico!N124/N$2 -> 0 | O125: =Numérico!O124/O$2 -> 0.0008025682183 | P125: =Numérico!P124/P$2 -> 0.001251564456
A126: 57 | B126: =Numérico!B125 -> La Manzanilla de la Paz | C126: =Numérico!C125/C$2 -> 0 | D126: =Numérico!D125/D$2 -> 0 | E126: =Numérico!E125/E$2 -> 0 | F126: =Numérico!F125/F$2 -> 0 | G126: =Numérico!G125/G$2 -> 0 | H126: =Numérico!H125/H$2 -> 0 | I126: =Numérico!I125/I$2 -> 0 | J126: =Numérico!J125/J$2 -> 0 | K126: =Numérico!K125/K$2 -> 0 | L126: =Numérico!L125/L$2 -> 0 | M126: =Numérico!M125/M$2 -> 0 | N126: =Numérico!N125/N$2 -> 0 | O126: =Numérico!O125/O$2 -> 0 | P126: =Numérico!P125/P$2 -> 0
A127: 58 | B127: =Numérico!B126 -> Mascota | C127: =Numérico!C126/C$2 -> 0.001710730949 | D127: =Numérico!D126/D$2 -> 0 | E127: =Numérico!E126/E$2 -> 0 | F127: =Numérico!F126/F$2 -> 0 | G127: =Numérico!G126/G$2 -> 0 | H127: =Numérico!H126/H$2 -> 0 | I127: =Numérico!I126/I$2 -> 0 | J127: =Numérico!J126/J$2 -> 0 | K127: =Numérico!K126/K$2 -> 0.0597826087 | L127: =Numérico!L126/L$2 -> 0 | M127: =Numérico!M126/M$2 -> 0 | N127: =Numérico!N126/N$2 -> 0 | O127: =Numérico!O126/O$2 -> 0 | P127: =Numérico!P126/P$2 -> 0
A128: 59 | B128: =Numérico!B127 -> Mazamitla | C128: =Numérico!C127/C$2 -> 0.0007776049767 | D128: =Numérico!D127/D$2 -> 0 | E128: =Numérico!E127/E$2 -> 0 | F128: =Numérico!F127/F$2 -> 0 | G128: =Numérico!G127/G$2 -> 0.0008992805755 | H128: =Numérico!H127/H$2 -> 0 | I128: =Numérico!I127/I$2 -> 0.00826446281 | J128: =Numérico!J127/J$2 -> 0 | K128: =Numérico!K127/K$2 -> 0 | L128: =Numérico!L127/L$2 -> 0 | M128: =Numérico!M127/M$2 -> 0 | N128: =Numérico!N127/N$2 -> 0 | O128: =Numérico!O127/O$2 -> 0 | P128: =Numérico!P127/P$2 -> 0.001877346683
A129: 60 | B129: =Numérico!B128 -> Mexticacán | C129: =Numérico!C128/C$2 -> 0.0001555209953 | D129: =Numérico!D128/D$2 -> 0 | E129: =Numérico!E128/E$2 -> 0 | F129: =Numérico!F128/F$2 -> 0.001703577513 | G129: =Numérico!G128/G$2 -> 0 | H129: =Numérico!H128/H$2 -> 0 | I129: =Numérico!I128/I$2 -> 0 | J129: =Numérico!J128/J$2 -> 0 | K129: =Numérico!K128/K$2 -> 0 | L129: =Numérico!L128/L$2 -> 0 | M129: =Numérico!M128/M$2 -> 0 | N129: =Numérico!N128/N$2 -> 0 | O129: =Numérico!O128/O$2 -> 0 | P129: =Numérico!P128/P$2 -> 0
A130: 61 | B130: =Numérico!B129 -> Mezquitic | C130: =Numérico!C129/C$2 -> 0.000466562986 | D130: =Numérico!D129/D$2 -> 0.01020408163 | E130: =Numérico!E129/E$2 -> 0 | F130: =Numérico!F129/F$2 -> 0 | G130: =Numérico!G129/G$2 -> 0 | H130: =Numérico!H129/H$2 -> 0 | I130: =Numérico!I129/I$2 -> 0 | J130: =Numérico!J129/J$2 -> 0 | K130: =Numérico!K129/K$2 -> 0 | L130: =Numérico!L129/L$2 -> 0 | M130: =Numérico!M129/M$2 -> 0 | N130: =Numérico!N129/N$2 -> 0.006968641115 | O130: =Numérico!O129/O$2 -> 0 | P130: =Numérico!P129/P$2 -> 0
A131: 62 | B131: =Numérico!B130 -> Mixtlán | C131: =Numérico!C130/C$2 -> 0.0001555209953 | D131: =Numérico!D130/D$2 -> 0 | E131: =Numérico!E130/E$2 -> 0 | F131: =Numérico!F130/F$2 -> 0 | G131: =Numérico!G130/G$2 -> 0.0008992805755 | H131: =Numérico!H130/H$2 -> 0 | I131: =Numérico!I130/I$2 -> 0 | J131: =Numérico!J130/J$2 -> 0 | K131: =Numérico!K130/K$2 -> 0 | L131: =Numérico!L130/L$2 -> 0 | M131: =Numérico!M130/M$2 -> 0 | N131: =Numérico!N130/N$2 -> 0 | O131: =Numérico!O130/O$2 -> 0 | P131: =Numérico!P130/P$2 -> 0
A132: 63 | B132: =Numérico!B131 -> Ocotlán | C132: =Numérico!C131/C$2 -> 0.04914463453 | D132: =Numérico!D131/D$2 -> 0 | E132: =Numérico!E131/E$2 -> 0 | F132: =Numérico!F131/F$2 -> 0.005110732538 | G132: =Numérico!G131/G$2 -> 0.2742805755 | H132: =Numérico!H131/H$2 -> 0 | I132: =Numérico!I131/I$2 -> 0 | J132: =Numérico!J131/J$2 -> 0 | K132: =Numérico!K131/K$2 -> 0 | L132: =Numérico!L131/L$2 -> 0.01315789474 | M132: =Numérico!M131/M$2 -> 0.002628120894 | N132: =Numérico!N131/N$2 -> 0 | O132: =Numérico!O131/O$2 -> 0.001605136437 | P132: =Numérico!P131/P$2 -> 0.0006257822278
A133: 64 | B133: =Numérico!B132 -> Ojuelos de Jalisco | C133: =Numérico!C132/C$2 -> 0.0006220839813 | D133: =Numérico!D132/D$2 -> 0 | E133: =Numérico!E132/E$2 -> 0 | F133: =Numérico!F132/F$2 -> 0 | G133: =Numérico!G132/G$2 -> 0 | H133: =Numérico!H132/H$2 -> 0 | I133: =Numérico!I132/I$2 -> 0 | J133: =Numérico!J132/J$2 -> 0 | K133: =Numérico!K132/K$2 -> 0 | L133: =Numérico!L132/L$2 -> 0 | M133: =Numérico!M132/M$2 -> 0.001314060447 | N133: =Numérico!N132/N$2 -> 0 | O133: =Numérico!O132/O$2 -> 0 | P133: =Numérico!P132/P$2 -> 0.001877346683
A134: 65 | B134: =Numérico!B133 -> Pihuamo | C134: =Numérico!C133/C$2 -> 0 | D134: =Numérico!D133/D$2 -> 0 | E134: =Numérico!E133/E$2 -> 0 | F134: =Numérico!F133/F$2 -> 0 | G134: =Numérico!G133/G$2 -> 0 | H134: =Numérico!H133/H$2 -> 0 | I134: =Numérico!I133/I$2 -> 0 | J134: =Numérico!J133/J$2 -> 0 | K134: =Numérico!K133/K$2 -> 0 | L134: =Numérico!L133/L$2 -> 0 | M134: =Numérico!M133/M$2 -> 0 | N134: =Numérico!N133/N$2 -> 0 | O134: =Numérico!O133/O$2 -> 0 | P134: =Numérico!P133/P$2 -> 0
A135: 66 | B135: =Numérico!B134 -> Poncitlán | C135: =Numérico!C134/C$2 -> 0.01104199067 | D135: =Numérico!D134/D$2 -> 0 | E135: =Numérico!E134/E$2 -> 0 | F135: =Numérico!F134/F$2 -> 0 | G135: =Numérico!G134/G$2 -> 0.06205035971 | H135: =Numérico!H134/H$2 -> 0 | I135: =Numérico!I134/I$2 -> 0 | J135: =Numérico!J134/J$2 -> 0 | K135: =Numérico!K134/K$2 -> 0 | L135: =Numérico!L134/L$2 -> 0 | M135: =Numérico!M134/M$2 -> 0.001314060447 | N135: =Numérico!N134/N$2 -> 0.003484320557 | O135: =Numérico!O134/O$2 -> 0 | P135: =Numérico!P134/P$2 -> 0
A136: 67 | B136: =Numérico!B135 -> Puerto Vallarta | C136: =Numérico!C135/C$2 -> 0.02628304821 | D136: =Numérico!D135/D$2 -> 0 | E136: =Numérico!E135/E$2 -> 0 | F136: =Numérico!F135/F$2 -> 0.001703577513 | G136: =Numérico!G135/G$2 -> 0.0008992805755 | H136: =Numérico!H135/H$2 -> 0 | I136: =Numérico!I135/I$2 -> 0 | J136: =Numérico!J135/J$2 -> 0 | K136: =Numérico!K135/K$2 -> 0.875 | L136: =Numérico!L135/L$2 -> 0 | M136: =Numérico!M135/M$2 -> 0.002628120894 | N136: =Numérico!N135/N$2 -> 0 | O136: =Numérico!O135/O$2 -> 0.0008025682183 | P136: =Numérico!P135/P$2 -> 0.001877346683
A137: 68 | B137: =Numérico!B136 -> Quitupan | C137: =Numérico!C136/C$2 -> 0.001555209953 | D137: =Numérico!D136/D$2 -> 0 | E137: =Numérico!E136/E$2 -> 0 | F137: =Numérico!F136/F$2 -> 0.001703577513 | G137: =Numérico!G136/G$2 -> 0.002697841727 | H137: =Numérico!H136/H$2 -> 0 | I137: =Numérico!I136/I$2 -> 0 | J137: =Numérico!J136/J$2 -> 0 | K137: =Numérico!K136/K$2 -> 0 | L137: =Numérico!L136/L$2 -> 0 | M137: =Numérico!M136/M$2 -> 0 | N137: =Numérico!N136/N$2 -> 0.003484320557 | O137: =Numérico!O136/O$2 -> 0.001605136437 | P137: =Numérico!P136/P$2 -> 0.001877346683
A138: 69 | B138: =Numérico!B137 -> San Cristóbal de la Barranca | C138: =Numérico!C137/C$2 -> 0.0003110419907 | D138: =Numérico!D137/D$2 -> 0 | E138: =Numérico!E137/E$2 -> 0 | F138: =Numérico!F137/F$2 -> 0 | G138: =Numérico!G137/G$2 -> 0 | H138: =Numérico!H137/H$2 -> 0 | I138: =Numérico!I137/I$2 -> 0 | J138: =Numérico!J137/J$2 -> 0 | K138: =Numérico!K137/K$2 -> 0 | L138: =Numérico!L137/L$2 -> 0.004385964912 | M138: =Numérico!M137/M$2 -> 0.001314060447 | N138: =Numérico!N137/N$2 -> 0 | O138: =Numérico!O137/O$2 -> 0 | P138: =Numérico!P137/P$2 -> 0
A139: 70 | B139: =Numérico!B138 -> San Diego de Alejandría | C139: =Numérico!C138/C$2 -> 0.000466562986 | D139: =Numérico!D138/D$2 -> 0 | E139: =Numérico!E138/E$2 -> 0 | F139: =Numérico!F138/F$2 -> 0.001703577513 | G139: =Numérico!G138/G$2 -> 0.001798561151 | H139: =Numérico!H138/H$2 -> 0 | I139: =Numérico!I138/I$2 -> 0 | J139: =Numérico!J138/J$2 -> 0 | K139: =Numérico!K138/K$2 -> 0 | L139: =Numérico!L138/L$2 -> 0 | M139: =Numérico!M138/M$2 -> 0 | N139: =Numérico!N138/N$2 -> 0 | O139: =Numérico!O138/O$2 -> 0 | P139: =Numérico!P138/P$2 -> 0
A140: 71 | B140: =Numérico!B139 -> San Gabriel | C140: =Numérico!C139/C$2 -> 0.0003110419907 | D140: =Numérico!D139/D$2 -> 0 | E140: =Numérico!E139/E$2 -> 0 | F140: =Numérico!F139/F$2 -> 0 | G140: =Numérico!G139/G$2 -> 0 | H140: =Numérico!H139/H$2 -> 0 | I140: =Numérico!I139/I$2 -> 0.01652892562 | J140: =Numérico!J139/J$2 -> 0 | K140: =Numérico!K139/K$2 -> 0 | L140: =Numérico!L139/L$2 -> 0 | M140: =Numérico!M139/M$2 -> 0 | N140: =Numérico!N139/N$2 -> 0 | O140: =Numérico!O139/O$2 -> 0 | P140: =Numérico!P139/P$2 -> 0
A141: 72 | B141: =Numérico!B140 -> San Ignacio Cerro Gordo | C141: =Numérico!C140/C$2 -> 0.0007776049767 | D141: =Numérico!D140/D$2 -> 0 | E141: =Numérico!E140/E$2 -> 0 | F141: =Numérico!F140/F$2 -> 0.001703577513 | G141: =Numérico!G140/G$2 -> 0.002697841727 | H141: =Numérico!H140/H$2 -> 0 | I141: =Numérico!I140/I$2 -> 0 | J141: =Numérico!J140/J$2 -> 0 | K141: =Numérico!K140/K$2 -> 0 | L141: =Numérico!L140/L$2 -> 0 | M141: =Numérico!M140/M$2 -> 0 | N141: =Numérico!N140/N$2 -> 0 | O141: =Numérico!O140/O$2 -> 0 | P141: =Numérico!P140/P$2 -> 0.0006257822278
A142: 73 | B142: =Numérico!B141 -> San Juan de los Lagos | C142: =Numérico!C141/C$2 -> 0.01275272162 | D142: =Numérico!D141/D$2 -> 0 | E142: =Numérico!E141/E$2 -> 0.7941176471 | F142: =Numérico!F141/F$2 -> 0.0272572402 | G142: =Numérico!G141/G$2 -> 0.00809352518 | H142: =Numérico!H141/H$2 -> 0 | I142: =Numérico!I141/I$2 -> 0 | J142: =Numérico!J141/J$2 -> 0 | K142: =Numérico!K141/K$2 -> 0 | L142: =Numérico!L141/L$2 -> 0 | M142: =Numérico!M141/M$2 -> 0 | N142: =Numérico!N141/N$2 -> 0 | O142: =Numérico!O141/O$2 -> 0 | P142: =Numérico!P141/P$2 -> 0.001877346683
A143: 74 | B143: =Numérico!B142 -> San Juanito de Escobedo | C143: =Numérico!C142/C$2 -> 0.003732503888 | D143: =Numérico!D142/D$2 -> 0 | E143: =Numérico!E142/E$2 -> 0 | F143: =Numérico!F142/F$2 -> 0.001703577513 | G143: =Numérico!G142/G$2 -> 0.0008992805755 | H143: =Numérico!H142/H$2 -> 0 | I143: =Numérico!I142/I$2 -> 0 | J143: =Numérico!J142/J$2 -> 0 | K143: =Numérico!K142/K$2 -> 0 | L143: =Numérico!L142/L$2 -> 0.01754385965 | M143: =Numérico!M142/M$2 -> 0.005256241787 | N143: =Numérico!N142/N$2 -> 0.01393728223 | O143: =Numérico!O142/O$2 -> 0.005617977528 | P143: =Numérico!P142/P$2 -> 0.001877346683
A144: 75 | B144: =Numérico!B143 -> San Julián | C144: =Numérico!C143/C$2 -> 0.001555209953 | D144: =Numérico!D143/D$2 -> 0 | E144: =Numérico!E143/E$2 -> 0 | F144: =Numérico!F143/F$2 -> 0.01192504259 | G144: =Numérico!G143/G$2 -> 0.001798561151 | H144: =Numérico!H143/H$2 -> 0 | I144: =Numérico!I143/I$2 -> 0 | J144: =Numérico!J143/J$2 -> 0 | K144: =Numérico!K143/K$2 -> 0 | L144: =Numérico!L143/L$2 -> 0 | M144: =Numérico!M143/M$2 -> 0 | N144: =Numérico!N143/N$2 -> 0 | O144: =Numérico!O143/O$2 -> 0.0008025682183 | P144: =Numérico!P143/P$2 -> 0
A145: 76 | B145: =Numérico!B144 -> San Marcos | C145: =Numérico!C144/C$2 -> 0.0003110419907 | D145: =Numérico!D144/D$2 -> 0 | E145: =Numérico!E144/E$2 -> 0 | F145: =Numérico!F144/F$2 -> 0 | G145: =Numérico!G144/G$2 -> 0 | H145: =Numérico!H144/H$2 -> 0 | I145: =Numérico!I144/I$2 -> 0 | J145: =Numérico!J144/J$2 -> 0 | K145: =Numérico!K144/K$2 -> 0 | L145: =Numérico!L144/L$2 -> 0 | M145: =Numérico!M144/M$2 -> 0 | N145: =Numérico!N144/N$2 -> 0 | O145: =Numérico!O144/O$2 -> 0.001605136437 | P145: =Numérico!P144/P$2 -> 0
A146: 77 | B146: =Numérico!B145 -> San Martín de Bolaños | C146: =Numérico!C145/C$2 -> 0.0006220839813 | D146: =Numérico!D145/D$2 -> 0 | E146: =Numérico!E145/E$2 -> 0 | F146: =Numérico!F145/F$2 -> 0 | G146: =Numérico!G145/G$2 -> 0.001798561151 | H146: =Numérico!H145/H$2 -> 0 | I146: =Numérico!I145/I$2 -> 0 | J146: =Numérico!J145/J$2 -> 0 | K146: =Numérico!K145/K$2 -> 0 | L146: =Numérico!L145/L$2 -> 0 | M146: =Numérico!M145/M$2 -> 0.001314060447 | N146: =Numérico!N145/N$2 -> 0 | O146: =Numérico!O145/O$2 -> 0.0008025682183 | P146: =Numérico!P145/P$2 -> 0
A147: 78 | B147: =Numérico!B146 -> San Martín Hidalgo | C147: =Numérico!C146/C$2 -> 0.001399688958 | D147: =Numérico!D146/D$2 -> 0 | E147: =Numérico!E146/E$2 -> 0 | F147: =Numérico!F146/F$2 -> 0 | G147: =Numérico!G146/G$2 -> 0.001798561151 | H147: =Numérico!H146/H$2 -> 0 | I147: =Numérico!I146/I$2 -> 0.00826446281 | J147: =Numérico!J146/J$2 -> 0 | K147: =Numérico!K146/K$2 -> 0 | L147: =Numérico!L146/L$2 -> 0.01754385965 | M147: =Numérico!M146/M$2 -> 0.001314060447 | N147: =Numérico!N146/N$2 -> 0 | O147: =Numérico!O146/O$2 -> 0 | P147: =Numérico!P146/P$2 -> 0.0006257822278
A148: 79 | B148: =Numérico!B147 -> San Miguel el Alto | C148: =Numérico!C147/C$2 -> 0.002799377916 | D148: =Numérico!D147/D$2 -> 0 | E148: =Numérico!E147/E$2 -> 0 | F148: =Numérico!F147/F$2 -> 0.02214650767 | G148: =Numérico!G147/G$2 -> 0.004496402878 | H148: =Numérico!H147/H$2 -> 0 | I148: =Numérico!I147/I$2 -> 0 | J148: =Numérico!J147/J$2 -> 0 | K148: =Numérico!K147/K$2 -> 0 | L148: =Numérico!L147/L$2 -> 0 | M148: =Numérico!M147/M$2 -> 0 | N148: =Numérico!N147/N$2 -> 0 | O148: =Numérico!O147/O$2 -> 0 | P148: =Numérico!P147/P$2 -> 0
A149: 80 | B149: =Numérico!B148 -> San Pedro Tlaquepaque | C149: =Numérico!C148/C$2 -> 0.06936236392 | D149: =Numérico!D148/D$2 -> 0 | E149: =Numérico!E148/E$2 -> 0 | F149: =Numérico!F148/F$2 -> 0 | G149: =Numérico!G148/G$2 -> 0.003597122302 | H149: =Numérico!H148/H$2 -> 0 | I149: =Numérico!I148/I$2 -> 0 | J149: =Numérico!J148/J$2 -> 0 | K149: =Numérico!K148/K$2 -> 0 | L149: =Numérico!L148/L$2 -> 0.03070175439 | M149: =Numérico!M148/M$2 -> 0.03285151117 | N149: =Numérico!N148/N$2 -> 0.03832752613 | O149: =Numérico!O148/O$2 -> 0.2134831461 | P149: =Numérico!P148/P$2 -> 0.0832290363
A150: 81 | B150: =Numérico!B149 -> San Sebastián del Oeste | C150: =Numérico!C149/C$2 -> 0.0001555209953 | D150: =Numérico!D149/D$2 -> 0 | E150: =Numérico!E149/E$2 -> 0 | F150: =Numérico!F149/F$2 -> 0 | G150: =Numérico!G149/G$2 -> 0 | H150: =Numérico!H149/H$2 -> 0 | I150: =Numérico!I149/I$2 -> 0 | J150: =Numérico!J149/J$2 -> 0 | K150: =Numérico!K149/K$2 -> 0 | L150: =Numérico!L149/L$2 -> 0 | M150: =Numérico!M149/M$2 -> 0.001314060447 | N150: =Numérico!N149/N$2 -> 0 | O150: =Numérico!O149/O$2 -> 0 | P150: =Numérico!P149/P$2 -> 0
A151: 82 | B151: =Numérico!B150 -> Santa María de los Ángeles | C151: =Numérico!C150/C$2 -> 0.001399688958 | D151: =Numérico!D150/D$2 -> 0.0612244898 | E151: =Numérico!E150/E$2 -> 0 | F151: =Numérico!F150/F$2 -> 0.001703577513 | G151: =Numérico!G150/G$2 -> 0 | H151: =Numérico!H150/H$2 -> 0 | I151: =Numérico!I150/I$2 -> 0 | J151: =Numérico!J150/J$2 -> 0 | K151: =Numérico!K150/K$2 -> 0 | L151: =Numérico!L150/L$2 -> 0.004385964912 | M151: =Numérico!M150/M$2 -> 0 | N151: =Numérico!N150/N$2 -> 0.003484320557 | O151: =Numérico!O150/O$2 -> 0 | P151: =Numérico!P150/P$2 -> 0
A152: 83 | B152: =Numérico!B151 -> Santa María del Oro | C152: =Numérico!C151/C$2 -> 0.000933125972 | D152: =Numérico!D151/D$2 -> 0 | E152: =Numérico!E151/E$2 -> 0 | F152: =Numérico!F151/F$2 -> 0 | G152: =Numérico!G151/G$2 -> 0.0008992805755 | H152: =Numérico!H151/H$2 -> 0 | I152: =Numérico!I151/I$2 -> 0 | J152: =Numérico!J151/J$2 -> 0 | K152: =Numérico!K151/K$2 -> 0 | L152: =Numérico!L151/L$2 -> 0.008771929825 | M152: =Numérico!M151/M$2 -> 0 | N152: =Numérico!N151/N$2 -> 0 | O152: =Numérico!O151/O$2 -> 0.002407704655 | P152: =Numérico!P151/P$2 -> 0
A153: 84 | B153: =Numérico!B152 -> Sayula | C153: =Numérico!C152/C$2 -> 0.002177293935 | D153: =Numérico!D152/D$2 -> 0 | E153: =Numérico!E152/E$2 -> 0 | F153: =Numérico!F152/F$2 -> 0 | G153: =Numérico!G152/G$2 -> 0 | H153: =Numérico!H152/H$2 -> 0 | I153: =Numérico!I152/I$2 -> 0.00826446281 | J153: =Numérico!J152/J$2 -> 0 | K153: =Numérico!K152/K$2 -> 0 | L153: =Numérico!L152/L$2 -> 0 | M153: =Numérico!M152/M$2 -> 0.00394218134 | N153: =Numérico!N152/N$2 -> 0 | O153: =Numérico!O152/O$2 -> 0.001605136437 | P153: =Numérico!P152/P$2 -> 0.005006257822
A154: 85 | B154: =Numérico!B153 -> Tala | C154: =Numérico!C153/C$2 -> 0.005598755832 | D154: =Numérico!D153/D$2 -> 0 | E154: =Numérico!E153/E$2 -> 0 | F154: =Numérico!F153/F$2 -> 0 | G154: =Numérico!G153/G$2 -> 0.001798561151 | H154: =Numérico!H153/H$2 -> 0 | I154: =Numérico!I153/I$2 -> 0 | J154: =Numérico!J153/J$2 -> 0 | K154: =Numérico!K153/K$2 -> 0 | L154: =Numérico!L153/L$2 -> 0.06578947368 | M154: =Numérico!M153/M$2 -> 0.007884362681 | N154: =Numérico!N153/N$2 -> 0.006968641115 | O154: =Numérico!O153/O$2 -> 0.003210272873 | P154: =Numérico!P153/P$2 -> 0.004380475594
A155: 86 | B155: =Numérico!B154 -> Talpa de Allende | C155: =Numérico!C154/C$2 -> 0.000933125972 | D155: =Numérico!D154/D$2 -> 0 | E155: =Numérico!E154/E$2 -> 0 | F155: =Numérico!F154/F$2 -> 0 | G155: =Numérico!G154/G$2 -> 0 | H155: =Numérico!H154/H$2 -> 0 | I155: =Numérico!I154/I$2 -> 0 | J155: =Numérico!J154/J$2 -> 0 | K155: =Numérico!K154/K$2 -> 0.02717391304 | L155: =Numérico!L154/L$2 -> 0 | M155: =Numérico!M154/M$2 -> 0 | N155: =Numérico!N154/N$2 -> 0.003484320557 | O155: =Numérico!O154/O$2 -> 0 | P155: =Numérico!P154/P$2 -> 0
A156: 87 | B156: =Numérico!B155 -> Tamazula de Gordiano | C156: =Numérico!C155/C$2 -> 0.00699844479 | D156: =Numérico!D155/D$2 -> 0 | E156: =Numérico!E155/E$2 -> 0 | F156: =Numérico!F155/F$2 -> 0 | G156: =Numérico!G155/G$2 -> 0 | H156: =Numérico!H155/H$2 -> 1 | I156: =Numérico!I155/I$2 -> 0.0826446281 | J156: =Numérico!J155/J$2 -> 0.009259259259 | K156: =Numérico!K155/K$2 -> 0 | L156: =Numérico!L155/L$2 -> 0.004385964912 | M156: =Numérico!M155/M$2 -> 0 | N156: =Numérico!N155/N$2 -> 0 | O156: =Numérico!O155/O$2 -> 0.0008025682183 | P156: =Numérico!P155/P$2 -> 0
A157: 88 | B157: =Numérico!B156 -> Tapalpa | C157: =Numérico!C156/C$2 -> 0.001710730949 | D157: =Numérico!D156/D$2 -> 0 | E157: =Numérico!E156/E$2 -> 0 | F157: =Numérico!F156/F$2 -> 0 | G157: =Numérico!G156/G$2 -> 0.003597122302 | H157: =Numérico!H156/H$2 -> 0 | I157: =Numérico!I156/I$2 -> 0.00826446281 | J157: =Numérico!J156/J$2 -> 0 | K157: =Numérico!K156/K$2 -> 0 | L157: =Numérico!L156/L$2 -> 0 | M157: =Numérico!M156/M$2 -> 0 | N157: =Numérico!N156/N$2 -> 0 | O157: =Numérico!O156/O$2 -> 0.001605136437 | P157: =Numérico!P156/P$2 -> 0.002503128911
A158: 89 | B158: =Numérico!B157 -> Tecalitlán | C158: =Numérico!C157/C$2 -> 0.0007776049767 | D158: =Numérico!D157/D$2 -> 0 | E158: =Numérico!E157/E$2 -> 0 | F158: =Numérico!F157/F$2 -> 0 | G158: =Numérico!G157/G$2 -> 0 | H158: =Numérico!H157/H$2 -> 0 | I158: =Numérico!I157/I$2 -> 0.02479338843 | J158: =Numérico!J157/J$2 -> 0 | K158: =Numérico!K157/K$2 -> 0 | L158: =Numérico!L157/L$2 -> 0 | M158: =Numérico!M157/M$2 -> 0 | N158: =Numérico!N157/N$2 -> 0 | O158: =Numérico!O157/O$2 -> 0.0008025682183 | P158: =Numérico!P157/P$2 -> 0.0006257822278
A159: 90 | B159: =Numérico!B158 -> Techaluta de Montenegro | C159: =Numérico!C158/C$2 -> 0 | D159: =Numérico!D158/D$2 -> 0 | E159: =Numérico!E158/E$2 -> 0 | F159: =Numérico!F158/F$2 -> 0 | G159: =Numérico!G158/G$2 -> 0 | H159: =Numérico!H158/H$2 -> 0 | I159: =Numérico!I158/I$2 -> 0 | J159: =Numérico!J158/J$2 -> 0 | K159: =Numérico!K158/K$2 -> 0 | L159: =Numérico!L158/L$2 -> 0 | M159: =Numérico!M158/M$2 -> 0 | N159: =Numérico!N158/N$2 -> 0 | O159: =Numérico!O158/O$2 -> 0 | P159: =Numérico!P158/P$2 -> 0
A160: 91 | B160: =Numérico!B159 -> Tecolotlán | C160: =Numérico!C159/C$2 -> 0.000466562986 | D160: =Numérico!D159/D$2 -> 0 | E160: =Numérico!E159/E$2 -> 0 | F160: =Numérico!F159/F$2 -> 0 | G160: =Numérico!G159/G$2 -> 0.0008992805755 | H160: =Numérico!H159/H$2 -> 0 | I160: =Numérico!I159/I$2 -> 0 | J160: =Numérico!J159/J$2 -> 0.01851851852 | K160: =Numérico!K159/K$2 -> 0 | L160: =Numérico!L159/L$2 -> 0 | M160: =Numérico!M159/M$2 -> 0 | N160: =Numérico!N159/N$2 -> 0 | O160: =Numérico!O159/O$2 -> 0 | P160: =Numérico!P159/P$2 -> 0
A161: 92 | B161: =Numérico!B160 -> Tenamaxtlán | C161: =Numérico!C160/C$2 -> 0.0001555209953 | D161: =Numérico!D160/D$2 -> 0 | E161: =Numérico!E160/E$2 -> 0 | F161: =Numérico!F160/F$2 -> 0 | G161: =Numérico!G160/G$2 -> 0 | H161: =Numérico!H160/H$2 -> 0 | I161: =Numérico!I160/I$2 -> 0 | J161: =Numérico!J160/J$2 -> 0 | K161: =Numérico!K160/K$2 -> 0 | L161: =Numérico!L160/L$2 -> 0.004385964912 | M161: =Numérico!M160/M$2 -> 0 | N161: =Numérico!N160/N$2 -> 0 | O161: =Numérico!O160/O$2 -> 0 | P161: =Numérico!P160/P$2 -> 0
A162: 93 | B162: =Numérico!B161 -> Teocaltiche | C162: =Numérico!C161/C$2 -> 0 | D162: =Numérico!D161/D$2 -> 0 | E162: =Numérico!E161/E$2 -> 0 | F162: =Numérico!F161/F$2 -> 0 | G162: =Numérico!G161/G$2 -> 0 | H162: =Numérico!H161/H$2 -> 0 | I162: =Numérico!I161/I$2 -> 0 | J162: =Numérico!J161/J$2 -> 0 | K162: =Numérico!K161/K$2 -> 0 | L162: =Numérico!L161/L$2 -> 0 | M162: =Numérico!M161/M$2 -> 0 | N162: =Numérico!N161/N$2 -> 0 | O162: =Numérico!O161/O$2 -> 0 | P162: =Numérico!P161/P$2 -> 0
A163: 94 | B163: =Numérico!B162 -> Teocuitatlán de Corona | C163: =Numérico!C162/C$2 -> 0.0007776049767 | D163: =Numérico!D162/D$2 -> 0 | E163: =Numérico!E162/E$2 -> 0 | F163: =Numérico!F162/F$2 -> 0 | G163: =Numérico!G162/G$2 -> 0 | H163: =Numérico!H162/H$2 -> 0 | I163: =Numérico!I162/I$2 -> 0.02479338843 | J163: =Numérico!J162/J$2 -> 0 | K163: =Numérico!K162/K$2 -> 0 | L163: =Numérico!L162/L$2 -> 0 | M163: =Numérico!M162/M$2 -> 0 | N163: =Numérico!N162/N$2 -> 0 | O163: =Numérico!O162/O$2 -> 0 | P163: =Numérico!P162/P$2 -> 0.001251564456
A164: 95 | B164: =Numérico!B163 -> Tepatitlán de Morelos | C164: =Numérico!C163/C$2 -> 0.05614307932 | D164: =Numérico!D163/D$2 -> 0 | E164: =Numérico!E163/E$2 -> 0 | F164: =Numérico!F163/F$2 -> 0.538330494 | G164: =Numérico!G163/G$2 -> 0.01888489209 | H164: =Numérico!H163/H$2 -> 0 | I164: =Numérico!I163/I$2 -> 0 | J164: =Numérico!J163/J$2 -> 0 | K164: =Numérico!K163/K$2 -> 0 | L164: =Numérico!L163/L$2 -> 0.01754385965 | M164: =Numérico!M163/M$2 -> 0.002628120894 | N164: =Numérico!N163/N$2 -> 0.006968641115 | O164: =Numérico!O163/O$2 -> 0.001605136437 | P164: =Numérico!P163/P$2 -> 0.008760951189
A165: 96 | B165: =Numérico!B164 -> Tequila | C165: =Numérico!C164/C$2 -> 0.007465007776 | D165: =Numérico!D164/D$2 -> 0 | E165: =Numérico!E164/E$2 -> 0 | F165: =Numérico!F164/F$2 -> 0 | G165: =Numérico!G164/G$2 -> 0.006294964029 | H165: =Numérico!H164/H$2 -> 0 | I165: =Numérico!I164/I$2 -> 0 | J165: =Numérico!J164/J$2 -> 0 | K165: =Numérico!K164/K$2 -> 0 | L165: =Numérico!L164/L$2 -> 0.100877193 | M165: =Numérico!M164/M$2 -> 0.0197109067 | N165: =Numérico!N164/N$2 -> 0 | O165: =Numérico!O164/O$2 -> 0 | P165: =Numérico!P164/P$2 -> 0.001877346683
A166: 97 | B166: =Numérico!B165 -> Teuchitlán | C166: =Numérico!C165/C$2 -> 0.0003110419907 | D166: =Numérico!D165/D$2 -> 0 | E166: =Numérico!E165/E$2 -> 0 | F166: =Numérico!F165/F$2 -> 0 | G166: =Numérico!G165/G$2 -> 0.0008992805755 | H166: =Numérico!H165/H$2 -> 0 | I166: =Numérico!I165/I$2 -> 0 | J166: =Numérico!J165/J$2 -> 0 | K166: =Numérico!K165/K$2 -> 0 | L166: =Numérico!L165/L$2 -> 0 | M166: =Numérico!M165/M$2 -> 0 | N166: =Numérico!N165/N$2 -> 0 | O166: =Numérico!O165/O$2 -> 0.0008025682183 | P166: =Numérico!P165/P$2 -> 0
A167: 98 | B167: =Numérico!B166 -> Tizapán el Alto | C167: =Numérico!C166/C$2 -> 0.0001555209953 | D167: =Numérico!D166/D$2 -> 0 | E167: =Numérico!E166/E$2 -> 0 | F167: =Numérico!F166/F$2 -> 0 | G167: =Numérico!G166/G$2 -> 0 | H167: =Numérico!H166/H$2 -> 0 | I167: =Numérico!I166/I$2 -> 0 | J167: =Numérico!J166/J$2 -> 0 | K167: =Numérico!K166/K$2 -> 0 | L167: =Numérico!L166/L$2 -> 0 | M167: =Numérico!M166/M$2 -> 0.001314060447 | N167: =Numérico!N166/N$2 -> 0 | O167: =Numérico!O166/O$2 -> 0 | P167: =Numérico!P166/P$2 -> 0
A168: 99 | B168: =Numérico!B167 -> Tlajomulco de Zúñiga | C168: =Numérico!C167/C$2 -> 0.05723172628 | D168: =Numérico!D167/D$2 -> 0 | E168: =Numérico!E167/E$2 -> 0 | F168: =Numérico!F167/F$2 -> 0.008517887564 | G168: =Numérico!G167/G$2 -> 0.004496402878 | H168: =Numérico!H167/H$2 -> 0 | I168: =Numérico!I167/I$2 -> 0 | J168: =Numérico!J167/J$2 -> 0 | K168: =Numérico!K167/K$2 -> 0 | L168: =Numérico!L167/L$2 -> 0.0350877193 | M168: =Numérico!M167/M$2 -> 0.04862023653 | N168: =Numérico!N167/N$2 -> 0.0243902439 | O168: =Numérico!O167/O$2 -> 0.1717495987 | P168: =Numérico!P167/P$2 -> 0.05757196496
A169: 100 | B169: =Numérico!B168 -> Tolimán | C169: =Numérico!C168/C$2 -> 0.0003110419907 | D169: =Numérico!D168/D$2 -> 0 | E169: =Numérico!E168/E$2 -> 0 | F169: =Numérico!F168/F$2 -> 0 | G169: =Numérico!G168/G$2 -> 0 | H169: =Numérico!H168/H$2 -> 0 | I169: =Numérico!I168/I$2 -> 0.01652892562 | J169: =Numérico!J168/J$2 -> 0 | K169: =Numérico!K168/K$2 -> 0 | L169: =Numérico!L168/L$2 -> 0 | M169: =Numérico!M168/M$2 -> 0 | N169: =Numérico!N168/N$2 -> 0 | O169: =Numérico!O168/O$2 -> 0 | P169: =Numérico!P168/P$2 -> 0
A170: 101 | B170: =Numérico!B169 -> Tomatlán | C170: =Numérico!C169/C$2 -> 0.0001555209953 | D170: =Numérico!D169/D$2 -> 0 | E170: =Numérico!E169/E$2 -> 0 | F170: =Numérico!F169/F$2 -> 0 | G170: =Numérico!G169/G$2 -> 0 | H170: =Numérico!H169/H$2 -> 0 | I170: =Numérico!I169/I$2 -> 0 | J170: =Numérico!J169/J$2 -> 0 | K170: =Numérico!K169/K$2 -> 0 | L170: =Numérico!L169/L$2 -> 0 | M170: =Numérico!M169/M$2 -> 0 | N170: =Numérico!N169/N$2 -> 0 | O170: =Numérico!O169/O$2 -> 0.0008025682183 | P170: =Numérico!P169/P$2 -> 0
A171: 102 | B171: =Numérico!B170 -> Tonalá | C171: =Numérico!C170/C$2 -> 0.04416796267 | D171: =Numérico!D170/D$2 -> 0 | E171: =Numérico!E170/E$2 -> 0 | F171: =Numérico!F170/F$2 -> 0.005110732538 | G171: =Numérico!G170/G$2 -> 0.004496402878 | H171: =Numérico!H170/H$2 -> 0 | I171: =Numérico!I170/I$2 -> 0 | J171: =Numérico!J170/J$2 -> 0 | K171: =Numérico!K170/K$2 -> 0 | L171: =Numérico!L170/L$2 -> 0.02631578947 | M171: =Numérico!M170/M$2 -> 0.0197109067 | N171: =Numérico!N170/N$2 -> 0.4425087108 | O171: =Numérico!O170/O$2 -> 0.04173354735 | P171: =Numérico!P170/P$2 -> 0.04755944931
A172: 103 | B172: =Numérico!B171 -> Tonaya | C172: =Numérico!C171/C$2 -> 0.0007776049767 | D172: =Numérico!D171/D$2 -> 0 | E172: =Numérico!E171/E$2 -> 0 | F172: =Numérico!F171/F$2 -> 0 | G172: =Numérico!G171/G$2 -> 0.0008992805755 | H172: =Numérico!H171/H$2 -> 0 | I172: =Numérico!I171/I$2 -> 0 | J172: =Numérico!J171/J$2 -> 0.009259259259 | K172: =Numérico!K171/K$2 -> 0 | L172: =Numérico!L171/L$2 -> 0 | M172: =Numérico!M171/M$2 -> 0.002628120894 | N172: =Numérico!N171/N$2 -> 0.003484320557 | O172: =Numérico!O171/O$2 -> 0 | P172: =Numérico!P171/P$2 -> 0
A173: 104 | B173: =Numérico!B172 -> Tonila | C173: =Numérico!C172/C$2 -> 0.0007776049767 | D173: =Numérico!D172/D$2 -> 0 | E173: =Numérico!E172/E$2 -> 0 | F173: =Numérico!F172/F$2 -> 0.001703577513 | G173: =Numérico!G172/G$2 -> 0.002697841727 | H173: =Numérico!H172/H$2 -> 0 | I173: =Numérico!I172/I$2 -> 0 | J173: =Numérico!J172/J$2 -> 0 | K173: =Numérico!K172/K$2 -> 0 | L173: =Numérico!L172/L$2 -> 0.004385964912 | M173: =Numérico!M172/M$2 -> 0 | N173: =Numérico!N172/N$2 -> 0 | O173: =Numérico!O172/O$2 -> 0 | P173: =Numérico!P172/P$2 -> 0
A174: 105 | B174: =Numérico!B173 -> Totatiche | C174: =Numérico!C173/C$2 -> 0.001866251944 | D174: =Numérico!D173/D$2 -> 0.1020408163 | E174: =Numérico!E173/E$2 -> 0 | F174: =Numérico!F173/F$2 -> 0 | G174: =Numérico!G173/G$2 -> 0 | H174: =Numérico!H173/H$2 -> 0 | I174: =Numérico!I173/I$2 -> 0 | J174: =Numérico!J173/J$2 -> 0 | K174: =Numérico!K173/K$2 -> 0 | L174: =Numérico!L173/L$2 -> 0 | M174: =Numérico!M173/M$2 -> 0 | N174: =Numérico!N173/N$2 -> 0 | O174: =Numérico!O173/O$2 -> 0.0008025682183 | P174: =Numérico!P173/P$2 -> 0.0006257822278
A175: 106 | B175: =Numérico!B174 -> Tototlán | C175: =Numérico!C174/C$2 -> 0.008398133748 | D175: =Numérico!D174/D$2 -> 0 | E175: =Numérico!E174/E$2 -> 0 | F175: =Numérico!F174/F$2 -> 0.008517887564 | G175: =Numérico!G174/G$2 -> 0.04316546763 | H175: =Numérico!H174/H$2 -> 0 | I175: =Numérico!I174/I$2 -> 0 | J175: =Numérico!J174/J$2 -> 0 | K175: =Numérico!K174/K$2 -> 0 | L175: =Numérico!L174/L$2 -> 0.004385964912 | M175: =Numérico!M174/M$2 -> 0 | N175: =Numérico!N174/N$2 -> 0 | O175: =Numérico!O174/O$2 -> 0 | P175: =Numérico!P174/P$2 -> 0
A176: 107 | B176: =Numérico!B175 -> Tuxcacuesco | C176: =Numérico!C175/C$2 -> 0.002799377916 | D176: =Numérico!D175/D$2 -> 0 | E176: =Numérico!E175/E$2 -> 0 | F176: =Numérico!F175/F$2 -> 0.001703577513 | G176: =Numérico!G175/G$2 -> 0.006294964029 | H176: =Numérico!H175/H$2 -> 0 | I176: =Numérico!I175/I$2 -> 0 | J176: =Numérico!J175/J$2 -> 0 | K176: =Numérico!K175/K$2 -> 0 | L176: =Numérico!L175/L$2 -> 0 | M176: =Numérico!M175/M$2 -> 0.00394218134 | N176: =Numérico!N175/N$2 -> 0 | O176: =Numérico!O175/O$2 -> 0.001605136437 | P176: =Numérico!P175/P$2 -> 0.003128911139
A177: 108 | B177: =Numérico!B176 -> Tuxcueca | C177: =Numérico!C176/C$2 -> 0.0007776049767 | D177: =Numérico!D176/D$2 -> 0 | E177: =Numérico!E176/E$2 -> 0 | F177: =Numérico!F176/F$2 -> 0 | G177: =Numérico!G176/G$2 -> 0.0008992805755 | H177: =Numérico!H176/H$2 -> 0 | I177: =Numérico!I176/I$2 -> 0 | J177: =Numérico!J176/J$2 -> 0 | K177: =Numérico!K176/K$2 -> 0 | L177: =Numérico!L176/L$2 -> 0 | M177: =Numérico!M176/M$2 -> 0 | N177: =Numérico!N176/N$2 -> 0 | O177: =Numérico!O176/O$2 -> 0.002407704655 | P177: =Numérico!P176/P$2 -> 0.0006257822278
A178: 109 | B178: =Numérico!B177 -> Tuxpan | C178: =Numérico!C177/C$2 -> 0.006220839813 | D178: =Numérico!D177/D$2 -> 0 | E178: =Numérico!E177/E$2 -> 0 | F178: =Numérico!F177/F$2 -> 0.003407155026 | G178: =Numérico!G177/G$2 -> 0.02158273381 | H178: =Numérico!H177/H$2 -> 0 | I178: =Numérico!I177/I$2 -> 0.07438016529 | J178: =Numérico!J177/J$2 -> 0 | K178: =Numérico!K177/K$2 -> 0 | L178: =Numérico!L177/L$2 -> 0 | M178: =Numérico!M177/M$2 -> 0.002628120894 | N178: =Numérico!N177/N$2 -> 0 | O178: =Numérico!O177/O$2 -> 0.001605136437 | P178: =Numérico!P177/P$2 -> 0.0006257822278
A179: 110 | B179: =Numérico!B178 -> Unión de San Antonio | C179: =Numérico!C178/C$2 -> 0.0001555209953 | D179: =Numérico!D178/D$2 -> 0 | E179: =Numérico!E178/E$2 -> 0 | F179: =Numérico!F178/F$2 -> 0.001703577513 | G179: =Numérico!G178/G$2 -> 0 | H179: =Numérico!H178/H$2 -> 0 | I179: =Numérico!I178/I$2 -> 0 | J179: =Numérico!J178/J$2 -> 0 | K179: =Numérico!K178/K$2 -> 0 | L179: =Numérico!L178/L$2 -> 0 | M179: =Numérico!M178/M$2 -> 0 | N179: =Numérico!N178/N$2 -> 0 | O179: =Numérico!O178/O$2 -> 0 | P179: =Numérico!P178/P$2 -> 0
A180: 111 | B180: =Numérico!B179 -> Unión de Tula | C180: =Numérico!C179/C$2 -> 0.0003110419907 | D180: =Numérico!D179/D$2 -> 0 | E180: =Numérico!E179/E$2 -> 0 | F180: =Numérico!F179/F$2 -> 0 | G180: =Numérico!G179/G$2 -> 0 | H180: =Numérico!H179/H$2 -> 0 | I180: =Numérico!I179/I$2 -> 0 | J180: =Numérico!J179/J$2 -> 0.009259259259 | K180: =Numérico!K179/K$2 -> 0 | L180: =Numérico!L179/L$2 -> 0 | M180: =Numérico!M179/M$2 -> 0 | N180: =Numérico!N179/N$2 -> 0 | O180: =Numérico!O179/O$2 -> 0.0008025682183 | P180: =Numérico!P179/P$2 -> 0
A181: 112 | B181: =Numérico!B180 -> Valle de Guadalupe | C181: =Numérico!C180/C$2 -> 0.0006220839813 | D181: =Numérico!D180/D$2 -> 0 | E181: =Numérico!E180/E$2 -> 0 | F181: =Numérico!F180/F$2 -> 0.006814310051 | G181: =Numérico!G180/G$2 -> 0 | H181: =Numérico!H180/H$2 -> 0 | I181: =Numérico!I180/I$2 -> 0 | J181: =Numérico!J180/J$2 -> 0 | K181: =Numérico!K180/K$2 -> 0 | L181: =Numérico!L180/L$2 -> 0 | M181: =Numérico!M180/M$2 -> 0 | N181: =Numérico!N180/N$2 -> 0 | O181: =Numérico!O180/O$2 -> 0 | P181: =Numérico!P180/P$2 -> 0
A182: 113 | B182: =Numérico!B181 -> Valle de Juárez | C182: =Numérico!C181/C$2 -> 0.000466562986 | D182: =Numérico!D181/D$2 -> 0 | E182: =Numérico!E181/E$2 -> 0 | F182: =Numérico!F181/F$2 -> 0.001703577513 | G182: =Numérico!G181/G$2 -> 0.0008992805755 | H182: =Numérico!H181/H$2 -> 0 | I182: =Numérico!I181/I$2 -> 0 | J182: =Numérico!J181/J$2 -> 0 | K182: =Numérico!K181/K$2 -> 0 | L182: =Numérico!L181/L$2 -> 0 | M182: =Numérico!M181/M$2 -> 0.001314060447 | N182: =Numérico!N181/N$2 -> 0 | O182: =Numérico!O181/O$2 -> 0 | P182: =Numérico!P181/P$2 -> 0
A183: 114 | B183: =Numérico!B182 -> Villa Corona | C183: =Numérico!C182/C$2 -> 0.001088646967 | D183: =Numérico!D182/D$2 -> 0 | E183: =Numérico!E182/E$2 -> 0 | F183: =Numérico!F182/F$2 -> 0 | G183: =Numérico!G182/G$2 -> 0.003597122302 | H183: =Numérico!H182/H$2 -> 0 | I183: =Numérico!I182/I$2 -> 0 | J183: =Numérico!J182/J$2 -> 0 | K183: =Numérico!K182/K$2 -> 0 | L183: =Numérico!L182/L$2 -> 0 | M183: =Numérico!M182/M$2 -> 0 | N183: =Numérico!N182/N$2 -> 0.006968641115 | O183: =Numérico!O182/O$2 -> 0.0008025682183 | P183: =Numérico!P182/P$2 -> 0
A184: 115 | B184: =Numérico!B183 -> Villa Guerrero | C184: =Numérico!C183/C$2 -> 0.0006220839813 | D184: =Numérico!D183/D$2 -> 0.0306122449 | E184: =Numérico!E183/E$2 -> 0 | F184: =Numérico!F183/F$2 -> 0 | G184: =Numérico!G183/G$2 -> 0 | H184: =Numérico!H183/H$2 -> 0 | I184: =Numérico!I183/I$2 -> 0 | J184: =Numérico!J183/J$2 -> 0 | K184: =Numérico!K183/K$2 -> 0 | L184: =Numérico!L183/L$2 -> 0 | M184: =Numérico!M183/M$2 -> 0 | N184: =Numérico!N183/N$2 -> 0 | O184: =Numérico!O183/O$2 -> 0 | P184: =Numérico!P183/P$2 -> 0.0006257822278
A185: 116 | B185: =Numérico!B184 -> Villa Hidalgo | C185: =Numérico!C184/C$2 -> 0 | D185: =Numérico!D184/D$2 -> 0 | E185: =Numérico!E184/E$2 -> 0 | F185: =Numérico!F184/F$2 -> 0 | G185: =Numérico!G184/G$2 -> 0 | H185: =Numérico!H184/H$2 -> 0 | I185: =Numérico!I184/I$2 -> 0 | J185: =Numérico!J184/J$2 -> 0 | K185: =Numérico!K184/K$2 -> 0 | L185: =Numérico!L184/L$2 -> 0 | M185: =Numérico!M184/M$2 -> 0 | N185: =Numérico!N184/N$2 -> 0 | O185: =Numérico!O184/O$2 -> 0 | P185: =Numérico!P184/P$2 -> 0
A186: 117 | B186: =Numérico!B185 -> Villa Purificación | C186: =Numérico!C185/C$2 -> 0.000466562986 | D186: =Numérico!D185/D$2 -> 0 | E186: =Numérico!E185/E$2 -> 0 | F186: =Numérico!F185/F$2 -> 0 | G186: =Numérico!G185/G$2 -> 0 | H186: =Numérico!H185/H$2 -> 0 | I186: =Numérico!I185/I$2 -> 0 | J186: =Numérico!J185/J$2 -> 0.009259259259 | K186: =Numérico!K185/K$2 -> 0 | L186: =Numérico!L185/L$2 -> 0 | M186: =Numérico!M185/M$2 -> 0.001314060447 | N186: =Numérico!N185/N$2 -> 0 | O186: =Numérico!O185/O$2 -> 0.0008025682183 | P186: =Numérico!P185/P$2 -> 0
A187: 118 | B187: =Numérico!B186 -> Yahualica de González Gallo | C187: =Numérico!C186/C$2 -> 0.002799377916 | D187: =Numérico!D186/D$2 -> 0 | E187: =Numérico!E186/E$2 -> 0 | F187: =Numérico!F186/F$2 -> 0.02385008518 | G187: =Numérico!G186/G$2 -> 0.002697841727 | H187: =Numérico!H186/H$2 -> 0 | I187: =Numérico!I186/I$2 -> 0 | J187: =Numérico!J186/J$2 -> 0 | K187: =Numérico!K186/K$2 -> 0 | L187: =Numérico!L186/L$2 -> 0 | M187: =Numérico!M186/M$2 -> 0 | N187: =Numérico!N186/N$2 -> 0 | O187: =Numérico!O186/O$2 -> 0 | P187: =Numérico!P186/P$2 -> 0.0006257822278
A188: 119 | B188: =Numérico!B187 -> Zacoalco de Torres | C188: =Numérico!C187/C$2 -> 0.001088646967 | D188: =Numérico!D187/D$2 -> 0 | E188: =Numérico!E187/E$2 -> 0 | F188: =Numérico!F187/F$2 -> 0 | G188: =Numérico!G187/G$2 -> 0 | H188: =Numérico!H187/H$2 -> 0 | I188: =Numérico!I187/I$2 -> 0 | J188: =Numérico!J187/J$2 -> 0 | K188: =Numérico!K187/K$2 -> 0 | L188: =Numérico!L187/L$2 -> 0.01315789474 | M188: =Numérico!M187/M$2 -> 0.002628120894 | N188: =Numérico!N187/N$2 -> 0 | O188: =Numérico!O187/O$2 -> 0.001605136437 | P188: =Numérico!P187/P$2 -> 0
A189: 120 | B189: =Numérico!B188 -> Zapopan | C189: =Numérico!C188/C$2 -> 0.1110419907 | D189: =Numérico!D188/D$2 -> 0 | E189: =Numérico!E188/E$2 -> 0 | F189: =Numérico!F188/F$2 -> 0.006814310051 | G189: =Numérico!G188/G$2 -> 0.02517985612 | H189: =Numérico!H188/H$2 -> 0 | I189: =Numérico!I188/I$2 -> 0 | J189: =Numérico!J188/J$2 -> 0 | K189: =Numérico!K188/K$2 -> 0 | L189: =Numérico!L188/L$2 -> 0.05263157895 | M189: =Numérico!M188/M$2 -> 0.5190538765 | N189: =Numérico!N188/N$2 -> 0.03484320557 | O189: =Numérico!O188/O$2 -> 0.08105939005 | P189: =Numérico!P188/P$2 -> 0.1026282854
A190: 121 | B190: =Numérico!B189 -> Zapotiltic | C190: =Numérico!C189/C$2 -> 0.002643856921 | D190: =Numérico!D189/D$2 -> 0 | E190: =Numérico!E189/E$2 -> 0 | F190: =Numérico!F189/F$2 -> 0 | G190: =Numérico!G189/G$2 -> 0 | H190: =Numérico!H189/H$2 -> 0 | I190: =Numérico!I189/I$2 -> 0.04958677686 | J190: =Numérico!J189/J$2 -> 0 | K190: =Numérico!K189/K$2 -> 0 | L190: =Numérico!L189/L$2 -> 0 | M190: =Numérico!M189/M$2 -> 0 | N190: =Numérico!N189/N$2 -> 0 | O190: =Numérico!O189/O$2 -> 0.00481540931 | P190: =Numérico!P189/P$2 -> 0.003128911139
A191: 122 | B191: =Numérico!B190 -> Zapotitlán de Vadillo | C191: =Numérico!C190/C$2 -> 0.0007776049767 | D191: =Numérico!D190/D$2 -> 0 | E191: =Numérico!E190/E$2 -> 0 | F191: =Numérico!F190/F$2 -> 0 | G191: =Numérico!G190/G$2 -> 0.004496402878 | H191: =Numérico!H190/H$2 -> 0 | I191: =Numérico!I190/I$2 -> 0 | J191: =Numérico!J190/J$2 -> 0 | K191: =Numérico!K190/K$2 -> 0 | L191: =Numérico!L190/L$2 -> 0 | M191: =Numérico!M190/M$2 -> 0 | N191: =Numérico!N190/N$2 -> 0 | O191: =Numérico!O190/O$2 -> 0 | P191: =Numérico!P190/P$2 -> 0
A192: 123 | B192: =Numérico!B191 -> Zapotlán del Rey | C192: =Numérico!C191/C$2 -> 0.002799377916 | D192: =Numérico!D191/D$2 -> 0 | E192: =Numérico!E191/E$2 -> 0 | F192: =Numérico!F191/F$2 -> 0 | G192: =Numérico!G191/G$2 -> 0.01169064748 | H192: =Numérico!H191/H$2 -> 0 | I192: =Numérico!I191/I$2 -> 0 | J192: =Numérico!J191/J$2 -> 0 | K192: =Numérico!K191/K$2 -> 0 | L192: =Numérico!L191/L$2 -> 0 | M192: =Numérico!M191/M$2 -> 0 | N192: =Numérico!N191/N$2 -> 0.01045296167 | O192: =Numérico!O191/O$2 -> 0.001605136437 | P192: =Numérico!P191/P$2 -> 0
A193: 124 | B193: =Numérico!B192 -> Zapotlán El Grande | C193: =Numérico!C192/C$2 -> 0.01135303266 | D193: =Numérico!D192/D$2 -> 0 | E193: =Numérico!E192/E$2 -> 0 | F193: =Numérico!F192/F$2 -> 0 | G193: =Numérico!G192/G$2 -> 0.003597122302 | H193: =Numérico!H192/H$2 -> 0 | I193: =Numérico!I192/I$2 -> 0.4462809917 | J193: =Numérico!J192/J$2 -> 0 | K193: =Numérico!K192/K$2 -> 0 | L193: =Numérico!L192/L$2 -> 0 | M193: =Numérico!M192/M$2 -> 0.00394218134 | N193: =Numérico!N192/N$2 -> 0 | O193: =Numérico!O192/O$2 -> 0.003210272873 | P193: =Numérico!P192/P$2 -> 0.005006257822
A194: 125 | B194: =Numérico!B193 -> Zapotlanejo | C194: =Numérico!C193/C$2 -> 0.005909797823 | D194: =Numérico!D193/D$2 -> 0 | E194: =Numérico!E193/E$2 -> 0 | F194: =Numérico!F193/F$2 -> 0.006814310051 | G194: =Numérico!G193/G$2 -> 0.01348920863 | H194: =Numérico!H193/H$2 -> 0 | I194: =Numérico!I193/I$2 -> 0 | J194: =Numérico!J193/J$2 -> 0 | K194: =Numérico!K193/K$2 -> 0 | L194: =Numérico!L193/L$2 -> 0 | M194: =Numérico!M193/M$2 -> 0 | N194: =Numérico!N193/N$2 -> 0.03135888502 | O194: =Numérico!O193/O$2 -> 0.00481540931 | P194: =Numérico!P193/P$2 -> 0.002503128911
A195: 999 | B195: =Numérico!B194 -> Otro estado/país | C195: =Numérico!C194/C$2 -> 0.00699844479 | D195: =Numérico!D194/D$2 -> 0 | E195: =Numérico!E194/E$2 -> 0 | F195: =Numérico!F194/F$2 -> 0.01192504259 | G195: =Numérico!G194/G$2 -> 0.009892086331 | H195: =Numérico!H194/H$2 -> 0 | I195: =Numérico!I194/I$2 -> 0.01652892562 | J195: =Numérico!J194/J$2 -> 0 | K195: =Numérico!K194/K$2 -> 0 | L195: =Numérico!L194/L$2 -> 0 | M195: =Numérico!M194/M$2 -> 0.009198423127 | N195: =Numérico!N194/N$2 -> 0 | O195: =Numérico!O194/O$2 -> 0.006420545746 | P195: =Numérico!P194/P$2 -> 0.006257822278
B197: Ocupación Principal | C197: Estatal | D197: Colotlán | E197: Lagos de M | F197: Tepatitlán | G197: La Barca | H197: Tamazula | I197: Zapotlán | J197: Autlán | K197: Vallarta | L197: Ameca | M197: Zapopan | N197: Tonalá | O197: Tlaquepaque | P197: Guadalajara
A198: 1 | B198: Estudiante de tiempo completo | C198: =Numérico!C197/C$2 -> 0.04712286159 | D198: =Numérico!D197/D$2 -> 0.2346938776 | E198: =Numérico!E197/E$2 -> 0.1617647059 | F198: =Numérico!F197/F$2 -> 0.03407155026 | G198: =Numérico!G197/G$2 -> 0.01258992806 | H198: =Numérico!H197/H$2 -> 0.0625 | I198: =Numérico!I197/I$2 -> 0.01652892562 | J198: =Numérico!J197/J$2 -> 0.03703703704 | K198: =Numérico!K197/K$2 -> 0.1358695652 | L198: =Numérico!L197/L$2 -> 0.1184210526 | M198: =Numérico!M197/M$2 -> 0.06701708279 | N198: =Numérico!N197/N$2 -> 0.04529616725 | O198: =Numérico!O197/O$2 -> 0.05377207063 | P198: =Numérico!P197/P$2 -> 0.02753441802
A199: 2 | B199: Estudiante con actividad laboral | C199: =Numérico!C198/C$2 -> 0.02628304821 | D199: =Numérico!D198/D$2 -> 0.0306122449 | E199: =Numérico!E198/E$2 -> 0.07352941176 | F199: =Numérico!F198/F$2 -> 0.01533219761 | G199: =Numérico!G198/G$2 -> 0.01708633094 | H199: =Numérico!H198/H$2 -> 0 | I199: =Numérico!I198/I$2 -> 0.02479338843 | J199: =Numérico!J198/J$2 -> 0.02777777778 | K199: =Numérico!K198/K$2 -> 0.04891304348 | L199: =Numérico!L198/L$2 -> 0.05263157895 | M199: =Numérico!M198/M$2 -> 0.04730617608 | N199: =Numérico!N198/N$2 -> 0.0243902439 | O199: =Numérico!O198/O$2 -> 0.02407704655 | P199: =Numérico!P198/P$2 -> 0.02065081352
A200: 3 | B200: Tiene empleo estable > 6 meses | C200: =Numérico!C199/C$2 -> 0.4351477449 | D200: =Numérico!D199/D$2 -> 0.3367346939 | E200: =Numérico!E199/E$2 -> 0.3235294118 | F200: =Numérico!F199/F$2 -> 0.5247018739 | G200: =Numérico!G199/G$2 -> 0.5764388489 | H200: =Numérico!H199/H$2 -> 0.5 | I200: =Numérico!I199/I$2 -> 0.5867768595 | J200: =Numérico!J199/J$2 -> 0.462962963 | K200: =Numérico!K199/K$2 -> 0.375 | L200: =Numérico!L199/L$2 -> 0.4210526316 | M200: =Numérico!M199/M$2 -> 0.4231274639 | N200: =Numérico!N199/N$2 -> 0.4843205575 | O200: =Numérico!O199/O$2 -> 0.3747993579 | P200: =Numérico!P199/P$2 -> 0.3529411765
A201: 4 | B201: Tiene menos de 6 meses | C201: =Numérico!C200/C$2 -> 0.1276827372 | D201: =Numérico!D200/D$2 -> 0.1530612245 | E201: =Numérico!E200/E$2 -> 0.2352941176 | F201: =Numérico!F200/F$2 -> 0.0936967632 | G201: =Numérico!G200/G$2 -> 0.08363309353 | H201: =Numérico!H200/H$2 -> 0.21875 | I201: =Numérico!I200/I$2 -> 0.1652892562 | J201: =Numérico!J200/J$2 -> 0.287037037 | K201: =Numérico!K200/K$2 -> 0.08152173913 | L201: =Numérico!L200/L$2 -> 0.1140350877 | M201: =Numérico!M200/M$2 -> 0.1511169514 | N201: =Numérico!N200/N$2 -> 0.1358885017 | O201: =Numérico!O200/O$2 -> 0.1669341894 | P201: =Numérico!P200/P$2 -> 0.1132665832
A202: 5 | B202: Desempleado (busca empleo) | C202: =Numérico!C201/C$2 -> 0.2051321928 | D202: =Numérico!D201/D$2 -> 0.1020408163 | E202: =Numérico!E201/E$2 -> 0.1029411765 | F202: =Numérico!F201/F$2 -> 0.1669505963 | G202: =Numérico!G201/G$2 -> 0.08003597122 | H202: =Numérico!H201/H$2 -> 0.125 | I202: =Numérico!I201/I$2 -> 0.1404958678 | J202: =Numérico!J201/J$2 -> 0.0462962963 | K202: =Numérico!K201/K$2 -> 0.0652173913 | L202: =Numérico!L201/L$2 -> 0.2236842105 | M202: =Numérico!M201/M$2 -> 0.1708278581 | N202: =Numérico!N201/N$2 -> 0.1986062718 | O202: =Numérico!O201/O$2 -> 0.2776886035 | P202: =Numérico!P201/P$2 -> 0.3085106383
A203: 6 | B203: Desocupado (no busca empleo) | C203: =Numérico!C202/C$2 -> 0.100466563 | D203: =Numérico!D202/D$2 -> 0.09183673469 | E203: =Numérico!E202/E$2 -> 0.02941176471 | F203: =Numérico!F202/F$2 -> 0.0936967632 | G203: =Numérico!G202/G$2 -> 0.1411870504 | H203: =Numérico!H202/H$2 -> 0.09375 | I203: =Numérico!I202/I$2 -> 0.04132231405 | J203: =Numérico!J202/J$2 -> 0.07407407407 | K203: =Numérico!K202/K$2 -> 0.2336956522 | L203: =Numérico!L202/L$2 -> 0.04824561404 | M203: =Numérico!M202/M$2 -> 0.1024967148 | N203: =Numérico!N202/N$2 -> 0.1010452962 | O203: =Numérico!O202/O$2 -> 0.06500802568 | P203: =Numérico!P202/P$2 -> 0.1032540676
A204: 7 | B204: Hogar | C204: =Numérico!C203/C$2 -> 0.05163297045 | D204: =Numérico!D203/D$2 -> 0.05102040816 | E204: =Numérico!E203/E$2 -> 0.07352941176 | F204: =Numérico!F203/F$2 -> 0.06132879046 | G204: =Numérico!G203/G$2 -> 0.08273381295 | H204: =Numérico!H203/H$2 -> 0 | I204: =Numérico!I203/I$2 -> 0.00826446281 | J204: =Numérico!J203/J$2 -> 0.0462962963 | K204: =Numérico!K203/K$2 -> 0.05434782609 | L204: =Numérico!L203/L$2 -> 0.01754385965 | M204: =Numérico!M203/M$2 -> 0.02890932983 | N204: =Numérico!N203/N$2 -> 0.006968641115 | O204: =Numérico!O203/O$2 -> 0.03370786517 | P204: =Numérico!P203/P$2 -> 0.0675844806
A205: 8 | B205: Pensionado | C205: =Numérico!C204/C$2 -> 0.006376360809 | D205: =Numérico!D204/D$2 -> 0 | E205: =Numérico!E204/E$2 -> 0 | F205: =Numérico!F204/F$2 -> 0.01022146508 | G205: =Numérico!G204/G$2 -> 0.006294964029 | H205: =Numérico!H204/H$2 -> 0 | I205: =Numérico!I204/I$2 -> 0.01652892562 | J205: =Numérico!J204/J$2 -> 0.01851851852 | K205: =Numérico!K204/K$2 -> 0 | L205: =Numérico!L204/L$2 -> 0.004385964912 | M205: =Numérico!M204/M$2 -> 0.009198423127 | N205: =Numérico!N204/N$2 -> 0.003484320557 | O205: =Numérico!O204/O$2 -> 0.004012841091 | P205: =Numérico!P204/P$2 -> 0.006257822278
A206: 9 | B206: No aplica | C206: =Numérico!C205/C$2 -> 0.0001555209953 | D206: =Numérico!D205/D$2 -> 0 | E206: =Numérico!E205/E$2 -> 0 | F206: =Numérico!F205/F$2 -> 0 | G206: =Numérico!G205/G$2 -> 0 | H206: =Numérico!H205/H$2 -> 0 | I206: =Numérico!I205/I$2 -> 0 | J206: =Numérico!J205/J$2 -> 0 | K206: =Numérico!K205/K$2 -> 0.005434782609 | L206: =Numérico!L205/L$2 -> 0 | M206: =Numérico!M205/M$2 -> 0 | N206: =Numérico!N205/N$2 -> 0 | O206: =Numérico!O205/O$2 -> 0 | P206: =Numérico!P205/P$2 -> 0
A207: 10 | B207: Otra | C207: =Numérico!C206/C$2 -> 0 | D207: =Numérico!D206/D$2 -> 0 | E207: =Numérico!E206/E$2 -> 0 | F207: =Numérico!F206/F$2 -> 0 | G207: =Numérico!G206/G$2 -> 0 | H207: =Numérico!H206/H$2 -> 0 | I207: =Numérico!I206/I$2 -> 0 | J207: =Numérico!J206/J$2 -> 0 | K207: =Numérico!K206/K$2 -> 0 | L207: =Numérico!L206/L$2 -> 0 | M207: =Numérico!M206/M$2 -> 0 | N207: =Numérico!N206/N$2 -> 0 | O207: =Numérico!O206/O$2 -> 0 | P207: =Numérico!P206/P$2 -> 0
... 436 more rows

Sheet Numérico
B1: Característica General | C1: Estatal | D1: Colotlán | E1: Lagos de M | F1: Tepatitlán | G1: La Barca | H1: Tamazula | I1: Zapotlán | J1: Autlán | K1: Vallarta | L1: Ameca | M1: Zapopan | N1: Tonalá | O1: Tlaquepaque | P1: Guadalajara
B2: =Filtros!A6 -> Selección n | C2: =SUM(D2:P2) -> 6430 | D2: =Filtros!C6 -> 98 | E2: =Filtros!D6 -> 68 | F2: =Filtros!E6 -> 587 | G2: =Filtros!F6 -> 1112 | H2: =Filtros!G6 -> 32 | I2: =Filtros!H6 -> 121 | J2: =Filtros!I6 -> 108 | K2: =Filtros!J6 -> 184 | L2: =Filtros!K6 -> 228 | M2: =Filtros!L6 -> 761 | N2: =Filtros!M6 -> 287 | O2: =Filtros!N6 -> 1246 | P2: =Filtros!O6 -> 1598
B4: Anónimo | C4: Estatal | D4: Colotlán | E4: Lagos de M | F4: Tepatitlán | G4: La Barca | H4: Tamazula | I4: Zapotlán | J4: Autlán | K4: Vallarta | L4: Ameca | M4: Zapopan | N4: Tonalá | O4: Tlaquepaque | P4: Guadalajara
A5: =MATCH(1,TablasDinamicas!$A$9:$A$12,0) -> 2 | B5: Si | C5: =SUM(D5:P5) -> 1298 | D5: =HLOOKUP(TablasDinamicas!B$1,TablasDinamicas!$A$9:$N$12,$A5,0) -> 0 | E5: =HLOOKUP(TablasDinamicas!C$1,TablasDinamicas!$A$9:$N$12,$A5,0) -> 1 | F5: =HLOOKUP(TablasDinamicas!D$1,TablasDinamicas!$A$9:$N$12,$A5,0) -> 0 | G5: =HLOOKUP(TablasDinamicas!E$1,TablasDinamicas!$A$9:$N$12,$A5,0) -> 53 | H5: =HLOOKUP(TablasDinamicas!F$1,TablasDinamicas!$A$9:$N$12,$A5,0) -> 0 | I5: =HLOOKUP(TablasDinamicas!G$1,TablasDinamicas!$A$9:$N$12,$A5,0) -> 3 | J5: =HLOOKUP(TablasDinamicas!H$1,TablasDinamicas!$A$9:$N$12,$A5,0) -> 0 | K5: =HLOOKUP(TablasDinamicas!I$1,TablasDinamicas!$A$9:$N$12,$A5,0) -> 165 | L5: =HLOOKUP(TablasDinamicas!J$1,TablasDinamicas!$A$9:$N$12,$A5,0) -> 0 | M5: =HLOOKUP(TablasDinamicas!K$1,TablasDinamicas!$A$9:$N$12,$A5,0) -> 89 | N5: =HLOOKUP(TablasDinamicas!L$1,TablasDinamicas!$A$9:$N$12,$A5,0) -> 0 | O5: =HLOOKUP(TablasDinamicas!M$1,TablasDinamicas!$A$9:$N$12,$A5,0) -> 766 | P5: =HLOOKUP(TablasDinamicas!N$1,TablasDinamicas!$A$9:$N$12,$A5,0) -> 221
A6: =MATCH(2,TablasDinamicas!$A$9:$A$12,0) -> 3 | B6: No | C6: =SUM(D6:P6) -> 5132 | D6: =HLOOKUP(TablasDinamicas!B$1,TablasDinamicas!$A$9:$N$12,$A6,0) -> 98 | E6: =HLOOKUP(TablasDinamicas!C$1,TablasDinamicas!$A$9:$N$12,$A6,0) -> 67 | F6: =HLOOKUP(TablasDinamicas!D$1,TablasDinamicas!$A$9:$N$12,$A6,0) -> 587 | G6: =HLOOKUP(TablasDinamicas!E$1,TablasDinamicas!$A$9:$N$12,$A6,0) -> 1059 | H6: =HLOOKUP(TablasDinamicas!F$1,TablasDinamicas!$A$9:$N$12,$A6,0) -> 32 | I6: =HLOOKUP(TablasDinamicas!G$1,TablasDinamicas!$A$9:$N$12,$A6,0) -> 118 | J6: =HLOOKUP(TablasDinamicas!H$1,TablasDinamicas!$A$9:$N$12,$A6,0) -> 108 | K6: =HLOOKUP(TablasDinamicas!I$1,TablasDinamicas!$A$9:$N$12,$A6,0) -> 19 | L6: =HLOOKUP(TablasDinamicas!J$1,TablasDinamicas!$A$9:$N$12,$A6,0) -> 228 | M6: =HLOOKUP(TablasDinamicas!K$1,TablasDinamicas!$A$9:$N$12,$A6,0) -> 672 | N6: =HLOOKUP(TablasDinamicas!L$1,TablasDinamicas!$A$9:$N$12,$A6,0) -> 287 | O6: =HLOOKUP(TablasDinamicas!M$1,TablasDinamicas!$A$9:$N$12,$A6,0) -> 480 | P6: =HLOOKUP(TablasDinamicas!N$1,TablasDinamicas!$A$9:$N$12,$A6,0) -> 1377
B8: Sexo | C8: Estatal | D8: Colotlán | E8: Lagos de M | F8: Tepatitlán | G8: La Barca | H8: Tamazula | I8: Zapotlán | J8: Autlán | K8: Vallarta | L8: Ameca | M8: Zapopan | N8: Tonalá | O8: Tlaquepaque | P8: Guadalajara
A9: =MATCH(B9,TablasDinamicas!$A$18:$A$20,0) -> 3 | B9: Masculino | C9: =SUM(D9:P9) -> 5392 | D9: =IFERROR(HLOOKUP(TablasDinamicas!B$1,TablasDinamicas!$B$18:$N$21,$A9,0),0) -> 75 | E9: =IFERROR(HLOOKUP(TablasDinamicas!C$1,TablasDinamicas!$B$18:$N$21,$A9,0),0) -> 45 | F9: =IFERROR(HLOOKUP(TablasDinamicas!D$1,TablasDinamicas!$B$18:$N$21,$A9,0),0) -> 481 | G9: =IFERROR(HLOOKUP(TablasDinamicas!E$1,TablasDinamicas!$B$18:$N$21,$A9,0),0) -> 906 | H9: =IFERROR(HLOOKUP(TablasDinamicas!F$1,TablasDinamicas!$B$18:$N$21,$A9,0),0) -> 31 | I9: =IFERROR(HLOOKUP(TablasDinamicas!G$1,TablasDinamicas!$B$18:$N$21,$A9,0),0) -> 121 | J9: =IFERROR(HLOOKUP(TablasDinamicas!H$1,TablasDinamicas!$B$18:$N$21,$A9,0),0) -> 91 | K9: =IFERROR(HLOOKUP(TablasDinamicas!I$1,TablasDinamicas!$B$18:$N$21,$A9,0),0) -> 139 | L9: =IFERROR(HLOOKUP(TablasDinamicas!J$1,TablasDinamicas!$B$18:$N$21,$A9,0),0) -> 200 | M9: =IFERROR(HLOOKUP(TablasDinamicas!K$1,TablasDinamicas!$B$18:$N$21,$A9,0),0) -> 655 | N9: =IFERROR(HLOOKUP(TablasDinamicas!L$1,TablasDinamicas!$B$18:$N$21,$A9,0),0) -> 272 | O9: =IFERROR(HLOOKUP(TablasDinamicas!M$1,TablasDinamicas!$B$18:$N$21,$A9,0),0) -> 1100 | P9: =IFERROR(HLOOKUP(TablasDinamicas!N$1,TablasDinamicas!$B$18:$N$21,$A9,0),0) -> 1276
A10: =MATCH(B10,TablasDinamicas!$A$18:$A$20,0) -> 2 | B10: Femenino | C10: =SUM(D10:P10) -> 1038 | D10: =IFERROR(HLOOKUP(TablasDinamicas!B$1,TablasDinamicas!$B$18:$N$21,$A10,0),0) -> 23 | E10: =IFERROR(HLOOKUP(TablasDinamicas!C$1,TablasDinamicas!$B$18:$N$21,$A10,0),0) -> 23 | F10: =IFERROR(HLOOKUP(TablasDinamicas!D$1,TablasDinamicas!$B$18:$N$21,$A10,0),0) -> 106 | G10: =IFERROR(HLOOKUP(TablasDinamicas!E$1,TablasDinamicas!$B$18:$N$21,$A10,0),0) -> 206 | H10: =IFERROR(HLOOKUP(TablasDinamicas!F$1,TablasDinamicas!$B$18:$N$21,$A10,0),0) -> 1 | I10: =IFERROR(HLOOKUP(TablasDinamicas!G$1,TablasDinamicas!$B$18:$N$21,$A10,0),0) -> 0 | J10: =IFERROR(HLOOKUP(TablasDinamicas!H$1,TablasDinamicas!$B$18:$N$21,$A10,0),0) -> 17 | K10: =IFERROR(HLOOKUP(TablasDinamicas!I$1,TablasDinamicas!$B$18:$N$21,$A10,0),0) -> 45 | L10: =IFERROR(HLOOKUP(TablasDinamicas!J$1,TablasDinamicas!$B$18:$N$21,$A10,0),0) -> 28 | M10: =IFERROR(HLOOKUP(TablasDinamicas!K$1,TablasDinamicas!$B$18:$N$21,$A10,0),0) -> 106 | N10: =IFERROR(HLOOKUP(TablasDinamicas!L$1,TablasDinamicas!$B$18:$N$21,$A10,0),0) -> 15 | O10: =IFERROR(HLOOKUP(TablasDinamicas!M$1,TablasDinamicas!$B$18:$N$21,$A10,0),0) -> 146 | P10: =IFERROR(HLOOKUP(TablasDinamicas!N$1,TablasDinamicas!$B$18:$N$21,$A10,0),0) -> 322
B12: Embarazo | C12: Estatal | D12: Colotlán | E12: Lagos de M | F12: Tepatitlán | G12: La Barca | H12: Tamazula | I12: Zapotlán | J12: Autlán | K12: Vallarta | L12: Ameca | M12: Zapopan | N12: Tonalá | O12: Tlaquepaque | P12: Guadalajara
A13: 2 | B13: Si | C13: =SUM(D13:P13) -> 16 | D13: =IFERROR(HLOOKUP(TablasDinamicas!B$1,TablasDinamicas!$B$27:$N$32,$A13,0),0) -> 0 | E13: =IFERROR(HLOOKUP(TablasDinamicas!C$1,TablasDinamicas!$B$27:$N$32,$A13,0),0) -> 0 | F13: =IFERROR(HLOOKUP(TablasDinamicas!D$1,TablasDinamicas!$B$27:$N$32,$A13,0),0) -> 4 | G13: =IFERROR(HLOOKUP(TablasDinamicas!E$1,TablasDinamicas!$B$27:$N$32,$A13,0),0) -> 3 | H13: =IFERROR(HLOOKUP(TablasDinamicas!F$1,TablasDinamicas!$B$27:$N$32,$A13,0),0) -> 0 | I13: =IFERROR(HLOOKUP(TablasDinamicas!G$1,TablasDinamicas!$B$27:$N$32,$A13,0),0) -> 0 | J13: =IFERROR(HLOOKUP(TablasDinamicas!H$1,TablasDinamicas!$B$27:$N$32,$A13,0),0) -> 1 | K13: =IFERROR(HLOOKUP(TablasDinamicas!I$1,TablasDinamicas!$B$27:$N$32,$A13,0),0) -> 3 | L13: =IFERROR(HLOOKUP(TablasDinamicas!J$1,TablasDinamicas!$B$27:$N$32,$A13,0),0) -> 0 | M13: =IFERROR(HLOOKUP(TablasDinamicas!K$1,TablasDinamicas!$B$27:$N$32,$A13,0),0) -> 1 | N13: =IFERROR(HLOOKUP(TablasDinamicas!L$1,TablasDinamicas!$B$27:$N$32,$A13,0),0) -> 0 | O13: =IFERROR(HLOOKUP(TablasDinamicas!M$1,TablasDinamicas!$B$27:$N$32,$A13,0),0) -> 4 | P13: =IFERROR(HLOOKUP(TablasDinamicas!N$1,TablasDinamicas!$B$27:$N$32,$A13,0),0) -> 0
A14: 3 | B14: No | C14: =SUM(D14:P14) -> 1022 | D14: =IFERROR(HLOOKUP(TablasDinamicas!B$1,TablasDinamicas!$B$27:$N$32,$A14,0),0) -> 23 | E14: =IFERROR(HLOOKUP(TablasDinamicas!C$1,TablasDinamicas!$B$27:$N$32,$A14,0),0) -> 23 | F14: =IFERROR(HLOOKUP(TablasDinamicas!D$1,TablasDinamicas!$B$27:$N$32,$A14,0),0) -> 102 | G14: =IFERROR(HLOOKUP(TablasDinamicas!E$1,TablasDinamicas!$B$27:$N$32,$A14,0),0) -> 203 | H14: =IFERROR(HLOOKUP(TablasDinamicas!F$1,TablasDinamicas!$B$27:$N$32,$A14,0),0) -> 1 | I14: =IFERROR(HLOOKUP(TablasDinamicas!G$1,TablasDinamicas!$B$27:$N$32,$A14,0),0) -> 0 | J14: =IFERROR(HLOOKUP(TablasDinamicas!H$1,TablasDinamicas!$B$27:$N$32,$A14,0),0) -> 16 | K14: =IFERROR(HLOOKUP(TablasDinamicas!I$1,TablasDinamicas!$B$27:$N$32,$A14,0),0) -> 42 | L14: =IFERROR(HLOOKUP(TablasDinamicas!J$1,TablasDinamicas!$B$27:$N$32,$A14,0),0) -> 28 | M14: =IFERROR(HLOOKUP(TablasDinamicas!K$1,TablasDinamicas!$B$27:$N$32,$A14,0),0) -> 105 | N14: =IFERROR(HLOOKUP(TablasDinamicas!L$1,TablasDinamicas!$B$27:$N$32,$A14,0),0) -> 15 | O14: =IFERROR(HLOOKUP(TablasDinamicas!M$1,TablasDinamicas!$B$27:$N$32,$A14,0),0) -> 142 | P14: =IFERROR(HLOOKUP(TablasDinamicas!N$1,TablasDinamicas!$B$27:$N$32,$A14,0),0) -> 322
B16: Edad Actual | C16: Estatal | D16: Colotlán | E16: Lagos de M | F16: Tepatitlán | G16: La Barca | H16: Tamazula | I16: Zapotlán | J16: Autlán | K16: Vallarta | L16: Ameca | M16: Zapopan | N16: Tonalá | O16: Tlaquepaque | P16: Guadalajara
A17: =MATCH(B17,TablasDinamicas!$A$38:$A$51,0) ->  | B17: 5 a 9 | C17: =SUM(D17:P17) -> 0 | D17: =IFERROR(HLOOKUP(TablasDinamicas!B$1,TablasDinamicas!$B$38:$N$51,$A17,0),0) -> 0 | E17: =IFERROR(HLOOKUP(TablasDinamicas!C$1,TablasDinamicas!$B$38:$N$51,$A17,0),0) -> 0 | F17: =IFERROR(HLOOKUP(TablasDinamicas!D$1,TablasDinamicas!$B$38:$N$51,$A17,0),0) -> 0 | G17: =IFERROR(HLOOKUP(TablasDinamicas!E$1,TablasDinamicas!$B$38:$N$51,$A17,0),0) -> 0 | H17: =IFERROR(HLOOKUP(TablasDinamicas!F$1,TablasDinamicas!$B$38:$N$51,$A17,0),0) -> 0 | I17: =IFERROR(HLOOKUP(TablasDinamicas!G$1,TablasDinamicas!$B$38:$N$51,$A17,0),0) -> 0 | J17: =IFERROR(HLOOKUP(TablasDinamicas!H$1,TablasDinamicas!$B$38:$N$51,$A17,0),0) -> 0 | K17: =IFERROR(HLOOKUP(TablasDinamicas!I$1,TablasDinamicas!$B$38:$N$51,$A17,0),0) -> 0 | L17: =IFERROR(HLOOKUP(TablasDinamicas!J$1,TablasDinamicas!$B$38:$N$51,$A17,0),0) -> 0 | M17: =IFERROR(HLOOKUP(TablasDinamicas!K$1,TablasDinamicas!$B$38:$N$51,$A17,0),0) -> 0 | N17: =IFERROR(HLOOKUP(TablasDinamicas!L$1,TablasDinamicas!$B$38:$N$51,$A17,0),0) -> 0 | O17: =IFERROR(HLOOKUP(TablasDinamicas!M$1,TablasDinamicas!$B$38:$N$51,$A17,0),0) -> 0 | P17: =IFERROR(HLOOKUP(TablasDinamicas!N$1,TablasDinamicas!$B$38:$N$51,$A17,0),0) -> 0
A18: =MATCH(B18,TablasDinamicas!$A$38:$A$51,0) -> 2 | B18: 10 a 14 | C18: 104 | D18: =IFERROR(HLOOKUP(TablasDinamicas!B$1,TablasDinamicas!$B$38:$N$51,$A18,0),0) -> 3 | E18: =IFERROR(HLOOKUP(TablasDinamicas!C$1,TablasDinamicas!$B$38:$N$51,$A18,0),0) -> 4 | F18: =IFERROR(HLOOKUP(TablasDinamicas!D$1,TablasDinamicas!$B$38:$N$51,$A18,0),0) -> 15 | G18: =IFERROR(HLOOKUP(TablasDinamicas!E$1,TablasDinamicas!$B$38:$N$51,$A18,0),0) -> 4 | H18: =IFERROR(HLOOKUP(TablasDinamicas!F$1,TablasDinamicas!$B$38:$N$51,$A18,0),0) -> 0 | I18: =IFERROR(HLOOKUP(TablasDinamicas!G$1,TablasDinamicas!$B$38:$N$51,$A18,0),0) -> 0 | J18: =IFERROR(HLOOKUP(TablasDinamicas!H$1,TablasDinamicas!$B$38:$N$51,$A18,0),0) -> 1 | K18: =IFERROR(HLOOKUP(TablasDinamicas!I$1,TablasDinamicas!$B$38:$N$51,$A18,0),0) -> 12 | L18: =IFERROR(HLOOKUP(TablasDinamicas!J$1,TablasDinamicas!$B$38:$N$51,$A18,0),0) -> 14 | M18: =IFERROR(HLOOKUP(TablasDinamicas!K$1,TablasDinamicas!$B$38:$N$51,$A18,0),0) -> 13 | N18: =IFERROR(HLOOKUP(TablasDinamicas!L$1,TablasDinamicas!$B$38:$N$51,$A18,0),0) -> 5 | O18: =IFERROR(HLOOKUP(TablasDinamicas!M$1,TablasDinamicas!$B$38:$N$51,$A18,0),0) -> 12 | P18: =IFERROR(HLOOKUP(TablasDinamicas!N$1,TablasDinamicas!$B$38:$N$51,$A18,0),0) -> 21
A19: =MATCH(B19,TablasDinamicas!$A$38:$A$51,0) -> 3 | B19: 15 a 19 | C19: 833 | D19: =IFERROR(HLOOKUP(TablasDinamicas!B$1,TablasDinamicas!$B$38:$N$51,$A19,0),0) -> 24 | E19: =IFERROR(HLOOKUP(TablasDinamicas!C$1,TablasDinamicas!$B$38:$N$51,$A19,0),0) -> 16 | F19: =IFERROR(HLOOKUP(TablasDinamicas!D$1,TablasDinamicas!$B$38:$N$51,$A19,0),0) -> 59 | G19: =IFERROR(HLOOKUP(TablasDinamicas!E$1,TablasDinamicas!$B$38:$N$51,$A19,0),0) -> 95 | H19: =IFERROR(HLOOKUP(TablasDinamicas!F$1,TablasDinamicas!$B$38:$N$51,$A19,0),0) -> 9 | I19: =IFERROR(HLOOKUP(TablasDinamicas!G$1,TablasDinamicas!$B$38:$N$51,$A19,0),0) -> 7 | J19: =IFERROR(HLOOKUP(TablasDinamicas!H$1,TablasDinamicas!$B$38:$N$51,$A19,0),0) -> 13 | K19: =IFERROR(HLOOKUP(TablasDinamicas!I$1,TablasDinamicas!$B$38:$N$51,$A19,0),0) -> 32 | L19: =IFERROR(HLOOKUP(TablasDinamicas!J$1,TablasDinamicas!$B$38:$N$51,$A19,0),0) -> 34 | M19: =IFERROR(HLOOKUP(TablasDinamicas!K$1,TablasDinamicas!$B$38:$N$51,$A19,0),0) -> 115 | N19: =IFERROR(HLOOKUP(TablasDinamicas!L$1,TablasDinamicas!$B$38:$N$51,$A19,0),0) -> 39 | O19: =IFERROR(HLOOKUP(TablasDinamicas!M$1,TablasDinamicas!$B$38:$N$51,$A19,0),0) -> 182 | P19: =IFERROR(HLOOKUP(TablasDinamicas!N$1,TablasDinamicas!$B$38:$N$51,$A19,0),0) -> 208
A20: =MATCH(B20,TablasDinamicas!$A$38:$A$51,0) -> 4 | B20: 20 a 24 | C20: 1313 | D20: =IFERROR(HLOOKUP(TablasDinamicas!B$1,TablasDinamicas!$B$38:$N$51,$A20,0),0) -> 19 | E20: =IFERROR(HLOOKUP(TablasDinamicas!C$1,TablasDinamicas!$B$38:$N$51,$A20,0),0) -> 8 | F20: =IFERROR(HLOOKUP(TablasDinamicas!D$1,TablasDinamicas!$B$38:$N$51,$A20,0),0) -> 96 | G20: =IFERROR(HLOOKUP(TablasDinamicas!E$1,TablasDinamicas!$B$38:$N$51,$A20,0),0) -> 260 | H20: =IFERROR(HLOOKUP(TablasDinamicas!F$1,TablasDinamicas!$B$38:$N$51,$A20,0),0) -> 6 | I20: =IFERROR(HLOOKUP(TablasDinamicas!G$1,TablasDinamicas!$B$38:$N$51,$A20,0),0) -> 16 | J20: =IFERROR(HLOOKUP(TablasDinamicas!H$1,TablasDinamicas!$B$38:$N$51,$A20,0),0) -> 19 | K20: =IFERROR(HLOOKUP(TablasDinamicas!I$1,TablasDinamicas!$B$38:$N$51,$A20,0),0) -> 21 | L20: =IFERROR(HLOOKUP(TablasDinamicas!J$1,TablasDinamicas!$B$38:$N$51,$A20,0),0) -> 44 | M20: =IFERROR(HLOOKUP(TablasDinamicas!K$1,TablasDinamicas!$B$38:$N$51,$A20,0),0) -> 163 | N20: =IFERROR(HLOOKUP(TablasDinamicas!L$1,TablasDinamicas!$B$38:$N$51,$A20,0),0) -> 53 | O20: =IFERROR(HLOOKUP(TablasDinamicas!M$1,TablasDinamicas!$B$38:$N$51,$A20,0),0) -> 271 | P20: =IFERROR(HLOOKUP(TablasDinamicas!N$1,TablasDinamicas!$B$38:$N$51,$A20,0),0) -> 337
A21: =MATCH(B21,TablasDinamicas!$A$38:$A$51,0) -> 5 | B21: 25 a 29 | C21: 1180 | D21: =IFERROR(HLOOKUP(TablasDinamicas!B$1,TablasDinamicas!$B$38:$N$51,$A21,0),0) -> 20 | E21: =IFERROR(HLOOKUP(TablasDinamicas!C$1,TablasDinamicas!$B$38:$N$51,$A21,0),0) -> 13 | F21: =IFERROR(HLOOKUP(TablasDinamicas!D$1,TablasDinamicas!$B$38:$N$51,$A21,0),0) -> 76 | G21: =IFERROR(HLOOKUP(TablasDinamicas!E$1,TablasDinamicas!$B$38:$N$51,$A21,0),0) -> 236 | H21: =IFERROR(HLOOKUP(TablasDinamicas!F$1,TablasDinamicas!$B$38:$N$51,$A21,0),0) -> 6 | I21: =IFERROR(HLOOKUP(TablasDinamicas!G$1,TablasDinamicas!$B$38:$N$51,$A21,0),0) -> 25 | J21: =IFERROR(HLOOKUP(TablasDinamicas!H$1,TablasDinamicas!$B$38:$N$51,$A21,0),0) -> 19 | K21: =IFERROR(HLOOKUP(TablasDinamicas!I$1,TablasDinamicas!$B$38:$N$51,$A21,0),0) -> 31 | L21: =IFERROR(HLOOKUP(TablasDinamicas!J$1,TablasDinamicas!$B$38:$N$51,$A21,0),0) -> 33 | M21: =IFERROR(HLOOKUP(TablasDinamicas!K$1,TablasDinamicas!$B$38:$N$51,$A21,0),0) -> 139 | N21: =IFERROR(HLOOKUP(TablasDinamicas!L$1,TablasDinamicas!$B$38:$N$51,$A21,0),0) -> 52 | O21: =IFERROR(HLOOKUP(TablasDinamicas!M$1,TablasDinamicas!$B$38:$N$51,$A21,0),0) -> 246 | P21: =IFERROR(HLOOKUP(TablasDinamicas!N$1,TablasDinamicas!$B$38:$N$51,$A21,0),0) -> 284
A22: =MATCH(B22,TablasDinamicas!$A$38:$A$51,0) -> 6 | B22: 30 a 34 | C22: 869 | D22: =IFERROR(HLOOKUP(TablasDinamicas!B$1,TablasDinamicas!$B$38:$N$51,$A22,0),0) -> 9 | E22: =IFERROR(HLOOKUP(TablasDinamicas!C$1,TablasDinamicas!$B$38:$N$51,$A22,0),0) -> 9 | F22: =IFERROR(HLOOKUP(TablasDinamicas!D$1,TablasDinamicas!$B$38:$N$51,$A22,0),0) -> 87 | G22: =IFERROR(HLOOKUP(TablasDinamicas!E$1,TablasDinamicas!$B$38:$N$51,$A22,0),0) -> 162 | H22: =IFERROR(HLOOKUP(TablasDinamicas!F$1,TablasDinamicas!$B$38:$N$51,$A22,0),0) -> 2 | I22: =IFERROR(HLOOKUP(TablasDinamicas!G$1,TablasDinamicas!$B$38:$N$51,$A22,0),0) -> 27 | J22: =IFERROR(HLOOKUP(TablasDinamicas!H$1,TablasDinamicas!$B$38:$N$51,$A22,0),0) -> 14 | K22: =IFERROR(HLOOKUP(TablasDinamicas!I$1,TablasDinamicas!$B$38:$N$51,$A22,0),0) -> 31 | L22: =IFERROR(HLOOKUP(TablasDinamicas!J$1,TablasDinamicas!$B$38:$N$51,$A22,0),0) -> 29 | M22: =IFERROR(HLOOKUP(TablasDinamicas!K$1,TablasDinamicas!$B$38:$N$51,$A22,0),0) -> 88 | N22: =IFERROR(HLOOKUP(TablasDinamicas!L$1,TablasDinamicas!$B$38:$N$51,$A22,0),0) -> 36 | O22: =IFERROR(HLOOKUP(TablasDinamicas!M$1,TablasDinamicas!$B$38:$N$51,$A22,0),0) -> 158 | P22: =IFERROR(HLOOKUP(TablasDinamicas!N$1,TablasDinamicas!$B$38:$N$51,$A22,0),0) -> 217
A23: =MATCH(B23,TablasDinamicas!$A$38:$A$51,0) -> 7 | B23: 35 a 39 | C23: 666 | D23: =IFERROR(HLOOKUP(TablasDinamicas!B$1,TablasDinamicas!$B$38:$N$51,$A23,0),0) -> 9 | E23: =IFERROR(HLOOKUP(TablasDinamicas!C$1,TablasDinamicas!$B$38:$N$51,$A23,0),0) -> 10 | F23: =IFERROR(HLOOKUP(TablasDinamicas!D$1,TablasDinamicas!$B$38:$N$51,$A23,0),0) -> 69 | G23: =IFERROR(HLOOKUP(TablasDinamicas!E$1,TablasDinamicas!$B$38:$N$51,$A23,0),0) -> 122 | H23: =IFERROR(HLOOKUP(TablasDinamicas!F$1,TablasDinamicas!$B$38:$N$51,$A23,0),0) -> 2 | I23: =IFERROR(HLOOKUP(TablasDinamicas!G$1,TablasDinamicas!$B$38:$N$51,$A23,0),0) -> 15 | J23: =IFERROR(HLOOKUP(TablasDinamicas!H$1,TablasDinamicas!$B$38:$N$51,$A23,0),0) -> 15 | K23: =IFERROR(HLOOKUP(TablasDinamicas!I$1,TablasDinamicas!$B$38:$N$51,$A23,0),0) -> 18 | L23: =IFERROR(HLOOKUP(TablasDinamicas!J$1,TablasDinamicas!$B$38:$N$51,$A23,0),0) -> 19 | M23: =IFERROR(HLOOKUP(TablasDinamicas!K$1,TablasDinamicas!$B$38:$N$51,$A23,0),0) -> 76 | N23: =IFERROR(HLOOKUP(TablasDinamicas!L$1,TablasDinamicas!$B$38:$N$51,$A23,0),0) -> 28 | O23: =IFERROR(HLOOKUP(TablasDinamicas!M$1,TablasDinamicas!$B$38:$N$51,$A23,0),0) -> 139 | P23: =IFERROR(HLOOKUP(TablasDinamicas!N$1,TablasDinamicas!$B$38:$N$51,$A23,0),0) -> 144
A24: =MATCH(B24,TablasDinamicas!$A$38:$A$51,0) -> 8 | B24: 40 a 44 | C24: 516 | D24: =IFERROR(HLOOKUP(TablasDinamicas!B$1,TablasDinamicas!$B$38:$N$51,$A24,0),0) -> 1 | E24: =IFERROR(HLOOKUP(TablasDinamicas!C$1,TablasDinamicas!$B$38:$N$51,$A24,0),0) -> 4 | F24: =IFERROR(HLOOKUP(TablasDinamicas!D$1,TablasDinamicas!$B$38:$N$51,$A24,0),0) -> 62 | G24: =IFERROR(HLOOKUP(TablasDinamicas!E$1,TablasDinamicas!$B$38:$N$51,$A24,0),0) -> 102 | H24: =IFERROR(HLOOKUP(TablasDinamicas!F$1,TablasDinamicas!$B$38:$N$51,$A24,0),0) -> 3 | I24: =IFERROR(HLOOKUP(TablasDinamicas!G$1,TablasDinamicas!$B$38:$N$51,$A24,0),0) -> 10 | J24: =IFERROR(HLOOKUP(TablasDinamicas!H$1,TablasDinamicas!$B$38:$N$51,$A24,0),0) -> 5 | K24: =IFERROR(HLOOKUP(TablasDinamicas!I$1,TablasDinamicas!$B$38:$N$51,$A24,0),0) -> 18 | L24: =IFERROR(HLOOKUP(TablasDinamicas!J$1,TablasDinamicas!$B$38:$N$51,$A24,0),0) -> 20 | M24: =IFERROR(HLOOKUP(TablasDinamicas!K$1,TablasDinamicas!$B$38:$N$51,$A24,0),0) -> 48 | N24: =IFERROR(HLOOKUP(TablasDinamicas!L$1,TablasDinamicas!$B$38:$N$51,$A24,0),0) -> 27 | O24: =IFERROR(HLOOKUP(TablasDinamicas!M$1,TablasDinamicas!$B$38:$N$51,$A24,0),0) -> 83 | P24: =IFERROR(HLOOKUP(TablasDinamicas!N$1,TablasDinamicas!$B$38:$N$51,$A24,0),0) -> 133
A25: =MATCH(B25,TablasDinamicas!$A$38:$A$51,0) -> 9 | B25: 45 a 49 | C25: 447 | D25: =IFERROR(HLOOKUP(TablasDinamicas!B$1,TablasDinamicas!$B$38:$N$51,$A25,0),0) -> 7 | E25: =IFERROR(HLOOKUP(TablasDinamicas!C$1,TablasDinamicas!$B$38:$N$51,$A25,0),0) -> 3 | F25: =IFERROR(HLOOKUP(TablasDinamicas!D$1,TablasDinamicas!$B$38:$N$51,$A25,0),0) -> 62 | G25: =IFERROR(HLOOKUP(TablasDinamicas!E$1,TablasDinamicas!$B$38:$N$51,$A25,0),0) -> 67 | H25: =IFERROR(HLOOKUP(TablasDinamicas!F$1,TablasDinamicas!$B$38:$N$51,$A25,0),0) -> 3 | I25: =IFERROR(HLOOKUP(TablasDinamicas!G$1,TablasDinamicas!$B$38:$N$51,$A25,0),0) -> 12 | J25: =IFERROR(HLOOKUP(TablasDinamicas!H$1,TablasDinamicas!$B$38:$N$51,$A25,0),0) -> 12 | K25: =IFERROR(HLOOKUP(TablasDinamicas!I$1,TablasDinamicas!$B$38:$N$51,$A25,0),0) -> 11 | L25: =IFERROR(HLOOKUP(TablasDinamicas!J$1,TablasDinamicas!$B$38:$N$51,$A25,0),0) -> 16 | M25: =IFERROR(HLOOKUP(TablasDinamicas!K$1,TablasDinamicas!$B$38:$N$51,$A25,0),0) -> 45 | N25: =IFERROR(HLOOKUP(TablasDinamicas!L$1,TablasDinamicas!$B$38:$N$51,$A25,0),0) -> 18 | O25: =IFERROR(HLOOKUP(TablasDinamicas!M$1,TablasDinamicas!$B$38:$N$51,$A25,0),0) -> 74 | P25: =IFERROR(HLOOKUP(TablasDinamicas!N$1,TablasDinamicas!$B$38:$N$51,$A25,0),0) -> 117
A26: =MATCH(B26,TablasDinamicas!$A$38:$A$51,0) -> 10 | B26: 50 a 54 | C26: 249 | D26: =IFERROR(HLOOKUP(TablasDinamicas!B$1,TablasDinamicas!$B$38:$N$51,$A26,0),0) -> 3 | E26: =IFERROR(HLOOKUP(TablasDinamicas!C$1,TablasDinamicas!$B$38:$N$51,$A26,0),0) -> 1 | F26: =IFERROR(HLOOKUP(TablasDinamicas!D$1,TablasDinamicas!$B$38:$N$51,$A26,0),0) -> 23 | G26: =IFERROR(HLOOKUP(TablasDinamicas!E$1,TablasDinamicas!$B$38:$N$51,$A26,0),0) -> 27 | H26: =IFERROR(HLOOKUP(TablasDinamicas!F$1,TablasDinamicas!$B$38:$N$51,$A26,0),0) -> 0 | I26: =IFERROR(HLOOKUP(TablasDinamicas!G$1,TablasDinamicas!$B$38:$N$51,$A26,0),0) -> 5 | J26: =IFERROR(HLOOKUP(TablasDinamicas!H$1,TablasDinamicas!$B$38:$N$51,$A26,0),0) -> 5 | K26: =IFERROR(HLOOKUP(TablasDinamicas!I$1,TablasDinamicas!$B$38:$N$51,$A26,0),0) -> 5 | L26: =IFERROR(HLOOKUP(TablasDinamicas!J$1,TablasDinamicas!$B$38:$N$51,$A26,0),0) -> 8 | M26: =IFERROR(HLOOKUP(TablasDinamicas!K$1,TablasDinamicas!$B$38:$N$51,$A26,0),0) -> 39 | N26: =IFERROR(HLOOKUP(TablasDinamicas!L$1,TablasDinamicas!$B$38:$N$51,$A26,0),0) -> 12 | O26: =IFERROR(HLOOKUP(TablasDinamicas!M$1,TablasDinamicas!$B$38:$N$51,$A26,0),0) -> 47 | P26: =IFERROR(HLOOKUP(TablasDinamicas!N$1,TablasDinamicas!$B$38:$N$51,$A26,0),0) -> 74
A27: =MATCH(B27,TablasDinamicas!$A$38:$A$51,0) -> 11 | B27: 55 a 59 | C27: 141 | D27: =IFERROR(HLOOKUP(TablasDinamicas!B$1,TablasDinamicas!$B$38:$N$51,$A27,0),0) -> 1 | E27: =IFERROR(HLOOKUP(TablasDinamicas!C$1,TablasDinamicas!$B$38:$N$51,$A27,0),0) -> 0 | F27: =IFERROR(HLOOKUP(TablasDinamicas!D$1,TablasDinamicas!$B$38:$N$51,$A27,0),0) -> 24 | G27: =IFERROR(HLOOKUP(TablasDinamicas!E$1,TablasDinamicas!$B$38:$N$51,$A27,0),0) -> 17 | H27: =IFERROR(HLOOKUP(TablasDinamicas!F$1,TablasDinamicas!$B$38:$N$51,$A27,0),0) -> 0 | I27: =IFERROR(HLOOKUP(TablasDinamicas!G$1,TablasDinamicas!$B$38:$N$51,$A27,0),0) -> 2 | J27: =IFERROR(HLOOKUP(TablasDinamicas!H$1,TablasDinamicas!$B$38:$N$51,$A27,0),0) -> 1 | K27: =IFERROR(HLOOKUP(TablasDinamicas!I$1,TablasDinamicas!$B$38:$N$51,$A27,0),0) -> 1 | L27: =IFERROR(HLOOKUP(TablasDinamicas!J$1,TablasDinamicas!$B$38:$N$51,$A27,0),0) -> 8 | M27: =IFERROR(HLOOKUP(TablasDinamicas!K$1,TablasDinamicas!$B$38:$N$51,$A27,0),0) -> 15 | N27: =IFERROR(HLOOKUP(TablasDinamicas!L$1,TablasDinamicas!$B$38:$N$51,$A27,0),0) -> 8 | O27: =IFERROR(HLOOKUP(TablasDinamicas!M$1,TablasDinamicas!$B$38:$N$51,$A27,0),0) -> 21 | P27: =IFERROR(HLOOKUP(TablasDinamicas!N$1,TablasDinamicas!$B$38:$N$51,$A27,0),0) -> 43
A28: =MATCH(B28,TablasDinamicas!$A$38:$A$51,0) -> 12 | B28: 60 a 64 | C28: 68 | D28: =IFERROR(HLOOKUP(TablasDinamicas!B$1,TablasDinamicas!$B$38:$N$51,$A28,0),0) -> 1 | E28: =IFERROR(HLOOKUP(TablasDinamicas!C$1,TablasDinamicas!$B$38:$N$51,$A28,0),0) -> 0 | F28: =IFERROR(HLOOKUP(TablasDinamicas!D$1,TablasDinamicas!$B$38:$N$51,$A28,0),0) -> 11 | G28: =IFERROR(HLOOKUP(TablasDinamicas!E$1,TablasDinamicas!$B$38:$N$51,$A28,0),0) -> 10 | H28: =IFERROR(HLOOKUP(TablasDinamicas!F$1,TablasDinamicas!$B$38:$N$51,$A28,0),0) -> 1 | I28: =IFERROR(HLOOKUP(TablasDinamicas!G$1,TablasDinamicas!$B$38:$N$51,$A28,0),0) -> 2 | J28: =IFERROR(HLOOKUP(TablasDinamicas!H$1,TablasDinamicas!$B$38:$N$51,$A28,0),0) -> 3 | K28: =IFERROR(HLOOKUP(TablasDinamicas!I$1,TablasDinamicas!$B$38:$N$51,$A28,0),0) -> 1 | L28: =IFERROR(HLOOKUP(TablasDinamicas!J$1,TablasDinamicas!$B$38:$N$51,$A28,0),0) -> 1 | M28: =IFERROR(HLOOKUP(TablasDinamicas!K$1,TablasDinamicas!$B$38:$N$51,$A28,0),0) -> 8 | N28: =IFERROR(HLOOKUP(TablasDinamicas!L$1,TablasDinamicas!$B$38:$N$51,$A28,0),0) -> 8 | O28: =IFERROR(HLOOKUP(TablasDinamicas!M$1,TablasDinamicas!$B$38:$N$51,$A28,0),0) -> 9 | P28: =IFERROR(HLOOKUP(TablasDinamicas!N$1,TablasDinamicas!$B$38:$N$51,$A28,0),0) -> 13
A29: =MATCH(B29,TablasDinamicas!$A$38:$A$51,0) -> 13 | B29: 65 y + | C29: 44 | D29: =IFERROR(HLOOKUP(TablasDinamicas!B$1,TablasDinamicas!$B$38:$N$51,$A29,0),0) -> 1 | E29: =IFERROR(HLOOKUP(TablasDinamicas!C$1,TablasDinamicas!$B$38:$N$51,$A29,0),0) -> 0 | F29: =IFERROR(HLOOKUP(TablasDinamicas!D$1,TablasDinamicas!$B$38:$N$51,$A29,0),0) -> 3 | G29: =IFERROR(HLOOKUP(TablasDinamicas!E$1,TablasDinamicas!$B$38:$N$51,$A29,0),0) -> 10 | H29: =IFERROR(HLOOKUP(TablasDinamicas!F$1,TablasDinamicas!$B$38:$N$51,$A29,0),0) -> 0 | I29: =IFERROR(HLOOKUP(TablasDinamicas!G$1,TablasDinamicas!$B$38:$N$51,$A29,0),0) -> 0 | J29: =IFERROR(HLOOKUP(TablasDinamicas!H$1,TablasDinamicas!$B$38:$N$51,$A29,0),0) -> 1 | K29: =IFERROR(HLOOKUP(TablasDinamicas!I$1,TablasDinamicas!$B$38:$N$51,$A29,0),0) -> 3 | L29: =IFERROR(HLOOKUP(TablasDinamicas!J$1,TablasDinamicas!$B$38:$N$51,$A29,0),0) -> 2 | M29: =IFERROR(HLOOKUP(TablasDinamicas!K$1,TablasDinamicas!$B$38:$N$51,$A29,0),0) -> 12 | N29: =IFERROR(HLOOKUP(TablasDinamicas!L$1,TablasDinamicas!$B$38:$N$51,$A29,0),0) -> 1 | O29: =IFERROR(HLOOKUP(TablasDinamicas!M$1,TablasDinamicas!$B$38:$N$51,$A29,0),0) -> 4 | P29: =IFERROR(HLOOKUP(TablasDinamicas!N$1,TablasDinamicas!$B$38:$N$51,$A29,0),0) -> 7
B30: S/D | C30: 0 | D30: =IFERROR(HLOOKUP(TablasDinamicas!B$1,TablasDinamicas!$B$38:$N$51,$A30,0),0) -> 0 | E30: =IFERROR(HLOOKUP(TablasDinamicas!C$1,TablasDinamicas!$B$38:$N$51,$A30,0),0) -> 0 | F30: =IFERROR(HLOOKUP(TablasDinamicas!D$1,TablasDinamicas!$B$38:$N$51,$A30,0),0) -> 0 | G30: =IFERROR(HLOOKUP(TablasDinamicas!E$1,TablasDinamicas!$B$38:$N$51,$A30,0),0) -> 0 | H30: =IFERROR(HLOOKUP(TablasDinamicas!F$1,TablasDinamicas!$B$38:$N$51,$A30,0),0) -> 0 | I30: =IFERROR(HLOOKUP(TablasDinamicas!G$1,TablasDinamicas!$B$38:$N$51,$A30,0),0) -> 0 | J30: =IFERROR(HLOOKUP(TablasDinamicas!H$1,TablasDinamicas!$B$38:$N$51,$A30,0),0) -> 0 | K30: =IFERROR(HLOOKUP(TablasDinamicas!I$1,TablasDinamicas!$B$38:$N$51,$A30,0),0) -> 0 | L30: =IFERROR(HLOOKUP(TablasDinamicas!J$1,TablasDinamicas!$B$38:$N$51,$A30,0),0) -> 0 | M30: =IFERROR(HLOOKUP(TablasDinamicas!K$1,TablasDinamicas!$B$38:$N$51,$A30,0),0) -> 0 | N30: =IFERROR(HLOOKUP(TablasDinamicas!L$1,TablasDinamicas!$B$38:$N$51,$A30,0),0) -> 0 | O30: =IFERROR(HLOOKUP(TablasDinamicas!M$1,TablasDinamicas!$B$38:$N$51,$A30,0),0) -> 0 | P30: =IFERROR(HLOOKUP(TablasDinamicas!N$1,TablasDinamicas!$B$38:$N$51,$A30,0),0) -> 0
B32: Residencia Estado. | C32: Estatal | D32: Colotlán | E32: Lagos de M | F32: Tepatitlán | G32: La Barca | H32: Tamazula | I32: Zapotlán | J32: Autlán | K32: Vallarta | L32: Ameca | M32: Zapopan | N32: Tonalá | O32: Tlaquepaque | P32: Guadalajara
A33: =MATCH(Listas!$A2,TablasDinamicas!$A$58:$A$91,0) -> 2 | B33: Aguascalientes | C33: =SUM(D33:P33) -> 9 | D33: =IFERROR(HLOOKUP(TablasDinamicas!B$1,TablasDinamicas!$B$58:$N$91,$A33,0),0) -> 0 | E33: =IFERROR(HLOOKUP(TablasDinamicas!C$1,TablasDinamicas!$B$58:$N$91,$A33,0),0) -> 0 | F33: =IFERROR(HLOOKUP(TablasDinamicas!D$1,TablasDinamicas!$B$58:$N$91,$A33,0),0) -> 2 | G33: =IFERROR(HLOOKUP(TablasDinamicas!E$1,TablasDinamicas!$B$58:$N$91,$A33,0),0) -> 2 | H33: =IFERROR(HLOOKUP(TablasDinamicas!F$1,TablasDinamicas!$B$58:$N$91,$A33,0),0) -> 0 | I33: =IFERROR(HLOOKUP(TablasDinamicas!G$1,TablasDinamicas!$B$58:$N$91,$A33,0),0) -> 0 | J33: =IFERROR(HLOOKUP(TablasDinamicas!H$1,TablasDinamicas!$B$58:$N$91,$A33,0),0) -> 0 | K33: =IFERROR(HLOOKUP(TablasDinamicas!I$1,TablasDinamicas!$B$58:$N$91,$A33,0),0) -> 0 | L33: =IFERROR(HLOOKUP(TablasDinamicas!J$1,TablasDinamicas!$B$58:$N$91,$A33,0),0) -> 2 | M33: =IFERROR(HLOOKUP(TablasDinamicas!K$1,TablasDinamicas!$B$58:$N$91,$A33,0),0) -> 0 | N33: =IFERROR(HLOOKUP(TablasDinamicas!L$1,TablasDinamicas!$B$58:$N$91,$A33,0),0) -> 2 | O33: =IFERROR(HLOOKUP(TablasDinamicas!M$1,TablasDinamicas!$B$58:$N$91,$A33,0),0) -> 0 | P33: =IFERROR(HLOOKUP(TablasDinamicas!N$1,TablasDinamicas!$B$58:$N$91,$A33,0),0) -> 1
A34: =MATCH(Listas!$A3,TablasDinamicas!$A$58:$A$91,0) -> 3 | B34: Baja California Norte | C34: 8 | D34: =IFERROR(HLOOKUP(TablasDinamicas!B$1,TablasDinamicas!$B$58:$N$91,$A34,0),0) -> 0 | E34: =IFERROR(HLOOKUP(TablasDinamicas!C$1,TablasDinamicas!$B$58:$N$91,$A34,0),0) -> 0 | F34: =IFERROR(HLOOKUP(TablasDinamicas!D$1,TablasDinamicas!$B$58:$N$91,$A34,0),0) -> 0 | G34: =IFERROR(HLOOKUP(TablasDinamicas!E$1,TablasDinamicas!$B$58:$N$91,$A34,0),0) -> 5 | H34: =IFERROR(HLOOKUP(TablasDinamicas!F$1,TablasDinamicas!$B$58:$N$91,$A34,0),0) -> 0 | I34: =IFERROR(HLOOKUP(TablasDinamicas!G$1,TablasDinamicas!$B$58:$N$91,$A34,0),0) -> 0 | J34: =IFERROR(HLOOKUP(TablasDinamicas!H$1,TablasDinamicas!$B$58:$N$91,$A34,0),0) -> 0 | K34: =IFERROR(HLOOKUP(TablasDinamicas!I$1,TablasDinamicas!$B$58:$N$91,$A34,0),0) -> 0 | L34: =IFERROR(HLOOKUP(TablasDinamicas!J$1,TablasDinamicas!$B$58:$N$91,$A34,0),0) -> 0 | M34: =IFERROR(HLOOKUP(TablasDinamicas!K$1,TablasDinamicas!$B$58:$N$91,$A34,0),0) -> 0 | N34: =IFERROR(HLOOKUP(TablasDinamicas!L$1,TablasDinamicas!$B$58:$N$91,$A34,0),0) -> 1 | O34: =IFERROR(HLOOKUP(TablasDinamicas!M$1,TablasDinamicas!$B$58:$N$91,$A34,0),0) -> 1 | P34: =IFERROR(HLOOKUP(TablasDinamicas!N$1,TablasDinamicas!$B$58:$N$91,$A34,0),0) -> 1
A35: =MATCH(Listas!$A4,TablasDinamicas!$A$58:$A$91,0) -> 4 | B35: Baja California Sur | C35: 4 | D35: =IFERROR(HLOOKUP(TablasDinamicas!B$1,TablasDinamicas!$B$58:$N$91,$A35,0),0) -> 0 | E35: =IFERROR(HLOOKUP(TablasDinamicas!C$1,TablasDinamicas!$B$58:$N$91,$A35,0),0) -> 0 | F35: =IFERROR(HLOOKUP(TablasDinamicas!D$1,TablasDinamicas!$B$58:$N$91,$A35,0),0) -> 0 | G35: =IFERROR(HLOOKUP(TablasDinamicas!E$1,TablasDinamicas!$B$58:$N$91,$A35,0),0) -> 1 | H35: =IFERROR(HLOOKUP(TablasDinamicas!F$1,TablasDinamicas!$B$58:$N$91,$A35,0),0) -> 0 | I35: =IFERROR(HLOOKUP(TablasDinamicas!G$1,TablasDinamicas!$B$58:$N$91,$A35,0),0) -> 0 | J35: =IFERROR(HLOOKUP(TablasDinamicas!H$1,TablasDinamicas!$B$58:$N$91,$A35,0),0) -> 0 | K35: =IFERROR(HLOOKUP(TablasDinamicas!I$1,TablasDinamicas!$B$58:$N$91,$A35,0),0) -> 0 | L35: =IFERROR(HLOOKUP(TablasDinamicas!J$1,TablasDinamicas!$B$58:$N$91,$A35,0),0) -> 0 | M35: =IFERROR(HLOOKUP(TablasDinamicas!K$1,TablasDinamicas!$B$58:$N$91,$A35,0),0) -> 1 | N35: =IFERROR(HLOOKUP(TablasDinamicas!L$1,TablasDinamicas!$B$58:$N$91,$A35,0),0) -> 1 | O35: =IFERROR(HLOOKUP(TablasDinamicas!M$1,TablasDinamicas!$B$58:$N$91,$A35,0),0) -> 0 | P35: =IFERROR(HLOOKUP(TablasDinamicas!N$1,TablasDinamicas!$B$58:$N$91,$A35,0),0) -> 1
A36: =MATCH(Listas!$A5,TablasDinamicas!$A$58:$A$91,0) ->  | B36: Campeche | C36: 0 | D36: =IFERROR(HLOOKUP(TablasDinamicas!B$1,TablasDinamicas!$B$58:$N$91,$A36,0),0) -> 0 | E36: =IFERROR(HLOOKUP(TablasDinamicas!C$1,TablasDinamicas!$B$58:$N$91,$A36,0),0) -> 0 | F36: =IFERROR(HLOOKUP(TablasDinamicas!D$1,TablasDinamicas!$B$58:$N$91,$A36,0),0) -> 0 | G36: =IFERROR(HLOOKUP(TablasDinamicas!E$1,TablasDinamicas!$B$58:$N$91,$A36,0),0) -> 0 | H36: =IFERROR(HLOOKUP(TablasDinamicas!F$1,TablasDinamicas!$B$58:$N$91,$A36,0),0) -> 0 | I36: =IFERROR(HLOOKUP(TablasDinamicas!G$1,TablasDinamicas!$B$58:$N$91,$A36,0),0) -> 0 | J36: =IFERROR(HLOOKUP(TablasDinamicas!H$1,TablasDinamicas!$B$58:$N$91,$A36,0),0) -> 0 | K36: =IFERROR(HLOOKUP(TablasDinamicas!I$1,TablasDinamicas!$B$58:$N$91,$A36,0),0) -> 0 | L36: =IFERROR(HLOOKUP(TablasDinamicas!J$1,TablasDinamicas!$B$58:$N$91,$A36,0),0) -> 0 | M36: =IFERROR(HLOOKUP(TablasDinamicas!K$1,TablasDinamicas!$B$58:$N$91,$A36,0),0) -> 0 | N36: =IFERROR(HLOOKUP(TablasDinamicas!L$1,TablasDinamicas!$B$58:$N$91,$A36,0),0) -> 0 | O36: =IFERROR(HLOOKUP(TablasDinamicas!M$1,TablasDinamicas!$B$58:$N$91,$A36,0),0) -> 0 | P36: =IFERROR(HLOOKUP(TablasDinamicas!N$1,TablasDinamicas!$B$58:$N$91,$A36,0),0) -> 0
A37: =MATCH(Listas!$A6,TablasDinamicas!$A$58:$A$91,0) -> 5 | B37: Coahuila | C37: 2 | D37: =IFERROR(HLOOKUP(TablasDinamicas!B$1,TablasDinamicas!$B$58:$N$91,$A37,0),0) -> 0 | E37: =IFERROR(HLOOKUP(TablasDinamicas!C$1,TablasDinamicas!$B$58:$N$91,$A37,0),0) -> 0 | F37: =IFERROR(HLOOKUP(TablasDinamicas!D$1,TablasDinamicas!$B$58:$N$91,$A37,0),0) -> 0 | G37: =IFERROR(HLOOKUP(TablasDinamicas!E$1,TablasDinamicas!$B$58:$N$91,$A37,0),0) -> 0 | H37: =IFERROR(HLOOKUP(TablasDinamicas!F$1,TablasDinamicas!$B$58:$N$91,$A37,0),0) -> 0 | I37: =IFERROR(HLOOKUP(TablasDinamicas!G$1,TablasDinamicas!$B$58:$N$91,$A37,0),0) -> 0 | J37: =IFERROR(HLOOKUP(TablasDinamicas!H$1,TablasDinamicas!$B$58:$N$91,$A37,0),0) -> 0 | K37: =IFERROR(HLOOKUP(TablasDinamicas!I$1,TablasDinamicas!$B$58:$N$91,$A37,0),0) -> 0 | L37: =IFERROR(HLOOKUP(TablasDinamicas!J$1,TablasDinamicas!$B$58:$N$91,$A37,0),0) -> 0 | M37: =IFERROR(HLOOKUP(TablasDinamicas!K$1,TablasDinamicas!$B$58:$N$91,$A37,0),0) -> 1 | N37: =IFERROR(HLOOKUP(TablasDinamicas!L$1,TablasDinamicas!$B$58:$N$91,$A37,0),0) -> 1 | O37: =IFERROR(HLOOKUP(TablasDinamicas!M$1,TablasDinamicas!$B$58:$N$91,$A37,0),0) -> 0 | P37: =IFERROR(HLOOKUP(TablasDinamicas!N$1,TablasDinamicas!$B$58:$N$91,$A37,0),0) -> 0
A38: =MATCH(Listas!$A7,TablasDinamicas!$A$58:$A$91,0) -> 6 | B38: Colima | C38: 29 | D38: =IFERROR(HLOOKUP(TablasDinamicas!B$1,TablasDinamicas!$B$58:$N$91,$A38,0),0) -> 0 | E38: =IFERROR(HLOOKUP(TablasDinamicas!C$1,TablasDinamicas!$B$58:$N$91,$A38,0),0) -> 0 | F38: =IFERROR(HLOOKUP(TablasDinamicas!D$1,TablasDinamicas!$B$58:$N$91,$A38,0),0) -> 0 | G38: =IFERROR(HLOOKUP(TablasDinamicas!E$1,TablasDinamicas!$B$58:$N$91,$A38,0),0) -> 1 | H38: =IFERROR(HLOOKUP(TablasDinamicas!F$1,TablasDinamicas!$B$58:$N$91,$A38,0),0) -> 0 | I38: =IFERROR(HLOOKUP(TablasDinamicas!G$1,TablasDinamicas!$B$58:$N$91,$A38,0),0) -> 5 | J38: =IFERROR(HLOOKUP(TablasDinamicas!H$1,TablasDinamicas!$B$58:$N$91,$A38,0),0) -> 1 | K38: =IFERROR(HLOOKUP(TablasDinamicas!I$1,TablasDinamicas!$B$58:$N$91,$A38,0),0) -> 0 | L38: =IFERROR(HLOOKUP(TablasDinamicas!J$1,TablasDinamicas!$B$58:$N$91,$A38,0),0) -> 1 | M38: =IFERROR(HLOOKUP(TablasDinamicas!K$1,TablasDinamicas!$B$58:$N$91,$A38,0),0) -> 6 | N38: =IFERROR(HLOOKUP(TablasDinamicas!L$1,TablasDinamicas!$B$58:$N$91,$A38,0),0) -> 0 | O38: =IFERROR(HLOOKUP(TablasDinamicas!M$1,TablasDinamicas!$B$58:$N$91,$A38,0),0) -> 8 | P38: =IFERROR(HLOOKUP(TablasDinamicas!N$1,TablasDinamicas!$B$58:$N$91,$A38,0),0) -> 7
A39: =MATCH(Listas!$A8,TablasDinamicas!$A$58:$A$91,0) -> 7 | B39: Chiapas | C39: 1 | D39: =IFERROR(HLOOKUP(TablasDinamicas!B$1,TablasDinamicas!$B$58:$N$91,$A39,0),0) -> 0 | E39: =IFERROR(HLOOKUP(TablasDinamicas!C$1,TablasDinamicas!$B$58:$N$91,$A39,0),0) -> 0 | F39: =IFERROR(HLOOKUP(TablasDinamicas!D$1,TablasDinamicas!$B$58:$N$91,$A39,0),0) -> 0 | G39: =IFERROR(HLOOKUP(TablasDinamicas!E$1,TablasDinamicas!$B$58:$N$91,$A39,0),0) -> 0 | H39: =IFERROR(HLOOKUP(TablasDinamicas!F$1,TablasDinamicas!$B$58:$N$91,$A39,0),0) -> 0 | I39: =IFERROR(HLOOKUP(TablasDinamicas!G$1,TablasDinamicas!$B$58:$N$91,$A39,0),0) -> 0 | J39: =IFERROR(HLOOKUP(TablasDinamicas!H$1,TablasDinamicas!$B$58:$N$91,$A39,0),0) -> 0 | K39: =IFERROR(HLOOKUP(TablasDinamicas!I$1,TablasDinamicas!$B$58:$N$91,$A39,0),0) -> 0 | L39: =IFERROR(HLOOKUP(TablasDinamicas!J$1,TablasDinamicas!$B$58:$N$91,$A39,0),0) -> 0 | M39: =IFERROR(HLOOKUP(TablasDinamicas!K$1,TablasDinamicas!$B$58:$N$91,$A39,0),0) -> 0 | N39: =IFERROR(HLOOKUP(TablasDinamicas!L$1,TablasDinamicas!$B$58:$N$91,$A39,0),0) -> 0 | O39: =IFERROR(HLOOKUP(TablasDinamicas!M$1,TablasDinamicas!$B$58:$N$91,$A39,0),0) -> 1 | P39: =IFERROR(HLOOKUP(TablasDinamicas!N$1,TablasDinamicas!$B$58:$N$91,$A39,0),0) -> 0
A40: =MATCH(Listas!$A9,TablasDinamicas!$A$58:$A$91,0) -> 8 | B40: Chihuahua | C40: 5 | D40: =IFERROR(HLOOKUP(TablasDinamicas!B$1,TablasDinamicas!$B$58:$N$91,$A40,0),0) -> 0 | E40: =IFERROR(HLOOKUP(TablasDinamicas!C$1,TablasDinamicas!$B$58:$N$91,$A40,0),0) -> 0 | F40: =IFERROR(HLOOKUP(TablasDinamicas!D$1,TablasDinamicas!$B$58:$N$91,$A40,0),0) -> 0 | G40: =IFERROR(HLOOKUP(TablasDinamicas!E$1,TablasDinamicas!$B$58:$N$91,$A40,0),0) -> 2 | H40: =IFERROR(HLOOKUP(TablasDinamicas!F$1,TablasDinamicas!$B$58:$N$91,$A40,0),0) -> 0 | I40: =IFERROR(HLOOKUP(TablasDinamicas!G$1,TablasDinamicas!$B$58:$N$91,$A40,0),0) -> 0 | J40: =IFERROR(HLOOKUP(TablasDinamicas!H$1,TablasDinamicas!$B$58:$N$91,$A40,0),0) -> 0 | K40: =IFERROR(HLOOKUP(TablasDinamicas!I$1,TablasDinamicas!$B$58:$N$91,$A40,0),0) -> 0 | L40: =IFERROR(HLOOKUP(TablasDinamicas!J$1,TablasDinamicas!$B$58:$N$91,$A40,0),0) -> 0 | M40: =IFERROR(HLOOKUP(TablasDinamicas!K$1,TablasDinamicas!$B$58:$N$91,$A40,0),0) -> 0 | N40: =IFERROR(HLOOKUP(TablasDinamicas!L$1,TablasDinamicas!$B$58:$N$91,$A40,0),0) -> 1 | O40: =IFERROR(HLOOKUP(TablasDinamicas!M$1,TablasDinamicas!$B$58:$N$91,$A40,0),0) -> 0 | P40: =IFERROR(HLOOKUP(TablasDinamicas!N$1,TablasDinamicas!$B$58:$N$91,$A40,0),0) -> 2
A41: =MATCH(Listas!$A10,TablasDinamicas!$A$58:$A$91,0) -> 9 | B41: Distrito Federal | C41: 5 | D41: =IFERROR(HLOOKUP(TablasDinamicas!B$1,TablasDinamicas!$B$58:$N$91,$A41,0),0) -> 0 | E41: =IFERROR(HLOOKUP(TablasDinamicas!C$1,TablasDinamicas!$B$58:$N$91,$A41,0),0) -> 0 | F41: =IFERROR(HLOOKUP(TablasDinamicas!D$1,TablasDinamicas!$B$58:$N$91,$A41,0),0) -> 0 | G41: =IFERROR(HLOOKUP(TablasDinamicas!E$1,TablasDinamicas!$B$58:$N$91,$A41,0),0) -> 1 | H41: =IFERROR(HLOOKUP(TablasDinamicas!F$1,TablasDinamicas!$B$58:$N$91,$A41,0),0) -> 0 | I41: =IFERROR(HLOOKUP(TablasDinamicas!G$1,TablasDinamicas!$B$58:$N$91,$A41,0),0) -> 0 | J41: =IFERROR(HLOOKUP(TablasDinamicas!H$1,TablasDinamicas!$B$58:$N$91,$A41,0),0) -> 0 | K41: =IFERROR(HLOOKUP(TablasDinamicas!I$1,TablasDinamicas!$B$58:$N$91,$A41,0),0) -> 0 | L41: =IFERROR(HLOOKUP(TablasDinamicas!J$1,TablasDinamicas!$B$58:$N$91,$A41,0),0) -> 0 | M41: =IFERROR(HLOOKUP(TablasDinamicas!K$1,TablasDinamicas!$B$58:$N$91,$A41,0),0) -> 2 | N41: =IFERROR(HLOOKUP(TablasDinamicas!L$1,TablasDinamicas!$B$58:$N$91,$A41,0),0) -> 1 | O41: =IFERROR(HLOOKUP(TablasDinamicas!M$1,TablasDinamicas!$B$58:$N$91,$A41,0),0) -> 0 | P41: =IFERROR(HLOOKUP(TablasDinamicas!N$1,TablasDinamicas!$B$58:$N$91,$A41,0),0) -> 1
A42: =MATCH(Listas!$A11,TablasDinamicas!$A$58:$A$91,0) -> 10 | B42: Durango | C42: 1 | D42: =IFERROR(HLOOKUP(TablasDinamicas!B$1,TablasDinamicas!$B$58:$N$91,$A42,0),0) -> 0 | E42: =IFERROR(HLOOKUP(TablasDinamicas!C$1,TablasDinamicas!$B$58:$N$91,$A42,0),0) -> 0 | F42: =IFERROR(HLOOKUP(TablasDinamicas!D$1,TablasDinamicas!$B$58:$N$91,$A42,0),0) -> 0 | G42: =IFERROR(HLOOKUP(TablasDinamicas!E$1,TablasDinamicas!$B$58:$N$91,$A42,0),0) -> 0 | H42: =IFERROR(HLOOKUP(TablasDinamicas!F$1,TablasDinamicas!$B$58:$N$91,$A42,0),0) -> 0 | I42: =IFERROR(HLOOKUP(TablasDinamicas!G$1,TablasDinamicas!$B$58:$N$91,$A42,0),0) -> 0 | J42: =IFERROR(HLOOKUP(TablasDinamicas!H$1,TablasDinamicas!$B$58:$N$91,$A42,0),0) -> 0 | K42: =IFERROR(HLOOKUP(TablasDinamicas!I$1,TablasDinamicas!$B$58:$N$91,$A42,0),0) -> 0 | L42: =IFERROR(HLOOKUP(TablasDinamicas!J$1,TablasDinamicas!$B$58:$N$91,$A42,0),0) -> 0 | M42: =IFERROR(HLOOKUP(TablasDinamicas!K$1,TablasDinamicas!$B$58:$N$91,$A42,0),0) -> 0 | N42: =IFERROR(HLOOKUP(TablasDinamicas!L$1,TablasDinamicas!$B$58:$N$91,$A42,0),0) -> 1 | O42: =IFERROR(HLOOKUP(TablasDinamicas!M$1,TablasDinamicas!$B$58:$N$91,$A42,0),0) -> 0 | P42: =IFERROR(HLOOKUP(TablasDinamicas!N$1,TablasDinamicas!$B$58:$N$91,$A42,0),0) -> 0
A43: =MATCH(Listas!$A12,TablasDinamicas!$A$58:$A$91,0) -> 11 | B43: Guanajuato | C43: 40 | D43: =IFERROR(HLOOKUP(TablasDinamicas!B$1,TablasDinamicas!$B$58:$N$91,$A43,0),0) -> 0 | E43: =IFERROR(HLOOKUP(TablasDinamicas!C$1,TablasDinamicas!$B$58:$N$91,$A43,0),0) -> 0 | F43: =IFERROR(HLOOKUP(TablasDinamicas!D$1,TablasDinamicas!$B$58:$N$91,$A43,0),0) -> 3 | G43: =IFERROR(HLOOKUP(TablasDinamicas!E$1,TablasDinamicas!$B$58:$N$91,$A43,0),0) -> 15 | H43: =IFERROR(HLOOKUP(TablasDinamicas!F$1,TablasDinamicas!$B$58:$N$91,$A43,0),0) -> 0 | I43: =IFERROR(HLOOKUP(TablasDinamicas!G$1,TablasDinamicas!$B$58:$N$91,$A43,0),0) -> 1 | J43: =IFERROR(HLOOKUP(TablasDinamicas!H$1,TablasDinamicas!$B$58:$N$91,$A43,0),0) -> 0 | K43: =IFERROR(HLOOKUP(TablasDinamicas!I$1,TablasDinamicas!$B$58:$N$91,$A43,0),0) -> 0 | L43: =IFERROR(HLOOKUP(TablasDinamicas!J$1,TablasDinamicas!$B$58:$N$91,$A43,0),0) -> 0 | M43: =IFERROR(HLOOKUP(TablasDinamicas!K$1,TablasDinamicas!$B$58:$N$91,$A43,0),0) -> 2 | N43: =IFERROR(HLOOKUP(TablasDinamicas!L$1,TablasDinamicas!$B$58:$N$91,$A43,0),0) -> 5 | O43: =IFERROR(HLOOKUP(TablasDinamicas!M$1,TablasDinamicas!$B$58:$N$91,$A43,0),0) -> 5 | P43: =IFERROR(HLOOKUP(TablasDinamicas!N$1,TablasDinamicas!$B$58:$N$91,$A43,0),0) -> 9
A44: =MATCH(Listas!$A13,TablasDinamicas!$A$58:$A$91,0) -> 12 | B44: Guerrero | C44: 4 | D44: =IFERROR(HLOOKUP(TablasDinamicas!B$1,TablasDinamicas!$B$58:$N$91,$A44,0),0) -> 0 | E44: =IFERROR(HLOOKUP(TablasDinamicas!C$1,TablasDinamicas!$B$58:$N$91,$A44,0),0) -> 0 | F44: =IFERROR(HLOOKUP(TablasDinamicas!D$1,TablasDinamicas!$B$58:$N$91,$A44,0),0) -> 0 | G44: =IFERROR(HLOOKUP(TablasDinamicas!E$1,TablasDinamicas!$B$58:$N$91,$A44,0),0) -> 0 | H44: =IFERROR(HLOOKUP(TablasDinamicas!F$1,TablasDinamicas!$B$58:$N$91,$A44,0),0) -> 0 | I44: =IFERROR(HLOOKUP(TablasDinamicas!G$1,TablasDinamicas!$B$58:$N$91,$A44,0),0) -> 0 | J44: =IFERROR(HLOOKUP(TablasDinamicas!H$1,TablasDinamicas!$B$58:$N$91,$A44,0),0) -> 0 | K44: =IFERROR(HLOOKUP(TablasDinamicas!I$1,TablasDinamicas!$B$58:$N$91,$A44,0),0) -> 0 | L44: =IFERROR(HLOOKUP(TablasDinamicas!J$1,TablasDinamicas!$B$58:$N$91,$A44,0),0) -> 0 | M44: =IFERROR(HLOOKUP(TablasDinamicas!K$1,TablasDinamicas!$B$58:$N$91,$A44,0),0) -> 0 | N44: =IFERROR(HLOOKUP(TablasDinamicas!L$1,TablasDinamicas!$B$58:$N$91,$A44,0),0) -> 1 | O44: =IFERROR(HLOOKUP(TablasDinamicas!M$1,TablasDinamicas!$B$58:$N$91,$A44,0),0) -> 1 | P44: =IFERROR(HLOOKUP(TablasDinamicas!N$1,TablasDinamicas!$B$58:$N$91,$A44,0),0) -> 2
A45: =MATCH(Listas!$A14,TablasDinamicas!$A$58:$A$91,0) -> 13 | B45: Hidalgo | C45: 3 | D45: =IFERROR(HLOOKUP(TablasDinamicas!B$1,TablasDinamicas!$B$58:$N$91,$A45,0),0) -> 0 | E45: =IFERROR(HLOOKUP(TablasDinamicas!C$1,TablasDinamicas!$B$58:$N$91,$A45,0),0) -> 0 | F45: =IFERROR(HLOOKUP(TablasDinamicas!D$1,TablasDinamicas!$B$58:$N$91,$A45,0),0) -> 0 | G45: =IFERROR(HLOOKUP(TablasDinamicas!E$1,TablasDinamicas!$B$58:$N$91,$A45,0),0) -> 3 | H45: =IFERROR(HLOOKUP(TablasDinamicas!F$1,TablasDinamicas!$B$58:$N$91,$A45,0),0) -> 0 | I45: =IFERROR(HLOOKUP(TablasDinamicas!G$1,TablasDinamicas!$B$58:$N$91,$A45,0),0) -> 0 | J45: =IFERROR(HLOOKUP(TablasDinamicas!H$1,TablasDinamicas!$B$58:$N$91,$A45,0),0) -> 0 | K45: =IFERROR(HLOOKUP(TablasDinamicas!I$1,TablasDinamicas!$B$58:$N$91,$A45,0),0) -> 0 | L45: =IFERROR(HLOOKUP(TablasDinamicas!J$1,TablasDinamicas!$B$58:$N$91,$A45,0),0) -> 0 | M45: =IFERROR(HLOOKUP(TablasDinamicas!K$1,TablasDinamicas!$B$58:$N$91,$A45,0),0) -> 0 | N45: =IFERROR(HLOOKUP(TablasDinamicas!L$1,TablasDinamicas!$B$58:$N$91,$A45,0),0) -> 0 | O45: =IFERROR(HLOOKUP(TablasDinamicas!M$1,TablasDinamicas!$B$58:$N$91,$A45,0),0) -> 0 | P45: =IFERROR(HLOOKUP(TablasDinamicas!N$1,TablasDinamicas!$B$58:$N$91,$A45,0),0) -> 0
A46: =MATCH(Listas!$A15,TablasDinamicas!$A$58:$A$91,0) -> 14 | B46: Jalisco | C46: 6008 | D46: =IFERROR(HLOOKUP(TablasDinamicas!B$1,TablasDinamicas!$B$58:$N$91,$A46,0),0) -> 95 | E46: =IFERROR(HLOOKUP(TablasDinamicas!C$1,TablasDinamicas!$B$58:$N$91,$A46,0),0) -> 68 | F46: =IFERROR(HLOOKUP(TablasDinamicas!D$1,TablasDinamicas!$B$58:$N$91,$A46,0),0) -> 563 | G46: =IFERROR(HLOOKUP(TablasDinamicas!E$1,TablasDinamicas!$B$58:$N$91,$A46,0),0) -> 966 | H46: =IFERROR(HLOOKUP(TablasDinamicas!F$1,TablasDinamicas!$B$58:$N$91,$A46,0),0) -> 32 | I46: =IFERROR(HLOOKUP(TablasDinamicas!G$1,TablasDinamicas!$B$58:$N$91,$A46,0),0) -> 110 | J46: =IFERROR(HLOOKUP(TablasDinamicas!H$1,TablasDinamicas!$B$58:$N$91,$A46,0),0) -> 107 | K46: =IFERROR(HLOOKUP(TablasDinamicas!I$1,TablasDinamicas!$B$58:$N$91,$A46,0),0) -> 184 | L46: =IFERROR(HLOOKUP(TablasDinamicas!J$1,TablasDinamicas!$B$58:$N$91,$A46,0),0) -> 206 | M46: =IFERROR(HLOOKUP(TablasDinamicas!K$1,TablasDinamicas!$B$58:$N$91,$A46,0),0) -> 712 | N46: =IFERROR(HLOOKUP(TablasDinamicas!L$1,TablasDinamicas!$B$58:$N$91,$A46,0),0) -> 264 | O46: =IFERROR(HLOOKUP(TablasDinamicas!M$1,TablasDinamicas!$B$58:$N$91,$A46,0),0) -> 1181 | P46: =IFERROR(HLOOKUP(TablasDinamicas!N$1,TablasDinamicas!$B$58:$N$91,$A46,0),0) -> 1520
A47: =MATCH(Listas!$A16,TablasDinamicas!$A$58:$A$91,0) -> 15 | B47: México | C47: 9 | D47: =IFERROR(HLOOKUP(TablasDinamicas!B$1,TablasDinamicas!$B$58:$N$91,$A47,0),0) -> 0 | E47: =IFERROR(HLOOKUP(TablasDinamicas!C$1,TablasDinamicas!$B$58:$N$91,$A47,0),0) -> 0 | F47: =IFERROR(HLOOKUP(TablasDinamicas!D$1,TablasDinamicas!$B$58:$N$91,$A47,0),0) -> 0 | G47: =IFERROR(HLOOKUP(TablasDinamicas!E$1,TablasDinamicas!$B$58:$N$91,$A47,0),0) -> 2 | H47: =IFERROR(HLOOKUP(TablasDinamicas!F$1,TablasDinamicas!$B$58:$N$91,$A47,0),0) -> 0 | I47: =IFERROR(HLOOKUP(TablasDinamicas!G$1,TablasDinamicas!$B$58:$N$91,$A47,0),0) -> 0 | J47: =IFERROR(HLOOKUP(TablasDinamicas!H$1,TablasDinamicas!$B$58:$N$91,$A47,0),0) -> 0 | K47: =IFERROR(HLOOKUP(TablasDinamicas!I$1,TablasDinamicas!$B$58:$N$91,$A47,0),0) -> 0 | L47: =IFERROR(HLOOKUP(TablasDinamicas!J$1,TablasDinamicas!$B$58:$N$91,$A47,0),0) -> 0 | M47: =IFERROR(HLOOKUP(TablasDinamicas!K$1,TablasDinamicas!$B$58:$N$91,$A47,0),0) -> 1 | N47: =IFERROR(HLOOKUP(TablasDinamicas!L$1,TablasDinamicas!$B$58:$N$91,$A47,0),0) -> 1 | O47: =IFERROR(HLOOKUP(TablasDinamicas!M$1,TablasDinamicas!$B$58:$N$91,$A47,0),0) -> 2 | P47: =IFERROR(HLOOKUP(TablasDinamicas!N$1,TablasDinamicas!$B$58:$N$91,$A47,0),0) -> 3
A48: =MATCH(Listas!$A17,TablasDinamicas!$A$58:$A$91,0) -> 16 | B48: Michoacán | C48: 136 | D48: =IFERROR(HLOOKUP(TablasDinamicas!B$1,TablasDinamicas!$B$58:$N$91,$A48,0),0) -> 0 | E48: =IFERROR(HLOOKUP(TablasDinamicas!C$1,TablasDinamicas!$B$58:$N$91,$A48,0),0) -> 0 | F48: =IFERROR(HLOOKUP(TablasDinamicas!D$1,TablasDinamicas!$B$58:$N$91,$A48,0),0) -> 7 | G48: =IFERROR(HLOOKUP(TablasDinamicas!E$1,TablasDinamicas!$B$58:$N$91,$A48,0),0) -> 80 | H48: =IFERROR(HLOOKUP(TablasDinamicas!F$1,TablasDinamicas!$B$58:$N$91,$A48,0),0) -> 0 | I48: =IFERROR(HLOOKUP(TablasDinamicas!G$1,TablasDinamicas!$B$58:$N$91,$A48,0),0) -> 2 | J48: =IFERROR(HLOOKUP(TablasDinamicas!H$1,TablasDinamicas!$B$58:$N$91,$A48,0),0) -> 0 | K48: =IFERROR(HLOOKUP(TablasDinamicas!I$1,TablasDinamicas!$B$58:$N$91,$A48,0),0) -> 0 | L48: =IFERROR(HLOOKUP(TablasDinamicas!J$1,TablasDinamicas!$B$58:$N$91,$A48,0),0) -> 5 | M48: =IFERROR(HLOOKUP(TablasDinamicas!K$1,TablasDinamicas!$B$58:$N$91,$A48,0),0) -> 11 | N48: =IFERROR(HLOOKUP(TablasDinamicas!L$1,TablasDinamicas!$B$58:$N$91,$A48,0),0) -> 4 | O48: =IFERROR(HLOOKUP(TablasDinamicas!M$1,TablasDinamicas!$B$58:$N$91,$A48,0),0) -> 15 | P48: =IFERROR(HLOOKUP(TablasDinamicas!N$1,TablasDinamicas!$B$58:$N$91,$A48,0),0) -> 12
A49: =MATCH(Listas!$A18,TablasDinamicas!$A$58:$A$91,0) -> 17 | B49: Morelos | C49: 4 | D49: =IFERROR(HLOOKUP(TablasDinamicas!B$1,TablasDinamicas!$B$58:$N$91,$A49,0),0) -> 0 | E49: =IFERROR(HLOOKUP(TablasDinamicas!C$1,TablasDinamicas!$B$58:$N$91,$A49,0),0) -> 0 | F49: =IFERROR(HLOOKUP(TablasDinamicas!D$1,TablasDinamicas!$B$58:$N$91,$A49,0),0) -> 0 | G49: =IFERROR(HLOOKUP(TablasDinamicas!E$1,TablasDinamicas!$B$58:$N$91,$A49,0),0) -> 2 | H49: =IFERROR(HLOOKUP(TablasDinamicas!F$1,TablasDinamicas!$B$58:$N$91,$A49,0),0) -> 0 | I49: =IFERROR(HLOOKUP(TablasDinamicas!G$1,TablasDinamicas!$B$58:$N$91,$A49,0),0) -> 0 | J49: =IFERROR(HLOOKUP(TablasDinamicas!H$1,TablasDinamicas!$B$58:$N$91,$A49,0),0) -> 0 | K49: =IFERROR(HLOOKUP(TablasDinamicas!I$1,TablasDinamicas!$B$58:$N$91,$A49,0),0) -> 0 | L49: =IFERROR(HLOOKUP(TablasDinamicas!J$1,TablasDinamicas!$B$58:$N$91,$A49,0),0) -> 0 | M49: =IFERROR(HLOOKUP(TablasDinamicas!K$1,TablasDinamicas!$B$58:$N$91,$A49,0),0) -> 0 | N49: =IFERROR(HLOOKUP(TablasDinamicas!L$1,TablasDinamicas!$B$58:$N$91,$A49,0),0) -> 0 | O49: =IFERROR(HLOOKUP(TablasDinamicas!M$1,TablasDinamicas!$B$58:$N$91,$A49,0),0) -> 2 | P49: =IFERROR(HLOOKUP(TablasDinamicas!N$1,TablasDinamicas!$B$58:$N$91,$A49,0),0) -> 0
A50: =MATCH(Listas!$A19,TablasDinamicas!$A$58:$A$91,0) -> 18 | B50: Nayarit | C50: 34 | D50: =IFERROR(HLOOKUP(TablasDinamicas!B$1,TablasDinamicas!$B$58:$N$91,$A50,0),0) -> 0 | E50: =IFERROR(HLOOKUP(TablasDinamicas!C$1,TablasDinamicas!$B$58:$N$91,$A50,0),0) -> 0 | F50: =IFERROR(HLOOKUP(TablasDinamicas!D$1,TablasDinamicas!$B$58:$N$91,$A50,0),0) -> 2 | G50: =IFERROR(HLOOKUP(TablasDinamicas!E$1,TablasDinamicas!$B$58:$N$91,$A50,0),0) -> 7 | H50: =IFERROR(HLOOKUP(TablasDinamicas!F$1,TablasDinamicas!$B$58:$N$91,$A50,0),0) -> 0 | I50: =IFERROR(HLOOKUP(TablasDinamicas!G$1,TablasDinamicas!$B$58:$N$91,$A50,0),0) -> 0 | J50: =IFERROR(HLOOKUP(TablasDinamicas!H$1,TablasDinamicas!$B$58:$N$91,$A50,0),0) -> 0 | K50: =IFERROR(HLOOKUP(TablasDinamicas!I$1,TablasDinamicas!$B$58:$N$91,$A50,0),0) -> 0 | L50: =IFERROR(HLOOKUP(TablasDinamicas!J$1,TablasDinamicas!$B$58:$N$91,$A50,0),0) -> 4 | M50: =IFERROR(HLOOKUP(TablasDinamicas!K$1,TablasDinamicas!$B$58:$N$91,$A50,0),0) -> 6 | N50: =IFERROR(HLOOKUP(TablasDinamicas!L$1,TablasDinamicas!$B$58:$N$91,$A50,0),0) -> 2 | O50: =IFERROR(HLOOKUP(TablasDinamicas!M$1,TablasDinamicas!$B$58:$N$91,$A50,0),0) -> 6 | P50: =IFERROR(HLOOKUP(TablasDinamicas!N$1,TablasDinamicas!$B$58:$N$91,$A50,0),0) -> 7
A51: =MATCH(Listas!$A20,TablasDinamicas!$A$58:$A$91,0) -> 19 | B51: Nuevo León | C51: 1 | D51: =IFERROR(HLOOKUP(TablasDinamicas!B$1,TablasDinamicas!$B$58:$N$91,$A51,0),0) -> 0 | E51: =IFERROR(HLOOKUP(TablasDinamicas!C$1,TablasDinamicas!$B$58:$N$91,$A51,0),0) -> 0 | F51: =IFERROR(HLOOKUP(TablasDinamicas!D$1,TablasDinamicas!$B$58:$N$91,$A51,0),0) -> 0 | G51: =IFERROR(HLOOKUP(TablasDinamicas!E$1,TablasDinamicas!$B$58:$N$91,$A51,0),0) -> 0 | H51: =IFERROR(HLOOKUP(TablasDinamicas!F$1,TablasDinamicas!$B$58:$N$91,$A51,0),0) -> 0 | I51: =IFERROR(HLOOKUP(TablasDinamicas!G$1,TablasDinamicas!$B$58:$N$91,$A51,0),0) -> 0 | J51: =IFERROR(HLOOKUP(TablasDinamicas!H$1,TablasDinamicas!$B$58:$N$91,$A51,0),0) -> 0 | K51: =IFERROR(HLOOKUP(TablasDinamicas!I$1,TablasDinamicas!$B$58:$N$91,$A51,0),0) -> 0 | L51: =IFERROR(HLOOKUP(TablasDinamicas!J$1,TablasDinamicas!$B$58:$N$91,$A51,0),0) -> 0 | M51: =IFERROR(HLOOKUP(TablasDinamicas!K$1,TablasDinamicas!$B$58:$N$91,$A51,0),0) -> 0 | N51: =IFERROR(HLOOKUP(TablasDinamicas!L$1,TablasDinamicas!$B$58:$N$91,$A51,0),0) -> 0 | O51: =IFERROR(HLOOKUP(TablasDinamicas!M$1,TablasDinamicas!$B$58:$N$91,$A51,0),0) -> 1 | P51: =IFERROR(HLOOKUP(TablasDinamicas!N$1,TablasDinamicas!$B$58:$N$91,$A51,0),0) -> 0
A52: =MATCH(Listas!$A21,TablasDinamicas!$A$58:$A$91,0) -> 20 | B52: Oaxaca | C52: 3 | D52: =IFERROR(HLOOKUP(TablasDinamicas!B$1,TablasDinamicas!$B$58:$N$91,$A52,0),0) -> 0 | E52: =IFERROR(HLOOKUP(TablasDinamicas!C$1,TablasDinamicas!$B$58:$N$91,$A52,0),0) -> 0 | F52: =IFERROR(HLOOKUP(TablasDinamicas!D$1,TablasDinamicas!$B$58:$N$91,$A52,0),0) -> 0 | G52: =IFERROR(HLOOKUP(TablasDinamicas!E$1,TablasDinamicas!$B$58:$N$91,$A52,0),0) -> 1 | H52: =IFERROR(HLOOKUP(TablasDinamicas!F$1,TablasDinamicas!$B$58:$N$91,$A52,0),0) -> 0 | I52: =IFERROR(HLOOKUP(TablasDinamicas!G$1,TablasDinamicas!$B$58:$N$91,$A52,0),0) -> 0 | J52: =IFERROR(HLOOKUP(TablasDinamicas!H$1,TablasDinamicas!$B$58:$N$91,$A52,0),0) -> 0 | K52: =IFERROR(HLOOKUP(TablasDinamicas!I$1,TablasDinamicas!$B$58:$N$91,$A52,0),0) -> 0 | L52: =IFERROR(HLOOKUP(TablasDinamicas!J$1,TablasDinamicas!$B$58:$N$91,$A52,0),0) -> 0 | M52: =IFERROR(HLOOKUP(TablasDinamicas!K$1,TablasDinamicas!$B$58:$N$91,$A52,0),0) -> 0 | N52: =IFERROR(HLOOKUP(TablasDinamicas!L$1,TablasDinamicas!$B$58:$N$91,$A52,0),0) -> 0 | O52: =IFERROR(HLOOKUP(TablasDinamicas!M$1,TablasDinamicas!$B$58:$N$91,$A52,0),0) -> 1 | P52: =IFERROR(HLOOKUP(TablasDinamicas!N$1,TablasDinamicas!$B$58:$N$91,$A52,0),0) -> 1
A53: =MATCH(Listas!$A22,TablasDinamicas!$A$58:$A$91,0) -> 21 | B53: Puebla | C53: 2 | D53: =IFERROR(HLOOKUP(TablasDinamicas!B$1,TablasDinamicas!$B$58:$N$91,$A53,0),0) -> 0 | E53: =IFERROR(HLOOKUP(TablasDinamicas!C$1,TablasDinamicas!$B$58:$N$91,$A53,0),0) -> 0 | F53: =IFERROR(HLOOKUP(TablasDinamicas!D$1,TablasDinamicas!$B$58:$N$91,$A53,0),0) -> 0 | G53: =IFERROR(HLOOKUP(TablasDinamicas!E$1,TablasDinamicas!$B$58:$N$91,$A53,0),0) -> 1 | H53: =IFERROR(HLOOKUP(TablasDinamicas!F$1,TablasDinamicas!$B$58:$N$91,$A53,0),0) -> 0 | I53: =IFERROR(HLOOKUP(TablasDinamicas!G$1,TablasDinamicas!$B$58:$N$91,$A53,0),0) -> 0 | J53: =IFERROR(HLOOKUP(TablasDinamicas!H$1,TablasDinamicas!$B$58:$N$91,$A53,0),0) -> 0 | K53: =IFERROR(HLOOKUP(TablasDinamicas!I$1,TablasDinamicas!$B$58:$N$91,$A53,0),0) -> 0 | L53: =IFERROR(HLOOKUP(TablasDinamicas!J$1,TablasDinamicas!$B$58:$N$91,$A53,0),0) -> 0 | M53: =IFERROR(HLOOKUP(TablasDinamicas!K$1,TablasDinamicas!$B$58:$N$91,$A53,0),0) -> 0 | N53: =IFERROR(HLOOKUP(TablasDinamicas!L$1,TablasDinamicas!$B$58:$N$91,$A53,0),0) -> 1 | O53: =IFERROR(HLOOKUP(TablasDinamicas!M$1,TablasDinamicas!$B$58:$N$91,$A53,0),0) -> 0 | P53: =IFERROR(HLOOKUP(TablasDinamicas!N$1,TablasDinamicas!$B$58:$N$91,$A53,0),0) -> 0
A54: =MATCH(Listas!$A23,TablasDinamicas!$A$58:$A$91,0) -> 22 | B54: Querétaro | C54: 2 | D54: =IFERROR(HLOOKUP(TablasDinamicas!B$1,TablasDinamicas!$B$58:$N$91,$A54,0),0) -> 0 | E54: =IFERROR(HLOOKUP(TablasDinamicas!C$1,TablasDinamicas!$B$58:$N$91,$A54,0),0) -> 0 | F54: =IFERROR(HLOOKUP(TablasDinamicas!D$1,TablasDinamicas!$B$58:$N$91,$A54,0),0) -> 0 | G54: =IFERROR(HLOOKUP(TablasDinamicas!E$1,TablasDinamicas!$B$58:$N$91,$A54,0),0) -> 0 | H54: =IFERROR(HLOOKUP(TablasDinamicas!F$1,TablasDinamicas!$B$58:$N$91,$A54,0),0) -> 0 | I54: =IFERROR(HLOOKUP(TablasDinamicas!G$1,TablasDinamicas!$B$58:$N$91,$A54,0),0) -> 0 | J54: =IFERROR(HLOOKUP(TablasDinamicas!H$1,TablasDinamicas!$B$58:$N$91,$A54,0),0) -> 0 | K54: =IFERROR(HLOOKUP(TablasDinamicas!I$1,TablasDinamicas!$B$58:$N$91,$A54,0),0) -> 0 | L54: =IFERROR(HLOOKUP(TablasDinamicas!J$1,TablasDinamicas!$B$58:$N$91,$A54,0),0) -> 0 | M54: =IFERROR(HLOOKUP(TablasDinamicas!K$1,TablasDinamicas!$B$58:$N$91,$A54,0),0) -> 1 | N54: =IFERROR(HLOOKUP(TablasDinamicas!L$1,TablasDinamicas!$B$58:$N$91,$A54,0),0) -> 0 | O54: =IFERROR(HLOOKUP(TablasDinamicas!M$1,TablasDinamicas!$B$58:$N$91,$A54,0),0) -> 1 | P54: =IFERROR(HLOOKUP(TablasDinamicas!N$1,TablasDinamicas!$B$58:$N$91,$A54,0),0) -> 0
A55: =MATCH(Listas!$A24,TablasDinamicas!$A$58:$A$91,0) -> 23 | B55: Quintana Roo | C55: 2 | D55: =IFERROR(HLOOKUP(TablasDinamicas!B$1,TablasDinamicas!$B$58:$N$91,$A55,0),0) -> 0 | E55: =IFERROR(HLOOKUP(TablasDinamicas!C$1,TablasDinamicas!$B$58:$N$91,$A55,0),0) -> 0 | F55: =IFERROR(HLOOKUP(TablasDinamicas!D$1,TablasDinamicas!$B$58:$N$91,$A55,0),0) -> 0 | G55: =IFERROR(HLOOKUP(TablasDinamicas!E$1,TablasDinamicas!$B$58:$N$91,$A55,0),0) -> 1 | H55: =IFERROR(HLOOKUP(TablasDinamicas!F$1,TablasDinamicas!$B$58:$N$91,$A55,0),0) -> 0 | I55: =IFERROR(HLOOKUP(TablasDinamicas!G$1,TablasDinamicas!$B$58:$N$91,$A55,0),0) -> 0 | J55: =IFERROR(HLOOKUP(TablasDinamicas!H$1,TablasDinamicas!$B$58:$N$91,$A55,0),0) -> 0 | K55: =IFERROR(HLOOKUP(TablasDinamicas!I$1,TablasDinamicas!$B$58:$N$91,$A55,0),0) -> 0 | L55: =IFERROR(HLOOKUP(TablasDinamicas!J$1,TablasDinamicas!$B$58:$N$91,$A55,0),0) -> 0 | M55: =IFERROR(HLOOKUP(TablasDinamicas!K$1,TablasDinamicas!$B$58:$N$91,$A55,0),0) -> 1 | N55: =IFERROR(HLOOKUP(TablasDinamicas!L$1,TablasDinamicas!$B$58:$N$91,$A55,0),0) -> 0 | O55: =IFERROR(HLOOKUP(TablasDinamicas!M$1,TablasDinamicas!$B$58:$N$91,$A55,0),0) -> 0 | P55: =IFERROR(HLOOKUP(TablasDinamicas!N$1,TablasDinamicas!$B$58:$N$91,$A55,0),0) -> 0
A56: =MATCH(Listas!$A25,TablasDinamicas!$A$58:$A$91,0) -> 24 | B56: San Luis Potosí | C56: 4 | D56: =IFERROR(HLOOKUP(TablasDinamicas!B$1,TablasDinamicas!$B$58:$N$91,$A56,0),0) -> 0 | E56: =IFERROR(HLOOKUP(TablasDinamicas!C$1,TablasDinamicas!$B$58:$N$91,$A56,0),0) -> 0 | F56: =IFERROR(HLOOKUP(TablasDinamicas!D$1,TablasDinamicas!$B$58:$N$91,$A56,0),0) -> 0 | G56: =IFERROR(HLOOKUP(TablasDinamicas!E$1,TablasDinamicas!$B$58:$N$91,$A56,0),0) -> 0 | H56: =IFERROR(HLOOKUP(TablasDinamicas!F$1,TablasDinamicas!$B$58:$N$91,$A56,0),0) -> 0 | I56: =IFERROR(HLOOKUP(TablasDinamicas!G$1,TablasDinamicas!$B$58:$N$91,$A56,0),0) -> 0 | J56: =IFERROR(HLOOKUP(TablasDinamicas!H$1,TablasDinamicas!$B$58:$N$91,$A56,0),0) -> 0 | K56: =IFERROR(HLOOKUP(TablasDinamicas!I$1,TablasDinamicas!$B$58:$N$91,$A56,0),0) -> 0 | L56: =IFERROR(HLOOKUP(TablasDinamicas!J$1,TablasDinamicas!$B$58:$N$91,$A56,0),0) -> 1 | M56: =IFERROR(HLOOKUP(TablasDinamicas!K$1,TablasDinamicas!$B$58:$N$91,$A56,0),0) -> 1 | N56: =IFERROR(HLOOKUP(TablasDinamicas!L$1,TablasDinamicas!$B$58:$N$91,$A56,0),0) -> 0 | O56: =IFERROR(HLOOKUP(TablasDinamicas!M$1,TablasDinamicas!$B$58:$N$91,$A56,0),0) -> 2 | P56: =IFERROR(HLOOKUP(TablasDinamicas!N$1,TablasDinamicas!$B$58:$N$91,$A56,0),0) -> 0
A57: =MATCH(Listas!$A26,TablasDinamicas!$A$58:$A$91,0) -> 25 | B57: Sinaloa | C57: 12 | D57: =IFERROR(HLOOKUP(TablasDinamicas!B$1,TablasDinamicas!$B$58:$N$91,$A57,0),0) -> 0 | E57: =IFERROR(HLOOKUP(TablasDinamicas!C$1,TablasDinamicas!$B$58:$N$91,$A57,0),0) -> 0 | F57: =IFERROR(HLOOKUP(TablasDinamicas!D$1,TablasDinamicas!$B$58:$N$91,$A57,0),0) -> 0 | G57: =IFERROR(HLOOKUP(TablasDinamicas!E$1,TablasDinamicas!$B$58:$N$91,$A57,0),0) -> 2 | H57: =IFERROR(HLOOKUP(TablasDinamicas!F$1,TablasDinamicas!$B$58:$N$91,$A57,0),0) -> 0 | I57: =IFERROR(HLOOKUP(TablasDinamicas!G$1,TablasDinamicas!$B$58:$N$91,$A57,0),0) -> 0 | J57: =IFERROR(HLOOKUP(TablasDinamicas!H$1,TablasDinamicas!$B$58:$N$91,$A57,0),0) -> 0 | K57: =IFERROR(HLOOKUP(TablasDinamicas!I$1,TablasDinamicas!$B$58:$N$91,$A57,0),0) -> 0 | L57: =IFERROR(HLOOKUP(TablasDinamicas!J$1,TablasDinamicas!$B$58:$N$91,$A57,0),0) -> 1 | M57: =IFERROR(HLOOKUP(TablasDinamicas!K$1,TablasDinamicas!$B$58:$N$91,$A57,0),0) -> 1 | N57: =IFERROR(HLOOKUP(TablasDinamicas!L$1,TablasDinamicas!$B$58:$N$91,$A57,0),0) -> 0 | O57: =IFERROR(HLOOKUP(TablasDinamicas!M$1,TablasDinamicas!$B$58:$N$91,$A57,0),0) -> 3 | P57: =IFERROR(HLOOKUP(TablasDinamicas!N$1,TablasDinamicas!$B$58:$N$91,$A57,0),0) -> 5
A58: =MATCH(Listas!$A27,TablasDinamicas!$A$58:$A$91,0) -> 26 | B58: Sonora | C58: 12 | D58: =IFERROR(HLOOKUP(TablasDinamicas!B$1,TablasDinamicas!$B$58:$N$91,$A58,0),0) -> 0 | E58: =IFERROR(HLOOKUP(TablasDinamicas!C$1,TablasDinamicas!$B$58:$N$91,$A58,0),0) -> 0 | F58: =IFERROR(HLOOKUP(TablasDinamicas!D$1,TablasDinamicas!$B$58:$N$91,$A58,0),0) -> 0 | G58: =IFERROR(HLOOKUP(TablasDinamicas!E$1,TablasDinamicas!$B$58:$N$91,$A58,0),0) -> 1 | H58: =IFERROR(HLOOKUP(TablasDinamicas!F$1,TablasDinamicas!$B$58:$N$91,$A58,0),0) -> 0 | I58: =IFERROR(HLOOKUP(TablasDinamicas!G$1,TablasDinamicas!$B$58:$N$91,$A58,0),0) -> 0 | J58: =IFERROR(HLOOKUP(TablasDinamicas!H$1,TablasDinamicas!$B$58:$N$91,$A58,0),0) -> 0 | K58: =IFERROR(HLOOKUP(TablasDinamicas!I$1,TablasDinamicas!$B$58:$N$91,$A58,0),0) -> 0 | L58: =IFERROR(HLOOKUP(TablasDinamicas!J$1,TablasDinamicas!$B$58:$N$91,$A58,0),0) -> 1 | M58: =IFERROR(HLOOKUP(TablasDinamicas!K$1,TablasDinamicas!$B$58:$N$91,$A58,0),0) -> 2 | N58: =IFERROR(HLOOKUP(TablasDinamicas!L$1,TablasDinamicas!$B$58:$N$91,$A58,0),0) -> 0 | O58: =IFERROR(HLOOKUP(TablasDinamicas!M$1,TablasDinamicas!$B$58:$N$91,$A58,0),0) -> 1 | P58: =IFERROR(HLOOKUP(TablasDinamicas!N$1,TablasDinamicas!$B$58:$N$91,$A58,0),0) -> 7
A59: =MATCH(Listas!$A28,TablasDinamicas!$A$58:$A$91,0) ->  | B59: Tabasco | C59: 0 | D59: =IFERROR(HLOOKUP(TablasDinamicas!B$1,TablasDinamicas!$B$58:$N$91,$A59,0),0) -> 0 | E59: =IFERROR(HLOOKUP(TablasDinamicas!C$1,TablasDinamicas!$B$58:$N$91,$A59,0),0) -> 0 | F59: =IFERROR(HLOOKUP(TablasDinamicas!D$1,TablasDinamicas!$B$58:$N$91,$A59,0),0) -> 0 | G59: =IFERROR(HLOOKUP(TablasDinamicas!E$1,TablasDinamicas!$B$58:$N$91,$A59,0),0) -> 0 | H59: =IFERROR(HLOOKUP(TablasDinamicas!F$1,TablasDinamicas!$B$58:$N$91,$A59,0),0) -> 0 | I59: =IFERROR(HLOOKUP(TablasDinamicas!G$1,TablasDinamicas!$B$58:$N$91,$A59,0),0) -> 0 | J59: =IFERROR(HLOOKUP(TablasDinamicas!H$1,TablasDinamicas!$B$58:$N$91,$A59,0),0) -> 0 | K59: =IFERROR(HLOOKUP(TablasDinamicas!I$1,TablasDinamicas!$B$58:$N$91,$A59,0),0) -> 0 | L59: =IFERROR(HLOOKUP(TablasDinamicas!J$1,TablasDinamicas!$B$58:$N$91,$A59,0),0) -> 0 | M59: =IFERROR(HLOOKUP(TablasDinamicas!K$1,TablasDinamicas!$B$58:$N$91,$A59,0),0) -> 0 | N59: =IFERROR(HLOOKUP(TablasDinamicas!L$1,TablasDinamicas!$B$58:$N$91,$A59,0),0) -> 0 | O59: =IFERROR(HLOOKUP(TablasDinamicas!M$1,TablasDinamicas!$B$58:$N$91,$A59,0),0) -> 0 | P59: =IFERROR(HLOOKUP(TablasDinamicas!N$1,TablasDinamicas!$B$58:$N$91,$A59,0),0) -> 0
A60: =MATCH(Listas!$A29,TablasDinamicas!$A$58:$A$91,0) -> 27 | B60: Tamaulipas | C60: 6 | D60: =IFERROR(HLOOKUP(TablasDinamicas!B$1,TablasDinamicas!$B$58:$N$91,$A60,0),0) -> 0 | E60: =IFERROR(HLOOKUP(TablasDinamicas!C$1,TablasDinamicas!$B$58:$N$91,$A60,0),0) -> 0 | F60: =IFERROR(HLOOKUP(TablasDinamicas!D$1,TablasDinamicas!$B$58:$N$91,$A60,0),0) -> 0 | G60: =IFERROR(HLOOKUP(TablasDinamicas!E$1,TablasDinamicas!$B$58:$N$91,$A60,0),0) -> 2 | H60: =IFERROR(HLOOKUP(TablasDinamicas!F$1,TablasDinamicas!$B$58:$N$91,$A60,0),0) -> 0 | I60: =IFERROR(HLOOKUP(TablasDinamicas!G$1,TablasDinamicas!$B$58:$N$91,$A60,0),0) -> 0 | J60: =IFERROR(HLOOKUP(TablasDinamicas!H$1,TablasDinamicas!$B$58:$N$91,$A60,0),0) -> 0 | K60: =IFERROR(HLOOKUP(TablasDinamicas!I$1,TablasDinamicas!$B$58:$N$91,$A60,0),0) -> 0 | L60: =IFERROR(HLOOKUP(TablasDinamicas!J$1,TablasDinamicas!$B$58:$N$91,$A60,0),0) -> 2 | M60: =IFERROR(HLOOKUP(TablasDinamicas!K$1,TablasDinamicas!$B$58:$N$91,$A60,0),0) -> 0 | N60: =IFERROR(HLOOKUP(TablasDinamicas!L$1,TablasDinamicas!$B$58:$N$91,$A60,0),0) -> 0 | O60: =IFERROR(HLOOKUP(TablasDinamicas!M$1,TablasDinamicas!$B$58:$N$91,$A60,0),0) -> 1 | P60: =IFERROR(HLOOKUP(TablasDinamicas!N$1,TablasDinamicas!$B$58:$N$91,$A60,0),0) -> 1
A61: =MATCH(Listas!$A30,TablasDinamicas!$A$58:$A$91,0) -> 28 | B61: Tlaxcala | C61: 1 | D61: =IFERROR(HLOOKUP(TablasDinamicas!B$1,TablasDinamicas!$B$58:$N$91,$A61,0),0) -> 0 | E61: =IFERROR(HLOOKUP(TablasDinamicas!C$1,TablasDinamicas!$B$58:$N$91,$A61,0),0) -> 0 | F61: =IFERROR(HLOOKUP(TablasDinamicas!D$1,TablasDinamicas!$B$58:$N$91,$A61,0),0) -> 0 | G61: =IFERROR(HLOOKUP(TablasDinamicas!E$1,TablasDinamicas!$B$58:$N$91,$A61,0),0) -> 1 | H61: =IFERROR(HLOOKUP(TablasDinamicas!F$1,TablasDinamicas!$B$58:$N$91,$A61,0),0) -> 0 | I61: =IFERROR(HLOOKUP(TablasDinamicas!G$1,TablasDinamicas!$B$58:$N$91,$A61,0),0) -> 0 | J61: =IFERROR(HLOOKUP(TablasDinamicas!H$1,TablasDinamicas!$B$58:$N$91,$A61,0),0) -> 0 | K61: =IFERROR(HLOOKUP(TablasDinamicas!I$1,TablasDinamicas!$B$58:$N$91,$A61,0),0) -> 0 | L61: =IFERROR(HLOOKUP(TablasDinamicas!J$1,TablasDinamicas!$B$58:$N$91,$A61,0),0) -> 0 | M61: =IFERROR(HLOOKUP(TablasDinamicas!K$1,TablasDinamicas!$B$58:$N$91,$A61,0),0) -> 0 | N61: =IFERROR(HLOOKUP(TablasDinamicas!L$1,TablasDinamicas!$B$58:$N$91,$A61,0),0) -> 0 | O61: =IFERROR(HLOOKUP(TablasDinamicas!M$1,TablasDinamicas!$B$58:$N$91,$A61,0),0) -> 0 | P61: =IFERROR(HLOOKUP(TablasDinamicas!N$1,TablasDinamicas!$B$58:$N$91,$A61,0),0) -> 0
A62: =MATCH(Listas!$A31,TablasDinamicas!$A$58:$A$91,0) -> 29 | B62: Veracruz | C62: 1 | D62: =IFERROR(HLOOKUP(TablasDinamicas!B$1,TablasDinamicas!$B$58:$N$91,$A62,0),0) -> 0 | E62: =IFERROR(HLOOKUP(TablasDinamicas!C$1,TablasDinamicas!$B$58:$N$91,$A62,0),0) -> 0 | F62: =IFERROR(HLOOKUP(TablasDinamicas!D$1,TablasDinamicas!$B$58:$N$91,$A62,0),0) -> 0 | G62: =IFERROR(HLOOKUP(TablasDinamicas!E$1,TablasDinamicas!$B$58:$N$91,$A62,0),0) -> 0 | H62: =IFERROR(HLOOKUP(TablasDinamicas!F$1,TablasDinamicas!$B$58:$N$91,$A62,0),0) -> 0 | I62: =IFERROR(HLOOKUP(TablasDinamicas!G$1,TablasDinamicas!$B$58:$N$91,$A62,0),0) -> 0 | J62: =IFERROR(HLOOKUP(TablasDinamicas!H$1,TablasDinamicas!$B$58:$N$91,$A62,0),0) -> 0 | K62: =IFERROR(HLOOKUP(TablasDinamicas!I$1,TablasDinamicas!$B$58:$N$91,$A62,0),0) -> 0 | L62: =IFERROR(HLOOKUP(TablasDinamicas!J$1,TablasDinamicas!$B$58:$N$91,$A62,0),0) -> 0 | M62: =IFERROR(HLOOKUP(TablasDinamicas!K$1,TablasDinamicas!$B$58:$N$91,$A62,0),0) -> 0 | N62: =IFERROR(HLOOKUP(TablasDinamicas!L$1,TablasDinamicas!$B$58:$N$91,$A62,0),0) -> 0 | O62: =IFERROR(HLOOKUP(TablasDinamicas!M$1,TablasDinamicas!$B$58:$N$91,$A62,0),0) -> 1 | P62: =IFERROR(HLOOKUP(TablasDinamicas!N$1,TablasDinamicas!$B$58:$N$91,$A62,0),0) -> 0
A63: =MATCH(Listas!$A32,TablasDinamicas!$A$58:$A$91,0) -> 30 | B63: Yucatán | C63: 1 | D63: =IFERROR(HLOOKUP(TablasDinamicas!B$1,TablasDinamicas!$B$58:$N$91,$A63,0),0) -> 0 | E63: =IFERROR(HLOOKUP(TablasDinamicas!C$1,TablasDinamicas!$B$58:$N$91,$A63,0),0) -> 0 | F63: =IFERROR(HLOOKUP(TablasDinamicas!D$1,TablasDinamicas!$B$58:$N$91,$A63,0),0) -> 0 | G63: =IFERROR(HLOOKUP(TablasDinamicas!E$1,TablasDinamicas!$B$58:$N$91,$A63,0),0) -> 0 | H63: =IFERROR(HLOOKUP(TablasDinamicas!F$1,TablasDinamicas!$B$58:$N$91,$A63,0),0) -> 0 | I63: =IFERROR(HLOOKUP(TablasDinamicas!G$1,TablasDinamicas!$B$58:$N$91,$A63,0),0) -> 0 | J63: =IFERROR(HLOOKUP(TablasDinamicas!H$1,TablasDinamicas!$B$58:$N$91,$A63,0),0) -> 0 | K63: =IFERROR(HLOOKUP(TablasDinamicas!I$1,TablasDinamicas!$B$58:$N$91,$A63,0),0) -> 0 | L63: =IFERROR(HLOOKUP(TablasDinamicas!J$1,TablasDinamicas!$B$58:$N$91,$A63,0),0) -> 0 | M63: =IFERROR(HLOOKUP(TablasDinamicas!K$1,TablasDinamicas!$B$58:$N$91,$A63,0),0) -> 1 | N63: =IFERROR(HLOOKUP(TablasDinamicas!L$1,TablasDinamicas!$B$58:$N$91,$A63,0),0) -> 0 | O63: =IFERROR(HLOOKUP(TablasDinamicas!M$1,TablasDinamicas!$B$58:$N$91,$A63,0),0) -> 0 | P63: =IFERROR(HLOOKUP(TablasDinamicas!N$1,TablasDinamicas!$B$58:$N$91,$A63,0),0) -> 0
A64: =MATCH(Listas!$A33,TablasDinamicas!$A$58:$A$91,0) -> 31 | B64: Zacatecas | C64: 40 | D64: =IFERROR(HLOOKUP(TablasDinamicas!B$1,TablasDinamicas!$B$58:$N$91,$A64,0),0) -> 3 | E64: =IFERROR(HLOOKUP(TablasDinamicas!C$1,TablasDinamicas!$B$58:$N$91,$A64,0),0) -> 0 | F64: =IFERROR(HLOOKUP(TablasDinamicas!D$1,TablasDinamicas!$B$58:$N$91,$A64,0),0) -> 3 | G64: =IFERROR(HLOOKUP(TablasDinamicas!E$1,TablasDinamicas!$B$58:$N$91,$A64,0),0) -> 6 | H64: =IFERROR(HLOOKUP(TablasDinamicas!F$1,TablasDinamicas!$B$58:$N$91,$A64,0),0) -> 0 | I64: =IFERROR(HLOOKUP(TablasDinamicas!G$1,TablasDinamicas!$B$58:$N$91,$A64,0),0) -> 1 | J64: =IFERROR(HLOOKUP(TablasDinamicas!H$1,TablasDinamicas!$B$58:$N$91,$A64,0),0) -> 0 | K64: =IFERROR(HLOOKUP(TablasDinamicas!I$1,TablasDinamicas!$B$58:$N$91,$A64,0),0) -> 0 | L64: =IFERROR(HLOOKUP(TablasDinamicas!J$1,TablasDinamicas!$B$58:$N$91,$A64,0),0) -> 5 | M64: =IFERROR(HLOOKUP(TablasDinamicas!K$1,TablasDinamicas!$B$58:$N$91,$A64,0),0) -> 5 | N64: =IFERROR(HLOOKUP(TablasDinamicas!L$1,TablasDinamicas!$B$58:$N$91,$A64,0),0) -> 1 | O64: =IFERROR(HLOOKUP(TablasDinamicas!M$1,TablasDinamicas!$B$58:$N$91,$A64,0),0) -> 7 | P64: =IFERROR(HLOOKUP(TablasDinamicas!N$1,TablasDinamicas!$B$58:$N$91,$A64,0),0) -> 9
A65: =MATCH(Listas!$A34,TablasDinamicas!$A$58:$A$91,0) -> 32 | B65: Otro Estado | C65: 38 | D65: =IFERROR(HLOOKUP(TablasDinamicas!B$1,TablasDinamicas!$B$58:$N$91,$A65,0),0) -> 0 | E65: =IFERROR(HLOOKUP(TablasDinamicas!C$1,TablasDinamicas!$B$58:$N$91,$A65,0),0) -> 0 | F65: =IFERROR(HLOOKUP(TablasDinamicas!D$1,TablasDinamicas!$B$58:$N$91,$A65,0),0) -> 7 | G65: =IFERROR(HLOOKUP(TablasDinamicas!E$1,TablasDinamicas!$B$58:$N$91,$A65,0),0) -> 8 | H65: =IFERROR(HLOOKUP(TablasDinamicas!F$1,TablasDinamicas!$B$58:$N$91,$A65,0),0) -> 0 | I65: =IFERROR(HLOOKUP(TablasDinamicas!G$1,TablasDinamicas!$B$58:$N$91,$A65,0),0) -> 2 | J65: =IFERROR(HLOOKUP(TablasDinamicas!H$1,TablasDinamicas!$B$58:$N$91,$A65,0),0) -> 0 | K65: =IFERROR(HLOOKUP(TablasDinamicas!I$1,TablasDinamicas!$B$58:$N$91,$A65,0),0) -> 0 | L65: =IFERROR(HLOOKUP(TablasDinamicas!J$1,TablasDinamicas!$B$58:$N$91,$A65,0),0) -> 0 | M65: =IFERROR(HLOOKUP(TablasDinamicas!K$1,TablasDinamicas!$B$58:$N$91,$A65,0),0) -> 7 | N65: =IFERROR(HLOOKUP(TablasDinamicas!L$1,TablasDinamicas!$B$58:$N$91,$A65,0),0) -> 0 | O65: =IFERROR(HLOOKUP(TablasDinamicas!M$1,TablasDinamicas!$B$58:$N$91,$A65,0),0) -> 5 | P65: =IFERROR(HLOOKUP(TablasDinamicas!N$1,TablasDinamicas!$B$58:$N$91,$A65,0),0) -> 9
A66: =MATCH(Listas!$A35,TablasDinamicas!$A$58:$A$91,0) -> 33 | B66: Otro País | C66: 3 | D66: =IFERROR(HLOOKUP(TablasDinamicas!B$1,TablasDinamicas!$B$58:$N$91,$A66,0),0) -> 0 | E66: =IFERROR(HLOOKUP(TablasDinamicas!C$1,TablasDinamicas!$B$58:$N$91,$A66,0),0) -> 0 | F66: =IFERROR(HLOOKUP(TablasDinamicas!D$1,TablasDinamicas!$B$58:$N$91,$A66,0),0) -> 0 | G66: =IFERROR(HLOOKUP(TablasDinamicas!E$1,TablasDinamicas!$B$58:$N$91,$A66,0),0) -> 2 | H66: =IFERROR(HLOOKUP(TablasDinamicas!F$1,TablasDinamicas!$B$58:$N$91,$A66,0),0) -> 0 | I66: =IFERROR(HLOOKUP(TablasDinamicas!G$1,TablasDinamicas!$B$58:$N$91,$A66,0),0) -> 0 | J66: =IFERROR(HLOOKUP(TablasDinamicas!H$1,TablasDinamicas!$B$58:$N$91,$A66,0),0) -> 0 | K66: =IFERROR(HLOOKUP(TablasDinamicas!I$1,TablasDinamicas!$B$58:$N$91,$A66,0),0) -> 0 | L66: =IFERROR(HLOOKUP(TablasDinamicas!J$1,TablasDinamicas!$B$58:$N$91,$A66,0),0) -> 0 | M66: =IFERROR(HLOOKUP(TablasDinamicas!K$1,TablasDinamicas!$B$58:$N$91,$A66,0),0) -> 0 | N66: =IFERROR(HLOOKUP(TablasDinamicas!L$1,TablasDinamicas!$B$58:$N$91,$A66,0),0) -> 0 | O66: =IFERROR(HLOOKUP(TablasDinamicas!M$1,TablasDinamicas!$B$58:$N$91,$A66,0),0) -> 1 | P66: =IFERROR(HLOOKUP(TablasDinamicas!N$1,TablasDinamicas!$B$58:$N$91,$A66,0),0) -> 0
B68: Municipio de Residencia | C68: Estatal | D68: Colotlán | E68: Lagos de M | F68: Tepatitlán | G68: La Barca | H68: Tamazula | I68: Zapotlán | J68: Autlán | K68: Vallarta | L68: Ameca | M68: Zapopan | N68: Tonalá | O68: Tlaquepaque | P68: Guadalajara
A69: =MATCH(B69,TablasDinamicas!$A$97:$A$222,0) -> 2 | B69: Acatic | C69: =SUM(D69:P69) -> 47 | D69: =IFERROR(HLOOKUP(TablasDinamicas!B$1,TablasDinamicas!$B$97:$N$222,$A69,0),0) -> 0 | E69: =IFERROR(HLOOKUP(TablasDinamicas!C$1,TablasDinamicas!$B$97:$N$222,$A69,0),0) -> 0 | F69: =IFERROR(HLOOKUP(TablasDinamicas!D$1,TablasDinamicas!$B$97:$N$222,$A69,0),0) -> 12 | G69: =IFERROR(HLOOKUP(TablasDinamicas!E$1,TablasDinamicas!$B$97:$N$222,$A69,0),0) -> 17 | H69: =IFERROR(HLOOKUP(TablasDinamicas!F$1,TablasDinamicas!$B$97:$N$222,$A69,0),0) -> 0 | I69: =IFERROR(HLOOKUP(TablasDinamicas!G$1,TablasDinamicas!$B$97:$N$222,$A69,0),0) -> 0 | J69: =IFERROR(HLOOKUP(TablasDinamicas!H$1,TablasDinamicas!$B$97:$N$222,$A69,0),0) -> 0 | K69: =IFERROR(HLOOKUP(TablasDinamicas!I$1,TablasDinamicas!$B$97:$N$222,$A69,0),0) -> 0 | L69: =IFERROR(HLOOKUP(TablasDinamicas!J$1,TablasDinamicas!$B$97:$N$222,$A69,0),0) -> 0 | M69: =IFERROR(HLOOKUP(TablasDinamicas!K$1,TablasDinamicas!$B$97:$N$222,$A69,0),0) -> 3 | N69: =IFERROR(HLOOKUP(TablasDinamicas!L$1,TablasDinamicas!$B$97:$N$222,$A69,0),0) -> 3 | O69: =IFERROR(HLOOKUP(TablasDinamicas!M$1,TablasDinamicas!$B$97:$N$222,$A69,0),0) -> 7 | P69: =IFERROR(HLOOKUP(TablasDinamicas!N$1,TablasDinamicas!$B$97:$N$222,$A69,0),0) -> 5
A70: =MATCH(B70,TablasDinamicas!$A$97:$A$222,0) -> 3 | B70: Acatlán de Juárez | C70: 32 | D70: =IFERROR(HLOOKUP(TablasDinamicas!B$1,TablasDinamicas!$B$97:$N$222,$A70,0),0) -> 0 | E70: =IFERROR(HLOOKUP(TablasDinamicas!C$1,TablasDinamicas!$B$97:$N$222,$A70,0),0) -> 0 | F70: =IFERROR(HLOOKUP(TablasDinamicas!D$1,TablasDinamicas!$B$97:$N$222,$A70,0),0) -> 0 | G70: =IFERROR(HLOOKUP(TablasDinamicas!E$1,TablasDinamicas!$B$97:$N$222,$A70,0),0) -> 7 | H70: =IFERROR(HLOOKUP(TablasDinamicas!F$1,TablasDinamicas!$B$97:$N$222,$A70,0),0) -> 0 | I70: =IFERROR(HLOOKUP(TablasDinamicas!G$1,TablasDinamicas!$B$97:$N$222,$A70,0),0) -> 3 | J70: =IFERROR(HLOOKUP(TablasDinamicas!H$1,TablasDinamicas!$B$97:$N$222,$A70,0),0) -> 0 | K70: =IFERROR(HLOOKUP(TablasDinamicas!I$1,TablasDinamicas!$B$97:$N$222,$A70,0),0) -> 0 | L70: =IFERROR(HLOOKUP(TablasDinamicas!J$1,TablasDinamicas!$B$97:$N$222,$A70,0),0) -> 5 | M70: =IFERROR(HLOOKUP(TablasDinamicas!K$1,TablasDinamicas!$B$97:$N$222,$A70,0),0) -> 2 | N70: =IFERROR(HLOOKUP(TablasDinamicas!L$1,TablasDinamicas!$B$97:$N$222,$A70,0),0) -> 1 | O70: =IFERROR(HLOOKUP(TablasDinamicas!M$1,TablasDinamicas!$B$97:$N$222,$A70,0),0) -> 9 | P70: =IFERROR(HLOOKUP(TablasDinamicas!N$1,TablasDinamicas!$B$97:$N$222,$A70,0),0) -> 5
A71: =MATCH(B71,TablasDinamicas!$A$97:$A$222,0) -> 4 | B71: Ahualulco de Mercado | C71: 11 | D71: =IFERROR(HLOOKUP(TablasDinamicas!B$1,TablasDinamicas!$B$97:$N$222,$A71,0),0) -> 0 | E71: =IFERROR(HLOOKUP(TablasDinamicas!C$1,TablasDinamicas!$B$97:$N$222,$A71,0),0) -> 0 | F71: =IFERROR(HLOOKUP(TablasDinamicas!D$1,TablasDinamicas!$B$97:$N$222,$A71,0),0) -> 0 | G71: =IFERROR(HLOOKUP(TablasDinamicas!E$1,TablasDinamicas!$B$97:$N$222,$A71,0),0) -> 1 | H71: =IFERROR(HLOOKUP(TablasDinamicas!F$1,TablasDinamicas!$B$97:$N$222,$A71,0),0) -> 0 | I71: =IFERROR(HLOOKUP(TablasDinamicas!G$1,TablasDinamicas!$B$97:$N$222,$A71,0),0) -> 0 | J71: =IFERROR(HLOOKUP(TablasDinamicas!H$1,TablasDinamicas!$B$97:$N$222,$A71,0),0) -> 0 | K71: =IFERROR(HLOOKUP(TablasDinamicas!I$1,TablasDinamicas!$B$97:$N$222,$A71,0),0) -> 0 | L71: =IFERROR(HLOOKUP(TablasDinamicas!J$1,TablasDinamicas!$B$97:$N$222,$A71,0),0) -> 5 | M71: =IFERROR(HLOOKUP(TablasDinamicas!K$1,TablasDinamicas!$B$97:$N$222,$A71,0),0) -> 0 | N71: =IFERROR(HLOOKUP(TablasDinamicas!L$1,TablasDinamicas!$B$97:$N$222,$A71,0),0) -> 3 | O71: =IFERROR(HLOOKUP(TablasDinamicas!M$1,TablasDinamicas!$B$97:$N$222,$A71,0),0) -> 1 | P71: =IFERROR(HLOOKUP(TablasDinamicas!N$1,TablasDinamicas!$B$97:$N$222,$A71,0),0) -> 1
A72: =MATCH(B72,TablasDinamicas!$A$97:$A$222,0) -> 5 | B72: Amacueca | C72: 13 | D72: =IFERROR(HLOOKUP(TablasDinamicas!B$1,TablasDinamicas!$B$97:$N$222,$A72,0),0) -> 0 | E72: =IFERROR(HLOOKUP(TablasDinamicas!C$1,TablasDinamicas!$B$97:$N$222,$A72,0),0) -> 0 | F72: =IFERROR(HLOOKUP(TablasDinamicas!D$1,TablasDinamicas!$B$97:$N$222,$A72,0),0) -> 0 | G72: =IFERROR(HLOOKUP(TablasDinamicas!E$1,TablasDinamicas!$B$97:$N$222,$A72,0),0) -> 1 | H72: =IFERROR(HLOOKUP(TablasDinamicas!F$1,TablasDinamicas!$B$97:$N$222,$A72,0),0) -> 0 | I72: =IFERROR(HLOOKUP(TablasDinamicas!G$1,TablasDinamicas!$B$97:$N$222,$A72,0),0) -> 2 | J72: =IFERROR(HLOOKUP(TablasDinamicas!H$1,TablasDinamicas!$B$97:$N$222,$A72,0),0) -> 1 | K72: =IFERROR(HLOOKUP(TablasDinamicas!I$1,TablasDinamicas!$B$97:$N$222,$A72,0),0) -> 1 | L72: =IFERROR(HLOOKUP(TablasDinamicas!J$1,TablasDinamicas!$B$97:$N$222,$A72,0),0) -> 2 | M72: =IFERROR(HLOOKUP(TablasDinamicas!K$1,TablasDinamicas!$B$97:$N$222,$A72,0),0) -> 1 | N72: =IFERROR(HLOOKUP(TablasDinamicas!L$1,TablasDinamicas!$B$97:$N$222,$A72,0),0) -> 1 | O72: =IFERROR(HLOOKUP(TablasDinamicas!M$1,TablasDinamicas!$B$97:$N$222,$A72,0),0) -> 0 | P72: =IFERROR(HLOOKUP(TablasDinamicas!N$1,TablasDinamicas!$B$97:$N$222,$A72,0),0) -> 4
A73: =MATCH(B73,TablasDinamicas!$A$97:$A$222,0) -> 6 | B73: Amatitán | C73: 14 | D73: =IFERROR(HLOOKUP(TablasDinamicas!B$1,TablasDinamicas!$B$97:$N$222,$A73,0),0) -> 0 | E73: =IFERROR(HLOOKUP(TablasDinamicas!C$1,TablasDinamicas!$B$97:$N$222,$A73,0),0) -> 0 | F73: =IFERROR(HLOOKUP(TablasDinamicas!D$1,TablasDinamicas!$B$97:$N$222,$A73,0),0) -> 0 | G73: =IFERROR(HLOOKUP(TablasDinamicas!E$1,TablasDinamicas!$B$97:$N$222,$A73,0),0) -> 2 | H73: =IFERROR(HLOOKUP(TablasDinamicas!F$1,TablasDinamicas!$B$97:$N$222,$A73,0),0) -> 0 | I73: =IFERROR(HLOOKUP(TablasDinamicas!G$1,TablasDinamicas!$B$97:$N$222,$A73,0),0) -> 2 | J73: =IFERROR(HLOOKUP(TablasDinamicas!H$1,TablasDinamicas!$B$97:$N$222,$A73,0),0) -> 0 | K73: =IFERROR(HLOOKUP(TablasDinamicas!I$1,TablasDinamicas!$B$97:$N$222,$A73,0),0) -> 0 | L73: =IFERROR(HLOOKUP(TablasDinamicas!J$1,TablasDinamicas!$B$97:$N$222,$A73,0),0) -> 3 | M73: =IFERROR(HLOOKUP(TablasDinamicas!K$1,TablasDinamicas!$B$97:$N$222,$A73,0),0) -> 4 | N73: =IFERROR(HLOOKUP(TablasDinamicas!L$1,TablasDinamicas!$B$97:$N$222,$A73,0),0) -> 0 | O73: =IFERROR(HLOOKUP(TablasDinamicas!M$1,TablasDinamicas!$B$97:$N$222,$A73,0),0) -> 1 | P73: =IFERROR(HLOOKUP(TablasDinamicas!N$1,TablasDinamicas!$B$97:$N$222,$A73,0),0) -> 2
A74: =MATCH(B74,TablasDinamicas!$A$97:$A$222,0) -> 7 | B74: Ameca | C74: 66 | D74: =IFERROR(HLOOKUP(TablasDinamicas!B$1,TablasDinamicas!$B$97:$N$222,$A74,0),0) -> 0 | E74: =IFERROR(HLOOKUP(TablasDinamicas!C$1,TablasDinamicas!$B$97:$N$222,$A74,0),0) -> 0 | F74: =IFERROR(HLOOKUP(TablasDinamicas!D$1,TablasDinamicas!$B$97:$N$222,$A74,0),0) -> 1 | G74: =IFERROR(HLOOKUP(TablasDinamicas!E$1,TablasDinamicas!$B$97:$N$222,$A74,0),0) -> 0 | H74: =IFERROR(HLOOKUP(TablasDinamicas!F$1,TablasDinamicas!$B$97:$N$222,$A74,0),0) -> 0 | I74: =IFERROR(HLOOKUP(TablasDinamicas!G$1,TablasDinamicas!$B$97:$N$222,$A74,0),0) -> 0 | J74: =IFERROR(HLOOKUP(TablasDinamicas!H$1,TablasDinamicas!$B$97:$N$222,$A74,0),0) -> 0 | K74: =IFERROR(HLOOKUP(TablasDinamicas!I$1,TablasDinamicas!$B$97:$N$222,$A74,0),0) -> 0 | L74: =IFERROR(HLOOKUP(TablasDinamicas!J$1,TablasDinamicas!$B$97:$N$222,$A74,0),0) -> 49 | M74: =IFERROR(HLOOKUP(TablasDinamicas!K$1,TablasDinamicas!$B$97:$N$222,$A74,0),0) -> 2 | N74: =IFERROR(HLOOKUP(TablasDinamicas!L$1,TablasDinamicas!$B$97:$N$222,$A74,0),0) -> 0 | O74: =IFERROR(HLOOKUP(TablasDinamicas!M$1,TablasDinamicas!$B$97:$N$222,$A74,0),0) -> 4 | P74: =IFERROR(HLOOKUP(TablasDinamicas!N$1,TablasDinamicas!$B$97:$N$222,$A74,0),0) -> 10
A75: =MATCH(B75,TablasDinamicas!$A$97:$A$222,0) -> 8 | B75: Arandas | C75: 145 | D75: =IFERROR(HLOOKUP(TablasDinamicas!B$1,TablasDinamicas!$B$97:$N$222,$A75,0),0) -> 0 | E75: =IFERROR(HLOOKUP(TablasDinamicas!C$1,TablasDinamicas!$B$97:$N$222,$A75,0),0) -> 0 | F75: =IFERROR(HLOOKUP(TablasDinamicas!D$1,TablasDinamicas!$B$97:$N$222,$A75,0),0) -> 94 | G75: =IFERROR(HLOOKUP(TablasDinamicas!E$1,TablasDinamicas!$B$97:$N$222,$A75,0),0) -> 36 | H75: =IFERROR(HLOOKUP(TablasDinamicas!F$1,TablasDinamicas!$B$97:$N$222,$A75,0),0) -> 0 | I75: =IFERROR(HLOOKUP(TablasDinamicas!G$1,TablasDinamicas!$B$97:$N$222,$A75,0),0) -> 0 | J75: =IFERROR(HLOOKUP(TablasDinamicas!H$1,TablasDinamicas!$B$97:$N$222,$A75,0),0) -> 0 | K75: =IFERROR(HLOOKUP(TablasDinamicas!I$1,TablasDinamicas!$B$97:$N$222,$A75,0),0) -> 0 | L75: =IFERROR(HLOOKUP(TablasDinamicas!J$1,TablasDinamicas!$B$97:$N$222,$A75,0),0) -> 0 | M75: =IFERROR(HLOOKUP(TablasDinamicas!K$1,TablasDinamicas!$B$97:$N$222,$A75,0),0) -> 4 | N75: =IFERROR(HLOOKUP(TablasDinamicas!L$1,TablasDinamicas!$B$97:$N$222,$A75,0),0) -> 8 | O75: =IFERROR(HLOOKUP(TablasDinamicas!M$1,TablasDinamicas!$B$97:$N$222,$A75,0),0) -> 0 | P75: =IFERROR(HLOOKUP(TablasDinamicas!N$1,TablasDinamicas!$B$97:$N$222,$A75,0),0) -> 3
A76: =MATCH(B76,TablasDinamicas!$A$97:$A$222,0) -> 9 | B76: Atemajac de Brizuela | C76: 7 | D76: =IFERROR(HLOOKUP(TablasDinamicas!B$1,TablasDinamicas!$B$97:$N$222,$A76,0),0) -> 0 | E76: =IFERROR(HLOOKUP(TablasDinamicas!C$1,TablasDinamicas!$B$97:$N$222,$A76,0),0) -> 0 | F76: =IFERROR(HLOOKUP(TablasDinamicas!D$1,TablasDinamicas!$B$97:$N$222,$A76,0),0) -> 0 | G76: =IFERROR(HLOOKUP(TablasDinamicas!E$1,TablasDinamicas!$B$97:$N$222,$A76,0),0) -> 0 | H76: =IFERROR(HLOOKUP(TablasDinamicas!F$1,TablasDinamicas!$B$97:$N$222,$A76,0),0) -> 0 | I76: =IFERROR(HLOOKUP(TablasDinamicas!G$1,TablasDinamicas!$B$97:$N$222,$A76,0),0) -> 1 | J76: =IFERROR(HLOOKUP(TablasDinamicas!H$1,TablasDinamicas!$B$97:$N$222,$A76,0),0) -> 0 | K76: =IFERROR(HLOOKUP(TablasDinamicas!I$1,TablasDinamicas!$B$97:$N$222,$A76,0),0) -> 0 | L76: =IFERROR(HLOOKUP(TablasDinamicas!J$1,TablasDinamicas!$B$97:$N$222,$A76,0),0) -> 0 | M76: =IFERROR(HLOOKUP(TablasDinamicas!K$1,TablasDinamicas!$B$97:$N$222,$A76,0),0) -> 2 | N76: =IFERROR(HLOOKUP(TablasDinamicas!L$1,TablasDinamicas!$B$97:$N$222,$A76,0),0) -> 0 | O76: =IFERROR(HLOOKUP(TablasDinamicas!M$1,TablasDinamicas!$B$97:$N$222,$A76,0),0) -> 1 | P76: =IFERROR(HLOOKUP(TablasDinamicas!N$1,TablasDinamicas!$B$97:$N$222,$A76,0),0) -> 3
A77: =MATCH(B77,TablasDinamicas!$A$97:$A$222,0) -> 10 | B77: Atengo | C77: 13 | D77: =IFERROR(HLOOKUP(TablasDinamicas!B$1,TablasDinamicas!$B$97:$N$222,$A77,0),0) -> 0 | E77: =IFERROR(HLOOKUP(TablasDinamicas!C$1,TablasDinamicas!$B$97:$N$222,$A77,0),0) -> 0 | F77: =IFERROR(HLOOKUP(TablasDinamicas!D$1,TablasDinamicas!$B$97:$N$222,$A77,0),0) -> 0 | G77: =IFERROR(HLOOKUP(TablasDinamicas!E$1,TablasDinamicas!$B$97:$N$222,$A77,0),0) -> 9 | H77: =IFERROR(HLOOKUP(TablasDinamicas!F$1,TablasDinamicas!$B$97:$N$222,$A77,0),0) -> 0 | I77: =IFERROR(HLOOKUP(TablasDinamicas!G$1,TablasDinamicas!$B$97:$N$222,$A77,0),0) -> 0 | J77: =IFERROR(HLOOKUP(TablasDinamicas!H$1,TablasDinamicas!$B$97:$N$222,$A77,0),0) -> 1 | K77: =IFERROR(HLOOKUP(TablasDinamicas!I$1,TablasDinamicas!$B$97:$N$222,$A77,0),0) -> 0 | L77: =IFERROR(HLOOKUP(TablasDinamicas!J$1,TablasDinamicas!$B$97:$N$222,$A77,0),0) -> 1 | M77: =IFERROR(HLOOKUP(TablasDinamicas!K$1,TablasDinamicas!$B$97:$N$222,$A77,0),0) -> 0 | N77: =IFERROR(HLOOKUP(TablasDinamicas!L$1,TablasDinamicas!$B$97:$N$222,$A77,0),0) -> 0 | O77: =IFERROR(HLOOKUP(TablasDinamicas!M$1,TablasDinamicas!$B$97:$N$222,$A77,0),0) -> 2 | P77: =IFERROR(HLOOKUP(TablasDinamicas!N$1,TablasDinamicas!$B$97:$N$222,$A77,0),0) -> 0
A78: =MATCH(B78,TablasDinamicas!$A$97:$A$222,0) -> 11 | B78: Atenguillo | C78: 12 | D78: =IFERROR(HLOOKUP(TablasDinamicas!B$1,TablasDinamicas!$B$97:$N$222,$A78,0),0) -> 0 | E78: =IFERROR(HLOOKUP(TablasDinamicas!C$1,TablasDinamicas!$B$97:$N$222,$A78,0),0) -> 0 | F78: =IFERROR(HLOOKUP(TablasDinamicas!D$1,TablasDinamicas!$B$97:$N$222,$A78,0),0) -> 0 | G78: =IFERROR(HLOOKUP(TablasDinamicas!E$1,TablasDinamicas!$B$97:$N$222,$A78,0),0) -> 2 | H78: =IFERROR(HLOOKUP(TablasDinamicas!F$1,TablasDinamicas!$B$97:$N$222,$A78,0),0) -> 0 | I78: =IFERROR(HLOOKUP(TablasDinamicas!G$1,TablasDinamicas!$B$97:$N$222,$A78,0),0) -> 0 | J78: =IFERROR(HLOOKUP(TablasDinamicas!H$1,TablasDinamicas!$B$97:$N$222,$A78,0),0) -> 0 | K78: =IFERROR(HLOOKUP(TablasDinamicas!I$1,TablasDinamicas!$B$97:$N$222,$A78,0),0) -> 3 | L78: =IFERROR(HLOOKUP(TablasDinamicas!J$1,TablasDinamicas!$B$97:$N$222,$A78,0),0) -> 1 | M78: =IFERROR(HLOOKUP(TablasDinamicas!K$1,TablasDinamicas!$B$97:$N$222,$A78,0),0) -> 2 | N78: =IFERROR(HLOOKUP(TablasDinamicas!L$1,TablasDinamicas!$B$97:$N$222,$A78,0),0) -> 0 | O78: =IFERROR(HLOOKUP(TablasDinamicas!M$1,TablasDinamicas!$B$97:$N$222,$A78,0),0) -> 2 | P78: =IFERROR(HLOOKUP(TablasDinamicas!N$1,TablasDinamicas!$B$97:$N$222,$A78,0),0) -> 2
A79: =MATCH(B79,TablasDinamicas!$A$97:$A$222,0) -> 12 | B79: Atotonilco el Alto | C79: 84 | D79: =IFERROR(HLOOKUP(TablasDinamicas!B$1,TablasDinamicas!$B$97:$N$222,$A79,0),0) -> 0 | E79: =IFERROR(HLOOKUP(TablasDinamicas!C$1,TablasDinamicas!$B$97:$N$222,$A79,0),0) -> 0 | F79: =IFERROR(HLOOKUP(TablasDinamicas!D$1,TablasDinamicas!$B$97:$N$222,$A79,0),0) -> 10 | G79: =IFERROR(HLOOKUP(TablasDinamicas!E$1,TablasDinamicas!$B$97:$N$222,$A79,0),0) -> 57 | H79: =IFERROR(HLOOKUP(TablasDinamicas!F$1,TablasDinamicas!$B$97:$N$222,$A79,0),0) -> 0 | I79: =IFERROR(HLOOKUP(TablasDinamicas!G$1,TablasDinamicas!$B$97:$N$222,$A79,0),0) -> 0 | J79: =IFERROR(HLOOKUP(TablasDinamicas!H$1,TablasDinamicas!$B$97:$N$222,$A79,0),0) -> 0 | K79: =IFERROR(HLOOKUP(TablasDinamicas!I$1,TablasDinamicas!$B$97:$N$222,$A79,0),0) -> 0 | L79: =IFERROR(HLOOKUP(TablasDinamicas!J$1,TablasDinamicas!$B$97:$N$222,$A79,0),0) -> 0 | M79: =IFERROR(HLOOKUP(TablasDinamicas!K$1,TablasDinamicas!$B$97:$N$222,$A79,0),0) -> 1 | N79: =IFERROR(HLOOKUP(TablasDinamicas!L$1,TablasDinamicas!$B$97:$N$222,$A79,0),0) -> 2 | O79: =IFERROR(HLOOKUP(TablasDinamicas!M$1,TablasDinamicas!$B$97:$N$222,$A79,0),0) -> 3 | P79: =IFERROR(HLOOKUP(TablasDinamicas!N$1,TablasDinamicas!$B$97:$N$222,$A79,0),0) -> 11
A80: =MATCH(B80,TablasDinamicas!$A$97:$A$222,0) -> 13 | B80: Atoyac | C80: 9 | D80: =IFERROR(HLOOKUP(TablasDinamicas!B$1,TablasDinamicas!$B$97:$N$222,$A80,0),0) -> 0 | E80: =IFERROR(HLOOKUP(TablasDinamicas!C$1,TablasDinamicas!$B$97:$N$222,$A80,0),0) -> 0 | F80: =IFERROR(HLOOKUP(TablasDinamicas!D$1,TablasDinamicas!$B$97:$N$222,$A80,0),0) -> 0 | G80: =IFERROR(HLOOKUP(TablasDinamicas!E$1,TablasDinamicas!$B$97:$N$222,$A80,0),0) -> 1 | H80: =IFERROR(HLOOKUP(TablasDinamicas!F$1,TablasDinamicas!$B$97:$N$222,$A80,0),0) -> 0 | I80: =IFERROR(HLOOKUP(TablasDinamicas!G$1,TablasDinamicas!$B$97:$N$222,$A80,0),0) -> 2 | J80: =IFERROR(HLOOKUP(TablasDinamicas!H$1,TablasDinamicas!$B$97:$N$222,$A80,0),0) -> 0 | K80: =IFERROR(HLOOKUP(TablasDinamicas!I$1,TablasDinamicas!$B$97:$N$222,$A80,0),0) -> 0 | L80: =IFERROR(HLOOKUP(TablasDinamicas!J$1,TablasDinamicas!$B$97:$N$222,$A80,0),0) -> 0 | M80: =IFERROR(HLOOKUP(TablasDinamicas!K$1,TablasDinamicas!$B$97:$N$222,$A80,0),0) -> 1 | N80: =IFERROR(HLOOKUP(TablasDinamicas!L$1,TablasDinamicas!$B$97:$N$222,$A80,0),0) -> 0 | O80: =IFERROR(HLOOKUP(TablasDinamicas!M$1,TablasDinamicas!$B$97:$N$222,$A80,0),0) -> 4 | P80: =IFERROR(HLOOKUP(TablasDinamicas!N$1,TablasDinamicas!$B$97:$N$222,$A80,0),0) -> 1
A81: =MATCH(B81,TablasDinamicas!$A$97:$A$222,0) -> 14 | B81: Autlán de Navarro | C81: 91 | D81: =IFERROR(HLOOKUP(TablasDinamicas!B$1,TablasDinamicas!$B$97:$N$222,$A81,0),0) -> 0 | E81: =IFERROR(HLOOKUP(TablasDinamicas!C$1,TablasDinamicas!$B$97:$N$222,$A81,0),0) -> 0 | F81: =IFERROR(HLOOKUP(TablasDinamicas!D$1,TablasDinamicas!$B$97:$N$222,$A81,0),0) -> 0 | G81: =IFERROR(HLOOKUP(TablasDinamicas!E$1,TablasDinamicas!$B$97:$N$222,$A81,0),0) -> 2 | H81: =IFERROR(HLOOKUP(TablasDinamicas!F$1,TablasDinamicas!$B$97:$N$222,$A81,0),0) -> 0 | I81: =IFERROR(HLOOKUP(TablasDinamicas!G$1,TablasDinamicas!$B$97:$N$222,$A81,0),0) -> 2 | J81: =IFERROR(HLOOKUP(TablasDinamicas!H$1,TablasDinamicas!$B$97:$N$222,$A81,0),0) -> 75 | K81: =IFERROR(HLOOKUP(TablasDinamicas!I$1,TablasDinamicas!$B$97:$N$222,$A81,0),0) -> 0 | L81: =IFERROR(HLOOKUP(TablasDinamicas!J$1,TablasDinamicas!$B$97:$N$222,$A81,0),0) -> 3 | M81: =IFERROR(HLOOKUP(TablasDinamicas!K$1,TablasDinamicas!$B$97:$N$222,$A81,0),0) -> 4 | N81: =IFERROR(HLOOKUP(TablasDinamicas!L$1,TablasDinamicas!$B$97:$N$222,$A81,0),0) -> 0 | O81: =IFERROR(HLOOKUP(TablasDinamicas!M$1,TablasDinamicas!$B$97:$N$222,$A81,0),0) -> 2 | P81: =IFERROR(HLOOKUP(TablasDinamicas!N$1,TablasDinamicas!$B$97:$N$222,$A81,0),0) -> 3
A82: =MATCH(B82,TablasDinamicas!$A$97:$A$222,0) -> 15 | B82: Ayotlán | C82: 34 | D82: =IFERROR(HLOOKUP(TablasDinamicas!B$1,TablasDinamicas!$B$97:$N$222,$A82,0),0) -> 0 | E82: =IFERROR(HLOOKUP(TablasDinamicas!C$1,TablasDinamicas!$B$97:$N$222,$A82,0),0) -> 0 | F82: =IFERROR(HLOOKUP(TablasDinamicas!D$1,TablasDinamicas!$B$97:$N$222,$A82,0),0) -> 6 | G82: =IFERROR(HLOOKUP(TablasDinamicas!E$1,TablasDinamicas!$B$97:$N$222,$A82,0),0) -> 24 | H82: =IFERROR(HLOOKUP(TablasDinamicas!F$1,TablasDinamicas!$B$97:$N$222,$A82,0),0) -> 0 | I82: =IFERROR(HLOOKUP(TablasDinamicas!G$1,TablasDinamicas!$B$97:$N$222,$A82,0),0) -> 0 | J82: =IFERROR(HLOOKUP(TablasDinamicas!H$1,TablasDinamicas!$B$97:$N$222,$A82,0),0) -> 0 | K82: =IFERROR(HLOOKUP(TablasDinamicas!I$1,TablasDinamicas!$B$97:$N$222,$A82,0),0) -> 0 | L82: =IFERROR(HLOOKUP(TablasDinamicas!J$1,TablasDinamicas!$B$97:$N$222,$A82,0),0) -> 0 | M82: =IFERROR(HLOOKUP(TablasDinamicas!K$1,TablasDinamicas!$B$97:$N$222,$A82,0),0) -> 0 | N82: =IFERROR(HLOOKUP(TablasDinamicas!L$1,TablasDinamicas!$B$97:$N$222,$A82,0),0) -> 0 | O82: =IFERROR(HLOOKUP(TablasDinamicas!M$1,TablasDinamicas!$B$97:$N$222,$A82,0),0) -> 1 | P82: =IFERROR(HLOOKUP(TablasDinamicas!N$1,TablasDinamicas!$B$97:$N$222,$A82,0),0) -> 3
A83: =MATCH(B83,TablasDinamicas!$A$97:$A$222,0) -> 16 | B83: Ayutla | C83: 27 | D83: =IFERROR(HLOOKUP(TablasDinamicas!B$1,TablasDinamicas!$B$97:$N$222,$A83,0),0) -> 0 | E83: =IFERROR(HLOOKUP(TablasDinamicas!C$1,TablasDinamicas!$B$97:$N$222,$A83,0),0) -> 0 | F83: =IFERROR(HLOOKUP(TablasDinamicas!D$1,TablasDinamicas!$B$97:$N$222,$A83,0),0) -> 2 | G83: =IFERROR(HLOOKUP(TablasDinamicas!E$1,TablasDinamicas!$B$97:$N$222,$A83,0),0) -> 7 | H83: =IFERROR(HLOOKUP(TablasDinamicas!F$1,TablasDinamicas!$B$97:$N$222,$A83,0),0) -> 0 | I83: =IFERROR(HLOOKUP(TablasDinamicas!G$1,TablasDinamicas!$B$97:$N$222,$A83,0),0) -> 0 | J83: =IFERROR(HLOOKUP(TablasDinamicas!H$1,TablasDinamicas!$B$97:$N$222,$A83,0),0) -> 0 | K83: =IFERROR(HLOOKUP(TablasDinamicas!I$1,TablasDinamicas!$B$97:$N$222,$A83,0),0) -> 0 | L83: =IFERROR(HLOOKUP(TablasDinamicas!J$1,TablasDinamicas!$B$97:$N$222,$A83,0),0) -> 3 | M83: =IFERROR(HLOOKUP(TablasDinamicas!K$1,TablasDinamicas!$B$97:$N$222,$A83,0),0) -> 3 | N83: =IFERROR(HLOOKUP(TablasDinamicas!L$1,TablasDinamicas!$B$97:$N$222,$A83,0),0) -> 2 | O83: =IFERROR(HLOOKUP(TablasDinamicas!M$1,TablasDinamicas!$B$97:$N$222,$A83,0),0) -> 8 | P83: =IFERROR(HLOOKUP(TablasDinamicas!N$1,TablasDinamicas!$B$97:$N$222,$A83,0),0) -> 2
A84: =MATCH(B84,TablasDinamicas!$A$97:$A$222,0) -> 17 | B84: Bolaños | C84: 4 | D84: =IFERROR(HLOOKUP(TablasDinamicas!B$1,TablasDinamicas!$B$97:$N$222,$A84,0),0) -> 1 | E84: =IFERROR(HLOOKUP(TablasDinamicas!C$1,TablasDinamicas!$B$97:$N$222,$A84,0),0) -> 0 | F84: =IFERROR(HLOOKUP(TablasDinamicas!D$1,TablasDinamicas!$B$97:$N$222,$A84,0),0) -> 0 | G84: =IFERROR(HLOOKUP(TablasDinamicas!E$1,TablasDinamicas!$B$97:$N$222,$A84,0),0) -> 1 | H84: =IFERROR(HLOOKUP(TablasDinamicas!F$1,TablasDinamicas!$B$97:$N$222,$A84,0),0) -> 0 | I84: =IFERROR(HLOOKUP(TablasDinamicas!G$1,TablasDinamicas!$B$97:$N$222,$A84,0),0) -> 0 | J84: =IFERROR(HLOOKUP(TablasDinamicas!H$1,TablasDinamicas!$B$97:$N$222,$A84,0),0) -> 0 | K84: =IFERROR(HLOOKUP(TablasDinamicas!I$1,TablasDinamicas!$B$97:$N$222,$A84,0),0) -> 0 | L84: =IFERROR(HLOOKUP(TablasDinamicas!J$1,TablasDinamicas!$B$97:$N$222,$A84,0),0) -> 0 | M84: =IFERROR(HLOOKUP(TablasDinamicas!K$1,TablasDinamicas!$B$97:$N$222,$A84,0),0) -> 0 | N84: =IFERROR(HLOOKUP(TablasDinamicas!L$1,TablasDinamicas!$B$97:$N$222,$A84,0),0) -> 0 | O84: =IFERROR(HLOOKUP(TablasDinamicas!M$1,TablasDinamicas!$B$97:$N$222,$A84,0),0) -> 0 | P84: =IFERROR(HLOOKUP(TablasDinamicas!N$1,TablasDinamicas!$B$97:$N$222,$A84,0),0) -> 2
A85: =MATCH(B85,TablasDinamicas!$A$97:$A$222,0) -> 18 | B85: Cabo Corrientes | C85: 28 | D85: =IFERROR(HLOOKUP(TablasDinamicas!B$1,TablasDinamicas!$B$97:$N$222,$A85,0),0) -> 0 | E85: =IFERROR(HLOOKUP(TablasDinamicas!C$1,TablasDinamicas!$B$97:$N$222,$A85,0),0) -> 0 | F85: =IFERROR(HLOOKUP(TablasDinamicas!D$1,TablasDinamicas!$B$97:$N$222,$A85,0),0) -> 1 | G85: =IFERROR(HLOOKUP(TablasDinamicas!E$1,TablasDinamicas!$B$97:$N$222,$A85,0),0) -> 3 | H85: =IFERROR(HLOOKUP(TablasDinamicas!F$1,TablasDinamicas!$B$97:$N$222,$A85,0),0) -> 0 | I85: =IFERROR(HLOOKUP(TablasDinamicas!G$1,TablasDinamicas!$B$97:$N$222,$A85,0),0) -> 1 | J85: =IFERROR(HLOOKUP(TablasDinamicas!H$1,TablasDinamicas!$B$97:$N$222,$A85,0),0) -> 0 | K85: =IFERROR(HLOOKUP(TablasDinamicas!I$1,TablasDinamicas!$B$97:$N$222,$A85,0),0) -> 3 | L85: =IFERROR(HLOOKUP(TablasDinamicas!J$1,TablasDinamicas!$B$97:$N$222,$A85,0),0) -> 0 | M85: =IFERROR(HLOOKUP(TablasDinamicas!K$1,TablasDinamicas!$B$97:$N$222,$A85,0),0) -> 2 | N85: =IFERROR(HLOOKUP(TablasDinamicas!L$1,TablasDinamicas!$B$97:$N$222,$A85,0),0) -> 1 | O85: =IFERROR(HLOOKUP(TablasDinamicas!M$1,TablasDinamicas!$B$97:$N$222,$A85,0),0) -> 6 | P85: =IFERROR(HLOOKUP(TablasDinamicas!N$1,TablasDinamicas!$B$97:$N$222,$A85,0),0) -> 11
A86: =MATCH(B86,TablasDinamicas!$A$97:$A$222,0) -> 19 | B86: Cañadas de Obregón | C86: 1 | D86: =IFERROR(HLOOKUP(TablasDinamicas!B$1,TablasDinamicas!$B$97:$N$222,$A86,0),0) -> 0 | E86: =IFERROR(HLOOKUP(TablasDinamicas!C$1,TablasDinamicas!$B$97:$N$222,$A86,0),0) -> 0 | F86: =IFERROR(HLOOKUP(TablasDinamicas!D$1,TablasDinamicas!$B$97:$N$222,$A86,0),0) -> 0 | G86: =IFERROR(HLOOKUP(TablasDinamicas!E$1,TablasDinamicas!$B$97:$N$222,$A86,0),0) -> 1 | H86: =IFERROR(HLOOKUP(TablasDinamicas!F$1,TablasDinamicas!$B$97:$N$222,$A86,0),0) -> 0 | I86: =IFERROR(HLOOKUP(TablasDinamicas!G$1,TablasDinamicas!$B$97:$N$222,$A86,0),0) -> 0 | J86: =IFERROR(HLOOKUP(TablasDinamicas!H$1,TablasDinamicas!$B$97:$N$222,$A86,0),0) -> 0 | K86: =IFERROR(HLOOKUP(TablasDinamicas!I$1,TablasDinamicas!$B$97:$N$222,$A86,0),0) -> 0 | L86: =IFERROR(HLOOKUP(TablasDinamicas!J$1,TablasDinamicas!$B$97:$N$222,$A86,0),0) -> 0 | M86: =IFERROR(HLOOKUP(TablasDinamicas!K$1,TablasDinamicas!$B$97:$N$222,$A86,0),0) -> 0 | N86: =IFERROR(HLOOKUP(TablasDinamicas!L$1,TablasDinamicas!$B$97:$N$222,$A86,0),0) -> 0 | O86: =IFERROR(HLOOKUP(TablasDinamicas!M$1,TablasDinamicas!$B$97:$N$222,$A86,0),0) -> 0 | P86: =IFERROR(HLOOKUP(TablasDinamicas!N$1,TablasDinamicas!$B$97:$N$222,$A86,0),0) -> 0
A87: =MATCH(B87,TablasDinamicas!$A$97:$A$222,0) -> 20 | B87: Casimiro Castillo | C87: 7 | D87: =IFERROR(HLOOKUP(TablasDinamicas!B$1,TablasDinamicas!$B$97:$N$222,$A87,0),0) -> 0 | E87: =IFERROR(HLOOKUP(TablasDinamicas!C$1,TablasDinamicas!$B$97:$N$222,$A87,0),0) -> 0 | F87: =IFERROR(HLOOKUP(TablasDinamicas!D$1,TablasDinamicas!$B$97:$N$222,$A87,0),0) -> 0 | G87: =IFERROR(HLOOKUP(TablasDinamicas!E$1,TablasDinamicas!$B$97:$N$222,$A87,0),0) -> 0 | H87: =IFERROR(HLOOKUP(TablasDinamicas!F$1,TablasDinamicas!$B$97:$N$222,$A87,0),0) -> 0 | I87: =IFERROR(HLOOKUP(TablasDinamicas!G$1,TablasDinamicas!$B$97:$N$222,$A87,0),0) -> 0 | J87: =IFERROR(HLOOKUP(TablasDinamicas!H$1,TablasDinamicas!$B$97:$N$222,$A87,0),0) -> 6 | K87: =IFERROR(HLOOKUP(TablasDinamicas!I$1,TablasDinamicas!$B$97:$N$222,$A87,0),0) -> 0 | L87: =IFERROR(HLOOKUP(TablasDinamicas!J$1,TablasDinamicas!$B$97:$N$222,$A87,0),0) -> 0 | M87: =IFERROR(HLOOKUP(TablasDinamicas!K$1,TablasDinamicas!$B$97:$N$222,$A87,0),0) -> 0 | N87: =IFERROR(HLOOKUP(TablasDinamicas!L$1,TablasDinamicas!$B$97:$N$222,$A87,0),0) -> 0 | O87: =IFERROR(HLOOKUP(TablasDinamicas!M$1,TablasDinamicas!$B$97:$N$222,$A87,0),0) -> 0 | P87: =IFERROR(HLOOKUP(TablasDinamicas!N$1,TablasDinamicas!$B$97:$N$222,$A87,0),0) -> 1
A88: =MATCH(B88,TablasDinamicas!$A$97:$A$222,0) -> 21 | B88: Chapala | C88: 108 | D88: =IFERROR(HLOOKUP(TablasDinamicas!B$1,TablasDinamicas!$B$97:$N$222,$A88,0),0) -> 2 | E88: =IFERROR(HLOOKUP(TablasDinamicas!C$1,TablasDinamicas!$B$97:$N$222,$A88,0),0) -> 0 | F88: =IFERROR(HLOOKUP(TablasDinamicas!D$1,TablasDinamicas!$B$97:$N$222,$A88,0),0) -> 0 | G88: =IFERROR(HLOOKUP(TablasDinamicas!E$1,TablasDinamicas!$B$97:$N$222,$A88,0),0) -> 74 | H88: =IFERROR(HLOOKUP(TablasDinamicas!F$1,TablasDinamicas!$B$97:$N$222,$A88,0),0) -> 0 | I88: =IFERROR(HLOOKUP(TablasDinamicas!G$1,TablasDinamicas!$B$97:$N$222,$A88,0),0) -> 0 | J88: =IFERROR(HLOOKUP(TablasDinamicas!H$1,TablasDinamicas!$B$97:$N$222,$A88,0),0) -> 0 | K88: =IFERROR(HLOOKUP(TablasDinamicas!I$1,TablasDinamicas!$B$97:$N$222,$A88,0),0) -> 0 | L88: =IFERROR(HLOOKUP(TablasDinamicas!J$1,TablasDinamicas!$B$97:$N$222,$A88,0),0) -> 1 | M88: =IFERROR(HLOOKUP(TablasDinamicas!K$1,TablasDinamicas!$B$97:$N$222,$A88,0),0) -> 4 | N88: =IFERROR(HLOOKUP(TablasDinamicas!L$1,TablasDinamicas!$B$97:$N$222,$A88,0),0) -> 1 | O88: =IFERROR(HLOOKUP(TablasDinamicas!M$1,TablasDinamicas!$B$97:$N$222,$A88,0),0) -> 18 | P88: =IFERROR(HLOOKUP(TablasDinamicas!N$1,TablasDinamicas!$B$97:$N$222,$A88,0),0) -> 8
A89: =MATCH(B89,TablasDinamicas!$A$97:$A$222,0) -> 22 | B89: Chimaltitán | C89: 3 | D89: =IFERROR(HLOOKUP(TablasDinamicas!B$1,TablasDinamicas!$B$97:$N$222,$A89,0),0) -> 1 | E89: =IFERROR(HLOOKUP(TablasDinamicas!C$1,TablasDinamicas!$B$97:$N$222,$A89,0),0) -> 0 | F89: =IFERROR(HLOOKUP(TablasDinamicas!D$1,TablasDinamicas!$B$97:$N$222,$A89,0),0) -> 0 | G89: =IFERROR(HLOOKUP(TablasDinamicas!E$1,TablasDinamicas!$B$97:$N$222,$A89,0),0) -> 1 | H89: =IFERROR(HLOOKUP(TablasDinamicas!F$1,TablasDinamicas!$B$97:$N$222,$A89,0),0) -> 0 | I89: =IFERROR(HLOOKUP(TablasDinamicas!G$1,TablasDinamicas!$B$97:$N$222,$A89,0),0) -> 0 | J89: =IFERROR(HLOOKUP(TablasDinamicas!H$1,TablasDinamicas!$B$97:$N$222,$A89,0),0) -> 0 | K89: =IFERROR(HLOOKUP(TablasDinamicas!I$1,TablasDinamicas!$B$97:$N$222,$A89,0),0) -> 0 | L89: =IFERROR(HLOOKUP(TablasDinamicas!J$1,TablasDinamicas!$B$97:$N$222,$A89,0),0) -> 0 | M89: =IFERROR(HLOOKUP(TablasDinamicas!K$1,TablasDinamicas!$B$97:$N$222,$A89,0),0) -> 0 | N89: =IFERROR(HLOOKUP(TablasDinamicas!L$1,TablasDinamicas!$B$97:$N$222,$A89,0),0) -> 0 | O89: =IFERROR(HLOOKUP(TablasDinamicas!M$1,TablasDinamicas!$B$97:$N$222,$A89,0),0) -> 0 | P89: =IFERROR(HLOOKUP(TablasDinamicas!N$1,TablasDinamicas!$B$97:$N$222,$A89,0),0) -> 1
A90: =MATCH(B90,TablasDinamicas!$A$97:$A$222,0) -> 23 | B90: Chiquilistlán | C90: 5 | D90: =IFERROR(HLOOKUP(TablasDinamicas!B$1,TablasDinamicas!$B$97:$N$222,$A90,0),0) -> 0 | E90: =IFERROR(HLOOKUP(TablasDinamicas!C$1,TablasDinamicas!$B$97:$N$222,$A90,0),0) -> 0 | F90: =IFERROR(HLOOKUP(TablasDinamicas!D$1,TablasDinamicas!$B$97:$N$222,$A90,0),0) -> 0 | G90: =IFERROR(HLOOKUP(TablasDinamicas!E$1,TablasDinamicas!$B$97:$N$222,$A90,0),0) -> 2 | H90: =IFERROR(HLOOKUP(TablasDinamicas!F$1,TablasDinamicas!$B$97:$N$222,$A90,0),0) -> 0 | I90: =IFERROR(HLOOKUP(TablasDinamicas!G$1,TablasDinamicas!$B$97:$N$222,$A90,0),0) -> 0 | J90: =IFERROR(HLOOKUP(TablasDinamicas!H$1,TablasDinamicas!$B$97:$N$222,$A90,0),0) -> 0 | K90: =IFERROR(HLOOKUP(TablasDinamicas!I$1,TablasDinamicas!$B$97:$N$222,$A90,0),0) -> 0 | L90: =IFERROR(HLOOKUP(TablasDinamicas!J$1,TablasDinamicas!$B$97:$N$222,$A90,0),0) -> 2 | M90: =IFERROR(HLOOKUP(TablasDinamicas!K$1,TablasDinamicas!$B$97:$N$222,$A90,0),0) -> 0 | N90: =IFERROR(HLOOKUP(TablasDinamicas!L$1,TablasDinamicas!$B$97:$N$222,$A90,0),0) -> 0 | O90: =IFERROR(HLOOKUP(TablasDinamicas!M$1,TablasDinamicas!$B$97:$N$222,$A90,0),0) -> 0 | P90: =IFERROR(HLOOKUP(TablasDinamicas!N$1,TablasDinamicas!$B$97:$N$222,$A90,0),0) -> 1
A91: =MATCH(B91,TablasDinamicas!$A$97:$A$222,0) -> 24 | B91: Cihuatlán | C91: 6 | D91: =IFERROR(HLOOKUP(TablasDinamicas!B$1,TablasDinamicas!$B$97:$N$222,$A91,0),0) -> 0 | E91: =IFERROR(HLOOKUP(TablasDinamicas!C$1,TablasDinamicas!$B$97:$N$222,$A91,0),0) -> 0 | F91: =IFERROR(HLOOKUP(TablasDinamicas!D$1,TablasDinamicas!$B$97:$N$222,$A91,0),0) -> 0 | G91: =IFERROR(HLOOKUP(TablasDinamicas!E$1,TablasDinamicas!$B$97:$N$222,$A91,0),0) -> 0 | H91: =IFERROR(HLOOKUP(TablasDinamicas!F$1,TablasDinamicas!$B$97:$N$222,$A91,0),0) -> 0 | I91: =IFERROR(HLOOKUP(TablasDinamicas!G$1,TablasDinamicas!$B$97:$N$222,$A91,0),0) -> 0 | J91: =IFERROR(HLOOKUP(TablasDinamicas!H$1,TablasDinamicas!$B$97:$N$222,$A91,0),0) -> 1 | K91: =IFERROR(HLOOKUP(TablasDinamicas!I$1,TablasDinamicas!$B$97:$N$222,$A91,0),0) -> 0 | L91: =IFERROR(HLOOKUP(TablasDinamicas!J$1,TablasDinamicas!$B$97:$N$222,$A91,0),0) -> 0 | M91: =IFERROR(HLOOKUP(TablasDinamicas!K$1,TablasDinamicas!$B$97:$N$222,$A91,0),0) -> 0 | N91: =IFERROR(HLOOKUP(TablasDinamicas!L$1,TablasDinamicas!$B$97:$N$222,$A91,0),0) -> 0 | O91: =IFERROR(HLOOKUP(TablasDinamicas!M$1,TablasDinamicas!$B$97:$N$222,$A91,0),0) -> 2 | P91: =IFERROR(HLOOKUP(TablasDinamicas!N$1,TablasDinamicas!$B$97:$N$222,$A91,0),0) -> 3
A92: =MATCH(B92,TablasDinamicas!$A$97:$A$222,0) -> 25 | B92: Cocula | C92: 21 | D92: =IFERROR(HLOOKUP(TablasDinamicas!B$1,TablasDinamicas!$B$97:$N$222,$A92,0),0) -> 0 | E92: =IFERROR(HLOOKUP(TablasDinamicas!C$1,TablasDinamicas!$B$97:$N$222,$A92,0),0) -> 0 | F92: =IFERROR(HLOOKUP(TablasDinamicas!D$1,TablasDinamicas!$B$97:$N$222,$A92,0),0) -> 0 | G92: =IFERROR(HLOOKUP(TablasDinamicas!E$1,TablasDinamicas!$B$97:$N$222,$A92,0),0) -> 13 | H92: =IFERROR(HLOOKUP(TablasDinamicas!F$1,TablasDinamicas!$B$97:$N$222,$A92,0),0) -> 0 | I92: =IFERROR(HLOOKUP(TablasDinamicas!G$1,TablasDinamicas!$B$97:$N$222,$A92,0),0) -> 0 | J92: =IFERROR(HLOOKUP(TablasDinamicas!H$1,TablasDinamicas!$B$97:$N$222,$A92,0),0) -> 0 | K92: =IFERROR(HLOOKUP(TablasDinamicas!I$1,TablasDinamicas!$B$97:$N$222,$A92,0),0) -> 0 | L92: =IFERROR(HLOOKUP(TablasDinamicas!J$1,TablasDinamicas!$B$97:$N$222,$A92,0),0) -> 3 | M92: =IFERROR(HLOOKUP(TablasDinamicas!K$1,TablasDinamicas!$B$97:$N$222,$A92,0),0) -> 0 | N92: =IFERROR(HLOOKUP(TablasDinamicas!L$1,TablasDinamicas!$B$97:$N$222,$A92,0),0) -> 0 | O92: =IFERROR(HLOOKUP(TablasDinamicas!M$1,TablasDinamicas!$B$97:$N$222,$A92,0),0) -> 3 | P92: =IFERROR(HLOOKUP(TablasDinamicas!N$1,TablasDinamicas!$B$97:$N$222,$A92,0),0) -> 2
A93: =MATCH(B93,TablasDinamicas!$A$97:$A$222,0) -> 26 | B93: Colotlán | C93: 78 | D93: =IFERROR(HLOOKUP(TablasDinamicas!B$1,TablasDinamicas!$B$97:$N$222,$A93,0),0) -> 67 | E93: =IFERROR(HLOOKUP(TablasDinamicas!C$1,TablasDinamicas!$B$97:$N$222,$A93,0),0) -> 0 | F93: =IFERROR(HLOOKUP(TablasDinamicas!D$1,TablasDinamicas!$B$97:$N$222,$A93,0),0) -> 1 | G93: =IFERROR(HLOOKUP(TablasDinamicas!E$1,TablasDinamicas!$B$97:$N$222,$A93,0),0) -> 1 | H93: =IFERROR(HLOOKUP(TablasDinamicas!F$1,TablasDinamicas!$B$97:$N$222,$A93,0),0) -> 0 | I93: =IFERROR(HLOOKUP(TablasDinamicas!G$1,TablasDinamicas!$B$97:$N$222,$A93,0),0) -> 1 | J93: =IFERROR(HLOOKUP(TablasDinamicas!H$1,TablasDinamicas!$B$97:$N$222,$A93,0),0) -> 0 | K93: =IFERROR(HLOOKUP(TablasDinamicas!I$1,TablasDinamicas!$B$97:$N$222,$A93,0),0) -> 0 | L93: =IFERROR(HLOOKUP(TablasDinamicas!J$1,TablasDinamicas!$B$97:$N$222,$A93,0),0) -> 0 | M93: =IFERROR(HLOOKUP(TablasDinamicas!K$1,TablasDinamicas!$B$97:$N$222,$A93,0),0) -> 6 | N93: =IFERROR(HLOOKUP(TablasDinamicas!L$1,TablasDinamicas!$B$97:$N$222,$A93,0),0) -> 0 | O93: =IFERROR(HLOOKUP(TablasDinamicas!M$1,TablasDinamicas!$B$97:$N$222,$A93,0),0) -> 2 | P93: =IFERROR(HLOOKUP(TablasDinamicas!N$1,TablasDinamicas!$B$97:$N$222,$A93,0),0) -> 0
A94: =MATCH(B94,TablasDinamicas!$A$97:$A$222,0) -> 27 | B94: Concepción de Buenos Aires | C94: 4 | D94: =IFERROR(HLOOKUP(TablasDinamicas!B$1,TablasDinamicas!$B$97:$N$222,$A94,0),0) -> 0 | E94: =IFERROR(HLOOKUP(TablasDinamicas!C$1,TablasDinamicas!$B$97:$N$222,$A94,0),0) -> 0 | F94: =IFERROR(HLOOKUP(TablasDinamicas!D$1,TablasDinamicas!$B$97:$N$222,$A94,0),0) -> 0 | G94: =IFERROR(HLOOKUP(TablasDinamicas!E$1,TablasDinamicas!$B$97:$N$222,$A94,0),0) -> 0 | H94: =IFERROR(HLOOKUP(TablasDinamicas!F$1,TablasDinamicas!$B$97:$N$222,$A94,0),0) -> 0 | I94: =IFERROR(HLOOKUP(TablasDinamicas!G$1,TablasDinamicas!$B$97:$N$222,$A94,0),0) -> 1 | J94: =IFERROR(HLOOKUP(TablasDinamicas!H$1,TablasDinamicas!$B$97:$N$222,$A94,0),0) -> 0 | K94: =IFERROR(HLOOKUP(TablasDinamicas!I$1,TablasDinamicas!$B$97:$N$222,$A94,0),0) -> 0 | L94: =IFERROR(HLOOKUP(TablasDinamicas!J$1,TablasDinamicas!$B$97:$N$222,$A94,0),0) -> 0 | M94: =IFERROR(HLOOKUP(TablasDinamicas!K$1,TablasDinamicas!$B$97:$N$222,$A94,0),0) -> 1 | N94: =IFERROR(HLOOKUP(TablasDinamicas!L$1,TablasDinamicas!$B$97:$N$222,$A94,0),0) -> 0 | O94: =IFERROR(HLOOKUP(TablasDinamicas!M$1,TablasDinamicas!$B$97:$N$222,$A94,0),0) -> 2 | P94: =IFERROR(HLOOKUP(TablasDinamicas!N$1,TablasDinamicas!$B$97:$N$222,$A94,0),0) -> 0
A95: =MATCH(B95,TablasDinamicas!$A$97:$A$222,0) -> 28 | B95: Cuautitlán de García Barragán | C95: 2 | D95: =IFERROR(HLOOKUP(TablasDinamicas!B$1,TablasDinamicas!$B$97:$N$222,$A95,0),0) -> 0 | E95: =IFERROR(HLOOKUP(TablasDinamicas!C$1,TablasDinamicas!$B$97:$N$222,$A95,0),0) -> 0 | F95: =IFERROR(HLOOKUP(TablasDinamicas!D$1,TablasDinamicas!$B$97:$N$222,$A95,0),0) -> 0 | G95: =IFERROR(HLOOKUP(TablasDinamicas!E$1,TablasDinamicas!$B$97:$N$222,$A95,0),0) -> 0 | H95: =IFERROR(HLOOKUP(TablasDinamicas!F$1,TablasDinamicas!$B$97:$N$222,$A95,0),0) -> 0 | I95: =IFERROR(HLOOKUP(TablasDinamicas!G$1,TablasDinamicas!$B$97:$N$222,$A95,0),0) -> 0 | J95: =IFERROR(HLOOKUP(TablasDinamicas!H$1,TablasDinamicas!$B$97:$N$222,$A95,0),0) -> 2 | K95: =IFERROR(HLOOKUP(TablasDinamicas!I$1,TablasDinamicas!$B$97:$N$222,$A95,0),0) -> 0 | L95: =IFERROR(HLOOKUP(TablasDinamicas!J$1,TablasDinamicas!$B$97:$N$222,$A95,0),0) -> 0 | M95: =IFERROR(HLOOKUP(TablasDinamicas!K$1,TablasDinamicas!$B$97:$N$222,$A95,0),0) -> 0 | N95: =IFERROR(HLOOKUP(TablasDinamicas!L$1,TablasDinamicas!$B$97:$N$222,$A95,0),0) -> 0 | O95: =IFERROR(HLOOKUP(TablasDinamicas!M$1,TablasDinamicas!$B$97:$N$222,$A95,0),0) -> 0 | P95: =IFERROR(HLOOKUP(TablasDinamicas!N$1,TablasDinamicas!$B$97:$N$222,$A95,0),0) -> 0
A96: =MATCH(B96,TablasDinamicas!$A$97:$A$222,0) -> 29 | B96: Cuautla | C96: 3 | D96: =IFERROR(HLOOKUP(TablasDinamicas!B$1,TablasDinamicas!$B$97:$N$222,$A96,0),0) -> 0 | E96: =IFERROR(HLOOKUP(TablasDinamicas!C$1,TablasDinamicas!$B$97:$N$222,$A96,0),0) -> 0 | F96: =IFERROR(HLOOKUP(TablasDinamicas!D$1,TablasDinamicas!$B$97:$N$222,$A96,0),0) -> 0 | G96: =IFERROR(HLOOKUP(TablasDinamicas!E$1,TablasDinamicas!$B$97:$N$222,$A96,0),0) -> 0 | H96: =IFERROR(HLOOKUP(TablasDinamicas!F$1,TablasDinamicas!$B$97:$N$222,$A96,0),0) -> 0 | I96: =IFERROR(HLOOKUP(TablasDinamicas!G$1,TablasDinamicas!$B$97:$N$222,$A96,0),0) -> 0 | J96: =IFERROR(HLOOKUP(TablasDinamicas!H$1,TablasDinamicas!$B$97:$N$222,$A96,0),0) -> 0 | K96: =IFERROR(HLOOKUP(TablasDinamicas!I$1,TablasDinamicas!$B$97:$N$222,$A96,0),0) -> 0 | L96: =IFERROR(HLOOKUP(TablasDinamicas!J$1,TablasDinamicas!$B$97:$N$222,$A96,0),0) -> 0 | M96: =IFERROR(HLOOKUP(TablasDinamicas!K$1,TablasDinamicas!$B$97:$N$222,$A96,0),0) -> 1 | N96: =IFERROR(HLOOKUP(TablasDinamicas!L$1,TablasDinamicas!$B$97:$N$222,$A96,0),0) -> 1 | O96: =IFERROR(HLOOKUP(TablasDinamicas!M$1,TablasDinamicas!$B$97:$N$222,$A96,0),0) -> 1 | P96: =IFERROR(HLOOKUP(TablasDinamicas!N$1,TablasDinamicas!$B$97:$N$222,$A96,0),0) -> 0
A97: =MATCH(B97,TablasDinamicas!$A$97:$A$222,0) -> 30 | B97: Cuquío | C97: 4 | D97: =IFERROR(HLOOKUP(TablasDinamicas!B$1,TablasDinamicas!$B$97:$N$222,$A97,0),0) -> 0 | E97: =IFERROR(HLOOKUP(TablasDinamicas!C$1,TablasDinamicas!$B$97:$N$222,$A97,0),0) -> 0 | F97: =IFERROR(HLOOKUP(TablasDinamicas!D$1,TablasDinamicas!$B$97:$N$222,$A97,0),0) -> 1 | G97: =IFERROR(HLOOKUP(TablasDinamicas!E$1,TablasDinamicas!$B$97:$N$222,$A97,0),0) -> 1 | H97: =IFERROR(HLOOKUP(TablasDinamicas!F$1,TablasDinamicas!$B$97:$N$222,$A97,0),0) -> 0 | I97: =IFERROR(HLOOKUP(TablasDinamicas!G$1,TablasDinamicas!$B$97:$N$222,$A97,0),0) -> 0 | J97: =IFERROR(HLOOKUP(TablasDinamicas!H$1,TablasDinamicas!$B$97:$N$222,$A97,0),0) -> 0 | K97: =IFERROR(HLOOKUP(TablasDinamicas!I$1,TablasDinamicas!$B$97:$N$222,$A97,0),0) -> 0 | L97: =IFERROR(HLOOKUP(TablasDinamicas!J$1,TablasDinamicas!$B$97:$N$222,$A97,0),0) -> 0 | M97: =IFERROR(HLOOKUP(TablasDinamicas!K$1,TablasDinamicas!$B$97:$N$222,$A97,0),0) -> 0 | N97: =IFERROR(HLOOKUP(TablasDinamicas!L$1,TablasDinamicas!$B$97:$N$222,$A97,0),0) -> 1 | O97: =IFERROR(HLOOKUP(TablasDinamicas!M$1,TablasDinamicas!$B$97:$N$222,$A97,0),0) -> 1 | P97: =IFERROR(HLOOKUP(TablasDinamicas!N$1,TablasDinamicas!$B$97:$N$222,$A97,0),0) -> 0
A98: =MATCH(B98,TablasDinamicas!$A$97:$A$222,0) -> 31 | B98: Degollado | C98: 6 | D98: =IFERROR(HLOOKUP(TablasDinamicas!B$1,TablasDinamicas!$B$97:$N$222,$A98,0),0) -> 0 | E98: =IFERROR(HLOOKUP(TablasDinamicas!C$1,TablasDinamicas!$B$97:$N$222,$A98,0),0) -> 0 | F98: =IFERROR(HLOOKUP(TablasDinamicas!D$1,TablasDinamicas!$B$97:$N$222,$A98,0),0) -> 3 | G98: =IFERROR(HLOOKUP(TablasDinamicas!E$1,TablasDinamicas!$B$97:$N$222,$A98,0),0) -> 1 | H98: =IFERROR(HLOOKUP(TablasDinamicas!F$1,TablasDinamicas!$B$97:$N$222,$A98,0),0) -> 0 | I98: =IFERROR(HLOOKUP(TablasDinamicas!G$1,TablasDinamicas!$B$97:$N$222,$A98,0),0) -> 0 | J98: =IFERROR(HLOOKUP(TablasDinamicas!H$1,TablasDinamicas!$B$97:$N$222,$A98,0),0) -> 0 | K98: =IFERROR(HLOOKUP(TablasDinamicas!I$1,TablasDinamicas!$B$97:$N$222,$A98,0),0) -> 0 | L98: =IFERROR(HLOOKUP(TablasDinamicas!J$1,TablasDinamicas!$B$97:$N$222,$A98,0),0) -> 0 | M98: =IFERROR(HLOOKUP(TablasDinamicas!K$1,TablasDinamicas!$B$97:$N$222,$A98,0),0) -> 0 | N98: =IFERROR(HLOOKUP(TablasDinamicas!L$1,TablasDinamicas!$B$97:$N$222,$A98,0),0) -> 1 | O98: =IFERROR(HLOOKUP(TablasDinamicas!M$1,TablasDinamicas!$B$97:$N$222,$A98,0),0) -> 1 | P98: =IFERROR(HLOOKUP(TablasDinamicas!N$1,TablasDinamicas!$B$97:$N$222,$A98,0),0) -> 0
A99: =MATCH(B99,TablasDinamicas!$A$97:$A$222,0) -> 32 | B99: Ejutla | C99: 6 | D99: =IFERROR(HLOOKUP(TablasDinamicas!B$1,TablasDinamicas!$B$97:$N$222,$A99,0),0) -> 0 | E99: =IFERROR(HLOOKUP(TablasDinamicas!C$1,TablasDinamicas!$B$97:$N$222,$A99,0),0) -> 0 | F99: =IFERROR(HLOOKUP(TablasDinamicas!D$1,TablasDinamicas!$B$97:$N$222,$A99,0),0) -> 2 | G99: =IFERROR(HLOOKUP(TablasDinamicas!E$1,TablasDinamicas!$B$97:$N$222,$A99,0),0) -> 3 | H99: =IFERROR(HLOOKUP(TablasDinamicas!F$1,TablasDinamicas!$B$97:$N$222,$A99,0),0) -> 0 | I99: =IFERROR(HLOOKUP(TablasDinamicas!G$1,TablasDinamicas!$B$97:$N$222,$A99,0),0) -> 0 | J99: =IFERROR(HLOOKUP(TablasDinamicas!H$1,TablasDinamicas!$B$97:$N$222,$A99,0),0) -> 0 | K99: =IFERROR(HLOOKUP(TablasDinamicas!I$1,TablasDinamicas!$B$97:$N$222,$A99,0),0) -> 0 | L99: =IFERROR(HLOOKUP(TablasDinamicas!J$1,TablasDinamicas!$B$97:$N$222,$A99,0),0) -> 0 | M99: =IFERROR(HLOOKUP(TablasDinamicas!K$1,TablasDinamicas!$B$97:$N$222,$A99,0),0) -> 0 | N99: =IFERROR(HLOOKUP(TablasDinamicas!L$1,TablasDinamicas!$B$97:$N$222,$A99,0),0) -> 0 | O99: =IFERROR(HLOOKUP(TablasDinamicas!M$1,TablasDinamicas!$B$97:$N$222,$A99,0),0) -> 0 | P99: =IFERROR(HLOOKUP(TablasDinamicas!N$1,TablasDinamicas!$B$97:$N$222,$A99,0),0) -> 1
A100: =MATCH(B100,TablasDinamicas!$A$97:$A$222,0) -> 33 | B100: El Arenal | C100: 19 | D100: =IFERROR(HLOOKUP(TablasDinamicas!B$1,TablasDinamicas!$B$97:$N$222,$A100,0),0) -> 0 | E100: =IFERROR(HLOOKUP(TablasDinamicas!C$1,TablasDinamicas!$B$97:$N$222,$A100,0),0) -> 0 | F100: =IFERROR(HLOOKUP(TablasDinamicas!D$1,TablasDinamicas!$B$97:$N$222,$A100,0),0) -> 0 | G100: =IFERROR(HLOOKUP(TablasDinamicas!E$1,TablasDinamicas!$B$97:$N$222,$A100,0),0) -> 0 | H100: =IFERROR(HLOOKUP(TablasDinamicas!F$1,TablasDinamicas!$B$97:$N$222,$A100,0),0) -> 0 | I100: =IFERROR(HLOOKUP(TablasDinamicas!G$1,TablasDinamicas!$B$97:$N$222,$A100,0),0) -> 0 | J100: =IFERROR(HLOOKUP(TablasDinamicas!H$1,TablasDinamicas!$B$97:$N$222,$A100,0),0) -> 0 | K100: =IFERROR(HLOOKUP(TablasDinamicas!I$1,TablasDinamicas!$B$97:$N$222,$A100,0),0) -> 0 | L100: =IFERROR(HLOOKUP(TablasDinamicas!J$1,TablasDinamicas!$B$97:$N$222,$A100,0),0) -> 7 | M100: =IFERROR(HLOOKUP(TablasDinamicas!K$1,TablasDinamicas!$B$97:$N$222,$A100,0),0) -> 1 | N100: =IFERROR(HLOOKUP(TablasDinamicas!L$1,TablasDinamicas!$B$97:$N$222,$A100,0),0) -> 0 | O100: =IFERROR(HLOOKUP(TablasDinamicas!M$1,TablasDinamicas!$B$97:$N$222,$A100,0),0) -> 6 | P100: =IFERROR(HLOOKUP(TablasDinamicas!N$1,TablasDinamicas!$B$97:$N$222,$A100,0),0) -> 5
A101: =MATCH(B101,TablasDinamicas!$A$97:$A$222,0) -> 34 | B101: El Grullo | C101: =SUM(D101:P101) -> 19 | D101: =IFERROR(HLOOKUP(TablasDinamicas!B$1,TablasDinamicas!$B$97:$N$222,$A101,0),0) -> 0 | E101: =IFERROR(HLOOKUP(TablasDinamicas!C$1,TablasDinamicas!$B$97:$N$222,$A101,0),0) -> 0 | F101: =IFERROR(HLOOKUP(TablasDinamicas!D$1,TablasDinamicas!$B$97:$N$222,$A101,0),0) -> 0 | G101: =IFERROR(HLOOKUP(TablasDinamicas!E$1,TablasDinamicas!$B$97:$N$222,$A101,0),0) -> 5 | H101: =IFERROR(HLOOKUP(TablasDinamicas!F$1,TablasDinamicas!$B$97:$N$222,$A101,0),0) -> 0 | I101: =IFERROR(HLOOKUP(TablasDinamicas!G$1,TablasDinamicas!$B$97:$N$222,$A101,0),0) -> 2 | J101: =IFERROR(HLOOKUP(TablasDinamicas!H$1,TablasDinamicas!$B$97:$N$222,$A101,0),0) -> 7 | K101: =IFERROR(HLOOKUP(TablasDinamicas!I$1,TablasDinamicas!$B$97:$N$222,$A101,0),0) -> 0 | L101: =IFERROR(HLOOKUP(TablasDinamicas!J$1,TablasDinamicas!$B$97:$N$222,$A101,0),0) -> 0 | M101: =IFERROR(HLOOKUP(TablasDinamicas!K$1,TablasDinamicas!$B$97:$N$222,$A101,0),0) -> 1 | N101: =IFERROR(HLOOKUP(TablasDinamicas!L$1,TablasDinamicas!$B$97:$N$222,$A101,0),0) -> 1 | O101: =IFERROR(HLOOKUP(TablasDinamicas!M$1,TablasDinamicas!$B$97:$N$222,$A101,0),0) -> 1 | P101: =IFERROR(HLOOKUP(TablasDinamicas!N$1,TablasDinamicas!$B$97:$N$222,$A101,0),0) -> 2
A102: =MATCH(B102,TablasDinamicas!$A$97:$A$222,0) -> 35 | B102: El Limón | C102: 3 | D102: =IFERROR(HLOOKUP(TablasDinamicas!B$1,TablasDinamicas!$B$97:$N$222,$A102,0),0) -> 0 | E102: =IFERROR(HLOOKUP(TablasDinamicas!C$1,TablasDinamicas!$B$97:$N$222,$A102,0),0) -> 0 | F102: =IFERROR(HLOOKUP(TablasDinamicas!D$1,TablasDinamicas!$B$97:$N$222,$A102,0),0) -> 0 | G102: =IFERROR(HLOOKUP(TablasDinamicas!E$1,TablasDinamicas!$B$97:$N$222,$A102,0),0) -> 0 | H102: =IFERROR(HLOOKUP(TablasDinamicas!F$1,TablasDinamicas!$B$97:$N$222,$A102,0),0) -> 0 | I102: =IFERROR(HLOOKUP(TablasDinamicas!G$1,TablasDinamicas!$B$97:$N$222,$A102,0),0) -> 1 | J102: =IFERROR(HLOOKUP(TablasDinamicas!H$1,TablasDinamicas!$B$97:$N$222,$A102,0),0) -> 2 | K102: =IFERROR(HLOOKUP(TablasDinamicas!I$1,TablasDinamicas!$B$97:$N$222,$A102,0),0) -> 0 | L102: =IFERROR(HLOOKUP(TablasDinamicas!J$1,TablasDinamicas!$B$97:$N$222,$A102,0),0) -> 0 | M102: =IFERROR(HLOOKUP(TablasDinamicas!K$1,TablasDinamicas!$B$97:$N$222,$A102,0),0) -> 0 | N102: =IFERROR(HLOOKUP(TablasDinamicas!L$1,TablasDinamicas!$B$97:$N$222,$A102,0),0) -> 0 | O102: =IFERROR(HLOOKUP(TablasDinamicas!M$1,TablasDinamicas!$B$97:$N$222,$A102,0),0) -> 0 | P102: =IFERROR(HLOOKUP(TablasDinamicas!N$1,TablasDinamicas!$B$97:$N$222,$A102,0),0) -> 0
A103: =MATCH(B103,TablasDinamicas!$A$97:$A$222,0) -> 36 | B103: El Salto | C103: 93 | D103: =IFERROR(HLOOKUP(TablasDinamicas!B$1,TablasDinamicas!$B$97:$N$222,$A103,0),0) -> 0 | E103: =IFERROR(HLOOKUP(TablasDinamicas!C$1,TablasDinamicas!$B$97:$N$222,$A103,0),0) -> 0 | F103: =IFERROR(HLOOKUP(TablasDinamicas!D$1,TablasDinamicas!$B$97:$N$222,$A103,0),0) -> 1 | G103: =IFERROR(HLOOKUP(TablasDinamicas!E$1,TablasDinamicas!$B$97:$N$222,$A103,0),0) -> 6 | H103: =IFERROR(HLOOKUP(TablasDinamicas!F$1,TablasDinamicas!$B$97:$N$222,$A103,0),0) -> 0 | I103: =IFERROR(HLOOKUP(TablasDinamicas!G$1,TablasDinamicas!$B$97:$N$222,$A103,0),0) -> 0 | J103: =IFERROR(HLOOKUP(TablasDinamicas!H$1,TablasDinamicas!$B$97:$N$222,$A103,0),0) -> 0 | K103: =IFERROR(HLOOKUP(TablasDinamicas!I$1,TablasDinamicas!$B$97:$N$222,$A103,0),0) -> 0 | L103: =IFERROR(HLOOKUP(TablasDinamicas!J$1,TablasDinamicas!$B$97:$N$222,$A103,0),0) -> 0 | M103: =IFERROR(HLOOKUP(TablasDinamicas!K$1,TablasDinamicas!$B$97:$N$222,$A103,0),0) -> 4 | N103: =IFERROR(HLOOKUP(TablasDinamicas!L$1,TablasDinamicas!$B$97:$N$222,$A103,0),0) -> 4 | O103: =IFERROR(HLOOKUP(TablasDinamicas!M$1,TablasDinamicas!$B$97:$N$222,$A103,0),0) -> 47 | P103: =IFERROR(HLOOKUP(TablasDinamicas!N$1,TablasDinamicas!$B$97:$N$222,$A103,0),0) -> 31
A104: =MATCH(B104,TablasDinamicas!$A$97:$A$222,0) -> 37 | B104: Encarnación de Díaz | C104: 3 | D104: =IFERROR(HLOOKUP(TablasDinamicas!B$1,TablasDinamicas!$B$97:$N$222,$A104,0),0) -> 0 | E104: =IFERROR(HLOOKUP(TablasDinamicas!C$1,TablasDinamicas!$B$97:$N$222,$A104,0),0) -> 0 | F104: =IFERROR(HLOOKUP(TablasDinamicas!D$1,TablasDinamicas!$B$97:$N$222,$A104,0),0) -> 0 | G104: =IFERROR(HLOOKUP(TablasDinamicas!E$1,TablasDinamicas!$B$97:$N$222,$A104,0),0) -> 1 | H104: =IFERROR(HLOOKUP(TablasDinamicas!F$1,TablasDinamicas!$B$97:$N$222,$A104,0),0) -> 0 | I104: =IFERROR(HLOOKUP(TablasDinamicas!G$1,TablasDinamicas!$B$97:$N$222,$A104,0),0) -> 0 | J104: =IFERROR(HLOOKUP(TablasDinamicas!H$1,TablasDinamicas!$B$97:$N$222,$A104,0),0) -> 0 | K104: =IFERROR(HLOOKUP(TablasDinamicas!I$1,TablasDinamicas!$B$97:$N$222,$A104,0),0) -> 0 | L104: =IFERROR(HLOOKUP(TablasDinamicas!J$1,TablasDinamicas!$B$97:$N$222,$A104,0),0) -> 0 | M104: =IFERROR(HLOOKUP(TablasDinamicas!K$1,TablasDinamicas!$B$97:$N$222,$A104,0),0) -> 1 | N104: =IFERROR(HLOOKUP(TablasDinamicas!L$1,TablasDinamicas!$B$97:$N$222,$A104,0),0) -> 1 | O104: =IFERROR(HLOOKUP(TablasDinamicas!M$1,TablasDinamicas!$B$97:$N$222,$A104,0),0) -> 0 | P104: =IFERROR(HLOOKUP(TablasDinamicas!N$1,TablasDinamicas!$B$97:$N$222,$A104,0),0) -> 0
A105: =MATCH(B105,TablasDinamicas!$A$97:$A$222,0) -> 38 | B105: Etzatlán | C105: 9 | D105: =IFERROR(HLOOKUP(TablasDinamicas!B$1,TablasDinamicas!$B$97:$N$222,$A105,0),0) -> 0 | E105: =IFERROR(HLOOKUP(TablasDinamicas!C$1,TablasDinamicas!$B$97:$N$222,$A105,0),0) -> 0 | F105: =IFERROR(HLOOKUP(TablasDinamicas!D$1,TablasDinamicas!$B$97:$N$222,$A105,0),0) -> 0 | G105: =IFERROR(HLOOKUP(TablasDinamicas!E$1,TablasDinamicas!$B$97:$N$222,$A105,0),0) -> 0 | H105: =IFERROR(HLOOKUP(TablasDinamicas!F$1,TablasDinamicas!$B$97:$N$222,$A105,0),0) -> 0 | I105: =IFERROR(HLOOKUP(TablasDinamicas!G$1,TablasDinamicas!$B$97:$N$222,$A105,0),0) -> 0 | J105: =IFERROR(HLOOKUP(TablasDinamicas!H$1,TablasDinamicas!$B$97:$N$222,$A105,0),0) -> 0 | K105: =IFERROR(HLOOKUP(TablasDinamicas!I$1,TablasDinamicas!$B$97:$N$222,$A105,0),0) -> 0 | L105: =IFERROR(HLOOKUP(TablasDinamicas!J$1,TablasDinamicas!$B$97:$N$222,$A105,0),0) -> 1 | M105: =IFERROR(HLOOKUP(TablasDinamicas!K$1,TablasDinamicas!$B$97:$N$222,$A105,0),0) -> 1 | N105: =IFERROR(HLOOKUP(TablasDinamicas!L$1,TablasDinamicas!$B$97:$N$222,$A105,0),0) -> 0 | O105: =IFERROR(HLOOKUP(TablasDinamicas!M$1,TablasDinamicas!$B$97:$N$222,$A105,0),0) -> 0 | P105: =IFERROR(HLOOKUP(TablasDinamicas!N$1,TablasDinamicas!$B$97:$N$222,$A105,0),0) -> 7
A106: =MATCH(B106,TablasDinamicas!$A$97:$A$222,0) -> 39 | B106: Gómez Farías | C106: 5 | D106: =IFERROR(HLOOKUP(TablasDinamicas!B$1,TablasDinamicas!$B$97:$N$222,$A106,0),0) -> 0 | E106: =IFERROR(HLOOKUP(TablasDinamicas!C$1,TablasDinamicas!$B$97:$N$222,$A106,0),0) -> 0 | F106: =IFERROR(HLOOKUP(TablasDinamicas!D$1,TablasDinamicas!$B$97:$N$222,$A106,0),0) -> 0 | G106: =IFERROR(HLOOKUP(TablasDinamicas!E$1,TablasDinamicas!$B$97:$N$222,$A106,0),0) -> 0 | H106: =IFERROR(HLOOKUP(TablasDinamicas!F$1,TablasDinamicas!$B$97:$N$222,$A106,0),0) -> 0 | I106: =IFERROR(HLOOKUP(TablasDinamicas!G$1,TablasDinamicas!$B$97:$N$222,$A106,0),0) -> 3 | J106: =IFERROR(HLOOKUP(TablasDinamicas!H$1,TablasDinamicas!$B$97:$N$222,$A106,0),0) -> 0 | K106: =IFERROR(HLOOKUP(TablasDinamicas!I$1,TablasDinamicas!$B$97:$N$222,$A106,0),0) -> 0 | L106: =IFERROR(HLOOKUP(TablasDinamicas!J$1,TablasDinamicas!$B$97:$N$222,$A106,0),0) -> 0 | M106: =IFERROR(HLOOKUP(TablasDinamicas!K$1,TablasDinamicas!$B$97:$N$222,$A106,0),0) -> 0 | N106: =IFERROR(HLOOKUP(TablasDinamicas!L$1,TablasDinamicas!$B$97:$N$222,$A106,0),0) -> 0 | O106: =IFERROR(HLOOKUP(TablasDinamicas!M$1,TablasDinamicas!$B$97:$N$222,$A106,0),0) -> 1 | P106: =IFERROR(HLOOKUP(TablasDinamicas!N$1,TablasDinamicas!$B$97:$N$222,$A106,0),0) -> 1
A107: =MATCH(B107,TablasDinamicas!$A$97:$A$222,0) -> 40 | B107: Guachinango | C107: 3 | D107: =IFERROR(HLOOKUP(TablasDinamicas!B$1,TablasDinamicas!$B$97:$N$222,$A107,0),0) -> 0 | E107: =IFERROR(HLOOKUP(TablasDinamicas!C$1,TablasDinamicas!$B$97:$N$222,$A107,0),0) -> 0 | F107: =IFERROR(HLOOKUP(TablasDinamicas!D$1,TablasDinamicas!$B$97:$N$222,$A107,0),0) -> 0 | G107: =IFERROR(HLOOKUP(TablasDinamicas!E$1,TablasDinamicas!$B$97:$N$222,$A107,0),0) -> 0 | H107: =IFERROR(HLOOKUP(TablasDinamicas!F$1,TablasDinamicas!$B$97:$N$222,$A107,0),0) -> 0 | I107: =IFERROR(HLOOKUP(TablasDinamicas!G$1,TablasDinamicas!$B$97:$N$222,$A107,0),0) -> 0 | J107: =IFERROR(HLOOKUP(TablasDinamicas!H$1,TablasDinamicas!$B$97:$N$222,$A107,0),0) -> 0 | K107: =IFERROR(HLOOKUP(TablasDinamicas!I$1,TablasDinamicas!$B$97:$N$222,$A107,0),0) -> 0 | L107: =IFERROR(HLOOKUP(TablasDinamicas!J$1,TablasDinamicas!$B$97:$N$222,$A107,0),0) -> 3 | M107: =IFERROR(HLOOKUP(TablasDinamicas!K$1,TablasDinamicas!$B$97:$N$222,$A107,0),0) -> 0 | N107: =IFERROR(HLOOKUP(TablasDinamicas!L$1,TablasDinamicas!$B$97:$N$222,$A107,0),0) -> 0 | O107: =IFERROR(HLOOKUP(TablasDinamicas!M$1,TablasDinamicas!$B$97:$N$222,$A107,0),0) -> 0 | P107: =IFERROR(HLOOKUP(TablasDinamicas!N$1,TablasDinamicas!$B$97:$N$222,$A107,0),0) -> 0
A108: =MATCH(B108,TablasDinamicas!$A$97:$A$222,0) -> 41 | B108: Guadalajara | C108: 1572 | D108: =IFERROR(HLOOKUP(TablasDinamicas!B$1,TablasDinamicas!$B$97:$N$222,$A108,0),0) -> 0 | E108: =IFERROR(HLOOKUP(TablasDinamicas!C$1,TablasDinamicas!$B$97:$N$222,$A108,0),0) -> 0 | F108: =IFERROR(HLOOKUP(TablasDinamicas!D$1,TablasDinamicas!$B$97:$N$222,$A108,0),0) -> 7 | G108: =IFERROR(HLOOKUP(TablasDinamicas!E$1,TablasDinamicas!$B$97:$N$222,$A108,0),0) -> 46 | H108: =IFERROR(HLOOKUP(TablasDinamicas!F$1,TablasDinamicas!$B$97:$N$222,$A108,0),0) -> 0 | I108: =IFERROR(HLOOKUP(TablasDinamicas!G$1,TablasDinamicas!$B$97:$N$222,$A108,0),0) -> 3 | J108: =IFERROR(HLOOKUP(TablasDinamicas!H$1,TablasDinamicas!$B$97:$N$222,$A108,0),0) -> 1 | K108: =IFERROR(HLOOKUP(TablasDinamicas!I$1,TablasDinamicas!$B$97:$N$222,$A108,0),0) -> 0 | L108: =IFERROR(HLOOKUP(TablasDinamicas!J$1,TablasDinamicas!$B$97:$N$222,$A108,0),0) -> 29 | M108: =IFERROR(HLOOKUP(TablasDinamicas!K$1,TablasDinamicas!$B$97:$N$222,$A108,0),0) -> 164 | N108: =IFERROR(HLOOKUP(TablasDinamicas!L$1,TablasDinamicas!$B$97:$N$222,$A108,0),0) -> 68 | O108: =IFERROR(HLOOKUP(TablasDinamicas!M$1,TablasDinamicas!$B$97:$N$222,$A108,0),0) -> 375 | P108: =IFERROR(HLOOKUP(TablasDinamicas!N$1,TablasDinamicas!$B$97:$N$222,$A108,0),0) -> 879
A109: =MATCH(B109,TablasDinamicas!$A$97:$A$222,0) -> 42 | B109: Hostotipaquillo | C109: 1 | D109: =IFERROR(HLOOKUP(TablasDinamicas!B$1,TablasDinamicas!$B$97:$N$222,$A109,0),0) -> 0 | E109: =IFERROR(HLOOKUP(TablasDinamicas!C$1,TablasDinamicas!$B$97:$N$222,$A109,0),0) -> 0 | F109: =IFERROR(HLOOKUP(TablasDinamicas!D$1,TablasDinamicas!$B$97:$N$222,$A109,0),0) -> 0 | G109: =IFERROR(HLOOKUP(TablasDinamicas!E$1,TablasDinamicas!$B$97:$N$222,$A109,0),0) -> 0 | H109: =IFERROR(HLOOKUP(TablasDinamicas!F$1,TablasDinamicas!$B$97:$N$222,$A109,0),0) -> 0 | I109: =IFERROR(HLOOKUP(TablasDinamicas!G$1,TablasDinamicas!$B$97:$N$222,$A109,0),0) -> 0 | J109: =IFERROR(HLOOKUP(TablasDinamicas!H$1,TablasDinamicas!$B$97:$N$222,$A109,0),0) -> 0 | K109: =IFERROR(HLOOKUP(TablasDinamicas!I$1,TablasDinamicas!$B$97:$N$222,$A109,0),0) -> 0 | L109: =IFERROR(HLOOKUP(TablasDinamicas!J$1,TablasDinamicas!$B$97:$N$222,$A109,0),0) -> 1 | M109: =IFERROR(HLOOKUP(TablasDinamicas!K$1,TablasDinamicas!$B$97:$N$222,$A109,0),0) -> 0 | N109: =IFERROR(HLOOKUP(TablasDinamicas!L$1,TablasDinamicas!$B$97:$N$222,$A109,0),0) -> 0 | O109: =IFERROR(HLOOKUP(TablasDinamicas!M$1,TablasDinamicas!$B$97:$N$222,$A109,0),0) -> 0 | P109: =IFERROR(HLOOKUP(TablasDinamicas!N$1,TablasDinamicas!$B$97:$N$222,$A109,0),0) -> 0
A110: =MATCH(B110,TablasDinamicas!$A$97:$A$222,0) -> 43 | B110: Huejúcar | C110: 4 | D110: =IFERROR(HLOOKUP(TablasDinamicas!B$1,TablasDinamicas!$B$97:$N$222,$A110,0),0) -> 4 | E110: =IFERROR(HLOOKUP(TablasDinamicas!C$1,TablasDinamicas!$B$97:$N$222,$A110,0),0) -> 0 | F110: =IFERROR(HLOOKUP(TablasDinamicas!D$1,TablasDinamicas!$B$97:$N$222,$A110,0),0) -> 0 | G110: =IFERROR(HLOOKUP(TablasDinamicas!E$1,TablasDinamicas!$B$97:$N$222,$A110,0),0) -> 0 | H110: =IFERROR(HLOOKUP(TablasDinamicas!F$1,TablasDinamicas!$B$97:$N$222,$A110,0),0) -> 0 | I110: =IFERROR(HLOOKUP(TablasDinamicas!G$1,TablasDinamicas!$B$97:$N$222,$A110,0),0) -> 0 | J110: =IFERROR(HLOOKUP(TablasDinamicas!H$1,TablasDinamicas!$B$97:$N$222,$A110,0),0) -> 0 | K110: =IFERROR(HLOOKUP(TablasDinamicas!I$1,TablasDinamicas!$B$97:$N$222,$A110,0),0) -> 0 | L110: =IFERROR(HLOOKUP(TablasDinamicas!J$1,TablasDinamicas!$B$97:$N$222,$A110,0),0) -> 0 | M110: =IFERROR(HLOOKUP(TablasDinamicas!K$1,TablasDinamicas!$B$97:$N$222,$A110,0),0) -> 0 | N110: =IFERROR(HLOOKUP(TablasDinamicas!L$1,TablasDinamicas!$B$97:$N$222,$A110,0),0) -> 0 | O110: =IFERROR(HLOOKUP(TablasDinamicas!M$1,TablasDinamicas!$B$97:$N$222,$A110,0),0) -> 0 | P110: =IFERROR(HLOOKUP(TablasDinamicas!N$1,TablasDinamicas!$B$97:$N$222,$A110,0),0) -> 0
A111: =MATCH(B111,TablasDinamicas!$A$97:$A$222,0) -> 44 | B111: Huejuquilla el Alto | C111: 5 | D111: =IFERROR(HLOOKUP(TablasDinamicas!B$1,TablasDinamicas!$B$97:$N$222,$A111,0),0) -> 2 | E111: =IFERROR(HLOOKUP(TablasDinamicas!C$1,TablasDinamicas!$B$97:$N$222,$A111,0),0) -> 0 | F111: =IFERROR(HLOOKUP(TablasDinamicas!D$1,TablasDinamicas!$B$97:$N$222,$A111,0),0) -> 0 | G111: =IFERROR(HLOOKUP(TablasDinamicas!E$1,TablasDinamicas!$B$97:$N$222,$A111,0),0) -> 2 | H111: =IFERROR(HLOOKUP(TablasDinamicas!F$1,TablasDinamicas!$B$97:$N$222,$A111,0),0) -> 0 | I111: =IFERROR(HLOOKUP(TablasDinamicas!G$1,TablasDinamicas!$B$97:$N$222,$A111,0),0) -> 0 | J111: =IFERROR(HLOOKUP(TablasDinamicas!H$1,TablasDinamicas!$B$97:$N$222,$A111,0),0) -> 0 | K111: =IFERROR(HLOOKUP(TablasDinamicas!I$1,TablasDinamicas!$B$97:$N$222,$A111,0),0) -> 0 | L111: =IFERROR(HLOOKUP(TablasDinamicas!J$1,TablasDinamicas!$B$97:$N$222,$A111,0),0) -> 0 | M111: =IFERROR(HLOOKUP(TablasDinamicas!K$1,TablasDinamicas!$B$97:$N$222,$A111,0),0) -> 0 | N111: =IFERROR(HLOOKUP(TablasDinamicas!L$1,TablasDinamicas!$B$97:$N$222,$A111,0),0) -> 0 | O111: =IFERROR(HLOOKUP(TablasDinamicas!M$1,TablasDinamicas!$B$97:$N$222,$A111,0),0) -> 0 | P111: =IFERROR(HLOOKUP(TablasDinamicas!N$1,TablasDinamicas!$B$97:$N$222,$A111,0),0) -> 1
A112: =MATCH(B112,TablasDinamicas!$A$97:$A$222,0) -> 45 | B112: Ixtlahuacán de los Membrillos | C112: 34 | D112: =IFERROR(HLOOKUP(TablasDinamicas!B$1,TablasDinamicas!$B$97:$N$222,$A112,0),0) -> 0 | E112: =IFERROR(HLOOKUP(TablasDinamicas!C$1,TablasDinamicas!$B$97:$N$222,$A112,0),0) -> 0 | F112: =IFERROR(HLOOKUP(TablasDinamicas!D$1,TablasDinamicas!$B$97:$N$222,$A112,0),0) -> 0 | G112: =IFERROR(HLOOKUP(TablasDinamicas!E$1,TablasDinamicas!$B$97:$N$222,$A112,0),0) -> 9 | H112: =IFERROR(HLOOKUP(TablasDinamicas!F$1,TablasDinamicas!$B$97:$N$222,$A112,0),0) -> 0 | I112: =IFERROR(HLOOKUP(TablasDinamicas!G$1,TablasDinamicas!$B$97:$N$222,$A112,0),0) -> 0 | J112: =IFERROR(HLOOKUP(TablasDinamicas!H$1,TablasDinamicas!$B$97:$N$222,$A112,0),0) -> 0 | K112: =IFERROR(HLOOKUP(TablasDinamicas!I$1,TablasDinamicas!$B$97:$N$222,$A112,0),0) -> 0 | L112: =IFERROR(HLOOKUP(TablasDinamicas!J$1,TablasDinamicas!$B$97:$N$222,$A112,0),0) -> 1 | M112: =IFERROR(HLOOKUP(TablasDinamicas!K$1,TablasDinamicas!$B$97:$N$222,$A112,0),0) -> 1 | N112: =IFERROR(HLOOKUP(TablasDinamicas!L$1,TablasDinamicas!$B$97:$N$222,$A112,0),0) -> 0 | O112: =IFERROR(HLOOKUP(TablasDinamicas!M$1,TablasDinamicas!$B$97:$N$222,$A112,0),0) -> 9 | P112: =IFERROR(HLOOKUP(TablasDinamicas!N$1,TablasDinamicas!$B$97:$N$222,$A112,0),0) -> 14
A113: =MATCH(B113,TablasDinamicas!$A$97:$A$222,0) -> 46 | B113: Ixtlahuacán del Río | C113: 3 | D113: =IFERROR(HLOOKUP(TablasDinamicas!B$1,TablasDinamicas!$B$97:$N$222,$A113,0),0) -> 0 | E113: =IFERROR(HLOOKUP(TablasDinamicas!C$1,TablasDinamicas!$B$97:$N$222,$A113,0),0) -> 0 | F113: =IFERROR(HLOOKUP(TablasDinamicas!D$1,TablasDinamicas!$B$97:$N$222,$A113,0),0) -> 0 | G113: =IFERROR(HLOOKUP(TablasDinamicas!E$1,TablasDinamicas!$B$97:$N$222,$A113,0),0) -> 0 | H113: =IFERROR(HLOOKUP(TablasDinamicas!F$1,TablasDinamicas!$B$97:$N$222,$A113,0),0) -> 0 | I113: =IFERROR(HLOOKUP(TablasDinamicas!G$1,TablasDinamicas!$B$97:$N$222,$A113,0),0) -> 0 | J113: =IFERROR(HLOOKUP(TablasDinamicas!H$1,TablasDinamicas!$B$97:$N$222,$A113,0),0) -> 0 | K113: =IFERROR(HLOOKUP(TablasDinamicas!I$1,TablasDinamicas!$B$97:$N$222,$A113,0),0) -> 0 | L113: =IFERROR(HLOOKUP(TablasDinamicas!J$1,TablasDinamicas!$B$97:$N$222,$A113,0),0) -> 1 | M113: =IFERROR(HLOOKUP(TablasDinamicas!K$1,TablasDinamicas!$B$97:$N$222,$A113,0),0) -> 1 | N113: =IFERROR(HLOOKUP(TablasDinamicas!L$1,TablasDinamicas!$B$97:$N$222,$A113,0),0) -> 0 | O113: =IFERROR(HLOOKUP(TablasDinamicas!M$1,TablasDinamicas!$B$97:$N$222,$A113,0),0) -> 0 | P113: =IFERROR(HLOOKUP(TablasDinamicas!N$1,TablasDinamicas!$B$97:$N$222,$A113,0),0) -> 1
A114: =MATCH(B114,TablasDinamicas!$A$97:$A$222,0) -> 47 | B114: Jalostotitlán | C114: 16 | D114: =IFERROR(HLOOKUP(TablasDinamicas!B$1,TablasDinamicas!$B$97:$N$222,$A114,0),0) -> 0 | E114: =IFERROR(HLOOKUP(TablasDinamicas!C$1,TablasDinamicas!$B$97:$N$222,$A114,0),0) -> 0 | F114: =IFERROR(HLOOKUP(TablasDinamicas!D$1,TablasDinamicas!$B$97:$N$222,$A114,0),0) -> 13 | G114: =IFERROR(HLOOKUP(TablasDinamicas!E$1,TablasDinamicas!$B$97:$N$222,$A114,0),0) -> 1 | H114: =IFERROR(HLOOKUP(TablasDinamicas!F$1,TablasDinamicas!$B$97:$N$222,$A114,0),0) -> 0 | I114: =IFERROR(HLOOKUP(TablasDinamicas!G$1,TablasDinamicas!$B$97:$N$222,$A114,0),0) -> 0 | J114: =IFERROR(HLOOKUP(TablasDinamicas!H$1,TablasDinamicas!$B$97:$N$222,$A114,0),0) -> 0 | K114: =IFERROR(HLOOKUP(TablasDinamicas!I$1,TablasDinamicas!$B$97:$N$222,$A114,0),0) -> 0 | L114: =IFERROR(HLOOKUP(TablasDinamicas!J$1,TablasDinamicas!$B$97:$N$222,$A114,0),0) -> 1 | M114: =IFERROR(HLOOKUP(TablasDinamicas!K$1,TablasDinamicas!$B$97:$N$222,$A114,0),0) -> 1 | N114: =IFERROR(HLOOKUP(TablasDinamicas!L$1,TablasDinamicas!$B$97:$N$222,$A114,0),0) -> 0 | O114: =IFERROR(HLOOKUP(TablasDinamicas!M$1,TablasDinamicas!$B$97:$N$222,$A114,0),0) -> 0 | P114: =IFERROR(HLOOKUP(TablasDinamicas!N$1,TablasDinamicas!$B$97:$N$222,$A114,0),0) -> 0
A115: =MATCH(B115,TablasDinamicas!$A$97:$A$222,0) -> 48 | B115: Jamay | C115: 36 | D115: =IFERROR(HLOOKUP(TablasDinamicas!B$1,TablasDinamicas!$B$97:$N$222,$A115,0),0) -> 0 | E115: =IFERROR(HLOOKUP(TablasDinamicas!C$1,TablasDinamicas!$B$97:$N$222,$A115,0),0) -> 0 | F115: =IFERROR(HLOOKUP(TablasDinamicas!D$1,TablasDinamicas!$B$97:$N$222,$A115,0),0) -> 3 | G115: =IFERROR(HLOOKUP(TablasDinamicas!E$1,TablasDinamicas!$B$97:$N$222,$A115,0),0) -> 26 | H115: =IFERROR(HLOOKUP(TablasDinamicas!F$1,TablasDinamicas!$B$97:$N$222,$A115,0),0) -> 0 | I115: =IFERROR(HLOOKUP(TablasDinamicas!G$1,TablasDinamicas!$B$97:$N$222,$A115,0),0) -> 0 | J115: =IFERROR(HLOOKUP(TablasDinamicas!H$1,TablasDinamicas!$B$97:$N$222,$A115,0),0) -> 0 | K115: =IFERROR(HLOOKUP(TablasDinamicas!I$1,TablasDinamicas!$B$97:$N$222,$A115,0),0) -> 0 | L115: =IFERROR(HLOOKUP(TablasDinamicas!J$1,TablasDinamicas!$B$97:$N$222,$A115,0),0) -> 0 | M115: =IFERROR(HLOOKUP(TablasDinamicas!K$1,TablasDinamicas!$B$97:$N$222,$A115,0),0) -> 1 | N115: =IFERROR(HLOOKUP(TablasDinamicas!L$1,TablasDinamicas!$B$97:$N$222,$A115,0),0) -> 0 | O115: =IFERROR(HLOOKUP(TablasDinamicas!M$1,TablasDinamicas!$B$97:$N$222,$A115,0),0) -> 2 | P115: =IFERROR(HLOOKUP(TablasDinamicas!N$1,TablasDinamicas!$B$97:$N$222,$A115,0),0) -> 4
A116: =MATCH(B116,TablasDinamicas!$A$97:$A$222,0) -> 49 | B116: Jesús María | C116: 14 | D116: =IFERROR(HLOOKUP(TablasDinamicas!B$1,TablasDinamicas!$B$97:$N$222,$A116,0),0) -> 1 | E116: =IFERROR(HLOOKUP(TablasDinamicas!C$1,TablasDinamicas!$B$97:$N$222,$A116,0),0) -> 0 | F116: =IFERROR(HLOOKUP(TablasDinamicas!D$1,TablasDinamicas!$B$97:$N$222,$A116,0),0) -> 6 | G116: =IFERROR(HLOOKUP(TablasDinamicas!E$1,TablasDinamicas!$B$97:$N$222,$A116,0),0) -> 5 | H116: =IFERROR(HLOOKUP(TablasDinamicas!F$1,TablasDinamicas!$B$97:$N$222,$A116,0),0) -> 0 | I116: =IFERROR(HLOOKUP(TablasDinamicas!G$1,TablasDinamicas!$B$97:$N$222,$A116,0),0) -> 1 | J116: =IFERROR(HLOOKUP(TablasDinamicas!H$1,TablasDinamicas!$B$97:$N$222,$A116,0),0) -> 0 | K116: =IFERROR(HLOOKUP(TablasDinamicas!I$1,TablasDinamicas!$B$97:$N$222,$A116,0),0) -> 0 | L116: =IFERROR(HLOOKUP(TablasDinamicas!J$1,TablasDinamicas!$B$97:$N$222,$A116,0),0) -> 0 | M116: =IFERROR(HLOOKUP(TablasDinamicas!K$1,TablasDinamicas!$B$97:$N$222,$A116,0),0) -> 0 | N116: =IFERROR(HLOOKUP(TablasDinamicas!L$1,TablasDinamicas!$B$97:$N$222,$A116,0),0) -> 0 | O116: =IFERROR(HLOOKUP(TablasDinamicas!M$1,TablasDinamicas!$B$97:$N$222,$A116,0),0) -> 0 | P116: =IFERROR(HLOOKUP(TablasDinamicas!N$1,TablasDinamicas!$B$97:$N$222,$A116,0),0) -> 1
A117: =MATCH(B117,TablasDinamicas!$A$97:$A$222,0) -> 50 | B117: Jilotlán de los Dolores | C117: 2 | D117: =IFERROR(HLOOKUP(TablasDinamicas!B$1,TablasDinamicas!$B$97:$N$222,$A117,0),0) -> 0 | E117: =IFERROR(HLOOKUP(TablasDinamicas!C$1,TablasDinamicas!$B$97:$N$222,$A117,0),0) -> 0 | F117: =IFERROR(HLOOKUP(TablasDinamicas!D$1,TablasDinamicas!$B$97:$N$222,$A117,0),0) -> 0 | G117: =IFERROR(HLOOKUP(TablasDinamicas!E$1,TablasDinamicas!$B$97:$N$222,$A117,0),0) -> 0 | H117: =IFERROR(HLOOKUP(TablasDinamicas!F$1,TablasDinamicas!$B$97:$N$222,$A117,0),0) -> 0 | I117: =IFERROR(HLOOKUP(TablasDinamicas!G$1,TablasDinamicas!$B$97:$N$222,$A117,0),0) -> 1 | J117: =IFERROR(HLOOKUP(TablasDinamicas!H$1,TablasDinamicas!$B$97:$N$222,$A117,0),0) -> 0 | K117: =IFERROR(HLOOKUP(TablasDinamicas!I$1,TablasDinamicas!$B$97:$N$222,$A117,0),0) -> 0 | L117: =IFERROR(HLOOKUP(TablasDinamicas!J$1,TablasDinamicas!$B$97:$N$222,$A117,0),0) -> 1 | M117: =IFERROR(HLOOKUP(TablasDinamicas!K$1,TablasDinamicas!$B$97:$N$222,$A117,0),0) -> 0 | N117: =IFERROR(HLOOKUP(TablasDinamicas!L$1,TablasDinamicas!$B$97:$N$222,$A117,0),0) -> 0 | O117: =IFERROR(HLOOKUP(TablasDinamicas!M$1,TablasDinamicas!$B$97:$N$222,$A117,0),0) -> 0 | P117: =IFERROR(HLOOKUP(TablasDinamicas!N$1,TablasDinamicas!$B$97:$N$222,$A117,0),0) -> 0
A118: =MATCH(B118,TablasDinamicas!$A$97:$A$222,0) -> 51 | B118: Jocotepec | C118: 32 | D118: =IFERROR(HLOOKUP(TablasDinamicas!B$1,TablasDinamicas!$B$97:$N$222,$A118,0),0) -> 0 | E118: =IFERROR(HLOOKUP(TablasDinamicas!C$1,TablasDinamicas!$B$97:$N$222,$A118,0),0) -> 0 | F118: =IFERROR(HLOOKUP(TablasDinamicas!D$1,TablasDinamicas!$B$97:$N$222,$A118,0),0) -> 0 | G118: =IFERROR(HLOOKUP(TablasDinamicas!E$1,TablasDinamicas!$B$97:$N$222,$A118,0),0) -> 23 | H118: =IFERROR(HLOOKUP(TablasDinamicas!F$1,TablasDinamicas!$B$97:$N$222,$A118,0),0) -> 0 | I118: =IFERROR(HLOOKUP(TablasDinamicas!G$1,TablasDinamicas!$B$97:$N$222,$A118,0),0) -> 0 | J118: =IFERROR(HLOOKUP(TablasDinamicas!H$1,TablasDinamicas!$B$97:$N$222,$A118,0),0) -> 0 | K118: =IFERROR(HLOOKUP(TablasDinamicas!I$1,TablasDinamicas!$B$97:$N$222,$A118,0),0) -> 0 | L118: =IFERROR(HLOOKUP(TablasDinamicas!J$1,TablasDinamicas!$B$97:$N$222,$A118,0),0) -> 0 | M118: =IFERROR(HLOOKUP(TablasDinamicas!K$1,TablasDinamicas!$B$97:$N$222,$A118,0),0) -> 1 | N118: =IFERROR(HLOOKUP(TablasDinamicas!L$1,TablasDinamicas!$B$97:$N$222,$A118,0),0) -> 0 | O118: =IFERROR(HLOOKUP(TablasDinamicas!M$1,TablasDinamicas!$B$97:$N$222,$A118,0),0) -> 8 | P118: =IFERROR(HLOOKUP(TablasDinamicas!N$1,TablasDinamicas!$B$97:$N$222,$A118,0),0) -> 0
A119: =MATCH(B119,TablasDinamicas!$A$97:$A$222,0) -> 52 | B119: Juanacatlán | C119: 3 | D119: =IFERROR(HLOOKUP(TablasDinamicas!B$1,TablasDinamicas!$B$97:$N$222,$A119,0),0) -> 0 | E119: =IFERROR(HLOOKUP(TablasDinamicas!C$1,TablasDinamicas!$B$97:$N$222,$A119,0),0) -> 0 | F119: =IFERROR(HLOOKUP(TablasDinamicas!D$1,TablasDinamicas!$B$97:$N$222,$A119,0),0) -> 1 | G119: =IFERROR(HLOOKUP(TablasDinamicas!E$1,TablasDinamicas!$B$97:$N$222,$A119,0),0) -> 1 | H119: =IFERROR(HLOOKUP(TablasDinamicas!F$1,TablasDinamicas!$B$97:$N$222,$A119,0),0) -> 0 | I119: =IFERROR(HLOOKUP(TablasDinamicas!G$1,TablasDinamicas!$B$97:$N$222,$A119,0),0) -> 0 | J119: =IFERROR(HLOOKUP(TablasDinamicas!H$1,TablasDinamicas!$B$97:$N$222,$A119,0),0) -> 0 | K119: =IFERROR(HLOOKUP(TablasDinamicas!I$1,TablasDinamicas!$B$97:$N$222,$A119,0),0) -> 0 | L119: =IFERROR(HLOOKUP(TablasDinamicas!J$1,TablasDinamicas!$B$97:$N$222,$A119,0),0) -> 0 | M119: =IFERROR(HLOOKUP(TablasDinamicas!K$1,TablasDinamicas!$B$97:$N$222,$A119,0),0) -> 1 | N119: =IFERROR(HLOOKUP(TablasDinamicas!L$1,TablasDinamicas!$B$97:$N$222,$A119,0),0) -> 0 | O119: =IFERROR(HLOOKUP(TablasDinamicas!M$1,TablasDinamicas!$B$97:$N$222,$A119,0),0) -> 0 | P119: =IFERROR(HLOOKUP(TablasDinamicas!N$1,TablasDinamicas!$B$97:$N$222,$A119,0),0) -> 0
A120: =MATCH(B120,TablasDinamicas!$A$97:$A$222,0) -> 53 | B120: Juchitlán | C120: 3 | D120: =IFERROR(HLOOKUP(TablasDinamicas!B$1,TablasDinamicas!$B$97:$N$222,$A120,0),0) -> 0 | E120: =IFERROR(HLOOKUP(TablasDinamicas!C$1,TablasDinamicas!$B$97:$N$222,$A120,0),0) -> 0 | F120: =IFERROR(HLOOKUP(TablasDinamicas!D$1,TablasDinamicas!$B$97:$N$222,$A120,0),0) -> 0 | G120: =IFERROR(HLOOKUP(TablasDinamicas!E$1,TablasDinamicas!$B$97:$N$222,$A120,0),0) -> 0 | H120: =IFERROR(HLOOKUP(TablasDinamicas!F$1,TablasDinamicas!$B$97:$N$222,$A120,0),0) -> 0 | I120: =IFERROR(HLOOKUP(TablasDinamicas!G$1,TablasDinamicas!$B$97:$N$222,$A120,0),0) -> 0 | J120: =IFERROR(HLOOKUP(TablasDinamicas!H$1,TablasDinamicas!$B$97:$N$222,$A120,0),0) -> 2 | K120: =IFERROR(HLOOKUP(TablasDinamicas!I$1,TablasDinamicas!$B$97:$N$222,$A120,0),0) -> 0 | L120: =IFERROR(HLOOKUP(TablasDinamicas!J$1,TablasDinamicas!$B$97:$N$222,$A120,0),0) -> 0 | M120: =IFERROR(HLOOKUP(TablasDinamicas!K$1,TablasDinamicas!$B$97:$N$222,$A120,0),0) -> 0 | N120: =IFERROR(HLOOKUP(TablasDinamicas!L$1,TablasDinamicas!$B$97:$N$222,$A120,0),0) -> 1 | O120: =IFERROR(HLOOKUP(TablasDinamicas!M$1,TablasDinamicas!$B$97:$N$222,$A120,0),0) -> 0 | P120: =IFERROR(HLOOKUP(TablasDinamicas!N$1,TablasDinamicas!$B$97:$N$222,$A120,0),0) -> 0
A121: =MATCH(B121,TablasDinamicas!$A$97:$A$222,0) -> 54 | B121: La Barca | C121: 101 | D121: =IFERROR(HLOOKUP(TablasDinamicas!B$1,TablasDinamicas!$B$97:$N$222,$A121,0),0) -> 0 | E121: =IFERROR(HLOOKUP(TablasDinamicas!C$1,TablasDinamicas!$B$97:$N$222,$A121,0),0) -> 0 | F121: =IFERROR(HLOOKUP(TablasDinamicas!D$1,TablasDinamicas!$B$97:$N$222,$A121,0),0) -> 3 | G121: =IFERROR(HLOOKUP(TablasDinamicas!E$1,TablasDinamicas!$B$97:$N$222,$A121,0),0) -> 86 | H121: =IFERROR(HLOOKUP(TablasDinamicas!F$1,TablasDinamicas!$B$97:$N$222,$A121,0),0) -> 0 | I121: =IFERROR(HLOOKUP(TablasDinamicas!G$1,TablasDinamicas!$B$97:$N$222,$A121,0),0) -> 0 | J121: =IFERROR(HLOOKUP(TablasDinamicas!H$1,TablasDinamicas!$B$97:$N$222,$A121,0),0) -> 0 | K121: =IFERROR(HLOOKUP(TablasDinamicas!I$1,TablasDinamicas!$B$97:$N$222,$A121,0),0) -> 0 | L121: =IFERROR(HLOOKUP(TablasDinamicas!J$1,TablasDinamicas!$B$97:$N$222,$A121,0),0) -> 0 | M121: =IFERROR(HLOOKUP(TablasDinamicas!K$1,TablasDinamicas!$B$97:$N$222,$A121,0),0) -> 3 | N121: =IFERROR(HLOOKUP(TablasDinamicas!L$1,TablasDinamicas!$B$97:$N$222,$A121,0),0) -> 2 | O121: =IFERROR(HLOOKUP(TablasDinamicas!M$1,TablasDinamicas!$B$97:$N$222,$A121,0),0) -> 4 | P121: =IFERROR(HLOOKUP(TablasDinamicas!N$1,TablasDinamicas!$B$97:$N$222,$A121,0),0) -> 3
A122: =MATCH(B122,TablasDinamicas!$A$97:$A$222,0) -> 55 | B122: La Huerta | C122: 12 | D122: =IFERROR(HLOOKUP(TablasDinamicas!B$1,TablasDinamicas!$B$97:$N$222,$A122,0),0) -> 0 | E122: =IFERROR(HLOOKUP(TablasDinamicas!C$1,TablasDinamicas!$B$97:$N$222,$A122,0),0) -> 0 | F122: =IFERROR(HLOOKUP(TablasDinamicas!D$1,TablasDinamicas!$B$97:$N$222,$A122,0),0) -> 0 | G122: =IFERROR(HLOOKUP(TablasDinamicas!E$1,TablasDinamicas!$B$97:$N$222,$A122,0),0) -> 5 | H122: =IFERROR(HLOOKUP(TablasDinamicas!F$1,TablasDinamicas!$B$97:$N$222,$A122,0),0) -> 0 | I122: =IFERROR(HLOOKUP(TablasDinamicas!G$1,TablasDinamicas!$B$97:$N$222,$A122,0),0) -> 0 | J122: =IFERROR(HLOOKUP(TablasDinamicas!H$1,TablasDinamicas!$B$97:$N$222,$A122,0),0) -> 4 | K122: =IFERROR(HLOOKUP(TablasDinamicas!I$1,TablasDinamicas!$B$97:$N$222,$A122,0),0) -> 0 | L122: =IFERROR(HLOOKUP(TablasDinamicas!J$1,TablasDinamicas!$B$97:$N$222,$A122,0),0) -> 0 | M122: =IFERROR(HLOOKUP(TablasDinamicas!K$1,TablasDinamicas!$B$97:$N$222,$A122,0),0) -> 0 | N122: =IFERROR(HLOOKUP(TablasDinamicas!L$1,TablasDinamicas!$B$97:$N$222,$A122,0),0) -> 0 | O122: =IFERROR(HLOOKUP(TablasDinamicas!M$1,TablasDinamicas!$B$97:$N$222,$A122,0),0) -> 3 | P122: =IFERROR(HLOOKUP(TablasDinamicas!N$1,TablasDinamicas!$B$97:$N$222,$A122,0),0) -> 0
A123: =MATCH(B123,TablasDinamicas!$A$97:$A$222,0) -> 56 | B123: Lagos de Moreno | C123: 30 | D123: =IFERROR(HLOOKUP(TablasDinamicas!B$1,TablasDinamicas!$B$97:$N$222,$A123,0),0) -> 0 | E123: =IFERROR(HLOOKUP(TablasDinamicas!C$1,TablasDinamicas!$B$97:$N$222,$A123,0),0) -> 14 | F123: =IFERROR(HLOOKUP(TablasDinamicas!D$1,TablasDinamicas!$B$97:$N$222,$A123,0),0) -> 6 | G123: =IFERROR(HLOOKUP(TablasDinamicas!E$1,TablasDinamicas!$B$97:$N$222,$A123,0),0) -> 4 | H123: =IFERROR(HLOOKUP(TablasDinamicas!F$1,TablasDinamicas!$B$97:$N$222,$A123,0),0) -> 0 | I123: =IFERROR(HLOOKUP(TablasDinamicas!G$1,TablasDinamicas!$B$97:$N$222,$A123,0),0) -> 0 | J123: =IFERROR(HLOOKUP(TablasDinamicas!H$1,TablasDinamicas!$B$97:$N$222,$A123,0),0) -> 0 | K123: =IFERROR(HLOOKUP(TablasDinamicas!I$1,TablasDinamicas!$B$97:$N$222,$A123,0),0) -> 0 | L123: =IFERROR(HLOOKUP(TablasDinamicas!J$1,TablasDinamicas!$B$97:$N$222,$A123,0),0) -> 0 | M123: =IFERROR(HLOOKUP(TablasDinamicas!K$1,TablasDinamicas!$B$97:$N$222,$A123,0),0) -> 2 | N123: =IFERROR(HLOOKUP(TablasDinamicas!L$1,TablasDinamicas!$B$97:$N$222,$A123,0),0) -> 1 | O123: =IFERROR(HLOOKUP(TablasDinamicas!M$1,TablasDinamicas!$B$97:$N$222,$A123,0),0) -> 3 | P123: =IFERROR(HLOOKUP(TablasDinamicas!N$1,TablasDinamicas!$B$97:$N$222,$A123,0),0) -> 0
A124: =MATCH(B124,TablasDinamicas!$A$97:$A$222,0) -> 57 | B124: Magdalena | C124: 12 | D124: =IFERROR(HLOOKUP(TablasDinamicas!B$1,TablasDinamicas!$B$97:$N$222,$A124,0),0) -> 0 | E124: =IFERROR(HLOOKUP(TablasDinamicas!C$1,TablasDinamicas!$B$97:$N$222,$A124,0),0) -> 0 | F124: =IFERROR(HLOOKUP(TablasDinamicas!D$1,TablasDinamicas!$B$97:$N$222,$A124,0),0) -> 0 | G124: =IFERROR(HLOOKUP(TablasDinamicas!E$1,TablasDinamicas!$B$97:$N$222,$A124,0),0) -> 0 | H124: =IFERROR(HLOOKUP(TablasDinamicas!F$1,TablasDinamicas!$B$97:$N$222,$A124,0),0) -> 0 | I124: =IFERROR(HLOOKUP(TablasDinamicas!G$1,TablasDinamicas!$B$97:$N$222,$A124,0),0) -> 0 | J124: =IFERROR(HLOOKUP(TablasDinamicas!H$1,TablasDinamicas!$B$97:$N$222,$A124,0),0) -> 0 | K124: =IFERROR(HLOOKUP(TablasDinamicas!I$1,TablasDinamicas!$B$97:$N$222,$A124,0),0) -> 0 | L124: =IFERROR(HLOOKUP(TablasDinamicas!J$1,TablasDinamicas!$B$97:$N$222,$A124,0),0) -> 8 | M124: =IFERROR(HLOOKUP(TablasDinamicas!K$1,TablasDinamicas!$B$97:$N$222,$A124,0),0) -> 1 | N124: =IFERROR(HLOOKUP(TablasDinamicas!L$1,TablasDinamicas!$B$97:$N$222,$A124,0),0) -> 0 | O124: =IFERROR(HLOOKUP(TablasDinamicas!M$1,TablasDinamicas!$B$97:$N$222,$A124,0),0) -> 1 | P124: =IFERROR(HLOOKUP(TablasDinamicas!N$1,TablasDinamicas!$B$97:$N$222,$A124,0),0) -> 2
A125: =MATCH(B125,TablasDinamicas!$A$97:$A$222,0) ->  | B125: La Manzanilla de la Paz | C125: 0 | D125: =IFERROR(HLOOKUP(TablasDinamicas!B$1,TablasDinamicas!$B$97:$N$222,$A125,0),0) -> 0 | E125: =IFERROR(HLOOKUP(TablasDinamicas!C$1,TablasDinamicas!$B$97:$N$222,$A125,0),0) -> 0 | F125: =IFERROR(HLOOKUP(TablasDinamicas!D$1,TablasDinamicas!$B$97:$N$222,$A125,0),0) -> 0 | G125: =IFERROR(HLOOKUP(TablasDinamicas!E$1,TablasDinamicas!$B$97:$N$222,$A125,0),0) -> 0 | H125: =IFERROR(HLOOKUP(TablasDinamicas!F$1,TablasDinamicas!$B$97:$N$222,$A125,0),0) -> 0 | I125: =IFERROR(HLOOKUP(TablasDinamicas!G$1,TablasDinamicas!$B$97:$N$222,$A125,0),0) -> 0 | J125: =IFERROR(HLOOKUP(TablasDinamicas!H$1,TablasDinamicas!$B$97:$N$222,$A125,0),0) -> 0 | K125: =IFERROR(HLOOKUP(TablasDinamicas!I$1,TablasDinamicas!$B$97:$N$222,$A125,0),0) -> 0 | L125: =IFERROR(HLOOKUP(TablasDinamicas!J$1,TablasDinamicas!$B$97:$N$222,$A125,0),0) -> 0 | M125: =IFERROR(HLOOKUP(TablasDinamicas!K$1,TablasDinamicas!$B$97:$N$222,$A125,0),0) -> 0 | N125: =IFERROR(HLOOKUP(TablasDinamicas!L$1,TablasDinamicas!$B$97:$N$222,$A125,0),0) -> 0 | O125: =IFERROR(HLOOKUP(TablasDinamicas!M$1,TablasDinamicas!$B$97:$N$222,$A125,0),0) -> 0 | P125: =IFERROR(HLOOKUP(TablasDinamicas!N$1,TablasDinamicas!$B$97:$N$222,$A125,0),0) -> 0
A126: =MATCH(B126,TablasDinamicas!$A$97:$A$222,0) -> 58 | B126: Mascota | C126: 11 | D126: =IFERROR(HLOOKUP(TablasDinamicas!B$1,TablasDinamicas!$B$97:$N$222,$A126,0),0) -> 0 | E126: =IFERROR(HLOOKUP(TablasDinamicas!C$1,TablasDinamicas!$B$97:$N$222,$A126,0),0) -> 0 | F126: =IFERROR(HLOOKUP(TablasDinamicas!D$1,TablasDinamicas!$B$97:$N$222,$A126,0),0) -> 0 | G126: =IFERROR(HLOOKUP(TablasDinamicas!E$1,TablasDinamicas!$B$97:$N$222,$A126,0),0) -> 0 | H126: =IFERROR(HLOOKUP(TablasDinamicas!F$1,TablasDinamicas!$B$97:$N$222,$A126,0),0) -> 0 | I126: =IFERROR(HLOOKUP(TablasDinamicas!G$1,TablasDinamicas!$B$97:$N$222,$A126,0),0) -> 0 | J126: =IFERROR(HLOOKUP(TablasDinamicas!H$1,TablasDinamicas!$B$97:$N$222,$A126,0),0) -> 0 | K126: =IFERROR(HLOOKUP(TablasDinamicas!I$1,TablasDinamicas!$B$97:$N$222,$A126,0),0) -> 11 | L126: =IFERROR(HLOOKUP(TablasDinamicas!J$1,TablasDinamicas!$B$97:$N$222,$A126,0),0) -> 0 | M126: =IFERROR(HLOOKUP(TablasDinamicas!K$1,TablasDinamicas!$B$97:$N$222,$A126,0),0) -> 0 | N126: =IFERROR(HLOOKUP(TablasDinamicas!L$1,TablasDinamicas!$B$97:$N$222,$A126,0),0) -> 0 | O126: =IFERROR(HLOOKUP(TablasDinamicas!M$1,TablasDinamicas!$B$97:$N$222,$A126,0),0) -> 0 | P126: =IFERROR(HLOOKUP(TablasDinamicas!N$1,TablasDinamicas!$B$97:$N$222,$A126,0),0) -> 0
A127: =MATCH(B127,TablasDinamicas!$A$97:$A$222,0) -> 59 | B127: Mazamitla | C127: 5 | D127: =IFERROR(HLOOKUP(TablasDinamicas!B$1,TablasDinamicas!$B$97:$N$222,$A127,0),0) -> 0 | E127: =IFERROR(HLOOKUP(TablasDinamicas!C$1,TablasDinamicas!$B$97:$N$222,$A127,0),0) -> 0 | F127: =IFERROR(HLOOKUP(TablasDinamicas!D$1,TablasDinamicas!$B$97:$N$222,$A127,0),0) -> 0 | G127: =IFERROR(HLOOKUP(TablasDinamicas!E$1,TablasDinamicas!$B$97:$N$222,$A127,0),0) -> 1 | H127: =IFERROR(HLOOKUP(TablasDinamicas!F$1,TablasDinamicas!$B$97:$N$222,$A127,0),0) -> 0 | I127: =IFERROR(HLOOKUP(TablasDinamicas!G$1,TablasDinamicas!$B$97:$N$222,$A127,0),0) -> 1 | J127: =IFERROR(HLOOKUP(TablasDinamicas!H$1,TablasDinamicas!$B$97:$N$222,$A127,0),0) -> 0 | K127: =IFERROR(HLOOKUP(TablasDinamicas!I$1,TablasDinamicas!$B$97:$N$222,$A127,0),0) -> 0 | L127: =IFERROR(HLOOKUP(TablasDinamicas!J$1,TablasDinamicas!$B$97:$N$222,$A127,0),0) -> 0 | M127: =IFERROR(HLOOKUP(TablasDinamicas!K$1,TablasDinamicas!$B$97:$N$222,$A127,0),0) -> 0 | N127: =IFERROR(HLOOKUP(TablasDinamicas!L$1,TablasDinamicas!$B$97:$N$222,$A127,0),0) -> 0 | O127: =IFERROR(HLOOKUP(TablasDinamicas!M$1,TablasDinamicas!$B$97:$N$222,$A127,0),0) -> 0 | P127: =IFERROR(HLOOKUP(TablasDinamicas!N$1,TablasDinamicas!$B$97:$N$222,$A127,0),0) -> 3
A128: =MATCH(B128,TablasDinamicas!$A$97:$A$222,0) -> 60 | B128: Mexticacán | C128: 1 | D128: =IFERROR(HLOOKUP(TablasDinamicas!B$1,TablasDinamicas!$B$97:$N$222,$A128,0),0) -> 0 | E128: =IFERROR(HLOOKUP(TablasDinamicas!C$1,TablasDinamicas!$B$97:$N$222,$A128,0),0) -> 0 | F128: =IFERROR(HLOOKUP(TablasDinamicas!D$1,TablasDinamicas!$B$97:$N$222,$A128,0),0) -> 1 | G128: =IFERROR(HLOOKUP(TablasDinamicas!E$1,TablasDinamicas!$B$97:$N$222,$A128,0),0) -> 0 | H128: =IFERROR(HLOOKUP(TablasDinamicas!F$1,TablasDinamicas!$B$97:$N$222,$A128,0),0) -> 0 | I128: =IFERROR(HLOOKUP(TablasDinamicas!G$1,TablasDinamicas!$B$97:$N$222,$A128,0),0) -> 0 | J128: =IFERROR(HLOOKUP(TablasDinamicas!H$1,TablasDinamicas!$B$97:$N$222,$A128,0),0) -> 0 | K128: =IFERROR(HLOOKUP(TablasDinamicas!I$1,TablasDinamicas!$B$97:$N$222,$A128,0),0) -> 0 | L128: =IFERROR(HLOOKUP(TablasDinamicas!J$1,TablasDinamicas!$B$97:$N$222,$A128,0),0) -> 0 | M128: =IFERROR(HLOOKUP(TablasDinamicas!K$1,TablasDinamicas!$B$97:$N$222,$A128,0),0) -> 0 | N128: =IFERROR(HLOOKUP(TablasDinamicas!L$1,TablasDinamicas!$B$97:$N$222,$A128,0),0) -> 0 | O128: =IFERROR(HLOOKUP(TablasDinamicas!M$1,TablasDinamicas!$B$97:$N$222,$A128,0),0) -> 0 | P128: =IFERROR(HLOOKUP(TablasDinamicas!N$1,TablasDinamicas!$B$97:$N$222,$A128,0),0) -> 0
A129: =MATCH(B129,TablasDinamicas!$A$97:$A$222,0) -> 61 | B129: Mezquitic | C129: 3 | D129: =IFERROR(HLOOKUP(TablasDinamicas!B$1,TablasDinamicas!$B$97:$N$222,$A129,0),0) -> 1 | E129: =IFERROR(HLOOKUP(TablasDinamicas!C$1,TablasDinamicas!$B$97:$N$222,$A129,0),0) -> 0 | F129: =IFERROR(HLOOKUP(TablasDinamicas!D$1,TablasDinamicas!$B$97:$N$222,$A129,0),0) -> 0 | G129: =IFERROR(HLOOKUP(TablasDinamicas!E$1,TablasDinamicas!$B$97:$N$222,$A129,0),0) -> 0 | H129: =IFERROR(HLOOKUP(TablasDinamicas!F$1,TablasDinamicas!$B$97:$N$222,$A129,0),0) -> 0 | I129: =IFERROR(HLOOKUP(TablasDinamicas!G$1,TablasDinamicas!$B$97:$N$222,$A129,0),0) -> 0 | J129: =IFERROR(HLOOKUP(TablasDinamicas!H$1,TablasDinamicas!$B$97:$N$222,$A129,0),0) -> 0 | K129: =IFERROR(HLOOKUP(TablasDinamicas!I$1,TablasDinamicas!$B$97:$N$222,$A129,0),0) -> 0 | L129: =IFERROR(HLOOKUP(TablasDinamicas!J$1,TablasDinamicas!$B$97:$N$222,$A129,0),0) -> 0 | M129: =IFERROR(HLOOKUP(TablasDinamicas!K$1,TablasDinamicas!$B$97:$N$222,$A129,0),0) -> 0 | N129: =IFERROR(HLOOKUP(TablasDinamicas!L$1,TablasDinamicas!$B$97:$N$222,$A129,0),0) -> 2 | O129: =IFERROR(HLOOKUP(TablasDinamicas!M$1,TablasDinamicas!$B$97:$N$222,$A129,0),0) -> 0 | P129: =IFERROR(HLOOKUP(TablasDinamicas!N$1,TablasDinamicas!$B$97:$N$222,$A129,0),0) -> 0
A130: =MATCH(B130,TablasDinamicas!$A$97:$A$222,0) -> 62 | B130: Mixtlán | C130: 1 | D130: =IFERROR(HLOOKUP(TablasDinamicas!B$1,TablasDinamicas!$B$97:$N$222,$A130,0),0) -> 0 | E130: =IFERROR(HLOOKUP(TablasDinamicas!C$1,TablasDinamicas!$B$97:$N$222,$A130,0),0) -> 0 | F130: =IFERROR(HLOOKUP(TablasDinamicas!D$1,TablasDinamicas!$B$97:$N$222,$A130,0),0) -> 0 | G130: =IFERROR(HLOOKUP(TablasDinamicas!E$1,TablasDinamicas!$B$97:$N$222,$A130,0),0) -> 1 | H130: =IFERROR(HLOOKUP(TablasDinamicas!F$1,TablasDinamicas!$B$97:$N$222,$A130,0),0) -> 0 | I130: =IFERROR(HLOOKUP(TablasDinamicas!G$1,TablasDinamicas!$B$97:$N$222,$A130,0),0) -> 0 | J130: =IFERROR(HLOOKUP(TablasDinamicas!H$1,TablasDinamicas!$B$97:$N$222,$A130,0),0) -> 0 | K130: =IFERROR(HLOOKUP(TablasDinamicas!I$1,TablasDinamicas!$B$97:$N$222,$A130,0),0) -> 0 | L130: =IFERROR(HLOOKUP(TablasDinamicas!J$1,TablasDinamicas!$B$97:$N$222,$A130,0),0) -> 0 | M130: =IFERROR(HLOOKUP(TablasDinamicas!K$1,TablasDinamicas!$B$97:$N$222,$A130,0),0) -> 0 | N130: =IFERROR(HLOOKUP(TablasDinamicas!L$1,TablasDinamicas!$B$97:$N$222,$A130,0),0) -> 0 | O130: =IFERROR(HLOOKUP(TablasDinamicas!M$1,TablasDinamicas!$B$97:$N$222,$A130,0),0) -> 0 | P130: =IFERROR(HLOOKUP(TablasDinamicas!N$1,TablasDinamicas!$B$97:$N$222,$A130,0),0) -> 0
A131: =MATCH(B131,TablasDinamicas!$A$97:$A$222,0) -> 63 | B131: Ocotlán | C131: 316 | D131: =IFERROR(HLOOKUP(TablasDinamicas!B$1,TablasDinamicas!$B$97:$N$222,$A131,0),0) -> 0 | E131: =IFERROR(HLOOKUP(TablasDinamicas!C$1,TablasDinamicas!$B$97:$N$222,$A131,0),0) -> 0 | F131: =IFERROR(HLOOKUP(TablasDinamicas!D$1,TablasDinamicas!$B$97:$N$222,$A131,0),0) -> 3 | G131: =IFERROR(HLOOKUP(TablasDinamicas!E$1,TablasDinamicas!$B$97:$N$222,$A131,0),0) -> 305 | H131: =IFERROR(HLOOKUP(TablasDinamicas!F$1,TablasDinamicas!$B$97:$N$222,$A131,0),0) -> 0 | I131: =IFERROR(HLOOKUP(TablasDinamicas!G$1,TablasDinamicas!$B$97:$N$222,$A131,0),0) -> 0 | J131: =IFERROR(HLOOKUP(TablasDinamicas!H$1,TablasDinamicas!$B$97:$N$222,$A131,0),0) -> 0 | K131: =IFERROR(HLOOKUP(TablasDinamicas!I$1,TablasDinamicas!$B$97:$N$222,$A131,0),0) -> 0 | L131: =IFERROR(HLOOKUP(TablasDinamicas!J$1,TablasDinamicas!$B$97:$N$222,$A131,0),0) -> 3 | M131: =IFERROR(HLOOKUP(TablasDinamicas!K$1,TablasDinamicas!$B$97:$N$222,$A131,0),0) -> 2 | N131: =IFERROR(HLOOKUP(TablasDinamicas!L$1,TablasDinamicas!$B$97:$N$222,$A131,0),0) -> 0 | O131: =IFERROR(HLOOKUP(TablasDinamicas!M$1,TablasDinamicas!$B$97:$N$222,$A131,0),0) -> 2 | P131: =IFERROR(HLOOKUP(TablasDinamicas!N$1,TablasDinamicas!$B$97:$N$222,$A131,0),0) -> 1
A132: =MATCH(B132,TablasDinamicas!$A$97:$A$222,0) -> 64 | B132: Ojuelos de Jalisco | C132: 4 | D132: =IFERROR(HLOOKUP(TablasDinamicas!B$1,TablasDinamicas!$B$97:$N$222,$A132,0),0) -> 0 | E132: =IFERROR(HLOOKUP(TablasDinamicas!C$1,TablasDinamicas!$B$97:$N$222,$A132,0),0) -> 0 | F132: =IFERROR(HLOOKUP(TablasDinamicas!D$1,TablasDinamicas!$B$97:$N$222,$A132,0),0) -> 0 | G132: =IFERROR(HLOOKUP(TablasDinamicas!E$1,TablasDinamicas!$B$97:$N$222,$A132,0),0) -> 0 | H132: =IFERROR(HLOOKUP(TablasDinamicas!F$1,TablasDinamicas!$B$97:$N$222,$A132,0),0) -> 0 | I132: =IFERROR(HLOOKUP(TablasDinamicas!G$1,TablasDinamicas!$B$97:$N$222,$A132,0),0) -> 0 | J132: =IFERROR(HLOOKUP(TablasDinamicas!H$1,TablasDinamicas!$B$97:$N$222,$A132,0),0) -> 0 | K132: =IFERROR(HLOOKUP(TablasDinamicas!I$1,TablasDinamicas!$B$97:$N$222,$A132,0),0) -> 0 | L132: =IFERROR(HLOOKUP(TablasDinamicas!J$1,TablasDinamicas!$B$97:$N$222,$A132,0),0) -> 0 | M132: =IFERROR(HLOOKUP(TablasDinamicas!K$1,TablasDinamicas!$B$97:$N$222,$A132,0),0) -> 1 | N132: =IFERROR(HLOOKUP(TablasDinamicas!L$1,TablasDinamicas!$B$97:$N$222,$A132,0),0) -> 0 | O132: =IFERROR(HLOOKUP(TablasDinamicas!M$1,TablasDinamicas!$B$97:$N$222,$A132,0),0) -> 0 | P132: =IFERROR(HLOOKUP(TablasDinamicas!N$1,TablasDinamicas!$B$97:$N$222,$A132,0),0) -> 3
A133: =MATCH(B133,TablasDinamicas!$A$97:$A$222,0) ->  | B133: Pihuamo | C133: =SUM(D133:P133) -> 0 | D133: =IFERROR(HLOOKUP(TablasDinamicas!B$1,TablasDinamicas!$B$97:$N$222,$A133,0),0) -> 0 | E133: =IFERROR(HLOOKUP(TablasDinamicas!C$1,TablasDinamicas!$B$97:$N$222,$A133,0),0) -> 0 | F133: =IFERROR(HLOOKUP(TablasDinamicas!D$1,TablasDinamicas!$B$97:$N$222,$A133,0),0) -> 0 | G133: =IFERROR(HLOOKUP(TablasDinamicas!E$1,TablasDinamicas!$B$97:$N$222,$A133,0),0) -> 0 | H133: =IFERROR(HLOOKUP(TablasDinamicas!F$1,TablasDinamicas!$B$97:$N$222,$A133,0),0) -> 0 | I133: =IFERROR(HLOOKUP(TablasDinamicas!G$1,TablasDinamicas!$B$97:$N$222,$A133,0),0) -> 0 | J133: =IFERROR(HLOOKUP(TablasDinamicas!H$1,TablasDinamicas!$B$97:$N$222,$A133,0),0) -> 0 | K133: =IFERROR(HLOOKUP(TablasDinamicas!I$1,TablasDinamicas!$B$97:$N$222,$A133,0),0) -> 0 | L133: =IFERROR(HLOOKUP(TablasDinamicas!J$1,TablasDinamicas!$B$97:$N$222,$A133,0),0) -> 0 | M133: =IFERROR(HLOOKUP(TablasDinamicas!K$1,TablasDinamicas!$B$97:$N$222,$A133,0),0) -> 0 | N133: =IFERROR(HLOOKUP(TablasDinamicas!L$1,TablasDinamicas!$B$97:$N$222,$A133,0),0) -> 0 | O133: =IFERROR(HLOOKUP(TablasDinamicas!M$1,TablasDinamicas!$B$97:$N$222,$A133,0),0) -> 0 | P133: =IFERROR(HLOOKUP(TablasDinamicas!N$1,TablasDinamicas!$B$97:$N$222,$A133,0),0) -> 0
A134: =MATCH(B134,TablasDinamicas!$A$97:$A$222,0) -> 65 | B134: Poncitlán | C134: 71 | D134: =IFERROR(HLOOKUP(TablasDinamicas!B$1,TablasDinamicas!$B$97:$N$222,$A134,0),0) -> 0 | E134: =IFERROR(HLOOKUP(TablasDinamicas!C$1,TablasDinamicas!$B$97:$N$222,$A134,0),0) -> 0 | F134: =IFERROR(HLOOKUP(TablasDinamicas!D$1,TablasDinamicas!$B$97:$N$222,$A134,0),0) -> 0 | G134: =IFERROR(HLOOKUP(TablasDinamicas!E$1,TablasDinamicas!$B$97:$N$222,$A134,0),0) -> 69 | H134: =IFERROR(HLOOKUP(TablasDinamicas!F$1,TablasDinamicas!$B$97:$N$222,$A134,0),0) -> 0 | I134: =IFERROR(HLOOKUP(TablasDinamicas!G$1,TablasDinamicas!$B$97:$N$222,$A134,0),0) -> 0 | J134: =IFERROR(HLOOKUP(TablasDinamicas!H$1,TablasDinamicas!$B$97:$N$222,$A134,0),0) -> 0 | K134: =IFERROR(HLOOKUP(TablasDinamicas!I$1,TablasDinamicas!$B$97:$N$222,$A134,0),0) -> 0 | L134: =IFERROR(HLOOKUP(TablasDinamicas!J$1,TablasDinamicas!$B$97:$N$222,$A134,0),0) -> 0 | M134: =IFERROR(HLOOKUP(TablasDinamicas!K$1,TablasDinamicas!$B$97:$N$222,$A134,0),0) -> 1 | N134: =IFERROR(HLOOKUP(TablasDinamicas!L$1,TablasDinamicas!$B$97:$N$222,$A134,0),0) -> 1 | O134: =IFERROR(HLOOKUP(TablasDinamicas!M$1,TablasDinamicas!$B$97:$N$222,$A134,0),0) -> 0 | P134: =IFERROR(HLOOKUP(TablasDinamicas!N$1,TablasDinamicas!$B$97:$N$222,$A134,0),0) -> 0
A135: =MATCH(B135,TablasDinamicas!$A$97:$A$222,0) -> 66 | B135: Puerto Vallarta | C135: 169 | D135: =IFERROR(HLOOKUP(TablasDinamicas!B$1,TablasDinamicas!$B$97:$N$222,$A135,0),0) -> 0 | E135: =IFERROR(HLOOKUP(TablasDinamicas!C$1,TablasDinamicas!$B$97:$N$222,$A135,0),0) -> 0 | F135: =IFERROR(HLOOKUP(TablasDinamicas!D$1,TablasDinamicas!$B$97:$N$222,$A135,0),0) -> 1 | G135: =IFERROR(HLOOKUP(TablasDinamicas!E$1,TablasDinamicas!$B$97:$N$222,$A135,0),0) -> 1 | H135: =IFERROR(HLOOKUP(TablasDinamicas!F$1,TablasDinamicas!$B$97:$N$222,$A135,0),0) -> 0 | I135: =IFERROR(HLOOKUP(TablasDinamicas!G$1,TablasDinamicas!$B$97:$N$222,$A135,0),0) -> 0 | J135: =IFERROR(HLOOKUP(TablasDinamicas!H$1,TablasDinamicas!$B$97:$N$222,$A135,0),0) -> 0 | K135: =IFERROR(HLOOKUP(TablasDinamicas!I$1,TablasDinamicas!$B$97:$N$222,$A135,0),0) -> 161 | L135: =IFERROR(HLOOKUP(TablasDinamicas!J$1,TablasDinamicas!$B$97:$N$222,$A135,0),0) -> 0 | M135: =IFERROR(HLOOKUP(TablasDinamicas!K$1,TablasDinamicas!$B$97:$N$222,$A135,0),0) -> 2 | N135: =IFERROR(HLOOKUP(TablasDinamicas!L$1,TablasDinamicas!$B$97:$N$222,$A135,0),0) -> 0 | O135: =IFERROR(HLOOKUP(TablasDinamicas!M$1,TablasDinamicas!$B$97:$N$222,$A135,0),0) -> 1 | P135: =IFERROR(HLOOKUP(TablasDinamicas!N$1,TablasDinamicas!$B$97:$N$222,$A135,0),0) -> 3
A136: =MATCH(B136,TablasDinamicas!$A$97:$A$222,0) -> 67 | B136: Quitupan | C136: 10 | D136: =IFERROR(HLOOKUP(TablasDinamicas!B$1,TablasDinamicas!$B$97:$N$222,$A136,0),0) -> 0 | E136: =IFERROR(HLOOKUP(TablasDinamicas!C$1,TablasDinamicas!$B$97:$N$222,$A136,0),0) -> 0 | F136: =IFERROR(HLOOKUP(TablasDinamicas!D$1,TablasDinamicas!$B$97:$N$222,$A136,0),0) -> 1 | G136: =IFERROR(HLOOKUP(TablasDinamicas!E$1,TablasDinamicas!$B$97:$N$222,$A136,0),0) -> 3 | H136: =IFERROR(HLOOKUP(TablasDinamicas!F$1,TablasDinamicas!$B$97:$N$222,$A136,0),0) -> 0 | I136: =IFERROR(HLOOKUP(TablasDinamicas!G$1,TablasDinamicas!$B$97:$N$222,$A136,0),0) -> 0 | J136: =IFERROR(HLOOKUP(TablasDinamicas!H$1,TablasDinamicas!$B$97:$N$222,$A136,0),0) -> 0 | K136: =IFERROR(HLOOKUP(TablasDinamicas!I$1,TablasDinamicas!$B$97:$N$222,$A136,0),0) -> 0 | L136: =IFERROR(HLOOKUP(TablasDinamicas!J$1,TablasDinamicas!$B$97:$N$222,$A136,0),0) -> 0 | M136: =IFERROR(HLOOKUP(TablasDinamicas!K$1,TablasDinamicas!$B$97:$N$222,$A136,0),0) -> 0 | N136: =IFERROR(HLOOKUP(TablasDinamicas!L$1,TablasDinamicas!$B$97:$N$222,$A136,0),0) -> 1 | O136: =IFERROR(HLOOKUP(TablasDinamicas!M$1,TablasDinamicas!$B$97:$N$222,$A136,0),0) -> 2 | P136: =IFERROR(HLOOKUP(TablasDinamicas!N$1,TablasDinamicas!$B$97:$N$222,$A136,0),0) -> 3
A137: =MATCH(B137,TablasDinamicas!$A$97:$A$222,0) -> 68 | B137: San Cristóbal de la Barranca | C137: 2 | D137: =IFERROR(HLOOKUP(TablasDinamicas!B$1,TablasDinamicas!$B$97:$N$222,$A137,0),0) -> 0 | E137: =IFERROR(HLOOKUP(TablasDinamicas!C$1,TablasDinamicas!$B$97:$N$222,$A137,0),0) -> 0 | F137: =IFERROR(HLOOKUP(TablasDinamicas!D$1,TablasDinamicas!$B$97:$N$222,$A137,0),0) -> 0 | G137: =IFERROR(HLOOKUP(TablasDinamicas!E$1,TablasDinamicas!$B$97:$N$222,$A137,0),0) -> 0 | H137: =IFERROR(HLOOKUP(TablasDinamicas!F$1,TablasDinamicas!$B$97:$N$222,$A137,0),0) -> 0 | I137: =IFERROR(HLOOKUP(TablasDinamicas!G$1,TablasDinamicas!$B$97:$N$222,$A137,0),0) -> 0 | J137: =IFERROR(HLOOKUP(TablasDinamicas!H$1,TablasDinamicas!$B$97:$N$222,$A137,0),0) -> 0 | K137: =IFERROR(HLOOKUP(TablasDinamicas!I$1,TablasDinamicas!$B$97:$N$222,$A137,0),0) -> 0 | L137: =IFERROR(HLOOKUP(TablasDinamicas!J$1,TablasDinamicas!$B$97:$N$222,$A137,0),0) -> 1 | M137: =IFERROR(HLOOKUP(TablasDinamicas!K$1,TablasDinamicas!$B$97:$N$222,$A137,0),0) -> 1 | N137: =IFERROR(HLOOKUP(TablasDinamicas!L$1,TablasDinamicas!$B$97:$N$222,$A137,0),0) -> 0 | O137: =IFERROR(HLOOKUP(TablasDinamicas!M$1,TablasDinamicas!$B$97:$N$222,$A137,0),0) -> 0 | P137: =IFERROR(HLOOKUP(TablasDinamicas!N$1,TablasDinamicas!$B$97:$N$222,$A137,0),0) -> 0
A138: =MATCH(B138,TablasDinamicas!$A$97:$A$222,0) -> 69 | B138: San Diego de Alejandría | C138: 3 | D138: =IFERROR(HLOOKUP(TablasDinamicas!B$1,TablasDinamicas!$B$97:$N$222,$A138,0),0) -> 0 | E138: =IFERROR(HLOOKUP(TablasDinamicas!C$1,TablasDinamicas!$B$97:$N$222,$A138,0),0) -> 0 | F138: =IFERROR(HLOOKUP(TablasDinamicas!D$1,TablasDinamicas!$B$97:$N$222,$A138,0),0) -> 1 | G138: =IFERROR(HLOOKUP(TablasDinamicas!E$1,TablasDinamicas!$B$97:$N$222,$A138,0),0) -> 2 | H138: =IFERROR(HLOOKUP(TablasDinamicas!F$1,TablasDinamicas!$B$97:$N$222,$A138,0),0) -> 0 | I138: =IFERROR(HLOOKUP(TablasDinamicas!G$1,TablasDinamicas!$B$97:$N$222,$A138,0),0) -> 0 | J138: =IFERROR(HLOOKUP(TablasDinamicas!H$1,TablasDinamicas!$B$97:$N$222,$A138,0),0) -> 0 | K138: =IFERROR(HLOOKUP(TablasDinamicas!I$1,TablasDinamicas!$B$97:$N$222,$A138,0),0) -> 0 | L138: =IFERROR(HLOOKUP(TablasDinamicas!J$1,TablasDinamicas!$B$97:$N$222,$A138,0),0) -> 0 | M138: =IFERROR(HLOOKUP(TablasDinamicas!K$1,TablasDinamicas!$B$97:$N$222,$A138,0),0) -> 0 | N138: =IFERROR(HLOOKUP(TablasDinamicas!L$1,TablasDinamicas!$B$97:$N$222,$A138,0),0) -> 0 | O138: =IFERROR(HLOOKUP(TablasDinamicas!M$1,TablasDinamicas!$B$97:$N$222,$A138,0),0) -> 0 | P138: =IFERROR(HLOOKUP(TablasDinamicas!N$1,TablasDinamicas!$B$97:$N$222,$A138,0),0) -> 0
A139: =MATCH(B139,TablasDinamicas!$A$97:$A$222,0) -> 70 | B139: San Gabriel | C139: 2 | D139: =IFERROR(HLOOKUP(TablasDinamicas!B$1,TablasDinamicas!$B$97:$N$222,$A139,0),0) -> 0 | E139: =IFERROR(HLOOKUP(TablasDinamicas!C$1,TablasDinamicas!$B$97:$N$222,$A139,0),0) -> 0 | F139: =IFERROR(HLOOKUP(TablasDinamicas!D$1,TablasDinamicas!$B$97:$N$222,$A139,0),0) -> 0 | G139: =IFERROR(HLOOKUP(TablasDinamicas!E$1,TablasDinamicas!$B$97:$N$222,$A139,0),0) -> 0 | H139: =IFERROR(HLOOKUP(TablasDinamicas!F$1,TablasDinamicas!$B$97:$N$222,$A139,0),0) -> 0 | I139: =IFERROR(HLOOKUP(TablasDinamicas!G$1,TablasDinamicas!$B$97:$N$222,$A139,0),0) -> 2 | J139: =IFERROR(HLOOKUP(TablasDinamicas!H$1,TablasDinamicas!$B$97:$N$222,$A139,0),0) -> 0 | K139: =IFERROR(HLOOKUP(TablasDinamicas!I$1,TablasDinamicas!$B$97:$N$222,$A139,0),0) -> 0 | L139: =IFERROR(HLOOKUP(TablasDinamicas!J$1,TablasDinamicas!$B$97:$N$222,$A139,0),0) -> 0 | M139: =IFERROR(HLOOKUP(TablasDinamicas!K$1,TablasDinamicas!$B$97:$N$222,$A139,0),0) -> 0 | N139: =IFERROR(HLOOKUP(TablasDinamicas!L$1,TablasDinamicas!$B$97:$N$222,$A139,0),0) -> 0 | O139: =IFERROR(HLOOKUP(TablasDinamicas!M$1,TablasDinamicas!$B$97:$N$222,$A139,0),0) -> 0 | P139: =IFERROR(HLOOKUP(TablasDinamicas!N$1,TablasDinamicas!$B$97:$N$222,$A139,0),0) -> 0
A140: =MATCH(B140,TablasDinamicas!$A$97:$A$222,0) -> 71 | B140: San Ignacio Cerro Gordo | C140: 5 | D140: =IFERROR(HLOOKUP(TablasDinamicas!B$1,TablasDinamicas!$B$97:$N$222,$A140,0),0) -> 0 | E140: =IFERROR(HLOOKUP(TablasDinamicas!C$1,TablasDinamicas!$B$97:$N$222,$A140,0),0) -> 0 | F140: =IFERROR(HLOOKUP(TablasDinamicas!D$1,TablasDinamicas!$B$97:$N$222,$A140,0),0) -> 1 | G140: =IFERROR(HLOOKUP(TablasDinamicas!E$1,TablasDinamicas!$B$97:$N$222,$A140,0),0) -> 3 | H140: =IFERROR(HLOOKUP(TablasDinamicas!F$1,TablasDinamicas!$B$97:$N$222,$A140,0),0) -> 0 | I140: =IFERROR(HLOOKUP(TablasDinamicas!G$1,TablasDinamicas!$B$97:$N$222,$A140,0),0) -> 0 | J140: =IFERROR(HLOOKUP(TablasDinamicas!H$1,TablasDinamicas!$B$97:$N$222,$A140,0),0) -> 0 | K140: =IFERROR(HLOOKUP(TablasDinamicas!I$1,TablasDinamicas!$B$97:$N$222,$A140,0),0) -> 0 | L140: =IFERROR(HLOOKUP(TablasDinamicas!J$1,TablasDinamicas!$B$97:$N$222,$A140,0),0) -> 0 | M140: =IFERROR(HLOOKUP(TablasDinamicas!K$1,TablasDinamicas!$B$97:$N$222,$A140,0),0) -> 0 | N140: =IFERROR(HLOOKUP(TablasDinamicas!L$1,TablasDinamicas!$B$97:$N$222,$A140,0),0) -> 0 | O140: =IFERROR(HLOOKUP(TablasDinamicas!M$1,TablasDinamicas!$B$97:$N$222,$A140,0),0) -> 0 | P140: =IFERROR(HLOOKUP(TablasDinamicas!N$1,TablasDinamicas!$B$97:$N$222,$A140,0),0) -> 1
A141: =MATCH(B141,TablasDinamicas!$A$97:$A$222,0) -> 72 | B141: San Juan de los Lagos | C141: 82 | D141: =IFERROR(HLOOKUP(TablasDinamicas!B$1,TablasDinamicas!$B$97:$N$222,$A141,0),0) -> 0 | E141: =IFERROR(HLOOKUP(TablasDinamicas!C$1,TablasDinamicas!$B$97:$N$222,$A141,0),0) -> 54 | F141: =IFERROR(HLOOKUP(TablasDinamicas!D$1,TablasDinamicas!$B$97:$N$222,$A141,0),0) -> 16 | G141: =IFERROR(HLOOKUP(TablasDinamicas!E$1,TablasDinamicas!$B$97:$N$222,$A141,0),0) -> 9 | H141: =IFERROR(HLOOKUP(TablasDinamicas!F$1,TablasDinamicas!$B$97:$N$222,$A141,0),0) -> 0 | I141: =IFERROR(HLOOKUP(TablasDinamicas!G$1,TablasDinamicas!$B$97:$N$222,$A141,0),0) -> 0 | J141: =IFERROR(HLOOKUP(TablasDinamicas!H$1,TablasDinamicas!$B$97:$N$222,$A141,0),0) -> 0 | K141: =IFERROR(HLOOKUP(TablasDinamicas!I$1,TablasDinamicas!$B$97:$N$222,$A141,0),0) -> 0 | L141: =IFERROR(HLOOKUP(TablasDinamicas!J$1,TablasDinamicas!$B$97:$N$222,$A141,0),0) -> 0 | M141: =IFERROR(HLOOKUP(TablasDinamicas!K$1,TablasDinamicas!$B$97:$N$222,$A141,0),0) -> 0 | N141: =IFERROR(HLOOKUP(TablasDinamicas!L$1,TablasDinamicas!$B$97:$N$222,$A141,0),0) -> 0 | O141: =IFERROR(HLOOKUP(TablasDinamicas!M$1,TablasDinamicas!$B$97:$N$222,$A141,0),0) -> 0 | P141: =IFERROR(HLOOKUP(TablasDinamicas!N$1,TablasDinamicas!$B$97:$N$222,$A141,0),0) -> 3
A142: =MATCH(B142,TablasDinamicas!$A$97:$A$222,0) -> 73 | B142: San Juanito de Escobedo | C142: 24 | D142: =IFERROR(HLOOKUP(TablasDinamicas!B$1,TablasDinamicas!$B$97:$N$222,$A142,0),0) -> 0 | E142: =IFERROR(HLOOKUP(TablasDinamicas!C$1,TablasDinamicas!$B$97:$N$222,$A142,0),0) -> 0 | F142: =IFERROR(HLOOKUP(TablasDinamicas!D$1,TablasDinamicas!$B$97:$N$222,$A142,0),0) -> 1 | G142: =IFERROR(HLOOKUP(TablasDinamicas!E$1,TablasDinamicas!$B$97:$N$222,$A142,0),0) -> 1 | H142: =IFERROR(HLOOKUP(TablasDinamicas!F$1,TablasDinamicas!$B$97:$N$222,$A142,0),0) -> 0 | I142: =IFERROR(HLOOKUP(TablasDinamicas!G$1,TablasDinamicas!$B$97:$N$222,$A142,0),0) -> 0 | J142: =IFERROR(HLOOKUP(TablasDinamicas!H$1,TablasDinamicas!$B$97:$N$222,$A142,0),0) -> 0 | K142: =IFERROR(HLOOKUP(TablasDinamicas!I$1,TablasDinamicas!$B$97:$N$222,$A142,0),0) -> 0 | L142: =IFERROR(HLOOKUP(TablasDinamicas!J$1,TablasDinamicas!$B$97:$N$222,$A142,0),0) -> 4 | M142: =IFERROR(HLOOKUP(TablasDinamicas!K$1,TablasDinamicas!$B$97:$N$222,$A142,0),0) -> 4 | N142: =IFERROR(HLOOKUP(TablasDinamicas!L$1,TablasDinamicas!$B$97:$N$222,$A142,0),0) -> 4 | O142: =IFERROR(HLOOKUP(TablasDinamicas!M$1,TablasDinamicas!$B$97:$N$222,$A142,0),0) -> 7 | P142: =IFERROR(HLOOKUP(TablasDinamicas!N$1,TablasDinamicas!$B$97:$N$222,$A142,0),0) -> 3
A143: =MATCH(B143,TablasDinamicas!$A$97:$A$222,0) -> 74 | B143: San Julián | C143: 10 | D143: =IFERROR(HLOOKUP(TablasDinamicas!B$1,TablasDinamicas!$B$97:$N$222,$A143,0),0) -> 0 | E143: =IFERROR(HLOOKUP(TablasDinamicas!C$1,TablasDinamicas!$B$97:$N$222,$A143,0),0) -> 0 | F143: =IFERROR(HLOOKUP(TablasDinamicas!D$1,TablasDinamicas!$B$97:$N$222,$A143,0),0) -> 7 | G143: =IFERROR(HLOOKUP(TablasDinamicas!E$1,TablasDinamicas!$B$97:$N$222,$A143,0),0) -> 2 | H143: =IFERROR(HLOOKUP(TablasDinamicas!F$1,TablasDinamicas!$B$97:$N$222,$A143,0),0) -> 0 | I143: =IFERROR(HLOOKUP(TablasDinamicas!G$1,TablasDinamicas!$B$97:$N$222,$A143,0),0) -> 0 | J143: =IFERROR(HLOOKUP(TablasDinamicas!H$1,TablasDinamicas!$B$97:$N$222,$A143,0),0) -> 0 | K143: =IFERROR(HLOOKUP(TablasDinamicas!I$1,TablasDinamicas!$B$97:$N$222,$A143,0),0) -> 0 | L143: =IFERROR(HLOOKUP(TablasDinamicas!J$1,TablasDinamicas!$B$97:$N$222,$A143,0),0) -> 0 | M143: =IFERROR(HLOOKUP(TablasDinamicas!K$1,TablasDinamicas!$B$97:$N$222,$A143,0),0) -> 0 | N143: =IFERROR(HLOOKUP(TablasDinamicas!L$1,TablasDinamicas!$B$97:$N$222,$A143,0),0) -> 0 | O143: =IFERROR(HLOOKUP(TablasDinamicas!M$1,TablasDinamicas!$B$97:$N$222,$A143,0),0) -> 1 | P143: =IFERROR(HLOOKUP(TablasDinamicas!N$1,TablasDinamicas!$B$97:$N$222,$A143,0),0) -> 0
A144: =MATCH(B144,TablasDinamicas!$A$97:$A$222,0) -> 75 | B144: San Marcos | C144: 2 | D144: =IFERROR(HLOOKUP(TablasDinamicas!B$1,TablasDinamicas!$B$97:$N$222,$A144,0),0) -> 0 | E144: =IFERROR(HLOOKUP(TablasDinamicas!C$1,TablasDinamicas!$B$97:$N$222,$A144,0),0) -> 0 | F144: =IFERROR(HLOOKUP(TablasDinamicas!D$1,TablasDinamicas!$B$97:$N$222,$A144,0),0) -> 0 | G144: =IFERROR(HLOOKUP(TablasDinamicas!E$1,TablasDinamicas!$B$97:$N$222,$A144,0),0) -> 0 | H144: =IFERROR(HLOOKUP(TablasDinamicas!F$1,TablasDinamicas!$B$97:$N$222,$A144,0),0) -> 0 | I144: =IFERROR(HLOOKUP(TablasDinamicas!G$1,TablasDinamicas!$B$97:$N$222,$A144,0),0) -> 0 | J144: =IFERROR(HLOOKUP(TablasDinamicas!H$1,TablasDinamicas!$B$97:$N$222,$A144,0),0) -> 0 | K144: =IFERROR(HLOOKUP(TablasDinamicas!I$1,TablasDinamicas!$B$97:$N$222,$A144,0),0) -> 0 | L144: =IFERROR(HLOOKUP(TablasDinamicas!J$1,TablasDinamicas!$B$97:$N$222,$A144,0),0) -> 0 | M144: =IFERROR(HLOOKUP(TablasDinamicas!K$1,TablasDinamicas!$B$97:$N$222,$A144,0),0) -> 0 | N144: =IFERROR(HLOOKUP(TablasDinamicas!L$1,TablasDinamicas!$B$97:$N$222,$A144,0),0) -> 0 | O144: =IFERROR(HLOOKUP(TablasDinamicas!M$1,TablasDinamicas!$B$97:$N$222,$A144,0),0) -> 2 | P144: =IFERROR(HLOOKUP(TablasDinamicas!N$1,TablasDinamicas!$B$97:$N$222,$A144,0),0) -> 0
A145: =MATCH(B145,TablasDinamicas!$A$97:$A$222,0) -> 76 | B145: San Martín de Bolaños | C145: 4 | D145: =IFERROR(HLOOKUP(TablasDinamicas!B$1,TablasDinamicas!$B$97:$N$222,$A145,0),0) -> 0 | E145: =IFERROR(HLOOKUP(TablasDinamicas!C$1,TablasDinamicas!$B$97:$N$222,$A145,0),0) -> 0 | F145: =IFERROR(HLOOKUP(TablasDinamicas!D$1,TablasDinamicas!$B$97:$N$222,$A145,0),0) -> 0 | G145: =IFERROR(HLOOKUP(TablasDinamicas!E$1,TablasDinamicas!$B$97:$N$222,$A145,0),0) -> 2 | H145: =IFERROR(HLOOKUP(TablasDinamicas!F$1,TablasDinamicas!$B$97:$N$222,$A145,0),0) -> 0 | I145: =IFERROR(HLOOKUP(TablasDinamicas!G$1,TablasDinamicas!$B$97:$N$222,$A145,0),0) -> 0 | J145: =IFERROR(HLOOKUP(TablasDinamicas!H$1,TablasDinamicas!$B$97:$N$222,$A145,0),0) -> 0 | K145: =IFERROR(HLOOKUP(TablasDinamicas!I$1,TablasDinamicas!$B$97:$N$222,$A145,0),0) -> 0 | L145: =IFERROR(HLOOKUP(TablasDinamicas!J$1,TablasDinamicas!$B$97:$N$222,$A145,0),0) -> 0 | M145: =IFERROR(HLOOKUP(TablasDinamicas!K$1,TablasDinamicas!$B$97:$N$222,$A145,0),0) -> 1 | N145: =IFERROR(HLOOKUP(TablasDinamicas!L$1,TablasDinamicas!$B$97:$N$222,$A145,0),0) -> 0 | O145: =IFERROR(HLOOKUP(TablasDinamicas!M$1,TablasDinamicas!$B$97:$N$222,$A145,0),0) -> 1 | P145: =IFERROR(HLOOKUP(TablasDinamicas!N$1,TablasDinamicas!$B$97:$N$222,$A145,0),0) -> 0
A146: =MATCH(B146,TablasDinamicas!$A$97:$A$222,0) -> 122 | B146: San Martín Hidalgo | C146: 9 | D146: =IFERROR(HLOOKUP(TablasDinamicas!B$1,TablasDinamicas!$B$97:$N$222,$A146,0),0) -> 0 | E146: =IFERROR(HLOOKUP(TablasDinamicas!C$1,TablasDinamicas!$B$97:$N$222,$A146,0),0) -> 0 | F146: =IFERROR(HLOOKUP(TablasDinamicas!D$1,TablasDinamicas!$B$97:$N$222,$A146,0),0) -> 0 | G146: =IFERROR(HLOOKUP(TablasDinamicas!E$1,TablasDinamicas!$B$97:$N$222,$A146,0),0) -> 2 | H146: =IFERROR(HLOOKUP(TablasDinamicas!F$1,TablasDinamicas!$B$97:$N$222,$A146,0),0) -> 0 | I146: =IFERROR(HLOOKUP(TablasDinamicas!G$1,TablasDinamicas!$B$97:$N$222,$A146,0),0) -> 1 | J146: =IFERROR(HLOOKUP(TablasDinamicas!H$1,TablasDinamicas!$B$97:$N$222,$A146,0),0) -> 0 | K146: =IFERROR(HLOOKUP(TablasDinamicas!I$1,TablasDinamicas!$B$97:$N$222,$A146,0),0) -> 0 | L146: =IFERROR(HLOOKUP(TablasDinamicas!J$1,TablasDinamicas!$B$97:$N$222,$A146,0),0) -> 4 | M146: =IFERROR(HLOOKUP(TablasDinamicas!K$1,TablasDinamicas!$B$97:$N$222,$A146,0),0) -> 1 | N146: =IFERROR(HLOOKUP(TablasDinamicas!L$1,TablasDinamicas!$B$97:$N$222,$A146,0),0) -> 0 | O146: =IFERROR(HLOOKUP(TablasDinamicas!M$1,TablasDinamicas!$B$97:$N$222,$A146,0),0) -> 0 | P146: =IFERROR(HLOOKUP(TablasDinamicas!N$1,TablasDinamicas!$B$97:$N$222,$A146,0),0) -> 1
A147: =MATCH(B147,TablasDinamicas!$A$97:$A$222,0) -> 77 | B147: San Miguel el Alto | C147: 18 | D147: =IFERROR(HLOOKUP(TablasDinamicas!B$1,TablasDinamicas!$B$97:$N$222,$A147,0),0) -> 0 | E147: =IFERROR(HLOOKUP(TablasDinamicas!C$1,TablasDinamicas!$B$97:$N$222,$A147,0),0) -> 0 | F147: =IFERROR(HLOOKUP(TablasDinamicas!D$1,TablasDinamicas!$B$97:$N$222,$A147,0),0) -> 13 | G147: =IFERROR(HLOOKUP(TablasDinamicas!E$1,TablasDinamicas!$B$97:$N$222,$A147,0),0) -> 5 | H147: =IFERROR(HLOOKUP(TablasDinamicas!F$1,TablasDinamicas!$B$97:$N$222,$A147,0),0) -> 0 | I147: =IFERROR(HLOOKUP(TablasDinamicas!G$1,TablasDinamicas!$B$97:$N$222,$A147,0),0) -> 0 | J147: =IFERROR(HLOOKUP(TablasDinamicas!H$1,TablasDinamicas!$B$97:$N$222,$A147,0),0) -> 0 | K147: =IFERROR(HLOOKUP(TablasDinamicas!I$1,TablasDinamicas!$B$97:$N$222,$A147,0),0) -> 0 | L147: =IFERROR(HLOOKUP(TablasDinamicas!J$1,TablasDinamicas!$B$97:$N$222,$A147,0),0) -> 0 | M147: =IFERROR(HLOOKUP(TablasDinamicas!K$1,TablasDinamicas!$B$97:$N$222,$A147,0),0) -> 0 | N147: =IFERROR(HLOOKUP(TablasDinamicas!L$1,TablasDinamicas!$B$97:$N$222,$A147,0),0) -> 0 | O147: =IFERROR(HLOOKUP(TablasDinamicas!M$1,TablasDinamicas!$B$97:$N$222,$A147,0),0) -> 0 | P147: =IFERROR(HLOOKUP(TablasDinamicas!N$1,TablasDinamicas!$B$97:$N$222,$A147,0),0) -> 0
A148: =MATCH(B148,TablasDinamicas!$A$97:$A$222,0) -> 78 | B148: San Pedro Tlaquepaque | C148: 446 | D148: =IFERROR(HLOOKUP(TablasDinamicas!B$1,TablasDinamicas!$B$97:$N$222,$A148,0),0) -> 0 | E148: =IFERROR(HLOOKUP(TablasDinamicas!C$1,TablasDinamicas!$B$97:$N$222,$A148,0),0) -> 0 | F148: =IFERROR(HLOOKUP(TablasDinamicas!D$1,TablasDinamicas!$B$97:$N$222,$A148,0),0) -> 0 | G148: =IFERROR(HLOOKUP(TablasDinamicas!E$1,TablasDinamicas!$B$97:$N$222,$A148,0),0) -> 4 | H148: =IFERROR(HLOOKUP(TablasDinamicas!F$1,TablasDinamicas!$B$97:$N$222,$A148,0),0) -> 0 | I148: =IFERROR(HLOOKUP(TablasDinamicas!G$1,TablasDinamicas!$B$97:$N$222,$A148,0),0) -> 0 | J148: =IFERROR(HLOOKUP(TablasDinamicas!H$1,TablasDinamicas!$B$97:$N$222,$A148,0),0) -> 0 | K148: =IFERROR(HLOOKUP(TablasDinamicas!I$1,TablasDinamicas!$B$97:$N$222,$A148,0),0) -> 0 | L148: =IFERROR(HLOOKUP(TablasDinamicas!J$1,TablasDinamicas!$B$97:$N$222,$A148,0),0) -> 7 | M148: =IFERROR(HLOOKUP(TablasDinamicas!K$1,TablasDinamicas!$B$97:$N$222,$A148,0),0) -> 25 | N148: =IFERROR(HLOOKUP(TablasDinamicas!L$1,TablasDinamicas!$B$97:$N$222,$A148,0),0) -> 11 | O148: =IFERROR(HLOOKUP(TablasDinamicas!M$1,TablasDinamicas!$B$97:$N$222,$A148,0),0) -> 266 | P148: =IFERROR(HLOOKUP(TablasDinamicas!N$1,TablasDinamicas!$B$97:$N$222,$A148,0),0) -> 133
A149: =MATCH(B149,TablasDinamicas!$A$97:$A$222,0) -> 79 | B149: San Sebastián del Oeste | C149: 1 | D149: =IFERROR(HLOOKUP(TablasDinamicas!B$1,TablasDinamicas!$B$97:$N$222,$A149,0),0) -> 0 | E149: =IFERROR(HLOOKUP(TablasDinamicas!C$1,TablasDinamicas!$B$97:$N$222,$A149,0),0) -> 0 | F149: =IFERROR(HLOOKUP(TablasDinamicas!D$1,TablasDinamicas!$B$97:$N$222,$A149,0),0) -> 0 | G149: =IFERROR(HLOOKUP(TablasDinamicas!E$1,TablasDinamicas!$B$97:$N$222,$A149,0),0) -> 0 | H149: =IFERROR(HLOOKUP(TablasDinamicas!F$1,TablasDinamicas!$B$97:$N$222,$A149,0),0) -> 0 | I149: =IFERROR(HLOOKUP(TablasDinamicas!G$1,TablasDinamicas!$B$97:$N$222,$A149,0),0) -> 0 | J149: =IFERROR(HLOOKUP(TablasDinamicas!H$1,TablasDinamicas!$B$97:$N$222,$A149,0),0) -> 0 | K149: =IFERROR(HLOOKUP(TablasDinamicas!I$1,TablasDinamicas!$B$97:$N$222,$A149,0),0) -> 0 | L149: =IFERROR(HLOOKUP(TablasDinamicas!J$1,TablasDinamicas!$B$97:$N$222,$A149,0),0) -> 0 | M149: =IFERROR(HLOOKUP(TablasDinamicas!K$1,TablasDinamicas!$B$97:$N$222,$A149,0),0) -> 1 | N149: =IFERROR(HLOOKUP(TablasDinamicas!L$1,TablasDinamicas!$B$97:$N$222,$A149,0),0) -> 0 | O149: =IFERROR(HLOOKUP(TablasDinamicas!M$1,TablasDinamicas!$B$97:$N$222,$A149,0),0) -> 0 | P149: =IFERROR(HLOOKUP(TablasDinamicas!N$1,TablasDinamicas!$B$97:$N$222,$A149,0),0) -> 0
A150: =MATCH(B150,TablasDinamicas!$A$97:$A$222,0) -> 80 | B150: Santa María de los Ángeles | C150: 9 | D150: =IFERROR(HLOOKUP(TablasDinamicas!B$1,TablasDinamicas!$B$97:$N$222,$A150,0),0) -> 6 | E150: =IFERROR(HLOOKUP(TablasDinamicas!C$1,TablasDinamicas!$B$97:$N$222,$A150,0),0) -> 0 | F150: =IFERROR(HLOOKUP(TablasDinamicas!D$1,TablasDinamicas!$B$97:$N$222,$A150,0),0) -> 1 | G150: =IFERROR(HLOOKUP(TablasDinamicas!E$1,TablasDinamicas!$B$97:$N$222,$A150,0),0) -> 0 | H150: =IFERROR(HLOOKUP(TablasDinamicas!F$1,TablasDinamicas!$B$97:$N$222,$A150,0),0) -> 0 | I150: =IFERROR(HLOOKUP(TablasDinamicas!G$1,TablasDinamicas!$B$97:$N$222,$A150,0),0) -> 0 | J150: =IFERROR(HLOOKUP(TablasDinamicas!H$1,TablasDinamicas!$B$97:$N$222,$A150,0),0) -> 0 | K150: =IFERROR(HLOOKUP(TablasDinamicas!I$1,TablasDinamicas!$B$97:$N$222,$A150,0),0) -> 0 | L150: =IFERROR(HLOOKUP(TablasDinamicas!J$1,TablasDinamicas!$B$97:$N$222,$A150,0),0) -> 1 | M150: =IFERROR(HLOOKUP(TablasDinamicas!K$1,TablasDinamicas!$B$97:$N$222,$A150,0),0) -> 0 | N150: =IFERROR(HLOOKUP(TablasDinamicas!L$1,TablasDinamicas!$B$97:$N$222,$A150,0),0) -> 1 | O150: =IFERROR(HLOOKUP(TablasDinamicas!M$1,TablasDinamicas!$B$97:$N$222,$A150,0),0) -> 0 | P150: =IFERROR(HLOOKUP(TablasDinamicas!N$1,TablasDinamicas!$B$97:$N$222,$A150,0),0) -> 0
A151: =MATCH(B151,TablasDinamicas!$A$97:$A$222,0) -> 81 | B151: Santa María del Oro | C151: 6 | D151: =IFERROR(HLOOKUP(TablasDinamicas!B$1,TablasDinamicas!$B$97:$N$222,$A151,0),0) -> 0 | E151: =IFERROR(HLOOKUP(TablasDinamicas!C$1,TablasDinamicas!$B$97:$N$222,$A151,0),0) -> 0 | F151: =IFERROR(HLOOKUP(TablasDinamicas!D$1,TablasDinamicas!$B$97:$N$222,$A151,0),0) -> 0 | G151: =IFERROR(HLOOKUP(TablasDinamicas!E$1,TablasDinamicas!$B$97:$N$222,$A151,0),0) -> 1 | H151: =IFERROR(HLOOKUP(TablasDinamicas!F$1,TablasDinamicas!$B$97:$N$222,$A151,0),0) -> 0 | I151: =IFERROR(HLOOKUP(TablasDinamicas!G$1,TablasDinamicas!$B$97:$N$222,$A151,0),0) -> 0 | J151: =IFERROR(HLOOKUP(TablasDinamicas!H$1,TablasDinamicas!$B$97:$N$222,$A151,0),0) -> 0 | K151: =IFERROR(HLOOKUP(TablasDinamicas!I$1,TablasDinamicas!$B$97:$N$222,$A151,0),0) -> 0 | L151: =IFERROR(HLOOKUP(TablasDinamicas!J$1,TablasDinamicas!$B$97:$N$222,$A151,0),0) -> 2 | M151: =IFERROR(HLOOKUP(TablasDinamicas!K$1,TablasDinamicas!$B$97:$N$222,$A151,0),0) -> 0 | N151: =IFERROR(HLOOKUP(TablasDinamicas!L$1,TablasDinamicas!$B$97:$N$222,$A151,0),0) -> 0 | O151: =IFERROR(HLOOKUP(TablasDinamicas!M$1,TablasDinamicas!$B$97:$N$222,$A151,0),0) -> 3 | P151: =IFERROR(HLOOKUP(TablasDinamicas!N$1,TablasDinamicas!$B$97:$N$222,$A151,0),0) -> 0
A152: =MATCH(B152,TablasDinamicas!$A$97:$A$222,0) -> 82 | B152: Sayula | C152: 14 | D152: =IFERROR(HLOOKUP(TablasDinamicas!B$1,TablasDinamicas!$B$97:$N$222,$A152,0),0) -> 0 | E152: =IFERROR(HLOOKUP(TablasDinamicas!C$1,TablasDinamicas!$B$97:$N$222,$A152,0),0) -> 0 | F152: =IFERROR(HLOOKUP(TablasDinamicas!D$1,TablasDinamicas!$B$97:$N$222,$A152,0),0) -> 0 | G152: =IFERROR(HLOOKUP(TablasDinamicas!E$1,TablasDinamicas!$B$97:$N$222,$A152,0),0) -> 0 | H152: =IFERROR(HLOOKUP(TablasDinamicas!F$1,TablasDinamicas!$B$97:$N$222,$A152,0),0) -> 0 | I152: =IFERROR(HLOOKUP(TablasDinamicas!G$1,TablasDinamicas!$B$97:$N$222,$A152,0),0) -> 1 | J152: =IFERROR(HLOOKUP(TablasDinamicas!H$1,TablasDinamicas!$B$97:$N$222,$A152,0),0) -> 0 | K152: =IFERROR(HLOOKUP(TablasDinamicas!I$1,TablasDinamicas!$B$97:$N$222,$A152,0),0) -> 0 | L152: =IFERROR(HLOOKUP(TablasDinamicas!J$1,TablasDinamicas!$B$97:$N$222,$A152,0),0) -> 0 | M152: =IFERROR(HLOOKUP(TablasDinamicas!K$1,TablasDinamicas!$B$97:$N$222,$A152,0),0) -> 3 | N152: =IFERROR(HLOOKUP(TablasDinamicas!L$1,TablasDinamicas!$B$97:$N$222,$A152,0),0) -> 0 | O152: =IFERROR(HLOOKUP(TablasDinamicas!M$1,TablasDinamicas!$B$97:$N$222,$A152,0),0) -> 2 | P152: =IFERROR(HLOOKUP(TablasDinamicas!N$1,TablasDinamicas!$B$97:$N$222,$A152,0),0) -> 8
A153: =MATCH(B153,TablasDinamicas!$A$97:$A$222,0) -> 83 | B153: Tala | C153: 36 | D153: =IFERROR(HLOOKUP(TablasDinamicas!B$1,TablasDinamicas!$B$97:$N$222,$A153,0),0) -> 0 | E153: =IFERROR(HLOOKUP(TablasDinamicas!C$1,TablasDinamicas!$B$97:$N$222,$A153,0),0) -> 0 | F153: =IFERROR(HLOOKUP(TablasDinamicas!D$1,TablasDinamicas!$B$97:$N$222,$A153,0),0) -> 0 | G153: =IFERROR(HLOOKUP(TablasDinamicas!E$1,TablasDinamicas!$B$97:$N$222,$A153,0),0) -> 2 | H153: =IFERROR(HLOOKUP(TablasDinamicas!F$1,TablasDinamicas!$B$97:$N$222,$A153,0),0) -> 0 | I153: =IFERROR(HLOOKUP(TablasDinamicas!G$1,TablasDinamicas!$B$97:$N$222,$A153,0),0) -> 0 | J153: =IFERROR(HLOOKUP(TablasDinamicas!H$1,TablasDinamicas!$B$97:$N$222,$A153,0),0) -> 0 | K153: =IFERROR(HLOOKUP(TablasDinamicas!I$1,TablasDinamicas!$B$97:$N$222,$A153,0),0) -> 0 | L153: =IFERROR(HLOOKUP(TablasDinamicas!J$1,TablasDinamicas!$B$97:$N$222,$A153,0),0) -> 15 | M153: =IFERROR(HLOOKUP(TablasDinamicas!K$1,TablasDinamicas!$B$97:$N$222,$A153,0),0) -> 6 | N153: =IFERROR(HLOOKUP(TablasDinamicas!L$1,TablasDinamicas!$B$97:$N$222,$A153,0),0) -> 2 | O153: =IFERROR(HLOOKUP(TablasDinamicas!M$1,TablasDinamicas!$B$97:$N$222,$A153,0),0) -> 4 | P153: =IFERROR(HLOOKUP(TablasDinamicas!N$1,TablasDinamicas!$B$97:$N$222,$A153,0),0) -> 7
A154: =MATCH(B154,TablasDinamicas!$A$97:$A$222,0) -> 84 | B154: Talpa de Allende | C154: 6 | D154: =IFERROR(HLOOKUP(TablasDinamicas!B$1,TablasDinamicas!$B$97:$N$222,$A154,0),0) -> 0 | E154: =IFERROR(HLOOKUP(TablasDinamicas!C$1,TablasDinamicas!$B$97:$N$222,$A154,0),0) -> 0 | F154: =IFERROR(HLOOKUP(TablasDinamicas!D$1,TablasDinamicas!$B$97:$N$222,$A154,0),0) -> 0 | G154: =IFERROR(HLOOKUP(TablasDinamicas!E$1,TablasDinamicas!$B$97:$N$222,$A154,0),0) -> 0 | H154: =IFERROR(HLOOKUP(TablasDinamicas!F$1,TablasDinamicas!$B$97:$N$222,$A154,0),0) -> 0 | I154: =IFERROR(HLOOKUP(TablasDinamicas!G$1,TablasDinamicas!$B$97:$N$222,$A154,0),0) -> 0 | J154: =IFERROR(HLOOKUP(TablasDinamicas!H$1,TablasDinamicas!$B$97:$N$222,$A154,0),0) -> 0 | K154: =IFERROR(HLOOKUP(TablasDinamicas!I$1,TablasDinamicas!$B$97:$N$222,$A154,0),0) -> 5 | L154: =IFERROR(HLOOKUP(TablasDinamicas!J$1,TablasDinamicas!$B$97:$N$222,$A154,0),0) -> 0 | M154: =IFERROR(HLOOKUP(TablasDinamicas!K$1,TablasDinamicas!$B$97:$N$222,$A154,0),0) -> 0 | N154: =IFERROR(HLOOKUP(TablasDinamicas!L$1,TablasDinamicas!$B$97:$N$222,$A154,0),0) -> 1 | O154: =IFERROR(HLOOKUP(TablasDinamicas!M$1,TablasDinamicas!$B$97:$N$222,$A154,0),0) -> 0 | P154: =IFERROR(HLOOKUP(TablasDinamicas!N$1,TablasDinamicas!$B$97:$N$222,$A154,0),0) -> 0
A155: =MATCH(B155,TablasDinamicas!$A$97:$A$222,0) -> 85 | B155: Tamazula de Gordiano | C155: 45 | D155: =IFERROR(HLOOKUP(TablasDinamicas!B$1,TablasDinamicas!$B$97:$N$222,$A155,0),0) -> 0 | E155: =IFERROR(HLOOKUP(TablasDinamicas!C$1,TablasDinamicas!$B$97:$N$222,$A155,0),0) -> 0 | F155: =IFERROR(HLOOKUP(TablasDinamicas!D$1,TablasDinamicas!$B$97:$N$222,$A155,0),0) -> 0 | G155: =IFERROR(HLOOKUP(TablasDinamicas!E$1,TablasDinamicas!$B$97:$N$222,$A155,0),0) -> 0 | H155: =IFERROR(HLOOKUP(TablasDinamicas!F$1,TablasDinamicas!$B$97:$N$222,$A155,0),0) -> 32 | I155: =IFERROR(HLOOKUP(TablasDinamicas!G$1,TablasDinamicas!$B$97:$N$222,$A155,0),0) -> 10 | J155: =IFERROR(HLOOKUP(TablasDinamicas!H$1,TablasDinamicas!$B$97:$N$222,$A155,0),0) -> 1 | K155: =IFERROR(HLOOKUP(TablasDinamicas!I$1,TablasDinamicas!$B$97:$N$222,$A155,0),0) -> 0 | L155: =IFERROR(HLOOKUP(TablasDinamicas!J$1,TablasDinamicas!$B$97:$N$222,$A155,0),0) -> 1 | M155: =IFERROR(HLOOKUP(TablasDinamicas!K$1,TablasDinamicas!$B$97:$N$222,$A155,0),0) -> 0 | N155: =IFERROR(HLOOKUP(TablasDinamicas!L$1,TablasDinamicas!$B$97:$N$222,$A155,0),0) -> 0 | O155: =IFERROR(HLOOKUP(TablasDinamicas!M$1,TablasDinamicas!$B$97:$N$222,$A155,0),0) -> 1 | P155: =IFERROR(HLOOKUP(TablasDinamicas!N$1,TablasDinamicas!$B$97:$N$222,$A155,0),0) -> 0
A156: =MATCH(B156,TablasDinamicas!$A$97:$A$222,0) -> 86 | B156: Tapalpa | C156: 11 | D156: =IFERROR(HLOOKUP(TablasDinamicas!B$1,TablasDinamicas!$B$97:$N$222,$A156,0),0) -> 0 | E156: =IFERROR(HLOOKUP(TablasDinamicas!C$1,TablasDinamicas!$B$97:$N$222,$A156,0),0) -> 0 | F156: =IFERROR(HLOOKUP(TablasDinamicas!D$1,TablasDinamicas!$B$97:$N$222,$A156,0),0) -> 0 | G156: =IFERROR(HLOOKUP(TablasDinamicas!E$1,TablasDinamicas!$B$97:$N$222,$A156,0),0) -> 4 | H156: =IFERROR(HLOOKUP(TablasDinamicas!F$1,TablasDinamicas!$B$97:$N$222,$A156,0),0) -> 0 | I156: =IFERROR(HLOOKUP(TablasDinamicas!G$1,TablasDinamicas!$B$97:$N$222,$A156,0),0) -> 1 | J156: =IFERROR(HLOOKUP(TablasDinamicas!H$1,TablasDinamicas!$B$97:$N$222,$A156,0),0) -> 0 | K156: =IFERROR(HLOOKUP(TablasDinamicas!I$1,TablasDinamicas!$B$97:$N$222,$A156,0),0) -> 0 | L156: =IFERROR(HLOOKUP(TablasDinamicas!J$1,TablasDinamicas!$B$97:$N$222,$A156,0),0) -> 0 | M156: =IFERROR(HLOOKUP(TablasDinamicas!K$1,TablasDinamicas!$B$97:$N$222,$A156,0),0) -> 0 | N156: =IFERROR(HLOOKUP(TablasDinamicas!L$1,TablasDinamicas!$B$97:$N$222,$A156,0),0) -> 0 | O156: =IFERROR(HLOOKUP(TablasDinamicas!M$1,TablasDinamicas!$B$97:$N$222,$A156,0),0) -> 2 | P156: =IFERROR(HLOOKUP(TablasDinamicas!N$1,TablasDinamicas!$B$97:$N$222,$A156,0),0) -> 4
A157: =MATCH(B157,TablasDinamicas!$A$97:$A$222,0) -> 87 | B157: Tecalitlán | C157: 5 | D157: =IFERROR(HLOOKUP(TablasDinamicas!B$1,TablasDinamicas!$B$97:$N$222,$A157,0),0) -> 0 | E157: =IFERROR(HLOOKUP(TablasDinamicas!C$1,TablasDinamicas!$B$97:$N$222,$A157,0),0) -> 0 | F157: =IFERROR(HLOOKUP(TablasDinamicas!D$1,TablasDinamicas!$B$97:$N$222,$A157,0),0) -> 0 | G157: =IFERROR(HLOOKUP(TablasDinamicas!E$1,TablasDinamicas!$B$97:$N$222,$A157,0),0) -> 0 | H157: =IFERROR(HLOOKUP(TablasDinamicas!F$1,TablasDinamicas!$B$97:$N$222,$A157,0),0) -> 0 | I157: =IFERROR(HLOOKUP(TablasDinamicas!G$1,TablasDinamicas!$B$97:$N$222,$A157,0),0) -> 3 | J157: =IFERROR(HLOOKUP(TablasDinamicas!H$1,TablasDinamicas!$B$97:$N$222,$A157,0),0) -> 0 | K157: =IFERROR(HLOOKUP(TablasDinamicas!I$1,TablasDinamicas!$B$97:$N$222,$A157,0),0) -> 0 | L157: =IFERROR(HLOOKUP(TablasDinamicas!J$1,TablasDinamicas!$B$97:$N$222,$A157,0),0) -> 0 | M157: =IFERROR(HLOOKUP(TablasDinamicas!K$1,TablasDinamicas!$B$97:$N$222,$A157,0),0) -> 0 | N157: =IFERROR(HLOOKUP(TablasDinamicas!L$1,TablasDinamicas!$B$97:$N$222,$A157,0),0) -> 0 | O157: =IFERROR(HLOOKUP(TablasDinamicas!M$1,TablasDinamicas!$B$97:$N$222,$A157,0),0) -> 1 | P157: =IFERROR(HLOOKUP(TablasDinamicas!N$1,TablasDinamicas!$B$97:$N$222,$A157,0),0) -> 1
A158: =MATCH(B158,TablasDinamicas!$A$97:$A$222,0) ->  | B158: Techaluta de Montenegro | C158: 0 | D158: =IFERROR(HLOOKUP(TablasDinamicas!B$1,TablasDinamicas!$B$97:$N$222,$A158,0),0) -> 0 | E158: =IFERROR(HLOOKUP(TablasDinamicas!C$1,TablasDinamicas!$B$97:$N$222,$A158,0),0) -> 0 | F158: =IFERROR(HLOOKUP(TablasDinamicas!D$1,TablasDinamicas!$B$97:$N$222,$A158,0),0) -> 0 | G158: =IFERROR(HLOOKUP(TablasDinamicas!E$1,TablasDinamicas!$B$97:$N$222,$A158,0),0) -> 0 | H158: =IFERROR(HLOOKUP(TablasDinamicas!F$1,TablasDinamicas!$B$97:$N$222,$A158,0),0) -> 0 | I158: =IFERROR(HLOOKUP(TablasDinamicas!G$1,TablasDinamicas!$B$97:$N$222,$A158,0),0) -> 0 | J158: =IFERROR(HLOOKUP(TablasDinamicas!H$1,TablasDinamicas!$B$97:$N$222,$A158,0),0) -> 0 | K158: =IFERROR(HLOOKUP(TablasDinamicas!I$1,TablasDinamicas!$B$97:$N$222,$A158,0),0) -> 0 | L158: =IFERROR(HLOOKUP(TablasDinamicas!J$1,TablasDinamicas!$B$97:$N$222,$A158,0),0) -> 0 | M158: =IFERROR(HLOOKUP(TablasDinamicas!K$1,TablasDinamicas!$B$97:$N$222,$A158,0),0) -> 0 | N158: =IFERROR(HLOOKUP(TablasDinamicas!L$1,TablasDinamicas!$B$97:$N$222,$A158,0),0) -> 0 | O158: =IFERROR(HLOOKUP(TablasDinamicas!M$1,TablasDinamicas!$B$97:$N$222,$A158,0),0) -> 0 | P158: =IFERROR(HLOOKUP(TablasDinamicas!N$1,TablasDinamicas!$B$97:$N$222,$A158,0),0) -> 0
A159: =MATCH(B159,TablasDinamicas!$A$97:$A$222,0) -> 88 | B159: Tecolotlán | C159: 3 | D159: =IFERROR(HLOOKUP(TablasDinamicas!B$1,TablasDinamicas!$B$97:$N$222,$A159,0),0) -> 0 | E159: =IFERROR(HLOOKUP(TablasDinamicas!C$1,TablasDinamicas!$B$97:$N$222,$A159,0),0) -> 0 | F159: =IFERROR(HLOOKUP(TablasDinamicas!D$1,TablasDinamicas!$B$97:$N$222,$A159,0),0) -> 0 | G159: =IFERROR(HLOOKUP(TablasDinamicas!E$1,TablasDinamicas!$B$97:$N$222,$A159,0),0) -> 1 | H159: =IFERROR(HLOOKUP(TablasDinamicas!F$1,TablasDinamicas!$B$97:$N$222,$A159,0),0) -> 0 | I159: =IFERROR(HLOOKUP(TablasDinamicas!G$1,TablasDinamicas!$B$97:$N$222,$A159,0),0) -> 0 | J159: =IFERROR(HLOOKUP(TablasDinamicas!H$1,TablasDinamicas!$B$97:$N$222,$A159,0),0) -> 2 | K159: =IFERROR(HLOOKUP(TablasDinamicas!I$1,TablasDinamicas!$B$97:$N$222,$A159,0),0) -> 0 | L159: =IFERROR(HLOOKUP(TablasDinamicas!J$1,TablasDinamicas!$B$97:$N$222,$A159,0),0) -> 0 | M159: =IFERROR(HLOOKUP(TablasDinamicas!K$1,TablasDinamicas!$B$97:$N$222,$A159,0),0) -> 0 | N159: =IFERROR(HLOOKUP(TablasDinamicas!L$1,TablasDinamicas!$B$97:$N$222,$A159,0),0) -> 0 | O159: =IFERROR(HLOOKUP(TablasDinamicas!M$1,TablasDinamicas!$B$97:$N$222,$A159,0),0) -> 0 | P159: =IFERROR(HLOOKUP(TablasDinamicas!N$1,TablasDinamicas!$B$97:$N$222,$A159,0),0) -> 0
A160: =MATCH(B160,TablasDinamicas!$A$97:$A$222,0) -> 89 | B160: Tenamaxtlán | C160: 1 | D160: =IFERROR(HLOOKUP(TablasDinamicas!B$1,TablasDinamicas!$B$97:$N$222,$A160,0),0) -> 0 | E160: =IFERROR(HLOOKUP(TablasDinamicas!C$1,TablasDinamicas!$B$97:$N$222,$A160,0),0) -> 0 | F160: =IFERROR(HLOOKUP(TablasDinamicas!D$1,TablasDinamicas!$B$97:$N$222,$A160,0),0) -> 0 | G160: =IFERROR(HLOOKUP(TablasDinamicas!E$1,TablasDinamicas!$B$97:$N$222,$A160,0),0) -> 0 | H160: =IFERROR(HLOOKUP(TablasDinamicas!F$1,TablasDinamicas!$B$97:$N$222,$A160,0),0) -> 0 | I160: =IFERROR(HLOOKUP(TablasDinamicas!G$1,TablasDinamicas!$B$97:$N$222,$A160,0),0) -> 0 | J160: =IFERROR(HLOOKUP(TablasDinamicas!H$1,TablasDinamicas!$B$97:$N$222,$A160,0),0) -> 0 | K160: =IFERROR(HLOOKUP(TablasDinamicas!I$1,TablasDinamicas!$B$97:$N$222,$A160,0),0) -> 0 | L160: =IFERROR(HLOOKUP(TablasDinamicas!J$1,TablasDinamicas!$B$97:$N$222,$A160,0),0) -> 1 | M160: =IFERROR(HLOOKUP(TablasDinamicas!K$1,TablasDinamicas!$B$97:$N$222,$A160,0),0) -> 0 | N160: =IFERROR(HLOOKUP(TablasDinamicas!L$1,TablasDinamicas!$B$97:$N$222,$A160,0),0) -> 0 | O160: =IFERROR(HLOOKUP(TablasDinamicas!M$1,TablasDinamicas!$B$97:$N$222,$A160,0),0) -> 0 | P160: =IFERROR(HLOOKUP(TablasDinamicas!N$1,TablasDinamicas!$B$97:$N$222,$A160,0),0) -> 0
A161: =MATCH(B161,TablasDinamicas!$A$97:$A$222,0) ->  | B161: Teocaltiche | C161: 0 | D161: =IFERROR(HLOOKUP(TablasDinamicas!B$1,TablasDinamicas!$B$97:$N$222,$A161,0),0) -> 0 | E161: =IFERROR(HLOOKUP(TablasDinamicas!C$1,TablasDinamicas!$B$97:$N$222,$A161,0),0) -> 0 | F161: =IFERROR(HLOOKUP(TablasDinamicas!D$1,TablasDinamicas!$B$97:$N$222,$A161,0),0) -> 0 | G161: =IFERROR(HLOOKUP(TablasDinamicas!E$1,TablasDinamicas!$B$97:$N$222,$A161,0),0) -> 0 | H161: =IFERROR(HLOOKUP(TablasDinamicas!F$1,TablasDinamicas!$B$97:$N$222,$A161,0),0) -> 0 | I161: =IFERROR(HLOOKUP(TablasDinamicas!G$1,TablasDinamicas!$B$97:$N$222,$A161,0),0) -> 0 | J161: =IFERROR(HLOOKUP(TablasDinamicas!H$1,TablasDinamicas!$B$97:$N$222,$A161,0),0) -> 0 | K161: =IFERROR(HLOOKUP(TablasDinamicas!I$1,TablasDinamicas!$B$97:$N$222,$A161,0),0) -> 0 | L161: =IFERROR(HLOOKUP(TablasDinamicas!J$1,TablasDinamicas!$B$97:$N$222,$A161,0),0) -> 0 | M161: =IFERROR(HLOOKUP(TablasDinamicas!K$1,TablasDinamicas!$B$97:$N$222,$A161,0),0) -> 0 | N161: =IFERROR(HLOOKUP(TablasDinamicas!L$1,TablasDinamicas!$B$97:$N$222,$A161,0),0) -> 0 | O161: =IFERROR(HLOOKUP(TablasDinamicas!M$1,TablasDinamicas!$B$97:$N$222,$A161,0),0) -> 0 | P161: =IFERROR(HLOOKUP(TablasDinamicas!N$1,TablasDinamicas!$B$97:$N$222,$A161,0),0) -> 0
A162: =MATCH(B162,TablasDinamicas!$A$97:$A$222,0) -> 90 | B162: Teocuitatlán de Corona | C162: 5 | D162: =IFERROR(HLOOKUP(TablasDinamicas!B$1,TablasDinamicas!$B$97:$N$222,$A162,0),0) -> 0 | E162: =IFERROR(HLOOKUP(TablasDinamicas!C$1,TablasDinamicas!$B$97:$N$222,$A162,0),0) -> 0 | F162: =IFERROR(HLOOKUP(TablasDinamicas!D$1,TablasDinamicas!$B$97:$N$222,$A162,0),0) -> 0 | G162: =IFERROR(HLOOKUP(TablasDinamicas!E$1,TablasDinamicas!$B$97:$N$222,$A162,0),0) -> 0 | H162: =IFERROR(HLOOKUP(TablasDinamicas!F$1,TablasDinamicas!$B$97:$N$222,$A162,0),0) -> 0 | I162: =IFERROR(HLOOKUP(TablasDinamicas!G$1,TablasDinamicas!$B$97:$N$222,$A162,0),0) -> 3 | J162: =IFERROR(HLOOKUP(TablasDinamicas!H$1,TablasDinamicas!$B$97:$N$222,$A162,0),0) -> 0 | K162: =IFERROR(HLOOKUP(TablasDinamicas!I$1,TablasDinamicas!$B$97:$N$222,$A162,0),0) -> 0 | L162: =IFERROR(HLOOKUP(TablasDinamicas!J$1,TablasDinamicas!$B$97:$N$222,$A162,0),0) -> 0 | M162: =IFERROR(HLOOKUP(TablasDinamicas!K$1,TablasDinamicas!$B$97:$N$222,$A162,0),0) -> 0 | N162: =IFERROR(HLOOKUP(TablasDinamicas!L$1,TablasDinamicas!$B$97:$N$222,$A162,0),0) -> 0 | O162: =IFERROR(HLOOKUP(TablasDinamicas!M$1,TablasDinamicas!$B$97:$N$222,$A162,0),0) -> 0 | P162: =IFERROR(HLOOKUP(TablasDinamicas!N$1,TablasDinamicas!$B$97:$N$222,$A162,0),0) -> 2
A163: =MATCH(B163,TablasDinamicas!$A$97:$A$222,0) -> 91 | B163: Tepatitlán de Morelos | C163: 361 | D163: =IFERROR(HLOOKUP(TablasDinamicas!B$1,TablasDinamicas!$B$97:$N$222,$A163,0),0) -> 0 | E163: =IFERROR(HLOOKUP(TablasDinamicas!C$1,TablasDinamicas!$B$97:$N$222,$A163,0),0) -> 0 | F163: =IFERROR(HLOOKUP(TablasDinamicas!D$1,TablasDinamicas!$B$97:$N$222,$A163,0),0) -> 316 | G163: =IFERROR(HLOOKUP(TablasDinamicas!E$1,TablasDinamicas!$B$97:$N$222,$A163,0),0) -> 21 | H163: =IFERROR(HLOOKUP(TablasDinamicas!F$1,TablasDinamicas!$B$97:$N$222,$A163,0),0) -> 0 | I163: =IFERROR(HLOOKUP(TablasDinamicas!G$1,TablasDinamicas!$B$97:$N$222,$A163,0),0) -> 0 | J163: =IFERROR(HLOOKUP(TablasDinamicas!H$1,TablasDinamicas!$B$97:$N$222,$A163,0),0) -> 0 | K163: =IFERROR(HLOOKUP(TablasDinamicas!I$1,TablasDinamicas!$B$97:$N$222,$A163,0),0) -> 0 | L163: =IFERROR(HLOOKUP(TablasDinamicas!J$1,TablasDinamicas!$B$97:$N$222,$A163,0),0) -> 4 | M163: =IFERROR(HLOOKUP(TablasDinamicas!K$1,TablasDinamicas!$B$97:$N$222,$A163,0),0) -> 2 | N163: =IFERROR(HLOOKUP(TablasDinamicas!L$1,TablasDinamicas!$B$97:$N$222,$A163,0),0) -> 2 | O163: =IFERROR(HLOOKUP(TablasDinamicas!M$1,TablasDinamicas!$B$97:$N$222,$A163,0),0) -> 2 | P163: =IFERROR(HLOOKUP(TablasDinamicas!N$1,TablasDinamicas!$B$97:$N$222,$A163,0),0) -> 14
